Workbook

Sheet Table of Contents
A1: Table of Contents
A3: Inputs
A4: Review
A5: Instructions
A6: Side-by-side
A7: Row-by-row
A8: Comments | B8: Comment count
A9: Consol | B9: =COUNTIFS(Comments!$B:$B,$A9) -> 0
A10: CorpOH | B10: =COUNTIFS(Comments!$B:$B,$A10) -> 0
A11: 999 | B11: =COUNTIFS(Comments!$B:$B,$A11) -> 0
A12: 998 | B12: =COUNTIFS(Comments!$B:$B,$A12) -> 0
A13: 997 | B13: =COUNTIFS(Comments!$B:$B,$A13) -> 0
A14: 996 | B14: =COUNTIFS(Comments!$B:$B,$A14) -> 0
A15: 995 | B15: =COUNTIFS(Comments!$B:$B,$A15) -> 0
A16: 951 | B16: =COUNTIFS(Comments!$B:$B,$A16) -> 0
A17: 952 | B17: =COUNTIFS(Comments!$B:$B,$A17) -> 0
A18: UJC | B18: =COUNTIFS(Comments!$B:$B,$A18) -> 0
A19: All | B19: =COUNTIFS(Comments!$B:$B,$A19) -> 0
A20: Comp | B20: =COUNTIFS(Comments!$B:$B,$A20) -> 0
A21: DFW | B21: =COUNTIFS(Comments!$B:$B,$A21) -> 0
A22: 001 | B22: =COUNTIFS(Comments!$B:$B,$A22) -> 0
A23: 004 | B23: =COUNTIFS(Comments!$B:$B,$A23) -> 0
A24: 008 | B24: =COUNTIFS(Comments!$B:$B,$A24) -> 0
A25: 014 | B25: =COUNTIFS(Comments!$B:$B,$A25) -> 0
A26: 015 | B26: =COUNTIFS(Comments!$B:$B,$A26) -> 0
A27: 029 | B27: =COUNTIFS(Comments!$B:$B,$A27) -> 0
A28: DC | B28: =COUNTIFS(Comments!$B:$B,$A28) -> 0
A29: MD | B29: =COUNTIFS(Comments!$B:$B,$A29) -> 0
A30: 002 | B30: =COUNTIFS(Comments!$B:$B,$A30) -> 0
A31: 010 | B31: =COUNTIFS(Comments!$B:$B,$A31) -> 0
A32: VA | B32: =COUNTIFS(Comments!$B:$B,$A32) -> 0
A33: 005 | B33: =COUNTIFS(Comments!$B:$B,$A33) -> 0
A34: 006 | B34: =COUNTIFS(Comments!$B:$B,$A34) -> 0
A35: 012 | B35: =COUNTIFS(Comments!$B:$B,$A35) -> 0
A36: 018 | B36: =COUNTIFS(Comments!$B:$B,$A36) -> 0
A37: 023 | B37: =COUNTIFS(Comments!$B:$B,$A37) -> 0
A38: 024 | B38: =COUNTIFS(Comments!$B:$B,$A38) -> 0
A39: IL | B39: =COUNTIFS(Comments!$B:$B,$A39) -> 0
A40: 007 | B40: =COUNTIFS(Comments!$B:$B,$A40) -> 0
A41: 011 | B41: =COUNTIFS(Comments!$B:$B,$A41) -> 0
A42: 020 | B42: =COUNTIFS(Comments!$B:$B,$A42) -> 0
A43: 022 | B43: =COUNTIFS(Comments!$B:$B,$A43) -> 0
A44: 025 | B44: =COUNTIFS(Comments!$B:$B,$A44) -> 0
A45: 027 | B45: =COUNTIFS(Comments!$B:$B,$A45) -> 0
A46: GA | B46: =COUNTIFS(Comments!$B:$B,$A46) -> 0
A47: 009 | B47: =COUNTIFS(Comments!$B:$B,$A47) -> 0
A48: 017 | B48: =COUNTIFS(Comments!$B:$B,$A48) -> 0
A49: Low | B49: =COUNTIFS(Comments!$B:$B,$A49) -> 0
A50: 019 | B50: =COUNTIFS(Comments!$B:$B,$A50) -> 0
A51: 026 | B51: =COUNTIFS(Comments!$B:$B,$A51) -> 0
A52: New | B52: =COUNTIFS(Comments!$B:$B,$A52) -> 0
A53: 028 | B53: =COUNTIFS(Comments!$B:$B,$A53) -> 0
A54: 030 | B54: =COUNTIFS(Comments!$B:$B,$A54) -> 0
A55: 031 | B55: =COUNTIFS(Comments!$B:$B,$A55) -> 0
A56: 032 | B56: =COUNTIFS(Comments!$B:$B,$A56) -> 0
A57: 033 | B57: =COUNTIFS(Comments!$B:$B,$A57) -> 0
A58: 034 | B58: =COUNTIFS(Comments!$B:$B,$A58) -> 0
A59: 035 | B59: =COUNTIFS(Comments!$B:$B,$A59) -> 0
A60: 036 | B60: =COUNTIFS(Comments!$B:$B,$A60) -> 0
A61: 037 | B61: =COUNTIFS(Comments!$B:$B,$A61) -> 0
A62: 038 | B62: =COUNTIFS(Comments!$B:$B,$A62) -> 0
A63: 039 | B63: =COUNTIFS(Comments!$B:$B,$A63) -> 0
A64: 047 | B64: =COUNTIFS(Comments!$B:$B,$A64) -> 0
A65: 048 | B65: =COUNTIFS(Comments!$B:$B,$A65) -> 0
A66: 049 | B66: =COUNTIFS(Comments!$B:$B,$A66) -> 0
A67: 050 | B67: =COUNTIFS(Comments!$B:$B,$A67) -> 0
A68: Other | B68: =COUNTIFS(Comments!$B:$B,$A68) -> 0
A69: 021 | B69: =COUNTIFS(Comments!$B:$B,$A69) -> 0
A70: 013 | B70: =COUNTIFS(Comments!$B:$B,$A70) -> 0
A71: 003 | B71: =COUNTIFS(Comments!$B:$B,$A71) -> 0
A72: 016 | B72: =COUNTIFS(Comments!$B:$B,$A72) -> 0
A73: HAC | B73: =COUNTIFS(Comments!$B:$B,$A73) -> 0
A74: 040 | B74: =COUNTIFS(Comments!$B:$B,$A74) -> 0
A75: 041 | B75: =COUNTIFS(Comments!$B:$B,$A75) -> 0
A76: 042 | B76: =COUNTIFS(Comments!$B:$B,$A76) -> 0
A77: 043 | B77: =COUNTIFS(Comments!$B:$B,$A77) -> 0
A78: 044 | B78: =COUNTIFS(Comments!$B:$B,$A78) -> 0
A79: 045 | B79: =COUNTIFS(Comments!$B:$B,$A79) -> 0
A80: 046 | B80: =COUNTIFS(Comments!$B:$B,$A80) -> 0
A81: CAT | B81: =COUNTIFS(Comments!$B:$B,$A81) -> 0
A82: C(OH) | B82: =COUNTIFS(Comments!$B:$B,$A82) -> 0
A83: C(TX) | B83: =COUNTIFS(Comments!$B:$B,$A83) -> 0
A84: C(DC) | B84: =COUNTIFS(Comments!$B:$B,$A84) -> 0
A85: C(GA) | B85: =COUNTIFS(Comments!$B:$B,$A85) -> 0
A86: C(VA) | B86: =COUNTIFS(Comments!$B:$B,$A86) -> 0
A87: C(IL) | B87: =COUNTIFS(Comments!$B:$B,$A87) -> 0
A88: C(FL) | B88: =COUNTIFS(Comments!$B:$B,$A88) -> 0
A89: C(PA) | B89: =COUNTIFS(Comments!$B:$B,$A89) -> 0
A90: FieldOH | B90: =COUNTIFS(Comments!$B:$B,$A90) -> 0
A91: 900 | B91: =COUNTIFS(Comments!$B:$B,$A91) -> 0
A92: 901 | B92: =COUNTIFS(Comments!$B:$B,$A92) -> 0
A93: 902 | B93: =COUNTIFS(Comments!$B:$B,$A93) -> 0
A94: 903 | B94: =COUNTIFS(Comments!$B:$B,$A94) -> 0
A95: 904 | B95: =COUNTIFS(Comments!$B:$B,$A95) -> 0
A96: Mapping | B96: =COUNTIFS(Comments!$B:$B,$A96) -> 0
A97: Accounts | B97: =COUNTIFS(Comments!$B:$B,$A97) -> 0

Sheet Instructions
A1: Back to ToC
A2: Tips for review | C2: Note: | D2: Macros must be enabled to use the blue buttons and keyboard shortcuts!
A3: 1 | B3: Utilize the Table of Contents sheet to easily jump to a store/group sheet.
A4: =A3+1 -> 2 | B4: Use the Side-by-side sheet to see a particular column (i.e. period-to-date actuals) for all stores side-by-side. The default is CY PTD Actual $ (column B on each of the P&L sheets), but you can select a different column from the drop-down list in cell D2 on the Side-by-side sheet to look at a different column side-by-side for all stores.
A8: =A4+1 -> 3 | B8: You can sort the Side-by-side sheet horizontally by any row such that the first column (B) is the highest amount descending to the lowest amount in the right-most column next to the average column. To do this, click the Sort Stores button on the Side-by-side sheet and enter the row number to sort by.
M10: Shortcuts to filter all store/group sheets:
A12: =A8+1 -> 4 | B12: Jump between the Side-by-side sheet at the store/group P&L sheets with the Jump_Side_By_Side macro, based on the column selected within the Side-by-side sheet.
A14: =A12+1 -> 5 | B14: Use the Row-by-row sheet to show the full row for a P&L line item for all stores/groups. Enter the row number to compare in cell D2 of the Row-by-row sheet.
A16: =A14+1 -> 6 | B16: Jump between the Row-by-row sheet at the store/group P&L sheets with the Jump_Row_By_Row macro, based on the row selected within the Row-by-row sheet.
A18: =A16+1 -> 7 | B18: Quickly add a comment from a store/group P&L sheet to the Comments sheet with the Copy_PL_Comment macro when on the sheet/cell you have a comment about. The store #/group, line item, and current amount/variances will be added to the Comments sheet on the next blank row. Then you can leave a brief description in column D of the Comments sheet. Click the same Copy_PL_Comment macro again from that row on the Comments sheet to jump back to the store/group P&L sheet and add a cell comment containing your brief description to the cell with the question.
M22: Column List: | N22: Column | O22: Column #
A23: =A18+1 -> 8 | M23: CY PTD Actual $ | N23: B | O23: 2
M24: CY-1 PTD Actual $ | N24: C | O24: =O23+1 -> 3
A25: =A23+1 -> 9 | B25: Use the blue shortcut buttons to the right to filter all store/group sheets to zero amounts, negative amounts, or unfilter them all. | M25: CY-2 PTD Actual $ | N25: D | O25: =O24+1 -> 4
M26: CY-3 PTD Actual $ | N26: E | O26: 5
M27: CY-4 PTD Actual $ | N27: F | O27: 6
M28: CY-5 PTD Actual $ | N28: G | O28: 7
M29: CY PTD Actual %S | N29: I | O29: 9
M30: CY-1 PTD Actual %S | N30: J | O30: =O29+1 -> 10
M31: CY-2 PTD Actual %S | N31: K | O31: 11
M32: CY-3 PTD Actual %S | N32: L | O32: 12
M33: CY-4 PTD Actual %S | N33: M | O33: 13
M34: CY-5 PTD Actual %S | N34: N | O34: 14
M35: PY PTD Actual $ | N35: P | O35: 16
M36: PY PTD Actual %S | N36: Q | O36: 17
M37: PTD B(W) PY $ | N37: R | O37: 18
M38: PTD B(W) PY % | N38: S | O38: 19
M39: CY PTD Budget $ | N39: U | O39: 21
M40: CY PTD Budget %S | N40: V | O40: 22
M41: PTD B(W) Budget $ | N41: W | O41: 23
M42: PTD B(W) Budget % | N42: X | O42: 24
M43: CY YTD Actual $ | N43: Z | O43: 26
M44: CY YTD Actual %S | N44: AA | O44: =+O43+1 -> 27
M45: PY YTD Actual $ | N45: AC | O45: 29
M46: PY YTD Actual %S | N46: AD | O46: =+O45+1 -> 30
M47: YTD B(W) PY $ | N47: AE | O47: 31
M48: YTD B(W) PY % | N48: AF | O48: 32
M49: CY YTD Budget $ | N49: AH | O49: 34
M50: CY YTD Budget %S | N50: AI | O50: 35
M51: YTD B(W) Budget $ | N51: AJ | O51: 36
M52: YTD B(W) Budget % | N52: AK | O52: 37

Sheet Inputs
A1: Back to ToC
A4: Period: | B4: =SUBSTITUTE(SUBSTITUTE(INDIRECT("'Consol'!B2"),"Period ","")," "&B5,"")*1 -> 12
A5: Year: | B5: =RIGHT(INDIRECT("'Consol'!B2"),4)*1 -> 2018
A6: EOP Date: | B6: =DATEVALUE(INDIRECT("'Consol'!B5")) -> 2018-09-30
A9: Prior Period Listing
A10: Offset | B10: Period | C10: Year
A11: 0 | B11: =$B$4 -> 12 | C11: =$B$5 -> 2018
A12: -1 | B12: =IF(B11=1,13,B11-1) -> 11 | C12: =IF(B11=1,C11-1,C11) -> 2018
A13: -2 | B13: =IF(B12=1,13,B12-1) -> 10 | C13: =IF(B12=1,C12-1,C12) -> 2018
A14: -3 | B14: 9 | C14: 2018
A15: -4 | B15: 8 | C15: 2018
A16: -5 | B16: 7 | C16: 2018

Sheet Review
A1: Back to ToC
A3: # | B3: Item | C3: Description
A4: 1 | B4: COGS | C4: Review COGS by category and by location to prior year and trend. Inquire about large variances to determine if there are any issues with inventory counts.
A5: =[1]!Next_Number_Letter(A4) -> 2 | B5: COGS rebates | C5: Ensure rebates have been recorded according to estimates.
A6: =[1]!Next_Number_Letter(A5) -> 3 | B6: Salaries and wages | C6: Review each line item for salaries and wages with trend for each store to ensure no significant variances (use Row-by-row sheet).
A7: =[1]!Next_Number_Letter(A6) -> 4 | B7: Capitalized salaries | C7: Ensure capitalized salaries recorded and within expectations.
A8: =[1]!Next_Number_Letter(A7) -> 5 | B8: Training | C8: Ensure manager training has been allocated properly across all stores.
A9: =[1]!Next_Number_Letter(A8) -> 6 | B9: Bonuses | C9: Ensure store bonuses have been recorded and match the bonus calculation file and that unopened stores hit pre-opening.
A10: =[1]!Next_Number_Letter(A9) -> 7 | B10: Salaries and wages | C10: Review other salaries and wages line items for reasonableness with trend for each store to ensure no significant, unjustified variances (use Row-by-row sheet).
A11: =[1]!Next_Number_Letter(A10) -> 8 | B11: Direct operating expenses | C11: Review trend and variance to budget/PY for direct operating expense line items at a consolidated level to identify significant fluctuations.
A12: =[1]!Next_Number_Letter(A11) -> 9 | B12: Direct operating expenses | C12: Review trend and variance to budget/PY for direct operating expenses in total for each store (using Row-by-row sheet) to identify significant fluctuations. | E12: Consider some high-level groupings to add at the bottom of the template to review at the store level in total (i.e. Supplies, R&M, Other)
A13: =[1]!Next_Number_Letter(A12) -> 10 | B13: Direct operating expenses | C13: Ensure new stores have sufficient accruals in place for direct operating expenses.
A14: =[1]!Next_Number_Letter(A13) -> 11 | B14: Indirect operating expenses | C14: Review trend and variance to budget/PY for indirect operating expense line items at a consolidated level to identify significant fluctuations.
A15: =[1]!Next_Number_Letter(A14) -> 12 | B15: Indirect operating expenses | C15: Review trend and variance to budget/PY for indirect operating expenses in total for each store (using Row-by-row sheet) to identify significant fluctuations. | E15: Consider some high-level groupings to add at the bottom of the template to review at the store level in total (i.e. General services, Utilities, Advertising, Other)
A16: =[1]!Next_Number_Letter(A15) -> 13 | B16: Indirect operating expenses | C16: Ensure new stores have sufficient accruals in place for indirect operating expenses.
A17: =[1]!Next_Number_Letter(A16) -> 14 | B17: Other operating expenses | C17: Review trend and variance to budget/PY for other operating expense line items at a consolidated level to identify significant fluctuations.
A18: =[1]!Next_Number_Letter(A17) -> 15 | B18: Other operating expenses | C18: Review trend and variance to budget/PY for other operating expenses in total for each store (using Row-by-row sheet) to identify significant fluctuations.
A19: =[1]!Next_Number_Letter(A18) -> 16 | B19: Other operating expenses | C19: Ensure new stores have sufficient accruals in place for other operating expenses.
A20: =[1]!Next_Number_Letter(A19) -> 17 | B20: Occupancy | C20: Review trend and variance to budget/PY for occupancy expense line items at a consolidated level to identify significant fluctuations.
A21: =[1]!Next_Number_Letter(A20) -> 18 | B21: Occupancy | C21: Review trend and variance to budget/PY for occupancy expenses in total for each store (using Row-by-row sheet) to identify significant fluctuations.
A22: =[1]!Next_Number_Letter(A21) -> 19 | B22: Occupancy | C22: On a store-by-store basis, ensure % rent expense for the month is reasonable given YTD sales trends.
A23: =[1]!Next_Number_Letter(A22) -> 20 | B23: Occupancy | C23: Ensure that new stores have % rent expense accrued, if applicable.
A24: =[1]!Next_Number_Letter(A23) -> 21 | B24: Other expenses | C24: Review trend and variance to budget/PY for occupancy expense line items at a consolidated level to identify significant fluctuations.
A25: =[1]!Next_Number_Letter(A24) -> 22 | B25: Interest expense | C25: Review trend and variance to budget/PY for occupancy expense line items at a consolidated level to identify significant fluctuations.
A26: =[1]!Next_Number_Letter(A25) -> 23 | B26: Depreciation expense | C26: Review trend and variance to budget/PY for occupancy expense line items at a consolidated level to identify significant fluctuations.
A27: =[1]!Next_Number_Letter(A26) -> 24 | B27: Tax expense | C27: Review trend and variance to budget/PY for occupancy expense line items at a consolidated level to identify significant fluctuations.
A28: =[1]!Next_Number_Letter(A27) -> 25 | B28: General expense | C28: On a store-by-store basis, ensure that credit amounts or $0 amounts (when the line item has a budget) are justified.

Sheet Side-by-side
A1: Back to ToC | F1: Column # | G1: =IF($D$2="","",VLOOKUP($D$2,Instructions!$M$23:$O$52,3,FALSE)) -> 2
A2: UNCLE JULIO'S | C2: Metric: | D2: CY PTD Actual $ | F2: Column | G2: =IF($D$2="","",VLOOKUP($D$2,Instructions!$M$23:$N$52,2,FALSE)) -> B
B6: 001 | C6: 002 | D6: 004 | E6: 005 | F6: 006 | G6: 007 | H6: 008 | I6: 009 | J6: 010 | K6: 011 | L6: 012 | M6: 014 | N6: 015 | O6: 016 | P6: 017 | Q6: 018 | R6: 019 | S6: 020 | T6: 022 | U6: 023 | V6: 024 | W6: 025 | X6: 026 | Y6: 027 | Z6: 028 | AA6: 029 | AB6: 030 | AC6: 031 | AD6: 032 | AE6: 033 | AF6: 034 | AG6: 035 | AH6: 036 | AI6: 037 | AJ6: 038 | AK6: 039
A7: SALES | B7: =IF($A7="","",INDIRECT("'"&B$6&"'!"&$G$2&ROW())) -> 0 | C7: =IF($A7="","",INDIRECT("'"&C$6&"'!"&$G$2&ROW())) -> 0 | D7: 0 | E7: 0 | F7: 0 | G7: 0 | H7: 0 | I7: 0 | J7: 0 | K7: 0 | L7: 0 | M7: 0 | N7: 0 | O7: 0 | P7: 0 | Q7: 0 | R7: 0 | S7: =IF($A7="","",INDIRECT("'"&S$6&"'!"&$G$2&ROW())) -> 0 | T7: 0 | U7: 0 | V7: 0 | W7: 0 | X7: 0 | Y7: 0 | Z7: 0 | AA7: 0 | AB7: 0 | AC7: 0 | AD7: 0 | AE7: 0 | AF7: 0 | AG7: 0 | AH7: 0 | AI7: =IF($A7="","",INDIRECT("'"&AI$6&"'!"&$G$2&ROW())) -> 0 | AJ7: 0 | AK7: 0
A8: Food Sales | B8: =IF($A8="","",INDIRECT("'"&B$6&"'!"&$G$2&ROW())) -> 263583.515 | C8: 210715.98 | D8: 332294.6088 | E8: 247793.1816 | F8: 228133.4271 | G8: 218467.568 | H8: 269794.6457 | I8: 121077.4215 | J8: 354419.5464 | K8: 193331.649 | L8: 226865.3823 | M8: 260277.3075 | N8: 317895.54 | O8: 0 | P8: 133555.8744 | Q8: 218266.688 | R8: 125331.374 | S8: 236957.4324 | T8: 230130.2388 | U8: 293550.6912 | V8: 312439.4547 | W8: 234972.4797 | X8: 182251.144 | Y8: 150898.6876 | Z8: 184432.2628 | AA8: 280605.9729 | AB8: 298576.5013 | AC8: 254074.4956 | AD8: 172824.7344 | AE8: 334511.127 | AF8: 231299.1064 | AG8: 324246.3392 | AH8: 409896.2874 | AI8: 454426.8113 | AJ8: 0 | AK8: 0
A9: Bar Sales: | B9: 0 | C9: 0 | D9: 0 | E9: 0 | F9: 0 | G9: 0 | H9: 0 | I9: 0 | J9: 0 | K9: 0 | L9: 0 | M9: 0 | N9: 0 | O9: 0 | P9: 0 | Q9: 0 | R9: 0 | S9: 0 | T9: 0 | U9: 0 | V9: 0 | W9: 0 | X9: 0 | Y9: 0 | Z9: 0 | AA9: 0 | AB9: 0 | AC9: 0 | AD9: 0 | AE9: 0 | AF9: 0 | AG9: 0 | AH9: 0 | AI9: 0 | AJ9: 0 | AK9: 0
A10: Liquor Sales | B10: 64829.2779 | C10: 55727.7109 | D10: 88861.9912 | E10: 59122.7259 | F10: 49453.2798 | G10: 66402.3536 | H10: 52611.976 | I10: 32722.9534 | J10: 95778.4064 | K10: 61526.01 | L10: 49983.392 | M10: 47206.4512 | N10: 45549.3984 | O10: 0 | P10: 31695.0102 | Q10: 62269.1538 | R10: 58416.174 | S10: 65684.6264 | T10: 48096.0124 | U10: 60764.55 | V10: 62917.425 | W10: 66957.5005 | X10: 35352.4964 | Y10: 39687.5648 | Z10: 55339.917 | AA10: 54748.2562 | AB10: 53781.4083 | AC10: 56001.9648 | AD10: 42342.5849 | AE10: 80564.4384 | AF10: 72918.219 | AG10: 87611.8196 | AH10: 103688.843 | AI10: 117076.3992 | AJ10: 0 | AK10: 0
A11: Beer Sales | B11: 5729.6618 | C11: 8543.064 | D11: 17258.742 | E11: 11627.85 | F11: 10745.6199 | G11: 6232.0833 | H11: 8399.3436 | I11: 2681.3325 | J11: 15155.6916 | K11: 6121.1634 | L11: 5785.4108 | M11: 10932.6984 | N11: 7832.243 | O11: 0 | P11: 6764.2915 | Q11: 7028.994 | R11: 9611.2826 | S11: 5715.024 | T11: 7297.4364 | U11: 11647.8747 | V11: 11636.1852 | W11: 7245.3014 | X11: 4723.6735 | Y11: 8094.6248 | Z11: 6475.6548 | AA11: 8668.2693 | AB11: 7341.6861 | AC11: 15042.1748 | AD11: 5187.9444 | AE11: 11881.1097 | AF11: 8280.051 | AG11: 10251.287 | AH11: 18190.004 | AI11: 13377.8129 | AJ11: 0 | AK11: 0
A12: Wine Sales | B12: 2331.7184 | C12: 4120.4685 | D12: 2280.6966 | E12: 1963.9686 | F12: 2364.1406 | G12: 2318.9035 | H12: 3239.1825 | I12: 752.4992 | J12: 3328.8775 | K12: 1478.3076 | L12: 1951.0019 | M12: 2834.4165 | N12: 2368.158 | O12: 0 | P12: 1813.16 | Q12: 2168.3248 | R12: 1665.7512 | S12: 928.1333 | T12: 3257.535 | U12: 2131.3908 | V12: 2368.5312 | W12: 2351.0292 | X12: 1521.0504 | Y12: 2487.7062 | Z12: 1978.381 | AA12: 1599.6774 | AB12: 5470.812 | AC12: 2222.2305 | AD12: 2374.2417 | AE12: 2300.2672 | AF12: 2314.0536 | AG12: 3024.207 | AH12: 3183.495 | AI12: 4845.9424 | AJ12: 0 | AK12: 0
A14: Subtotal Bar Sales | B14: 72890.6581 | C14: 68391.2434 | D14: 108401.4298 | E14: 72714.5445 | F14: 62563.0403 | G14: 74953.3404 | H14: 64250.5021 | I14: 36156.7851 | J14: 114262.9755 | K14: 69125.481 | L14: 57719.8047 | M14: 60973.5661 | N14: 55749.7994 | O14: 0 | P14: 40272.4617 | Q14: 71466.4726 | R14: 69693.2078 | S14: 72327.7837 | T14: 58650.9838 | U14: 74543.8155 | V14: 76922.1414 | W14: 76553.8311 | X14: 41597.2203 | Y14: 50269.8958 | Z14: 63793.9528 | AA14: 65016.2029 | AB14: 66593.9064 | AC14: 73266.3701 | AD14: 49904.771 | AE14: 94745.8153 | AF14: 83512.3236 | AG14: 100887.3136 | AH14: 125062.342 | AI14: 135300.1545 | AJ14: 0 | AK14: 0
A16: Other Sales-Boutique | B16: 0 | C16: 0 | D16: 0 | E16: 0 | F16: 0 | G16: 0 | H16: 0 | I16: 0 | J16: 0 | K16: 0 | L16: 0 | M16: 0 | N16: 0 | O16: 0 | P16: 0 | Q16: 0 | R16: 0 | S16: 0 | T16: 0 | U16: 0 | V16: 0 | W16: 0 | X16: 0 | Y16: 0 | Z16: 0 | AA16: 0 | AB16: 0 | AC16: 0 | AD16: 0 | AE16: 0 | AF16: 0 | AG16: 0 | AH16: 0 | AI16: 0 | AJ16: 0 | AK16: 0
A17: Other Sales-Packaging | B17: 958.1372 | C17: 1596.7125 | D17: 1205.8015 | E17: 479.478 | F17: 531.0423 | G17: 748.656 | H17: 805.1364 | I17: 217.0832 | J17: 698.2487 | K17: 495.7122 | L17: 661.8015 | M17: 502.336 | N17: 512.538 | O17: 0 | P17: 450.6159 | Q17: 494.9175 | R17: 230.587 | S17: 352.56 | T17: 378.2415 | U17: 659.7075 | V17: 450.866 | W17: 226.864 | X17: 428.4504 | Y17: 194.8905 | Z17: 86.5683 | AA17: 335.88 | AB17: 310.0104 | AC17: 93.8322 | AD17: 192.582 | AE17: 533.5698 | AF17: 436.7768 | AG17: 365.5482 | AH17: 320.07 | AI17: 559.4532 | AJ17: 0 | AK17: 0
A19: TOTAL NET SALES | B19: 337432.3103 | C19: 280703.9359 | D19: 441901.8401 | E19: 320987.2041 | F19: 291227.5097 | G19: 294169.5644 | H19: 334850.2842 | I19: 157451.2898 | J19: 469380.7706 | K19: 262952.8422 | L19: 285246.9885 | M19: 321753.2096 | N19: 374157.8774 | O19: 0 | P19: 174278.952 | Q19: 290228.0781 | R19: 195255.1688 | S19: 309637.7761 | T19: 289159.4641 | U19: 368754.2142 | V19: 389812.4621 | W19: 311753.1748 | X19: 224276.8147 | Y19: 201363.4739 | Z19: 248312.7839 | AA19: 345958.0558 | AB19: 365480.4181 | AC19: 327434.6979 | AD19: 222922.0874 | AE19: 429790.5121 | AF19: 315248.2068 | AG19: 425499.201 | AH19: 535278.6994 | AI19: 590286.419 | AJ19: 0 | AK19: 0
A21: Guestcount-Derived | B21: 12099.11 | C21: 13267.1 | D21: 18271.71 | E21: 11379.52 | F21: 12652.92 | G21: 11379.0648 | H21: 14668.08 | I21: 6394.869 | J21: 19416.86 | K21: 9571.627 | L21: 9350.53 | M21: 13621.32 | N21: 11920.43 | O21: 0 | P21: 7450.92 | Q21: 13982.28 | R21: 5102.4 | S21: 12999.33 | T21: 9759.222 | U21: 12934.02 | V21: 12591.8 | W21: 12085.15 | X21: 10455.885 | Y21: 11867.5359 | Z21: 8774.89 | AA21: 11026.575 | AB21: 15178.9392 | AC21: 9756.45 | AD21: 7334.58 | AE21: 20859.75 | AF21: 10844.505 | AG21: 19122.6 | AH21: 17404.4 | AI21: 24400.73 | AJ21: 0 | AK21: 0
A22: Per-Person Average | B22: 27.88901913 | C22: 21.15789705 | D22: 24.18502921 | E22: 28.20744672 | F22: 23.0166246 | G22: 25.85182259 | H22: 22.82850136 | I22: 24.62150355 | J22: 24.17387624 | K22: 27.47211547 | L22: 30.50597009 | M22: 23.62129438 | N22: 31.38795139 | O22: 0 | P22: 23.39025946 | Q22: 20.75684925 | R22: =IF($A22="","",INDIRECT("'"&R$6&"'!"&$G$2&ROW())) -> 38.26731907 | S22: 23.81951809 | T22: 29.62935612 | U22: 28.51041008 | V22: 30.95764403 | W22: 25.79638439 | X22: 21.44981651 | Y22: 16.96758919 | Z22: 28.29810789 | AA22: 31.37493336 | AB22: 24.07812649 | AC22: 33.56084415 | AD22: 30.3932996 | AE22: 20.60381894 | AF22: 29.06985674 | AG22: 22.25111653 | AH22: =IF($A22="","",INDIRECT("'"&AH$6&"'!"&$G$2&ROW())) -> 30.75536642 | AI22: 24.1913426 | AJ22: 0 | AK22: 0
A24: COST OF GOODS SOLD | B24: =IF($A24="","",INDIRECT("'"&B$6&"'!"&$G$2&ROW())) -> 0 | C24: 0 | D24: 0 | E24: 0 | F24: 0 | G24: 0 | H24: 0 | I24: 0 | J24: 0 | K24: 0 | L24: 0 | M24: 0 | N24: 0 | O24: 0 | P24: 0 | Q24: 0 | R24: 0 | S24: 0 | T24: 0 | U24: 0 | V24: 0 | W24: 0 | X24: 0 | Y24: 0 | Z24: 0 | AA24: 0 | AB24: 0 | AC24: 0 | AD24: 0 | AE24: 0 | AF24: 0 | AG24: 0 | AH24: 0 | AI24: 0 | AJ24: 0 | AK24: 0
A25: FOOD COST | B25: 0 | C25: 0 | D25: 0 | E25: 0 | F25: 0 | G25: 0 | H25: 0 | I25: 0 | J25: 0 | K25: 0 | L25: 0 | M25: 0 | N25: 0 | O25: 0 | P25: 0 | Q25: 0 | R25: 0 | S25: 0 | T25: 0 | U25: 0 | V25: 0 | W25: 0 | X25: 0 | Y25: 0 | Z25: 0 | AA25: 0 | AB25: 0 | AC25: 0 | AD25: 0 | AE25: 0 | AF25: 0 | AG25: 0 | AH25: 0 | AI25: 0 | AJ25: 0 | AK25: 0
A26: Seafood Cost | B26: 5022.2642 | C26: 5303.1814 | D26: 7683.3036 | E26: 6565.8131 | F26: 4121.5787 | G26: 7837.0537 | H26: 5720.032 | I26: 2453.9946 | J26: 11340.8148 | K26: 5429.67 | L26: 4501.2156 | M26: 6071.6256 | N26: 6653.6895 | O26: 0 | P26: 3054.44 | Q26: 7717.496 | R26: 3150.27 | S26: 6191.8996 | T26: 4633.2032 | U26: 5917.681 | V26: 7647.1416 | W26: 6042.1655 | X26: 4856.6537 | Y26: 4378.8672 | Z26: 4437.9328 | AA26: 4677.2892 | AB26: 8555.76 | AC26: 5174.7886 | AD26: 3743.7309 | AE26: 8426.1884 | AF26: 7144.5017 | AG26: 8233.288 | AH26: 9578.655 | AI26: 14214.2242 | AJ26: 0 | AK26: 0
A27: Produce Cost | B27: 13460.87 | C27: 19824.9576 | D27: 17906.7075 | E27: 14099.346 | F27: 17473.527 | G27: 15846.5836 | H27: 11923.776 | I27: 8773.9836 | J27: 21311.0579 | K27: 13183.9956 | L27: 13857.0772 | M27: 17796.8421 | N27: 15721.3533 | O27: 0 | P27: 8518.098 | Q27: 18671.2764 | R27: 6944 | S27: 13807.4884 | T27: 14620.304 | U27: 17436.4376 | V27: 15196.3303 | W27: 16072.84 | X27: 12215.5495 | Y27: 15063.3164 | Z27: 15988.1685 | AA27: 11651.61 | AB27: 21485.7552 | AC27: 16981.4632 | AD27: 11226.6312 | AE27: 23037.8958 | AF27: 16276.8225 | AG27: 25814.5008 | AH27: 32399.7475 | AI27: 25469.9644 | AJ27: 0 | AK27: 0
A28: Dairy Cost | B28: 6796.6505 | C28: 8412.534 | D28: 11650.1308 | E28: 6510.0548 | F28: 7030.9833 | G28: 4449.3963 | H28: 8859.0148 | I28: 3222.8672 | J28: 7717.5376 | K28: 6474.1072 | L28: 5302.2998 | M28: 8036.3622 | N28: 8356.0158 | O28: 0 | P28: 5393.9026 | Q28: 7631.8443 | R28: 4844.9745 | S28: 6260.4544 | T28: 4220.6976 | U28: 9325.521 | V28: 8779.23 | W28: 6340.2265 | X28: 5745.0168 | Y28: 4988.2216 | Z28: 4950.2078 | AA28: 5893.4799 | AB28: 7924.1819 | AC28: 6572.818 | AD28: 4217.528 | AE28: 10467.0924 | AF28: 9466.7672 | AG28: 6442.3137 | AH28: 16306.332 | AI28: 12710.7387 | AJ28: 0 | AK28: 0
A29: Meat Cost | B29: 20306.7683 | C29: 20201.8488 | D29: 23781.9128 | E29: 16951.2287 | F29: 17063.298 | G29: 20018.7592 | H29: 18547.1241 | I29: 6166.3739 | J29: 30896.76 | K29: 18789.5488 | L29: 11056.002 | M29: 19870.7396 | N29: 16053.2198 | O29: 0 | P29: 8866.3086 | Q29: 20970.8345 | R29: 8821.7899 | S29: 13853.7216 | T29: 14836.121 | U29: 18255.7926 | V29: 21171.6414 | W29: 14447.512 | X29: 17832.4475 | Y29: 14101.8024 | Z29: 11233.4829 | AA29: 14755.0276 | AB29: 17794.8964 | AC29: 14000.1728 | AD29: 8617.7599 | AE29: 26551.6944 | AF29: 16398.7539 | AG29: 16104.123 | AH29: 25574.2272 | AI29: 22583.9553 | AJ29: 0 | AK29: 0
A30: Poultry Cost | B30: 9138.7872 | C30: 9364.7313 | D30: 13155.956 | E30: 5642.2072 | F30: 5820.3144 | G30: 4275.8672 | H30: 9454.0315 | I30: 3582.5677 | J30: 8288.856 | K30: 4776.9297 | L30: 3449.484 | M30: 8411.344 | N30: 7382.4219 | O30: 0 | P30: 3558.3808 | Q30: 5723.3616 | R30: 5043.897 | S30: 6457.6446 | T30: 4712.431 | U30: 8133.2768 | V30: 7541.3835 | W30: 4220.5511 | X30: 7354.7208 | Y30: 4512.2814 | Z30: 4526.9133 | AA30: 6730.3912 | AB30: 8610.5251 | AC30: 6567.1676 | AD30: 4175.5128 | AE30: 9397.037 | AF30: 6828.2956 | AG30: 9846.3468 | AH30: 18683.0514 | AI30: 10282.09 | AJ30: 0 | AK30: 0
A31: Misc. Dry Goods Cost | B31: 13119.1964 | C31: 11939.5782 | D31: 19680.8859 | E31: 14831.8716 | F31: 11951.9322 | G31: 11764.6828 | H31: 10912.1028 | I31: 6793.9641 | J31: 21204.848 | K31: 12172.4726 | L31: 11168.9072 | M31: 16805.792 | N31: 14440.2 | O31: 0 | P31: 9332.6844 | Q31: 17423.5975 | R31: 7787.3265 | S31: 11368.1571 | T31: 11235.5964 | U31: 15216.5364 | V31: 17893.9992 | W31: 12753.7254 | X31: 12982.6752 | Y31: 10837.5323 | Z31: 10412.888 | AA31: 14381.8734 | AB31: 17441.3393 | AC31: 13381.2321 | AD31: 9977.2818 | AE31: 15373.9278 | AF31: 12771.8448 | AG31: 18246.664 | AH31: 19816.8313 | AI31: 26705.4424 | AJ31: 0 | AK31: 0
A33: TOTAL FOOD COST | B33: 67844.5366 | C33: 75046.8313 | D33: 93858.8966 | E33: 64600.5214 | F33: 63461.6336 | G33: 64192.3428 | H33: 65416.0812 | I33: 30993.7511 | J33: 100759.8743 | K33: 60826.7239 | L33: 49334.9858 | M33: 76992.7055 | N33: 68606.9003 | O33: 0 | P33: 38723.8144 | Q33: 78138.4103 | R33: 36592.2579 | S33: 57939.3657 | T33: 54258.3532 | U33: 74285.2454 | V33: 78229.726 | W33: 59877.0205 | X33: 60987.0635 | Y33: 53882.0213 | Z33: 51549.5933 | AA33: 58089.6713 | AB33: 81812.4579 | AC33: 62677.6423 | AD33: 41958.4446 | AE33: 93253.8358 | AF33: 68886.9857 | AG33: 84687.2363 | AH33: 122358.8444 | AI33: 111966.415 | AJ33: 0 | AK33: 0
A35: BAR COST | B35: 0 | C35: 0 | D35: 0 | E35: 0 | F35: 0 | G35: 0 | H35: 0 | I35: 0 | J35: 0 | K35: 0 | L35: 0 | M35: 0 | N35: 0 | O35: 0 | P35: 0 | Q35: 0 | R35: 0 | S35: 0 | T35: 0 | U35: 0 | V35: 0 | W35: 0 | X35: 0 | Y35: 0 | Z35: 0 | AA35: 0 | AB35: 0 | AC35: 0 | AD35: 0 | AE35: 0 | AF35: 0 | AG35: 0 | AH35: 0 | AI35: 0 | AJ35: 0 | AK35: 0
A36: Liquor Cost | B36: 8576.3247 | C36: 9683.796 | D36: 9085.1607 | E36: 15689.1959 | F36: 9943.0416 | G36: 7354.8676 | H36: 7312.8384 | I36: 5991.5232 | J36: 10556.3256 | K36: 7171.2256 | L36: 9008.2162 | M36: 6980.2068 | N36: 8471.3128 | O36: 0 | P36: 7427.3437 | Q36: 9309.65 | R36: 5578.2656 | S36: 6734.854 | T36: 7943.5176 | U36: 11901.505 | V36: 10202.7796 | W36: 8562.28 | X36: 4698.0912 | Y36: 5977.7184 | Z36: 7365.915 | AA36: 10199.898 | AB36: 11408.096 | AC36: 10115.784 | AD36: 8752.1888 | AE36: 13637.2297 | AF36: 11269.768 | AG36: 12141.0648 | AH36: 21791.2495 | AI36: 13313.5168 | AJ36: 0 | AK36: 0
A37: Beer Cost | B37: 1374.39 | C37: 2164.1062 | D37: 3476.25 | E37: 2879.0802 | F37: 2577.2911 | G37: 2116.8126 | H37: 1944.1214 | I37: 982.7916 | J37: 3030.825 | K37: 1871.672 | L37: 1078.5792 | M37: 2488.1775 | N37: 1508.234 | O37: 0 | P37: 1656.2816 | Q37: 2938.0216 | R37: 2390.7742 | S37: 1089.252 | T37: 3687.6987 | U37: 2757.139 | V37: 2287.3597 | W37: 2199.528 | X37: 1604.4315 | Y37: 2115.405 | Z37: 1689.579 | AA37: 1888.9472 | AB37: 2230.0106 | AC37: 3855.681 | AD37: 2179.56 | AE37: 3020.6382 | AF37: 2313.89 | AG37: 1970.1982 | AH37: 4338.169 | AI37: 3112.0268 | AJ37: 0 | AK37: 0
A38: Wine Cost | B38: 887.9672 | C38: 987.264 | D38: 796.0152 | E38: 700.5768 | F38: 847.2204 | G38: 825.012 | H38: 943.4117 | I38: 358.8845 | J38: 1343.196 | K38: 412.2075 | L38: 524.8006 | M38: 1282.8415 | N38: 903.559 | O38: 0 | P38: 536.9901 | Q38: 748.2258 | R38: =IF($A38="","",INDIRECT("'"&R$6&"'!"&$G$2&ROW())) -> 458.0151 | S38: 386.334 | T38: 824.312 | U38: 942.1629 | V38: 197.8222 | W38: 462.52 | X38: 351.552 | Y38: 681.212 | Z38: 571.7628 | AA38: 402.8636 | AB38: 996.9752 | AC38: 861.68 | AD38: 1062.5421 | AE38: 625.518 | AF38: 665.3824 | AG38: 1107.666 | AH38: 973.5033 | AI38: 1794.2008 | AJ38: 0 | AK38: 0
A39: Bar Grocery Cost | B39: 3364.1726 | C39: 2498.3406 | D39: 3307.4044 | E39: 2761.4559 | F39: 2283.6583 | G39: 2479.4316 | H39: 2152.6464 | I39: 1214.2953 | J39: 2910.2164 | K39: 3126.843 | L39: 2038.8654 | M39: 3110.609 | N39: 2221.5765 | O39: 0 | P39: 1512.8932 | Q39: =IF($A39="","",INDIRECT("'"&Q$6&"'!"&$G$2&ROW())) -> 1678.7453 | R39: 1190.5674 | S39: 3386.0178 | T39: 4204.8495 | U39: 2395.0944 | V39: 1945.194 | W39: 2529.504 | X39: 1557.8481 | Y39: 2781.3504 | Z39: 2643.2714 | AA39: 2135.8052 | AB39: 2553.639 | AC39: 2606.083 | AD39: 1752.6932 | AE39: 4371.3672 | AF39: 2058.903 | AG39: 3263.1816 | AH39: 2831.9728 | AI39: 3958.9228 | AJ39: 0 | AK39: 0
B40: =IF($A40="","",INDIRECT("'"&B$6&"'!"&$G$2&ROW())) -> 
A41: TOTAL BAR COST | B41: 14202.8545 | C41: 15333.5068 | D41: 16664.8303 | E41: 22030.3088 | F41: 15651.2114 | G41: 12776.1238 | H41: 12353.0179 | I41: 8547.4946 | J41: 17840.563 | K41: 12581.9481 | L41: 12650.4614 | M41: 13861.8348 | N41: 13104.6823 | O41: 0 | P41: 11133.5086 | Q41: 14674.6427 | R41: 9617.6223 | S41: 11596.4578 | T41: 16660.3778 | U41: 17995.9013 | V41: 14633.1555 | W41: 13753.832 | X41: 8211.9228 | Y41: 11555.6858 | Z41: 12270.5282 | AA41: 14627.514 | AB41: 17188.7208 | AC41: 17439.228 | AD41: 13746.9841 | AE41: 21654.7531 | AF41: 16307.9434 | AG41: 18482.1106 | AH41: 29934.8946 | AI41: 22178.6672 | AJ41: 0 | AK41: 0
AH42: =IF($A42="","",INDIRECT("'"&AH$6&"'!"&$G$2&ROW())) -> 
A44: LIQUOR TAX | B44: 4452.8682 | C44: 0 | D44: 7615.4496 | E44: 0 | F44: 0 | G44: 0 | H44: 4127.1732 | I44: 0 | J44: 0 | K44: 0 | L44: 0 | M44: 4081.4484 | N44: 3517.7312 | O44: 0 | P44: 0 | Q44: 0 | R44: 3345.4976 | S44: 0 | T44: 0 | U44: 0 | V44: 0 | W44: 0 | X44: 3206.0644 | Y44: 0 | Z44: 0 | AA44: 4215.2031 | AB44: 0 | AC44: 0 | AD44: 0 | AE44: 5436.189 | AF44: 4848.7178 | AG44: 0 | AH44: 0 | AI44: 0 | AJ44: 0 | AK44: 0
A45: FOOD FREIGHT/DELIVERY | B45: 0 | C45: 0 | D45: 0 | E45: 0 | F45: 0 | G45: 0 | H45: 0 | I45: 0 | J45: 0 | K45: 0 | L45: 0 | M45: 0 | N45: 0 | O45: 0 | P45: 0 | Q45: 35.708 | R45: 0 | S45: 0 | T45: 0 | U45: 0 | V45: 0 | W45: 0 | X45: 0 | Y45: 0 | Z45: 0 | AA45: 0 | AB45: 0 | AC45: 0 | AD45: 0 | AE45: 0 | AF45: 0 | AG45: 0 | AH45: 0 | AI45: 0 | AJ45: 0 | AK45: 0
A46: APPAREL COST | B46: 0 | C46: 0 | D46: 0 | E46: 0 | F46: 0 | G46: 0 | H46: 0 | I46: 0 | J46: 0 | K46: 0 | L46: 0 | M46: 0 | N46: 0 | O46: 0 | P46: 0 | Q46: 0 | R46: 0 | S46: 0 | T46: 0 | U46: 0 | V46: 0 | W46: 0 | X46: 0 | Y46: 0 | Z46: 0 | AA46: 0 | AB46: 0 | AC46: 0 | AD46: 0 | AE46: 0 | AF46: 0 | AG46: 0 | AH46: 0 | AI46: 0 | AJ46: 0 | AK46: 0
A49: COST OF GOODS SOLD | B49: 86500.2593 | C49: 90380.3381 | D49: 118139.1765 | E49: 86630.8302 | F49: 79112.845 | G49: 76968.4666 | H49: 81896.2723 | I49: 39541.2457 | J49: 118600.4373 | K49: 73408.672 | L49: 61985.4472 | M49: 94935.9887 | N49: 85229.3138 | O49: 0 | P49: 49857.323 | Q49: 92848.761 | R49: 49555.3778 | S49: 69535.8235 | T49: 70918.731 | U49: 92281.1467 | V49: 92862.8815 | W49: 73630.8525 | X49: 72405.0507 | Y49: 65437.7071 | Z49: 63820.1215 | AA49: 76932.3884 | AB49: 99001.1787 | AC49: 80116.8703 | AD49: 55705.4287 | AE49: 120344.7779 | AF49: 90043.6469 | AG49: 103169.3469 | AH49: 152293.739 | AI49: 134145.0822 | AJ49: 0 | AK49: 0
A52: GROSS PROFIT | B52: 250932.051 | C52: 190323.5978 | D52: 323762.6636 | E52: 234356.3739 | F52: 212114.6647 | G52: 217201.0978 | H52: 252954.0119 | I52: 117910.0441 | J52: 350780.3333 | K52: 189544.1702 | L52: 223261.5413 | M52: 226817.2209 | N52: 288928.5636 | O52: 0 | P52: 124421.629 | Q52: 197379.3171 | R52: 145699.791 | S52: 240101.9526 | T52: 218240.7331 | U52: 276473.0675 | V52: 296949.5806 | W52: 238122.3223 | X52: 151871.764 | Y52: 135925.7668 | Z52: 184492.6624 | AA52: 269025.6674 | AB52: 266479.2394 | AC52: 247317.8276 | AD52: 167216.6587 | AE52: 309445.7342 | AF52: 225204.5599 | AG52: 322329.8541 | AH52: 382984.9604 | AI52: 456141.3368 | AJ52: 0 | AK52: 0
AG53: =IF($A53="","",INDIRECT("'"&AG$6&"'!"&$G$2&ROW())) -> 
A54: LABOR COSTS | B54: 0 | C54: 0 | D54: 0 | E54: 0 | F54: 0 | G54: 0 | H54: 0 | I54: 0 | J54: 0 | K54: 0 | L54: 0 | M54: 0 | N54: 0 | O54: 0 | P54: 0 | Q54: 0 | R54: 0 | S54: 0 | T54: 0 | U54: 0 | V54: 0 | W54: 0 | X54: 0 | Y54: 0 | Z54: 0 | AA54: 0 | AB54: 0 | AC54: 0 | AD54: 0 | AE54: 0 | AF54: 0 | AG54: 0 | AH54: 0 | AI54: 0 | AJ54: 0 | AK54: 0
A55: SALARIES & WAGES | B55: 0 | C55: 0 | D55: 0 | E55: 0 | F55: 0 | G55: 0 | H55: 0 | I55: 0 | J55: 0 | K55: 0 | L55: 0 | M55: 0 | N55: 0 | O55: 0 | P55: 0 | Q55: 0 | R55: =IF($A55="","",INDIRECT("'"&R$6&"'!"&$G$2&ROW())) -> 0 | S55: 0 | T55: 0 | U55: 0 | V55: 0 | W55: 0 | X55: 0 | Y55: 0 | Z55: 0 | AA55: 0 | AB55: 0 | AC55: 0 | AD55: 0 | AE55: 0 | AF55: 0 | AG55: 0 | AH55: 0 | AI55: 0 | AJ55: 0 | AK55: 0
A56: Direct Operating Labor: | B56: =IF($A56="","",INDIRECT("'"&B$6&"'!"&$G$2&ROW())) -> 0 | C56: 0 | D56: 0 | E56: 0 | F56: 0 | G56: 0 | H56: 0 | I56: 0 | J56: 0 | K56: 0 | L56: 0 | M56: 0 | N56: 0 | O56: 0 | P56: 0 | Q56: 0 | R56: 0 | S56: 0 | T56: 0 | U56: 0 | V56: 0 | W56: 0 | X56: 0 | Y56: 0 | Z56: 0 | AA56: 0 | AB56: 0 | AC56: 0 | AD56: 0 | AE56: 0 | AF56: 0 | AG56: 0 | AH56: 0 | AI56: 0 | AJ56: 0 | AK56: 0
A57: Operating Payroll | B57: 55418.232 | C57: 72289.4292 | D57: 68592.406 | E57: 70203.4168 | F57: 50353.4394 | G57: 87771.4112 | H57: 53445.196 | I57: 28166.4572 | J57: 87073.416 | K57: 58561.587 | L57: 43024.6603 | M57: 61183.0784 | N57: 61922.4617 | O57: 0 | P57: 43037.568 | Q57: 55010.7392 | R57: 35186.9328 | S57: 63665.5703 | T57: 60061.434 | U57: 63531.3162 | V57: 60409.952 | W57: 64140.675 | X57: 53687.3298 | Y57: 67570.157 | Z57: 58161.2 | AA57: 50974.4548 | AB57: 90759.7944 | AC57: 74011.5975 | AD57: 57940.0614 | AE57: 94432.923 | AF57: 76554.6516 | AG57: 105013.4834 | AH57: 103385.5355 | AI57: 133942.4869 | AJ57: 0 | AK57: 0
A58: Training | B58: 2054.0715 | C58: 4961.079 | D58: 2125.7712 | E58: 2111.49 | F58: 2679.637 | G58: 3183.462 | H58: 886.262 | I58: 2289.7154 | J58: 3932.4915 | K58: 1298.4426 | L58: 278.9972 | M58: 971.9754 | N58: 2590.3094 | O58: 0 | P58: 1923.6495 | Q58: 1181.7468 | R58: 407.9625 | S58: 3042.637 | T58: 2019.6026 | U58: 1072.76 | V58: 1242.4936 | W58: 1678.6116 | X58: 2869.1606 | Y58: 1872.8724 | Z58: 778.83 | AA58: 2876.5044 | AB58: 3690.5748 | AC58: 2074.1049 | AD58: 1792.7448 | AE58: 4482.6894 | AF58: 3489.8326 | AG58: 7372.0407 | AH58: 9802.538 | AI58: 16297.621 | AJ58: 0 | AK58: 0
A60: Subtotal Direct Operating Labor | B60: 57472.3035 | C60: 77250.5082 | D60: 70718.1772 | E60: 72314.9068 | F60: 53033.0764 | G60: 90954.8732 | H60: 54331.458 | I60: 30456.1726 | J60: 91005.9075 | K60: 59860.0296 | L60: 43303.6575 | M60: 62155.0538 | N60: 64512.7711 | O60: 0 | P60: 44961.2175 | Q60: 56192.486 | R60: 35594.8953 | S60: 66708.2073 | T60: 62081.0366 | U60: 64604.0762 | V60: 61652.4456 | W60: 65819.2866 | X60: 56556.4904 | Y60: 69443.0294 | Z60: 58940.03 | AA60: 53850.9592 | AB60: 94450.3692 | AC60: 76085.7024 | AD60: 59732.8062 | AE60: 98915.6124 | AF60: 80044.4842 | AG60: 112385.5241 | AH60: 113188.0735 | AI60: 150240.1079 | AJ60: 0 | AK60: 0
A62: Indirect Operating Labor: | B62: 0 | C62: 0 | D62: 0 | E62: 0 | F62: 0 | G62: 0 | H62: 0 | I62: 0 | J62: 0 | K62: 0 | L62: 0 | M62: 0 | N62: 0 | O62: 0 | P62: 0 | Q62: 0 | R62: 0 | S62: 0 | T62: 0 | U62: 0 | V62: 0 | W62: 0 | X62: 0 | Y62: 0 | Z62: 0 | AA62: 0 | AB62: 0 | AC62: 0 | AD62: 0 | AE62: 0 | AF62: 0 | AG62: 0 | AH62: 0 | AI62: 0 | AJ62: 0 | AK62: 0
A63: Management Salaries | B63: 20475.6368 | C63: 20124.7983 | D63: 20051.3952 | E63: 15421.1732 | F63: 18521.9632 | G63: 15830.7996 | H63: 16629.7856 | I63: 14655.3525 | J63: 27470.637 | K63: 16078.2736 | L63: 16274.6372 | M63: 21932.685 | N63: 14393.964 | O63: 0 | P63: 13226.4848 | Q63: 16071.63 | R63: 15857.8805 | S63: 14696.4375 | T63: 16230.1265 | U63: 17269.4908 | V63: 10686.906 | W63: 14398.8372 | X63: 17976.0924 | Y63: 17613.0912 | Z63: 20759.805 | AA63: 23040.303 | AB63: 20187.6059 | AC63: 17501.2174 | AD63: 15016.3616 | AE63: 22320.2852 | AF63: 18948.461 | AG63: 21707.9838 | AH63: 19395.6768 | AI63: 23660.3691 | AJ63: 0 | AK63: 0
A64: Capitalized Salaries | B64: 0 | C64: 0 | D64: 0 | E64: 0 | F64: 0 | G64: 0 | H64: 0 | I64: 0 | J64: 0 | K64: 0 | L64: 0 | M64: 0 | N64: 0 | O64: 0 | P64: 0 | Q64: 0 | R64: 0 | S64: 0 | T64: 0 | U64: 0 | V64: 0 | W64: 0 | X64: 0 | Y64: 0 | Z64: 0 | AA64: 0 | AB64: 0 | AC64: 0 | AD64: 0 | AE64: 0 | AF64: 0 | AG64: 0 | AH64: 0 | AI64: 0 | AJ64: 0 | AK64: 0
A65: Office Manager Salaries | B65: 1324.3 | C65: 587.4616 | D65: 916.8684 | E65: 253.0892 | F65: 282.2775 | G65: 510.372 | H65: 514.9404 | I65: 690.9174 | J65: 660.592 | K65: 641.55 | L65: 530.9877 | M65: 614.8155 | N65: 752.808 | O65: 0 | P65: 568.491 | Q65: 765.4561 | R65: 498.2904 | S65: 756.008 | T65: 491.7808 | U65: 688.3182 | V65: 436.9872 | W65: 72.9405 | X65: 751.0354 | Y65: 813.96 | Z65: 1366.6445 | AA65: 664.1025 | AB65: 545.3838 | AC65: 301.872 | AD65: 585.12 | AE65: 916.9914 | AF65: 692.088 | AG65: 1410.8472 | AH65: 764.0278 | AI65: 1098.352 | AJ65: 0 | AK65: 0
A66: Part-Time Manager Salaries | B66: 1376.2125 | C66: 153.076 | D66: 1925.0838 | E66: 1143.428 | F66: 1101.7577 | G66: 2354.2135 | H66: 826.7635 | I66: 2926.8372 | J66: 3307.9401 | K66: 1453.441 | L66: 915.0183 | M66: 1600.5006 | N66: 1049.5071 | O66: 0 | P66: 570.1811 | Q66: 5200.2743 | R66: 1510.4614 | S66: 4856.817 | T66: 1528.3886 | U66: 807.3873 | V66: 1108.247 | W66: 2040.4865 | X66: 556.64 | Y66: 787.8489 | Z66: 1966.7001 | AA66: 542.0278 | AB66: 793.65 | AC66: 1412.9198 | AD66: 1414.035 | AE66: 1577.0568 | AF66: 2230.3358 | AG66: 0 | AH66: 1584.9969 | AI66: 618.464 | AJ66: 0 | AK66: 0
A67: Manager Training | B67: 2372.6703 | C67: 2742.4371 | D67: 1848.834 | E67: 2742.4371 | F67: 2742.4371 | G67: 2341.8564 | H67: 2341.8564 | I67: 2126.1591 | J67: 2033.7174 | K67: 2465.112 | L67: 2126.1591 | M67: 2372.6703 | N67: 2649.9954 | O67: 0 | P67: 2588.3676 | Q67: 2218.6008 | R67: 2187.7869 | S67: 2372.6703 | T67: 2218.6008 | U67: 2002.91 | V67: 2002.9035 | W67: 2649.9954 | X67: 2526.7398 | Y67: 2773.251 | Z67: 2156.973 | AA67: 1941.2757 | AB67: 2064.5313 | AC67: 1910.4618 | AD67: 2064.5313 | AE67: 2495.9259 | AF67: 2156.98 | AG67: 2588.376 | AH67: 2650.004 | AI67: 2064.7055 | AJ67: 0 | AK67: 0
A68: Bonuses | B68: 754.0029 | C68: 50.0025 | D68: 513.1038 | E68: 54.6694 | F68: 367.4646 | G68: 1308.4822 | H68: 520.8513 | I68: 1087.6245 | J68: 272.196 | K68: 4550.6493 | L68: 42.0021 | M68: 42.6624 | N68: 1474.792 | O68: 0 | P68: 42.0021 | Q68: 1796.669 | R68: 960.6918 | S68: 1427.125 | T68: 2189.0022 | U68: 2156.0028 | V68: 54.0027 | W68: 1110.678 | X68: 1894.7484 | Y68: 1339.7523 | Z68: 955.002 | AA68: 54.6694 | AB68: 109.7588 | AC68: 544.194 | AD68: 1529.0022 | AE68: 53.336 | AF68: 1969.1695 | AG68: 56.6695 | AH68: 58.6696 | AI68: 671.3616 | AJ68: 0 | AK68: 0
AH69: =IF($A69="","",INDIRECT("'"&AH$6&"'!"&$G$2&ROW())) -> 
A70: Subtotal Indirect Operating Labor | B70: 26302.8225 | C70: 23657.7755 | D70: 25255.2852 | E70: 19614.7969 | F70: 23015.9001 | G70: 22345.7237 | H70: 20834.1972 | I70: 21486.8907 | J70: 33745.0825 | K70: 25189.0259 | L70: 19888.8044 | M70: 26563.3338 | N70: 20321.0665 | O70: 0 | P70: 16995.5266 | Q70: 26052.6302 | R70: 21015.111 | S70: 24109.0578 | T70: 22657.8989 | U70: 22924.1091 | V70: 14289.0464 | W70: 20272.9376 | X70: 23705.256 | Y70: 23327.9034 | Z70: 27205.1246 | AA70: 26242.3784 | AB70: 23700.9298 | AC70: 21670.665 | AD70: 20609.0501 | AE70: 27363.5953 | AF70: 25997.0343 | AG70: 25763.8765 | AH70: 24453.3751 | AI70: 28113.2522 | AJ70: 0 | AK70: 0
Q71: =IF($A71="","",INDIRECT("'"&Q$6&"'!"&$G$2&ROW())) ->  | AG71: =IF($A71="","",INDIRECT("'"&AG$6&"'!"&$G$2&ROW())) -> 
A72: TOTAL SALARIES & WAGES | B72: =IF($A72="","",INDIRECT("'"&B$6&"'!"&$G$2&ROW())) -> 83775.126 | C72: 100908.2837 | D72: 95973.4624 | E72: 91929.7037 | F72: 76048.9765 | G72: 113300.5969 | H72: 75165.6552 | I72: 51943.0633 | J72: 124750.99 | K72: 85049.0555 | L72: 63192.4619 | M72: 88718.3876 | N72: 84833.8376 | O72: 0 | P72: 61956.7441 | Q72: 82245.1162 | R72: 56610.0063 | S72: 90817.2651 | T72: 84738.9355 | U72: 87528.1853 | V72: 75941.492 | W72: 86092.2242 | X72: 80261.7464 | Y72: 92770.9328 | Z72: 86145.1546 | AA72: 80093.3376 | AB72: 118151.299 | AC72: 97756.3674 | AD72: 80341.8563 | AE72: 126279.2077 | AF72: 106041.5185 | AG72: 138149.4006 | AH72: 137641.4486 | AI72: 178353.3601 | AJ72: 0 | AK72: 0
A74: TAXES & BENEFITS | B74: 0 | C74: 0 | D74: 0 | E74: 0 | F74: 0 | G74: 0 | H74: 0 | I74: 0 | J74: 0 | K74: 0 | L74: 0 | M74: 0 | N74: 0 | O74: 0 | P74: 0 | Q74: 0 | R74: 0 | S74: 0 | T74: 0 | U74: 0 | V74: 0 | W74: 0 | X74: 0 | Y74: 0 | Z74: 0 | AA74: 0 | AB74: 0 | AC74: 0 | AD74: 0 | AE74: 0 | AF74: 0 | AG74: 0 | AH74: 0 | AI74: 0 | AJ74: 0 | AK74: 0
A75: Payroll Taxes | B75: 9223.734 | C75: 14083.6782 | D75: 11230.713 | E75: 9994.4085 | F75: 8817.5736 | G75: 8666.526 | H75: 9354.4044 | I75: 7091.3832 | J75: 15763.2331 | K75: 11435.736 | L75: 8327.62 | M75: 11433.69 | N75: 9561.8514 | O75: 0 | P75: 5677.182 | Q75: 12249.1176 | R75: 6336.1226 | S75: 10145.8152 | T75: 10304.7758 | U75: 9913.0299 | V75: 9499.5444 | W75: 8583.8008 | X75: 7734.6786 | Y75: 9569.5702 | Z75: 8921.2883 | AA75: 12530.079 | AB75: 12331.0383 | AC75: 10488.6934 | AD75: 7722.4896 | AE75: 14014.6714 | AF75: 10446.6936 | AG75: 13124.3301 | AH75: 22371.4953 | AI75: 28136.799 | AJ75: 0 | AK75: 0
A76: Worker's Comp Insurance | B76: 1557.6066 | C76: 2084.904 | D76: 2283.9214 | E76: 1801.3268 | F76: 1629.4592 | G76: 4857.844 | H76: 1959.5802 | I76: 1862.104 | J76: 2682.3525 | K76: 3681.6195 | L76: 1556.8644 | M76: 2081.7 | N76: 1620.6858 | O76: 0 | P76: 1790.43 | Q76: 1935.9725 | R76: 1313.973 | S76: 4563.5986 | T76: 3644.1673 | U76: 1737.4812 | V76: 1575.6918 | W76: 3301.122 | X76: 1408.5496 | Y76: 3461.3826 | Z76: 3686.72 | AA76: 1552.5312 | AB76: 1631.1555 | AC76: 3571.964 | AD76: 4477.3008 | AE76: 2741.0608 | AF76: 2304.9309 | AG76: 2553.9444 | AH76: 7322.4732 | AI76: 2381.5315 | AJ76: 0 | AK76: 0
A77: Payroll Processing Fee | B77: 816.9966 | C77: 1340.1256 | D77: 1142.8482 | E77: 1245.845 | F77: 933.9244 | G77: 872.6843 | H77: 953.535 | I77: 938.4081 | J77: 1219.6015 | K77: 904.2347 | L77: 940.234 | M77: 905.0752 | N77: 1075.5206 | O77: 0 | P77: 1456.7283 | Q77: 1055.3832 | R77: 901.3485 | S77: 1293.5912 | T77: 952.0408 | U77: 1172.292 | V77: 1175.3938 | W77: 780.6475 | X77: 1116.72 | Y77: 804.8755 | Z77: 806.9035 | AA77: 1317.0192 | AB77: 1310.5231 | AC77: 1234.7937 | AD77: 1086.096 | AE77: 1146.4906 | AF77: 1466.7597 | AG77: 852.454 | AH77: 1187.9364 | AI77: 634.3722 | AJ77: 0 | AK77: 0
A78: Moving Expenses | B78: -633.9312 | C78: 1611.618 | D78: 510.8549 | E78: 465.1067 | F78: 686.223 | G78: 533.729 | H78: 640.4748 | I78: 548.9784 | J78: 518.4796 | K78: 655.7242 | L78: 487.9808 | M78: 1196.9784 | N78: 495.6055 | O78: 0 | P78: 648.0995 | Q78: 518.4796 | R78: 587.1019 | S78: 617.5926 | T78: 594.7188 | U78: 465.1006 | V78: 556.5958 | W78: 602.3434 | X78: 541.3466 | Y78: 632.8418 | Z78: 648.091 | AA78: 655.7156 | AB78: 526.0974 | AC78: 809.5524 | AD78: 594.7188 | AE78: 526.0974 | AF78: 632.8418 | AG78: 663.3402 | AH78: 3091.176 | AI78: 1686.8124 | AJ78: 0 | AK78: 0
A79: Incentive Awards | B79: 0 | C79: 0 | D79: 0 | E79: 0 | F79: 0 | G79: 0 | H79: 0 | I79: 0 | J79: 0 | K79: 0 | L79: 0 | M79: 0 | N79: 0 | O79: 0 | P79: 0 | Q79: 0 | R79: 0 | S79: 0 | T79: 0 | U79: 0 | V79: 0 | W79: 0 | X79: 0 | Y79: 0 | Z79: 0 | AA79: 0 | AB79: 0 | AC79: 0 | AD79: 0 | AE79: 0 | AF79: 0 | AG79: 0 | AH79: 0 | AI79: 0 | AJ79: 0 | AK79: 0
A80: Vacation Pay | B80: 0 | C80: 2037.28 | D80: 1154.192 | E80: 1670.4 | F80: 908.8 | G80: 1754.7068 | H80: 4289.7 | I80: 0 | J80: 0 | K80: 4820.6764 | L80: 0 | M80: 396 | N80: 2226.24 | O80: 0 | P80: 0 | Q80: 1173 | R80: 784 | S80: 0 | T80: 1567.44 | U80: 0 | V80: 0 | W80: 1940.243 | X80: 0 | Y80: 430 | Z80: 0 | AA80: 0 | AB80: 1812.3112 | AC80: 0 | AD80: 0 | AE80: 0 | AF80: 0 | AG80: 0 | AH80: 0 | AI80: 0 | AJ80: 0 | AK80: 0
A81: Health Insurance-Employee Deductions | B81: -2043.0831 | C81: -2279.9623 | D81: -2664.891 | E81: -2368.792 | F81: -1835.8138 | G81: -2102.3029 | H81: -1835.8138 | I81: -2457.6217 | J81: -2250.3524 | K81: -1776.594 | L81: -1924.6435 | M81: -1895.0336 | N81: -1954.2534 | O81: 0 | P81: -2576.0613 | Q81: -2043.0831 | R81: -1806.2039 | S81: -1924.6435 | T81: -2368.792 | U81: -2279.9623 | V81: -2043.0831 | W81: -1806.2039 | X81: -2161.5227 | Y81: -2161.5227 | Z81: -2250.3524 | AA81: -1954.2534 | AB81: -1954.2534 | AC81: -1835.8138 | AD81: -1806.2039 | AE81: -1865.4237 | AF81: -2546.4514 | AG81: -2428.0118 | AH81: -2605.6712 | AI81: -1835.9626 | AJ81: 0 | AK81: 0
A82: Health Insurance-Claims Paid | B82: 3523.13 | C82: 3480.165 | D82: 3652.025 | E82: 2835.69 | F82: 3136.445 | G82: 2921.62 | H82: 3523.13 | I82: 2620.865 | J82: 3050.515 | K82: 3737.955 | L82: 3179.41 | M82: 3394.235 | N82: 3222.375 | O82: 0 | P82: 2663.83 | Q82: 3652.025 | R82: 2663.83 | S82: 3437.2 | T82: 3866.85 | U82: 3050.515 | V82: 3093.48 | W82: 2792.725 | X82: 3652.025 | Y82: 3265.34 | Z82: 3136.445 | AA82: 3566.095 | AB82: 2835.69 | AC82: 2577.9 | AD82: 3308.305 | AE82: 3523.13 | AF82: 3265.34 | AG82: 3351.27 | AH82: 3823.885 | AI82: 2835.6108 | AJ82: 0 | AK82: 0
A83: Health Insurance-Admn. Fees | B83: 1594.568 | C83: 1275.6544 | D83: 1455.0433 | E83: 1634.4322 | F83: 1714.1606 | G83: 1634.4322 | H83: 1355.3828 | I83: 1674.2964 | J83: 1674.2964 | K83: 1355.3828 | L83: 1335.4507 | M83: 1793.889 | N83: 1574.6359 | O83: 0 | P83: 1255.716 | Q83: 1435.104 | R83: 1195.914 | S83: 1614.4839 | T83: 1435.0968 | U83: 1714.1434 | V83: 1594.552 | W83: 1355.3692 | X83: 1315.5054 | Y83: 1235.784 | Z83: 1734.084 | AA83: 1554.696 | AB83: 1514.832 | AC83: 1734.084 | AD83: 1793.88 | AE83: 1514.832 | AF83: 1415.172 | AG83: 1554.696 | AH83: 1295.58 | AI83: 1494.9 | AJ83: 0 | AK83: 0
A84: Health Insurance-Employee Funded Ins. | B84: 0.3588 | C84: 0.732 | D84: 24.0684 | E84: 0.3818 | F84: 0 | G84: 19.8527 | H84: 27.0948 | I84: -14.4096 | J84: 21.12 | K84: 3.2912 | L84: 29.4576 | M84: 8.9298 | N84: 2.862 | O84: 0 | P84: 20.916 | Q84: 0.222 | R84: 5.7228 | S84: 5.3632 | T84: 63.0183 | U84: 0.7384 | V84: 2.61 | W84: 1.638 | X84: 4.7034 | Y84: -46.5205 | Z84: 5.9454 | AA84: 5.3526 | AB84: 0.8064 | AC84: 0.1472 | AD84: 0.1426 | AE84: 41.2155 | AF84: 2.2922 | AG84: 8.4968 | AH84: -39.389 | AI84: 2.637 | AJ84: 0 | AK84: 0
A85: 401(k) Administrative Expenses | B85: 0 | C85: 0 | D85: 0 | E85: 0 | F85: 0 | G85: 0 | H85: 0 | I85: 0 | J85: 0 | K85: 0 | L85: 0 | M85: 0 | N85: 0 | O85: 0 | P85: 0 | Q85: 0 | R85: 0 | S85: 0 | T85: 0 | U85: 0 | V85: 0 | W85: 0 | X85: 0 | Y85: 0 | Z85: 0 | AA85: 0 | AB85: 0 | AC85: 0 | AD85: 0 | AE85: 0 | AF85: 0 | AG85: 0 | AH85: 0 | AI85: 0 | AJ85: 0 | AK85: 0
A86: 401(k) Employer Contributions | B86: 0 | C86: 0 | D86: 0 | E86: 0 | F86: 0 | G86: 0 | H86: 0 | I86: 0 | J86: 0 | K86: 0 | L86: 0 | M86: 0 | N86: 0 | O86: 0 | P86: 0 | Q86: 0 | R86: 0 | S86: 0 | T86: 0 | U86: 0 | V86: 0 | W86: 0 | X86: 0 | Y86: 0 | Z86: 0 | AA86: 0 | AB86: 0 | AC86: 0 | AD86: 0 | AE86: 0 | AF86: =IF($A86="","",INDIRECT("'"&AF$6&"'!"&$G$2&ROW())) -> 0 | AG86: 0 | AH86: 0 | AI86: 0 | AJ86: 0 | AK86: 0
A87: Club Accounts | B87: 0 | C87: 0 | D87: 0 | E87: 0 | F87: 0 | G87: 0 | H87: 0 | I87: 0 | J87: 0 | K87: 0 | L87: 0 | M87: 0 | N87: 0 | O87: 0 | P87: 0 | Q87: 0 | R87: =IF($A87="","",INDIRECT("'"&R$6&"'!"&$G$2&ROW())) -> 0 | S87: 0 | T87: 0 | U87: 0 | V87: 0 | W87: 0 | X87: 0 | Y87: 0 | Z87: 0 | AA87: 0 | AB87: 0 | AC87: 0 | AD87: 0 | AE87: 0 | AF87: 0 | AG87: 0 | AH87: 0 | AI87: 0 | AJ87: 0 | AK87: 0
A88: Head Wait Cards | B88: =IF($A88="","",INDIRECT("'"&B$6&"'!"&$G$2&ROW())) -> 0 | C88: 0 | D88: 0 | E88: 0 | F88: 0 | G88: 0 | H88: 0 | I88: 0 | J88: 0 | K88: 0 | L88: 0 | M88: 0 | N88: 0 | O88: 0 | P88: 0 | Q88: 0 | R88: 0 | S88: 0 | T88: 0 | U88: 0 | V88: 0 | W88: 0 | X88: 0 | Y88: 0 | Z88: 0 | AA88: 0 | AB88: 0 | AC88: 0 | AD88: 0 | AE88: 0 | AF88: 0 | AG88: 0 | AH88: 0 | AI88: 0 | AJ88: 0 | AK88: 0
A89: Professional Education & Memberships | B89: 0 | C89: 0 | D89: 0 | E89: 0 | F89: 0 | G89: 0 | H89: 0 | I89: 0 | J89: 0 | K89: 0 | L89: 0 | M89: 0 | N89: 0 | O89: 0 | P89: 0 | Q89: 0 | R89: 0 | S89: 0 | T89: 0 | U89: 0 | V89: 0 | W89: 0 | X89: 0 | Y89: 0 | Z89: 0 | AA89: 0 | AB89: 0 | AC89: 0 | AD89: 0 | AE89: 0 | AF89: 0 | AG89: 0 | AH89: 0 | AI89: 0 | AJ89: 0 | AK89: 0
A91: TOTAL TAXES & BENEFITS | B91: 14039.3797 | C91: 23634.1949 | D91: 18788.7752 | E91: 17278.799 | F91: 15990.772 | G91: 19159.0921 | H91: 20267.4882 | I91: 12264.0038 | J91: 22679.2457 | K91: 24818.0258 | L91: 13932.374 | M91: 19315.4638 | N91: 17825.5228 | O91: 0 | P91: 10936.8405 | Q91: 19976.2208 | R91: 11981.8089 | S91: 19753.0012 | T91: 20059.3158 | U91: 15773.3382 | V91: 15454.7847 | W91: 17551.685 | X91: 13612.0059 | Y91: 17191.7509 | Z91: 16689.1248 | AA91: 19227.2352 | AB91: 20008.2005 | AC91: 18581.3209 | AD91: 17176.7289 | AE91: 21642.074 | AF91: 16987.5788 | AG91: 19680.5197 | AH91: 36447.4857 | AI91: 35336.7003 | AJ91: 0 | AK91: 0
A94: TOTAL LABOR COSTS | B94: 97814.5057 | C94: 124542.4786 | D94: 114762.2376 | E94: 109208.5027 | F94: 92039.7485 | G94: 132459.689 | H94: 95433.1434 | I94: 64207.0671 | J94: 147430.2357 | K94: 109867.0813 | L94: 77124.8359 | M94: 108033.8514 | N94: 102659.3604 | O94: 0 | P94: 72893.5846 | Q94: 102221.337 | R94: 68591.8152 | S94: 110570.2663 | T94: 104798.2513 | U94: 103301.5235 | V94: 91396.2767 | W94: 103643.9092 | X94: 93873.7523 | Y94: 109962.6837 | Z94: 102834.2794 | AA94: 99320.5728 | AB94: 138159.4995 | AC94: 116337.6883 | AD94: 97518.5852 | AE94: 147921.2817 | AF94: 123029.0973 | AG94: 157829.9203 | AH94: 174088.9343 | AI94: 213690.0604 | AJ94: 0 | AK94: 0
A97: OPERATING EXPENSES | B97: 0 | C97: 0 | D97: 0 | E97: 0 | F97: 0 | G97: 0 | H97: 0 | I97: 0 | J97: 0 | K97: 0 | L97: 0 | M97: 0 | N97: 0 | O97: 0 | P97: 0 | Q97: 0 | R97: 0 | S97: 0 | T97: 0 | U97: 0 | V97: 0 | W97: 0 | X97: 0 | Y97: 0 | Z97: 0 | AA97: 0 | AB97: 0 | AC97: 0 | AD97: 0 | AE97: 0 | AF97: 0 | AG97: 0 | AH97: 0 | AI97: 0 | AJ97: 0 | AK97: 0
A98: DIRECT OPERTATING EXPENSES | B98: 0 | C98: 0 | D98: 0 | E98: 0 | F98: 0 | G98: 0 | H98: 0 | I98: 0 | J98: 0 | K98: 0 | L98: 0 | M98: 0 | N98: 0 | O98: 0 | P98: 0 | Q98: 0 | R98: 0 | S98: 0 | T98: 0 | U98: 0 | V98: 0 | W98: 0 | X98: 0 | Y98: 0 | Z98: 0 | AA98: 0 | AB98: 0 | AC98: 0 | AD98: 0 | AE98: 0 | AF98: 0 | AG98: 0 | AH98: 0 | AI98: 0 | AJ98: 0 | AK98: 0
A99: Paper Goods & Supplies | B99: 1584.4857 | C99: 1777.8609 | D99: 1712.2304 | E99: 1710.3808 | F99: 1206.84 | G99: 2844.7362 | H99: 1507.1706 | I99: 1285.6673 | J99: 2312.5956 | K99: 2385.4781 | L99: 435.2535 | M99: 819.0226 | N99: 3460.2876 | O99: 0 | P99: 1409.4848 | Q99: 1538.6553 | R99: 1672.0319 | S99: 1407.289 | T99: 2828.824 | U99: 1557.3558 | V99: 1546.4784 | W99: 1315.5246 | X99: 2100.5965 | Y99: 1122.978 | Z99: 1387.0671 | AA99: 4146.3676 | AB99: 2662.968 | AC99: 3475.2795 | AD99: 1366.2324 | AE99: 2895.3444 | AF99: 2220.9187 | AG99: 2119.8996 | AH99: 3085.7574 | AI99: 1812.0816 | AJ99: 0 | AK99: 0
A100: Paper Goods & Supplies-ToGo | B100: 2000.7224 | C100: 4436.8464 | D100: 3204.3365 | E100: 2262.488 | F100: 2345.6412 | G100: 2816.562 | H100: 2801.7224 | I100: 1257.8046 | J100: 3498.454 | K100: 1804.2885 | L100: 756.0297 | M100: 1152.431 | N100: 4146.3333 | O100: 0 | P100: 1464.9422 | Q100: 1665.502 | R100: 608.1292 | S100: 2692.881 | T100: 1955.6262 | U100: 1763.4057 | V100: 2026.995 | W100: 1096.29 | X100: 1617.066 | Y100: 964.6416 | Z100: 687.3084 | AA100: 2210.808 | AB100: 1966.1428 | AC100: 1443.1417 | AD100: 1209.9816 | AE100: 3221.8272 | AF100: 1676.88 | AG100: 2813.88 | AH100: 3089.632 | AI100: 1068.9247 | AJ100: 0 | AK100: 0
A101: Logo'd ToGo Supplies | B101: 163.496 | C101: 845.3121 | D101: 867.4692 | E101: 799.5152 | F101: 545.1348 | G101: 756.888 | H101: 549.617 | I101: 273.483 | J101: 701.52 | K101: 420.6208 | L101: 189.06 | M101: 399.3306 | N101: 1120.2432 | O101: 0 | P101: 489.7403 | Q101: 527.6076 | R101: 301.7331 | S101: 403.128 | T101: 845.7482 | U101: 601.8882 | V101: 747.9108 | W101: 411.7932 | X101: 334.9693 | Y101: 105.0466 | Z101: 81.0816 | AA101: 480.2424 | AB101: 206.647 | AC101: 272.799 | AD101: 144.781 | AE101: 637.34 | AF101: 178.6962 | AG101: 778.5524 | AH101: 253.404 | AI101: 98.1882 | AJ101: 0 | AK101: 0
A102: Menus | B102: 98.5032 | C102: 0 | D102: 91.44 | E102: 0 | F102: 126.8212 | G102: 0 | H102: 44.704 | I102: 88.1064 | J102: 721.5 | K102: 39.624 | L102: 0 | M102: 404.505 | N102: 210.312 | O102: 0 | P102: 117.4752 | Q102: 0 | R102: 0 | S102: 0 | T102: 0 | U102: 35.834 | V102: 88.392 | W102: 39.116 | X102: 1425.06 | Y102: 84.906 | Z102: 0 | AA102: 204.216 | AB102: 133.301 | AC102: 100.584 | AD102: 64.008 | AE102: 70.104 | AF102: 1428 | AG102: 0 | AH102: =IF($A102="","",INDIRECT("'"&AH$6&"'!"&$G$2&ROW())) -> 120.17 | AI102: 0 | AJ102: 0 | AK102: 0
A103: PoP Merchandise | B103: 49.4088 | C103: 65.1189 | D103: 59.5812 | E103: 61.7361 | F103: 71.8845 | G103: 64.6674 | H103: 50.1354 | I103: 64.6674 | J103: 65.1189 | K103: 45.0492 | L103: 54.1248 | M103: 153.5475 | N103: 65.394 | O103: 0 | P103: 47.9556 | Q103: =IF($A103="","",INDIRECT("'"&Q$6&"'!"&$G$2&ROW())) -> 51.5877 | R103: 62.4876 | S103: 55.9482 | T103: 228.4464 | U103: 51.5877 | V103: 69.3474 | W103: 55.9482 | X103: 43.596 | Y103: 55.9482 | Z103: 51.5886 | AA103: 424.134 | AB103: 52.3152 | AC103: 50.1354 | AD103: 190.2102 | AE103: 52.3152 | AF103: 53.0345 | AG103: =IF($A103="","",INDIRECT("'"&AG$6&"'!"&$G$2&ROW())) -> 62.567 | AH103: 55.214 | AI103: 51.5755 | AJ103: 0 | AK103: 0
A104: Charcoal | B104: =IF($A104="","",INDIRECT("'"&B$6&"'!"&$G$2&ROW())) -> 677.1916 | C104: 987.15 | D104: 832.6812 | E104: 811.5304 | F104: 1310.8986 | G104: 1187.4456 | H104: 925.903 | I104: 945.0999 | J104: 1364.1088 | K104: 796.8177 | L104: 1005.0932 | M104: 704.268 | N104: 559.7852 | O104: 0 | P104: 728.8704 | Q104: 1010.9124 | R104: 659.3948 | S104: 1071.576 | T104: 940.6056 | U104: 1246.518 | V104: 805.5946 | W104: 781.4664 | X104: 735.488 | Y104: 892.8152 | Z104: 905.6124 | AA104: 614.8475 | AB104: 1034.208 | AC104: 1488.5695 | AD104: 827.64 | AE104: 696.2296 | AF104: 735.488 | AG104: 972.8624 | AH104: 1372.02 | AI104: 1325.9664 | AJ104: 0 | AK104: 0
A105: Dishwasher Supplies | B105: 1673.189 | C105: 1287.305 | D105: 1809.1145 | E105: 587.2662 | F105: 956.5588 | G105: 2588.0976 | H105: 1565.4408 | I105: 648.9036 | J105: 1821.294 | K105: 2067.066 | L105: 1472.4668 | M105: 2086.5675 | N105: 1469.1636 | O105: 0 | P105: 1278.4337 | Q105: 1137.7964 | R105: 1220.471 | S105: 1558.6368 | T105: 1566.8305 | U105: 1405.528 | V105: 2170.0122 | W105: 1388.6506 | X105: 979.5192 | Y105: 1135.098 | Z105: 780.1708 | AA105: 2150.434 | AB105: 2291.4969 | AC105: 1396.534 | AD105: 718.8544 | AE105: 933.0076 | AF105: 1213.0368 | AG105: 2199.9012 | AH105: 2031.6275 | AI105: 917.778 | AJ105: 0 | AK105: 0
A106: Chemical Supplies | B106: 539.3112 | C106: 790.9164 | D106: 3924.5529 | E106: 833.683 | F106: 921.176 | G106: 596.274 | H106: 594.139 | I106: 360.675 | J106: 1403.5284 | K106: 1033.76 | L106: 1356.411 | M106: 1899.027 | N106: 817.8209 | O106: 0 | P106: 1044.771 | Q106: 811.707 | R106: 377.394 | S106: 720.4464 | T106: 1512.0344 | U106: 1464.7842 | V106: 1740.812 | W106: 952.9868 | X106: 1276.99 | Y106: 697.6814 | Z106: 1057.638 | AA106: 918.2565 | AB106: 1687.994 | AC106: 1269.5004 | AD106: 1102.8186 | AE106: 1173.9807 | AF106: 616.3542 | AG106: 1590.5808 | AH106: 1241.538 | AI106: 1817.5542 | AJ106: 0 | AK106: 0
A107: Janitorial Supplies | B107: 685.1562 | C107: 489.034 | D107: 424.3404 | E107: 456.7938 | F107: 481.2744 | G107: 758.164 | H107: 685.0725 | I107: 430.6606 | J107: 979.353 | K107: 702.8208 | L107: 514.8179 | M107: 903.8627 | N107: 535.1896 | O107: 0 | P107: 471.565 | Q107: 631.372 | R107: 545.3396 | S107: 386.1 | T107: 778.6645 | U107: 890.6408 | V107: 1111.3696 | W107: 346.2016 | X107: 901.2229 | Y107: 368.0024 | Z107: 430.92 | AA107: 561.8602 | AB107: 758.0736 | AC107: 931.5618 | AD107: 366.678 | AE107: 794.112 | AF107: 559.26 | AG107: 640.929 | AH107: 1190.1552 | AI107: 505.614 | AJ107: 0 | AK107: 0
A108: Linen and Laundry | B108: 1832.013 | C108: 2450.9614 | D108: 3457.685 | E108: 2657.886 | F108: 1612.978 | G108: 2264.562 | H108: 2233.5 | I108: 669.375 | J108: 2669.5168 | K108: 3761.0036 | L108: 1277.703 | M108: 2571.2976 | N108: 2901.3046 | O108: 0 | P108: 809.34 | Q108: 1649.088 | R108: 790.79 | S108: 2076.704 | T108: 3122.058 | U108: 3435.275 | V108: 3106.611 | W108: 2656.431 | X108: 2503.9575 | Y108: 4108.336 | Z108: 4587.8665 | AA108: 4468.64 | AB108: 3343.88 | AC108: 2830.14 | AD108: 3634.86 | AE108: 4020.858 | AF108: 2164.435 | AG108: 4228.767 | AH108: 6399.8136 | AI108: 3047.638 | AJ108: 0 | AK108: 0
A109: China and Tableware | B109: 246.486 | C109: 1267.4452 | D109: 1559.1478 | E109: 1717.6608 | F109: 974.7304 | G109: 271.898 | H109: 693.0618 | I109: 560.4953 | J109: 713.1125 | K109: 1176.547 | L109: 0 | M109: 318.073 | N109: 4757.3292 | O109: 0 | P109: 1050.8036 | Q109: 1141.4336 | R109: 270.7068 | S109: 1595.4036 | T109: 1249.4996 | U109: 834.2367 | V109: 745.6625 | W109: 26.8645 | X109: 521.972 | Y109: 538.866 | Z109: 178.493 | AA109: 2657.9637 | AB109: 2127.788 | AC109: 1616.4032 | AD109: 455.2725 | AE109: 1479.186 | AF109: 1842.4068 | AG109: 887.5691 | AH109: 2038.3524 | AI109: 0 | AJ109: 0 | AK109: 0
A110: Glassware | B110: 103.6719 | C110: 395.8812 | D110: 289.6866 | E110: 371.0393 | F110: 324.3427 | G110: 434.1561 | H110: 405.6088 | I110: 171.0626 | J110: 417.681 | K110: 552.1515 | L110: 0 | M110: 121.5916 | N110: 1310.6112 | O110: 0 | P110: 268.1406 | Q110: 516.5178 | R110: 257.7987 | S110: 420.121 | T110: 839.2368 | U110: 378.9895 | V110: 457.8338 | W110: 200.6532 | X110: 605.5788 | Y110: 54.032 | Z110: 32.168 | AA110: 1252.8234 | AB110: 781.5994 | AC110: 417.0867 | AD110: 243.4595 | AE110: 662.2108 | AF110: 521.432 | AG110: 412.05 | AH110: 1249.2709 | AI110: 0 | AJ110: 0 | AK110: 0
A111: Silverware | B111: 0 | C111: 260.4042 | D111: 719.136 | E111: 0 | F111: 267.9345 | G111: 0 | H111: 150.9552 | I111: 41.4225 | J111: 330.41 | K111: 266.8418 | L111: 0 | M111: 120.6737 | N111: 1298.7325 | O111: 0 | P111: 181.116 | Q111: 306.7965 | R111: 12.7322 | S111: 408.3682 | T111: 719.861 | U111: 174.6884 | V111: 603.967 | W111: 85.32 | X111: 83.6456 | Y111: 58.6872 | Z111: 61.3568 | AA111: 705.04 | AB111: 646.9463 | AC111: 447.6 | AD111: 235.0296 | AE111: 601.685 | AF111: 378.078 | AG111: 131.9968 | AH111: 504.0276 | AI111: 0 | AJ111: 0 | AK111: 0
A112: Softgoods and Smallwares | B112: 1664.0732 | C112: 1404.7612 | D112: 2485.358 | E112: 1047.6895 | F112: 1627.164 | G112: 3143.712 | H112: 1093.372 | I112: 445.6942 | J112: 1995.0316 | K112: 2223.5982 | L112: 647.2713 | M112: 1305.1159 | N112: 4515.5001 | O112: 0 | P112: 936.9234 | Q112: 1653.1344 | R112: 549.3189 | S112: 3172.2366 | T112: 2078.3617 | U112: 1839.8389 | V112: 1246.6146 | W112: 1362.5024 | X112: 1379.7803 | Y112: 571.7547 | Z112: 923.9912 | AA112: 4091.2277 | AB112: 1719.549 | AC112: 2520.792 | AD112: 1794.5812 | AE112: 3236.9058 | AF112: 1876.1072 | AG112: 601.3197 | AH112: 4834.0366 | AI112: 260.245 | AJ112: 0 | AK112: 0
A113: Uniforms | B113: 24.808 | C113: 194.8848 | D113: 11.7495 | E113: 230.7744 | F113: 216.1456 | G113: -13.4625 | H113: 33.2775 | I113: 84.4683 | J113: 253.272 | K113: 90.463 | L113: 193.3968 | M113: 181.1475 | N113: 670.2045 | O113: 0 | P113: 387.6136 | Q113: 5.9926 | R113: 71.1199 | S113: 292.365 | T113: 113.2275 | U113: 418.1046 | V113: 742.9898 | W113: 127.1899 | X113: 301.2471 | Y113: 377.7206 | Z113: 273.4448 | AA113: 1174.6148 | AB113: 1130.0555 | AC113: 614.5128 | AD113: -109.8666 | AE113: 355.401 | AF113: 1306.042 | AG113: 621.984 | AH113: 1509.8952 | AI113: 288.8988 | AJ113: 0 | AK113: 0
A114: Replacement Pagers | B114: 0 | C114: 46.998 | D114: 58.8812 | E114: 57.1809 | F114: 52.4811 | G114: 54.3932 | H114: 62.7446 | I114: 64.2306 | J114: 0 | K114: 154.6974 | L114: 65.0139 | M114: 66.6743 | N114: 63.7484 | O114: 0 | P114: 0 | Q114: 0 | R114: 0 | S114: 0 | T114: 1744 | U114: 478.8 | V114: 0 | W114: 0 | X114: 0 | Y114: 0 | Z114: 180.96 | AA114: 294.6975 | AB114: 0 | AC114: 0 | AD114: 0 | AE114: 551.04 | AF114: 1201.5 | AG114: 0 | AH114: 243.6 | AI114: 0 | AJ114: 0 | AK114: 0
A115: Miscellaneous Operating Expenses | B115: 295.6241 | C115: 282.4776 | D115: 256.8814 | E115: 89.8958 | F115: 194.0082 | G115: 620.0712 | H115: -0.7503 | I115: 177.2997 | J115: 344.114 | K115: 224.1246 | L115: 245.014 | M115: 300.3492 | N115: 185.108 | O115: 0 | P115: 249.8786 | Q115: 714.637 | R115: 168.4254 | S115: 158.72 | T115: 490.3225 | U115: 519.8337 | V115: 323.9919 | W115: 333.0168 | X115: -18.3434 | Y115: 92.9844 | Z115: 101.7709 | AA115: 119.4785 | AB115: 87.584 | AC115: 65.8342 | AD115: 101.2536 | AE115: 499.9741 | AF115: 379.0536 | AG115: 242.835 | AH115: 655.0824 | AI115: 1909.9585 | AJ115: 0 | AK115: 0
A116: Ice Purchases | B116: 3074.5 | C116: 343.1 | D116: 1623.48 | E116: 0 | F116: 0 | G116: 0 | H116: 0 | I116: 0 | J116: 0 | K116: 986.42 | L116: 140 | M116: -73.4 | N116: 740.9 | O116: 0 | P116: 0 | Q116: 0 | R116: 0 | S116: 0 | T116: 0 | U116: 0 | V116: 0 | W116: 173.8845 | X116: 0 | Y116: 0 | Z116: 0 | AA116: 51.2 | AB116: 0 | AC116: 0 | AD116: 0 | AE116: 0 | AF116: 0 | AG116: 0 | AH116: 0 | AI116: 0 | AJ116: 0 | AK116: 0
A117: R&M - Building | B117: 984.2524 | C117: 991.0719 | D117: 4589.7048 | E117: 1331.9152 | F117: 487.7132 | G117: 516.8064 | H117: 1763.8989 | I117: 591.2755 | J117: 438.0684 | K117: 1393.4474 | L117: 1054.5473 | M117: 1738.3124 | N117: 870.0363 | O117: 0 | P117: 0 | Q117: 790.3413 | R117: 910.4197 | S117: 1068.5251 | T117: 1026.4014 | U117: 1108.497 | V117: 441.5705 | W117: 767.574 | X117: 226.4976 | Y117: 1283.2072 | Z117: 1244.6006 | AA117: 607.7475 | AB117: 1551.5932 | AC117: 275.2202 | AD117: 612.7083 | AE117: 1149.792 | AF117: 2140.2987 | AG117: 408.0335 | AH117: 0 | AI117: 430.4223 | AJ117: 0 | AK117: 0
A118: R&M - Building-Unnecessary | B118: 0 | C118: 0 | D118: 0 | E118: 0 | F118: 0 | G118: 0 | H118: 0 | I118: 0 | J118: 0 | K118: 0 | L118: 0 | M118: 0 | N118: 0 | O118: 0 | P118: 0 | Q118: 0 | R118: 0 | S118: 0 | T118: 0 | U118: 0 | V118: 0 | W118: 0 | X118: 0 | Y118: 0 | Z118: 0 | AA118: 0 | AB118: 0 | AC118: 0 | AD118: 0 | AE118: 0 | AF118: =IF($A118="","",INDIRECT("'"&AF$6&"'!"&$G$2&ROW())) -> 0 | AG118: 0 | AH118: 0 | AI118: 0 | AJ118: 0 | AK118: 0
A119: R&M - Building-Health Dept. | B119: 0 | C119: 0 | D119: 0 | E119: 0 | F119: 0 | G119: 0 | H119: 0 | I119: 0 | J119: 0 | K119: 0 | L119: 0 | M119: 0 | N119: 0 | O119: 0 | P119: 0 | Q119: 0 | R119: =IF($A119="","",INDIRECT("'"&R$6&"'!"&$G$2&ROW())) -> 0 | S119: 0 | T119: 0 | U119: 0 | V119: 0 | W119: 0 | X119: 0 | Y119: 0 | Z119: 0 | AA119: 0 | AB119: 0 | AC119: 0 | AD119: 0 | AE119: 0 | AF119: 0 | AG119: 0 | AH119: 0 | AI119: 0 | AJ119: 0 | AK119: 0
A120: R&M - Building-Discretionary | B120: =IF($A120="","",INDIRECT("'"&B$6&"'!"&$G$2&ROW())) -> 0 | C120: 0 | D120: 0 | E120: 0 | F120: 0 | G120: 0 | H120: 0 | I120: 0 | J120: 0 | K120: 0 | L120: 0 | M120: 0 | N120: 0 | O120: 0 | P120: 0 | Q120: 0 | R120: 0 | S120: 0 | T120: 0 | U120: 0 | V120: 0 | W120: 0 | X120: 0 | Y120: 0 | Z120: 0 | AA120: 0 | AB120: 0 | AC120: 0 | AD120: 0 | AE120: 0 | AF120: 0 | AG120: 0 | AH120: 0 | AI120: 0 | AJ120: 0 | AK120: 0
A121: R&M - Building-Theft | B121: 0 | C121: 0 | D121: 0 | E121: 0 | F121: 0 | G121: 0 | H121: 0 | I121: 0 | J121: 0 | K121: 0 | L121: 0 | M121: 0 | N121: 0 | O121: 0 | P121: 0 | Q121: 0 | R121: 0 | S121: 0 | T121: 0 | U121: 0 | V121: 0 | W121: 0 | X121: 0 | Y121: 0 | Z121: 0 | AA121: 0 | AB121: 0 | AC121: 0 | AD121: 0 | AE121: 0 | AF121: 0 | AG121: 0 | AH121: 0 | AI121: 0 | AJ121: 0 | AK121: 0
A122: R&M - Building-Maint. Contracts | B122: 0 | C122: 0 | D122: 0 | E122: 0 | F122: 0 | G122: 0 | H122: 0 | I122: 0 | J122: 0 | K122: 0 | L122: 0 | M122: 0 | N122: 0 | O122: 0 | P122: 0 | Q122: 0 | R122: 0 | S122: 0 | T122: 0 | U122: 0 | V122: 0 | W122: 0 | X122: 0 | Y122: 0 | Z122: 0 | AA122: 0 | AB122: 0 | AC122: 0 | AD122: 0 | AE122: 0 | AF122: 0 | AG122: 0 | AH122: 0 | AI122: 0 | AJ122: 0 | AK122: 0
A123: R&M - Electrical-NonEquipment | B123: 415.7719 | C123: 379.9771 | D123: 151.2 | E123: 508.4656 | F123: 0 | G123: 125.4 | H123: 0 | I123: 0 | J123: 793.7292 | K123: 0 | L123: 0 | M123: 0 | N123: 502.1851 | O123: 0 | P123: 426.9636 | Q123: 168.7596 | R123: 72.2013 | S123: 288.834 | T123: 0 | U123: 220.626 | V123: 0 | W123: 0 | X123: 0 | Y123: 478.8436 | Z123: 0 | AA123: 605.7294 | AB123: 0 | AC123: 651.6185 | AD123: 0 | AE123: 0 | AF123: 1121.97 | AG123: 0 | AH123: 0 | AI123: 0 | AJ123: 0 | AK123: 0
A124: R&M - Electrical-NonEquipment-Unnecessary | B124: 0 | C124: 0 | D124: 0 | E124: 0 | F124: 0 | G124: 0 | H124: 0 | I124: 0 | J124: 0 | K124: 0 | L124: 0 | M124: 0 | N124: 0 | O124: 0 | P124: 0 | Q124: 0 | R124: 0 | S124: 0 | T124: 0 | U124: 0 | V124: 0 | W124: 0 | X124: 0 | Y124: 0 | Z124: 0 | AA124: 0 | AB124: 0 | AC124: 0 | AD124: 0 | AE124: 0 | AF124: 0 | AG124: 0 | AH124: 0 | AI124: 0 | AJ124: 0 | AK124: 0
A125: R&M - Plumbing | B125: 296.4264 | C125: 2419.3728 | D125: 552.4709 | E125: 717.079 | F125: 259.7376 | G125: 662.9312 | H125: 450.0972 | I125: 448.98 | J125: 1197.9578 | K125: 256.789 | L125: 499.904 | M125: 1359.5174 | N125: 1434.754 | O125: 0 | P125: 381.3168 | Q125: 808.1142 | R125: 99.75 | S125: 162.54 | T125: 681.2352 | U125: 400.008 | V125: 746.5302 | W125: 378.5544 | X125: 268.2064 | Y125: 233.3299 | Z125: 803.658 | AA125: 470.3616 | AB125: 0 | AC125: 2252.43 | AD125: 366.13 | AE125: 1617.435 | AF125: 735.4347 | AG125: 0 | AH125: 989.8875 | AI125: 156.445 | AJ125: 0 | AK125: 0
A126: R&M - Plumbing-Unnecessary | B126: 0 | C126: 0 | D126: 0 | E126: 0 | F126: 0 | G126: 0 | H126: 0 | I126: 220.8 | J126: 0 | K126: 0 | L126: 0 | M126: 0 | N126: 0 | O126: 0 | P126: 109.8 | Q126: 0 | R126: 0 | S126: 0 | T126: 0 | U126: 0 | V126: 0 | W126: 0 | X126: 0 | Y126: 0 | Z126: 160.9625 | AA126: 0 | AB126: 851.445 | AC126: 1297.7725 | AD126: 0 | AE126: 0 | AF126: 215.558 | AG126: 0 | AH126: 0 | AI126: 0 | AJ126: 0 | AK126: 0
A127: R&M - Plumbing-Health Dept. | B127: 0 | C127: 0 | D127: 0 | E127: 0 | F127: 0 | G127: 0 | H127: 0 | I127: 0 | J127: 0 | K127: 0 | L127: 0 | M127: 0 | N127: 0 | O127: 0 | P127: 0 | Q127: 0 | R127: 0 | S127: 0 | T127: 0 | U127: 0 | V127: 0 | W127: 0 | X127: 0 | Y127: 0 | Z127: 0 | AA127: 0 | AB127: 0 | AC127: 0 | AD127: 0 | AE127: 0 | AF127: 0 | AG127: 0 | AH127: 0 | AI127: 0 | AJ127: 0 | AK127: 0
A128: R&M - Plumbing-Discretionary | B128: 0 | C128: 0 | D128: 0 | E128: 0 | F128: 0 | G128: 0 | H128: 0 | I128: 0 | J128: 0 | K128: 0 | L128: 0 | M128: 0 | N128: 0 | O128: 0 | P128: 0 | Q128: 0 | R128: 0 | S128: 0 | T128: 0 | U128: 0 | V128: 0 | W128: 0 | X128: 0 | Y128: 0 | Z128: 0 | AA128: 0 | AB128: 0 | AC128: 0 | AD128: 0 | AE128: 0 | AF128: 0 | AG128: 0 | AH128: 0 | AI128: 0 | AJ128: 0 | AK128: 0
A129: R&M - Plumbing-Theft | B129: 0 | C129: 0 | D129: 0 | E129: 0 | F129: 0 | G129: 0 | H129: 0 | I129: 0 | J129: 0 | K129: 0 | L129: 0 | M129: 0 | N129: 0 | O129: 0 | P129: 0 | Q129: 0 | R129: 0 | S129: 0 | T129: 0 | U129: 0 | V129: 0 | W129: 0 | X129: 0 | Y129: 0 | Z129: 0 | AA129: 0 | AB129: 0 | AC129: 0 | AD129: 0 | AE129: 0 | AF129: 0 | AG129: 0 | AH129: 0 | AI129: 0 | AJ129: 0 | AK129: 0
A130: R&M - Plumbing-Maint. Contracts | B130: 0 | C130: 0 | D130: 0 | E130: 0 | F130: 0 | G130: 0 | H130: 0 | I130: 0 | J130: 0 | K130: 0 | L130: 282.6596 | M130: 0 | N130: 0 | O130: 0 | P130: 0 | Q130: 282.6596 | R130: 0 | S130: 0 | T130: 0 | U130: 556.8816 | V130: 0 | W130: 0 | X130: 0 | Y130: 0 | Z130: 0 | AA130: 0 | AB130: 0 | AC130: 0 | AD130: 0 | AE130: 0 | AF130: 0 | AG130: 0 | AH130: 0 | AI130: 0 | AJ130: 0 | AK130: 0
A131: R&M - Equipment | B131: 316.2575 | C131: 730.1988 | D131: 530.1952 | E131: 502.8744 | F131: 1782.7106 | G131: 693.4158 | H131: 44.2026 | I131: 714.3072 | J131: 1587.072 | K131: 900.7824 | L131: 888.475 | M131: 1253.308 | N131: 2626.6149 | O131: 0 | P131: 244.1016 | Q131: 384.582 | R131: 1185.885 | S131: 563.2252 | T131: 403.0584 | U131: 1454.1176 | V131: 260.494 | W131: 614.088 | X131: 675.8452 | Y131: 556.14 | Z131: 648.8424 | AA131: 1453.2682 | AB131: 489.2576 | AC131: 0 | AD131: 1009.9776 | AE131: 1831.7021 | AF131: 1480.6235 | AG131: 0 | AH131: 525.3632 | AI131: 347.2287 | AJ131: 0 | AK131: 0
A132: R&M - Equipment-Unnecessary | B132: 0 | C132: 0 | D132: 0 | E132: 0 | F132: 170.1 | G132: 0 | H132: 0 | I132: 0 | J132: 0 | K132: 0 | L132: 0 | M132: 0 | N132: 0 | O132: 0 | P132: 0 | Q132: 184.14 | R132: 0 | S132: 0 | T132: 0 | U132: 0 | V132: 0 | W132: 0 | X132: 0 | Y132: 0 | Z132: 0 | AA132: 0 | AB132: 0 | AC132: 0 | AD132: 0 | AE132: 0 | AF132: 0 | AG132: 0 | AH132: 0 | AI132: 0 | AJ132: 0 | AK132: 0
A133: R&M - Equipment-Health Dept. | B133: 0 | C133: 0 | D133: 0 | E133: 0 | F133: 0 | G133: 0 | H133: 0 | I133: 0 | J133: 0 | K133: 0 | L133: 0 | M133: 0 | N133: 0 | O133: 0 | P133: 0 | Q133: 0 | R133: 0 | S133: 0 | T133: 0 | U133: 0 | V133: 0 | W133: 0 | X133: 0 | Y133: 0 | Z133: 0 | AA133: 0 | AB133: 0 | AC133: 0 | AD133: 0 | AE133: 0 | AF133: 0 | AG133: 0 | AH133: 0 | AI133: 0 | AJ133: 0 | AK133: 0
A134: R&M - Equipment-Discretionary | B134: 0 | C134: 0 | D134: 0 | E134: 0 | F134: 0 | G134: 0 | H134: 0 | I134: 0 | J134: 0 | K134: 0 | L134: 0 | M134: 0 | N134: 0 | O134: 0 | P134: 0 | Q134: 0 | R134: 0 | S134: 0 | T134: 0 | U134: 0 | V134: 0 | W134: 0 | X134: 0 | Y134: 0 | Z134: 0 | AA134: 0 | AB134: 0 | AC134: 0 | AD134: 0 | AE134: 0 | AF134: 0 | AG134: 0 | AH134: =IF($A134="","",INDIRECT("'"&AH$6&"'!"&$G$2&ROW())) -> 0 | AI134: 0 | AJ134: 0 | AK134: 0
A135: R&M - Equipment-Theft | B135: 0 | C135: 0 | D135: 0 | E135: 0 | F135: 0 | G135: 0 | H135: 0 | I135: 0 | J135: 0 | K135: 0 | L135: 0 | M135: 0 | N135: 0 | O135: 0 | P135: 0 | Q135: =IF($A135="","",INDIRECT("'"&Q$6&"'!"&$G$2&ROW())) -> 0 | R135: 0 | S135: 0 | T135: 0 | U135: 0 | V135: 0 | W135: 0 | X135: 0 | Y135: 0 | Z135: 0 | AA135: 0 | AB135: 0 | AC135: 0 | AD135: 0 | AE135: 0 | AF135: 0 | AG135: =IF($A135="","",INDIRECT("'"&AG$6&"'!"&$G$2&ROW())) -> 0 | AH135: 0 | AI135: 0 | AJ135: 0 | AK135: 0
A136: R&M - Equipment-Maint. Contracts | B136: =IF($A136="","",INDIRECT("'"&B$6&"'!"&$G$2&ROW())) -> 0 | C136: 0 | D136: 0 | E136: 0 | F136: 0 | G136: 0 | H136: 0 | I136: 0 | J136: 0 | K136: 0 | L136: 0 | M136: 0 | N136: 0 | O136: 0 | P136: 0 | Q136: 0 | R136: 0 | S136: 0 | T136: 0 | U136: 0 | V136: 0 | W136: 0 | X136: 0 | Y136: 0 | Z136: 0 | AA136: 0 | AB136: 0 | AC136: 0 | AD136: 0 | AE136: 0 | AF136: 0 | AG136: 0 | AH136: 0 | AI136: 0 | AJ136: 0 | AK136: 0
A137: R&M - Computer Equipment | B137: 5.1898 | C137: 192.2254 | D137: 409.7304 | E137: 1240.568 | F137: 4.381 | G137: 556.3656 | H137: 4.6506 | I137: 5.1898 | J137: 5.9986 | K137: 435.5136 | L137: 5.729 | M137: 334.516 | N137: 272.5846 | O137: 0 | P137: 5.392 | Q137: 4.8528 | R137: 92.5584 | S137: 5.6616 | T137: 5.2572 | U137: 5.1224 | V137: 4.4484 | W137: 4.5158 | X137: 4.1114 | Y137: 602.6157 | Z137: 4.9876 | AA137: 5.1898 | AB137: 218.2761 | AC137: 88.2658 | AD137: 5.392 | AE137: 5.055 | AF137: 4.5158 | AG137: 224.8545 | AH137: 5.4675 | AI137: 4.3875 | AJ137: 0 | AK137: 0
A138: R&M - Computer Equipment-Unnecessary | B138: 0 | C138: 0 | D138: 0 | E138: 0 | F138: 0 | G138: 0 | H138: 0 | I138: 0 | J138: 0 | K138: 0 | L138: 0 | M138: 0 | N138: 0 | O138: 0 | P138: 0 | Q138: 0 | R138: 0 | S138: 0 | T138: 0 | U138: 0 | V138: 0 | W138: 0 | X138: 0 | Y138: 0 | Z138: 0 | AA138: 0 | AB138: 0 | AC138: 0 | AD138: 0 | AE138: 0 | AF138: 0 | AG138: 0 | AH138: 0 | AI138: 0 | AJ138: 0 | AK138: 0
A139: R&M - Computer Equipment-Health Dept. | B139: 0 | C139: 0 | D139: 0 | E139: 0 | F139: 0 | G139: 0 | H139: 0 | I139: 0 | J139: 0 | K139: 0 | L139: 0 | M139: 0 | N139: 0 | O139: 0 | P139: 0 | Q139: 0 | R139: 0 | S139: 0 | T139: 0 | U139: 0 | V139: 0 | W139: 0 | X139: 0 | Y139: 0 | Z139: 0 | AA139: 0 | AB139: 0 | AC139: 0 | AD139: 0 | AE139: 0 | AF139: 0 | AG139: 0 | AH139: 0 | AI139: 0 | AJ139: 0 | AK139: 0
A140: R&M - Computer Equipment-Discretionary | B140: 0 | C140: 0 | D140: 0 | E140: 0 | F140: 0 | G140: 0 | H140: 0 | I140: 0 | J140: 0 | K140: 0 | L140: 0 | M140: 0 | N140: 0 | O140: 0 | P140: 0 | Q140: 0 | R140: 0 | S140: 0 | T140: 0 | U140: 0 | V140: 0 | W140: 0 | X140: 0 | Y140: 0 | Z140: 0 | AA140: 0 | AB140: 0 | AC140: 0 | AD140: 0 | AE140: 0 | AF140: 0 | AG140: 0 | AH140: 0 | AI140: 0 | AJ140: 0 | AK140: 0
A141: R&M - Computer Equipment-Theft | B141: 0 | C141: 0 | D141: 0 | E141: 0 | F141: 0 | G141: 0 | H141: 0 | I141: 0 | J141: 0 | K141: 0 | L141: 0 | M141: 0 | N141: 0 | O141: 0 | P141: 0 | Q141: 0 | R141: 0 | S141: 0 | T141: 0 | U141: 0 | V141: 0 | W141: 0 | X141: 0 | Y141: 0 | Z141: 0 | AA141: 0 | AB141: 0 | AC141: 0 | AD141: 0 | AE141: 0 | AF141: 0 | AG141: 0 | AH141: 0 | AI141: 0 | AJ141: 0 | AK141: 0
A142: R&M - Computer Equipment-Maint. Contracts | B142: 57.36 | C142: 79.348 | D142: 248.5684 | E142: 80.304 | F142: 131.3845 | G142: 59.272 | H142: 209.615 | I142: 133.6534 | J142: 177.7556 | K142: 81.26 | L142: 106.5576 | M142: 211.1825 | N142: 252.8994 | O142: 0 | P142: 76.3476 | Q142: 72.656 | R142: 61.184 | S142: 230.4936 | T142: 82.216 | U142: 59.272 | V142: 65.008 | W142: 84.128 | X142: 610.4844 | Y142: 86.04 | Z142: 293.67 | AA142: 78.392 | AB142: 84.128 | AC142: 79.348 | AD142: 68.832 | AE142: 0 | AF142: 0 | AG142: 43.7475 | AH142: 34.6256 | AI142: 47.7048 | AJ142: 0 | AK142: 0
A143: R&M - Refrigeration | B143: 0 | C143: 0 | D143: 590.6925 | E143: 2182.932 | F143: 662.643 | G143: 0 | H143: 185.2443 | I143: 411.9355 | J143: 589.4325 | K143: 0 | L143: 462.6432 | M143: 2523.482 | N143: 0 | O143: 0 | P143: 525.623 | Q143: 835.2236 | R143: 74.8224 | S143: 138.431 | T143: 0 | U143: 524.8852 | V143: 197.1054 | W143: 819.343 | X143: 797.7367 | Y143: 313.152 | Z143: 305.6592 | AA143: 0 | AB143: 1185.1422 | AC143: 1147.6344 | AD143: 0 | AE143: 895.9698 | AF143: 0 | AG143: 0 | AH143: 187.2 | AI143: 331.6623 | AJ143: 0 | AK143: 0
A144: R&M - Refrigeration-Unnecessary | B144: 0 | C144: 0 | D144: 0 | E144: 0 | F144: 0 | G144: 0 | H144: 99.3735 | I144: 0 | J144: 0 | K144: 0 | L144: 0 | M144: 129.9684 | N144: 0 | O144: 0 | P144: 80.75 | Q144: 0 | R144: 0 | S144: 0 | T144: 0 | U144: 0 | V144: 0 | W144: 0 | X144: 0 | Y144: 0 | Z144: 0 | AA144: 248.112 | AB144: 213.5185 | AC144: 0 | AD144: 0 | AE144: 0 | AF144: 0 | AG144: 0 | AH144: 0 | AI144: 0 | AJ144: 0 | AK144: 0
A145: R&M - Refrigeration-Health Dept. | B145: 0 | C145: 0 | D145: 0 | E145: 0 | F145: 0 | G145: 0 | H145: 0 | I145: 0 | J145: 0 | K145: 0 | L145: 0 | M145: 0 | N145: 0 | O145: 0 | P145: 0 | Q145: 0 | R145: 0 | S145: 0 | T145: 0 | U145: 0 | V145: 0 | W145: 0 | X145: 0 | Y145: 0 | Z145: 0 | AA145: 0 | AB145: 0 | AC145: 0 | AD145: 0 | AE145: 0 | AF145: 0 | AG145: 0 | AH145: 0 | AI145: 0 | AJ145: 0 | AK145: 0
A146: R&M - Refrigeration-Discretionary | B146: 0 | C146: 0 | D146: 0 | E146: 0 | F146: 0 | G146: 0 | H146: 0 | I146: 0 | J146: 0 | K146: 0 | L146: 0 | M146: 0 | N146: 0 | O146: 0 | P146: 0 | Q146: 0 | R146: 0 | S146: 0 | T146: 0 | U146: 0 | V146: 0 | W146: 0 | X146: 0 | Y146: 0 | Z146: 0 | AA146: 0 | AB146: 0 | AC146: 0 | AD146: 0 | AE146: 0 | AF146: 0 | AG146: 0 | AH146: 0 | AI146: 0 | AJ146: 0 | AK146: 0
A147: R&M - Refrigeration-Theft | B147: 0 | C147: 0 | D147: 0 | E147: 0 | F147: 0 | G147: 0 | H147: 0 | I147: 0 | J147: 0 | K147: 0 | L147: 0 | M147: 0 | N147: 0 | O147: 0 | P147: 0 | Q147: 0 | R147: 0 | S147: 0 | T147: 0 | U147: 0 | V147: 0 | W147: 0 | X147: 0 | Y147: 0 | Z147: 0 | AA147: 0 | AB147: 0 | AC147: 0 | AD147: 0 | AE147: 0 | AF147: 0 | AG147: 0 | AH147: 0 | AI147: 0 | AJ147: 0 | AK147: 0
A148: R&M - Refrigeration-Maint. Contracts | B148: 0 | C148: 0 | D148: 0 | E148: 0 | F148: 0 | G148: 0 | H148: 0 | I148: 517.42 | J148: 0 | K148: 0 | L148: 0 | M148: 0 | N148: 0 | O148: 0 | P148: 536.0192 | Q148: 0 | R148: 0 | S148: 0 | T148: 0 | U148: 0 | V148: 0 | W148: 0 | X148: 0 | Y148: 0 | Z148: 0 | AA148: 0 | AB148: 4194.5445 | AC148: 0 | AD148: 767.88 | AE148: 0 | AF148: 0 | AG148: 0 | AH148: 0 | AI148: 0 | AJ148: 0 | AK148: 0
A149: R&M - Air Conditioning | B149: 589.1372 | C149: 295.035 | D149: 814.264 | E149: 153.45 | F149: 0 | G149: 0 | H149: 250.002 | I149: 823.7125 | J149: 177.46 | K149: 428.82 | L149: 0 | M149: 427.91 | N149: 853.152 | O149: 0 | P149: 190.9908 | Q149: 669.55 | R149: 1097.1488 | S149: 0 | T149: 594.44 | U149: 411.44 | V149: 117.18 | W149: 0 | X149: 264.2058 | Y149: 0 | Z149: 0 | AA149: 778.9584 | AB149: 0 | AC149: 332.127 | AD149: 216 | AE149: 415.9575 | AF149: 2195.5321 | AG149: 0 | AH149: 0 | AI149: 0 | AJ149: 0 | AK149: 0
A150: R&M - Air Conditioning-Unnecessary | B150: 0 | C150: 0 | D150: 0 | E150: 0 | F150: 0 | G150: 0 | H150: 0 | I150: 0 | J150: 0 | K150: 0 | L150: 0 | M150: 0 | N150: 0 | O150: 0 | P150: 0 | Q150: 0 | R150: 0 | S150: 0 | T150: 0 | U150: 0 | V150: 0 | W150: 0 | X150: 0 | Y150: 0 | Z150: 457.56 | AA150: 0 | AB150: 0 | AC150: 0 | AD150: 0 | AE150: 0 | AF150: =IF($A150="","",INDIRECT("'"&AF$6&"'!"&$G$2&ROW())) -> 0 | AG150: 0 | AH150: 0 | AI150: 0 | AJ150: 0 | AK150: 0
A151: R&M - Air Conditioning-Health Dept. | B151: 0 | C151: 0 | D151: 0 | E151: 0 | F151: 0 | G151: 0 | H151: 0 | I151: 0 | J151: 0 | K151: 0 | L151: 0 | M151: 0 | N151: 0 | O151: 0 | P151: 0 | Q151: 0 | R151: =IF($A151="","",INDIRECT("'"&R$6&"'!"&$G$2&ROW())) -> 0 | S151: 0 | T151: 0 | U151: 0 | V151: 0 | W151: 0 | X151: 0 | Y151: 0 | Z151: 0 | AA151: 0 | AB151: 0 | AC151: 0 | AD151: 0 | AE151: 0 | AF151: 0 | AG151: 0 | AH151: 0 | AI151: 0 | AJ151: 0 | AK151: 0
A152: R&M - Air Conditioning-Discretionary | B152: =IF($A152="","",INDIRECT("'"&B$6&"'!"&$G$2&ROW())) -> 0 | C152: 0 | D152: 0 | E152: 0 | F152: 0 | G152: 0 | H152: 0 | I152: 0 | J152: 0 | K152: 0 | L152: 0 | M152: 0 | N152: 0 | O152: 0 | P152: 0 | Q152: 0 | R152: 0 | S152: 0 | T152: 0 | U152: 0 | V152: 0 | W152: 0 | X152: 0 | Y152: 0 | Z152: 0 | AA152: 0 | AB152: 0 | AC152: 0 | AD152: 0 | AE152: 0 | AF152: 0 | AG152: 0 | AH152: 0 | AI152: 0 | AJ152: 0 | AK152: 0
A153: R&M - Air Conditioning-Theft | B153: 0 | C153: 0 | D153: 0 | E153: 0 | F153: 0 | G153: 0 | H153: 0 | I153: 0 | J153: 0 | K153: 0 | L153: 0 | M153: 0 | N153: 0 | O153: 0 | P153: 0 | Q153: 0 | R153: 0 | S153: 0 | T153: 0 | U153: 0 | V153: 0 | W153: 0 | X153: 0 | Y153: 0 | Z153: 0 | AA153: 0 | AB153: 0 | AC153: 0 | AD153: 0 | AE153: 0 | AF153: 0 | AG153: 0 | AH153: 0 | AI153: 0 | AJ153: 0 | AK153: 0
A154: R&M - Air Conditioning-Maint. Contracts | B154: 0 | C154: 0 | D154: 0 | E154: 0 | F154: 0 | G154: 0 | H154: 218.1475 | I154: 925.485 | J154: 0 | K154: 0 | L154: 0 | M154: 0 | N154: 0 | O154: 0 | P154: 1218.5004 | Q154: 0 | R154: 0 | S154: 0 | T154: 0 | U154: 0 | V154: 0 | W154: 0 | X154: 0 | Y154: 0 | Z154: 0 | AA154: 168.5424 | AB154: 0 | AC154: 0 | AD154: 0 | AE154: 154.4334 | AF154: 0 | AG154: 0 | AH154: 0 | AI154: 0 | AJ154: 0 | AK154: 0
A155: R&M - Rita Machine | B155: 133.2398 | C155: 0 | D155: 274.4432 | E155: 1147.0368 | F155: 0 | G155: 1699.6725 | H155: 17.5959 | I155: 49 | J155: 0 | K155: 0 | L155: 0 | M155: 179.8875 | N155: 204.085 | O155: 0 | P155: 0 | Q155: 0 | R155: 0 | S155: 104.78 | T155: 0 | U155: 0 | V155: 0 | W155: 0 | X155: 528.2875 | Y155: 0 | Z155: 0 | AA155: 18.1545 | AB155: 0 | AC155: 0 | AD155: 0 | AE155: 1005.878 | AF155: 0 | AG155: 0 | AH155: 0 | AI155: 396.4037 | AJ155: 0 | AK155: 0
A156: R&M - Rita Machine-Unnecessary | B156: 0 | C156: 0 | D156: 208.6627 | E156: 0 | F156: 0 | G156: 0 | H156: 0 | I156: 0 | J156: 0 | K156: 0 | L156: 0 | M156: 0 | N156: 0 | O156: 0 | P156: 0 | Q156: 0 | R156: 0 | S156: 0 | T156: 0 | U156: 0 | V156: 0 | W156: 0 | X156: 0 | Y156: 0 | Z156: 0 | AA156: 0 | AB156: 0 | AC156: 0 | AD156: 0 | AE156: 0 | AF156: 0 | AG156: 0 | AH156: 0 | AI156: 0 | AJ156: 0 | AK156: 0
A157: R&M - Rita Machine-Health Dept. | B157: 0 | C157: 0 | D157: 0 | E157: 0 | F157: 0 | G157: 0 | H157: 0 | I157: 0 | J157: 0 | K157: 0 | L157: 0 | M157: 0 | N157: 0 | O157: 0 | P157: 0 | Q157: 0 | R157: 0 | S157: 0 | T157: 0 | U157: 0 | V157: 0 | W157: 0 | X157: 0 | Y157: 0 | Z157: 0 | AA157: 0 | AB157: 0 | AC157: 0 | AD157: 0 | AE157: 0 | AF157: 0 | AG157: 0 | AH157: 0 | AI157: 0 | AJ157: 0 | AK157: 0
A158: R&M - Rita Machine-Discretionary | B158: 0 | C158: 0 | D158: 0 | E158: 0 | F158: 0 | G158: 0 | H158: 0 | I158: 0 | J158: 0 | K158: 0 | L158: 0 | M158: 0 | N158: 0 | O158: 0 | P158: 0 | Q158: 0 | R158: 0 | S158: 0 | T158: 0 | U158: 0 | V158: 0 | W158: 0 | X158: 0 | Y158: 0 | Z158: 0 | AA158: 0 | AB158: 0 | AC158: 0 | AD158: 0 | AE158: 0 | AF158: 0 | AG158: 0 | AH158: 0 | AI158: 0 | AJ158: 0 | AK158: 0
A159: R&M - Rita Machine-Theft | B159: 0 | C159: 0 | D159: 0 | E159: 0 | F159: 0 | G159: 0 | H159: 0 | I159: 0 | J159: 0 | K159: 0 | L159: 0 | M159: 0 | N159: 0 | O159: 0 | P159: 0 | Q159: 0 | R159: 0 | S159: 0 | T159: 0 | U159: 0 | V159: 0 | W159: 0 | X159: 0 | Y159: 0 | Z159: 0 | AA159: 0 | AB159: 0 | AC159: 0 | AD159: 0 | AE159: 0 | AF159: 0 | AG159: 0 | AH159: 0 | AI159: 0 | AJ159: 0 | AK159: 0
A160: R&M - Rita Machine-Maint. Contracts | B160: 0 | C160: 0 | D160: 0 | E160: 0 | F160: 0 | G160: 0 | H160: 0 | I160: 0 | J160: 0 | K160: 0 | L160: 0 | M160: 0 | N160: 0 | O160: 0 | P160: 0 | Q160: 0 | R160: 0 | S160: 0 | T160: 0 | U160: 0 | V160: 0 | W160: 0 | X160: 0 | Y160: 0 | Z160: 0 | AA160: 0 | AB160: 0 | AC160: 0 | AD160: 0 | AE160: 0 | AF160: 0 | AG160: 0 | AH160: 0 | AI160: 0 | AJ160: 0 | AK160: 0
A161: Fire, Life & Safety | B161: 0 | C161: 0 | D161: 0 | E161: 0 | F161: 0 | G161: 0 | H161: 0 | I161: 196.3072 | J161: 1432.34 | K161: 0 | L161: 0 | M161: 0 | N161: 0 | O161: 0 | P161: 0 | Q161: 95.48 | R161: 273.4424 | S161: 0 | T161: 0 | U161: 0 | V161: 0 | W161: 0 | X161: 0 | Y161: 0 | Z161: 0 | AA161: 291.0145 | AB161: 0 | AC161: 0 | AD161: 158.769 | AE161: 0 | AF161: 1008.182 | AG161: 0 | AH161: 0 | AI161: 98.8 | AJ161: 0 | AK161: 0
A162: Fire. Life & Safety-Unnecessary | B162: 0 | C162: 0 | D162: 0 | E162: 0 | F162: 0 | G162: 0 | H162: 0 | I162: 0 | J162: 0 | K162: 0 | L162: 0 | M162: 0 | N162: 0 | O162: 0 | P162: 0 | Q162: 0 | R162: 0 | S162: 0 | T162: 0 | U162: 0 | V162: 0 | W162: 0 | X162: 0 | Y162: 0 | Z162: 0 | AA162: 0 | AB162: 0 | AC162: 0 | AD162: 0 | AE162: 0 | AF162: 0 | AG162: 0 | AH162: 0 | AI162: 0 | AJ162: 0 | AK162: 0
A163: Fire, Life & Safety-Maint. Contracts | B163: 2305.0895 | C163: 0 | D163: 249.1245 | E163: 0 | F163: 0 | G163: 1218.1754 | H163: 144.078 | I163: 0 | J163: 286.2 | K163: 0 | L163: 0 | M163: 0 | N163: 433.2928 | O163: 252.5996 | P163: 446.6097 | Q163: 0 | R163: 0 | S163: 1182.762 | T163: 0 | U163: 0 | V163: 0 | W163: 767.0256 | X163: 749.2581 | Y163: 0 | Z163: 0 | AA163: 169.389 | AB163: 982.086 | AC163: 521.4688 | AD163: 0 | AE163: 0 | AF163: 262.413 | AG163: 0 | AH163: 0 | AI163: 0 | AJ163: 0 | AK163: 0
A164: Cash Paid-Outs | B164: 0 | C164: 0 | D164: 0 | E164: -85 | F164: 0 | G164: 0 | H164: 0 | I164: 0 | J164: 0 | K164: 0 | L164: 0 | M164: 0 | N164: 0 | O164: 0 | P164: 0 | Q164: 0 | R164: 0 | S164: 0 | T164: 0 | U164: 0 | V164: 0 | W164: 0 | X164: 0 | Y164: 0 | Z164: 0 | AA164: 0 | AB164: 0 | AC164: 0 | AD164: 0 | AE164: 0 | AF164: 0 | AG164: 0 | AH164: 0 | AI164: 0 | AJ164: 0 | AK164: 0
A165: Cash (Over) / Short | B165: -10.8346 | C165: -645.5192 | D165: -429.504 | E165: 496.4325 | F165: -309.058 | G165: 207.3522 | H165: 28.1688 | I165: -90.144 | J165: -86.1076 | K165: 86.7181 | L165: -441.7304 | M165: 53.7042 | N165: -391.5911 | O165: 0 | P165: 128.76 | Q165: 525.903 | R165: 25.452 | S165: -316.8375 | T165: -598.9362 | U165: 568.008 | V165: -0.5856 | W165: -216.465 | X165: 218.718 | Y165: 315.4775 | Z165: -223.5288 | AA165: 154.6188 | AB165: -489.9215 | AC165: -99.5475 | AD165: -62.678 | AE165: 266.342 | AF165: -89.467 | AG165: 621.8037 | AH165: 572.7304 | AI165: -539.3472 | AJ165: 0 | AK165: 0
A166: Complaint Letters | B166: 0 | C166: 0 | D166: 0 | E166: 0 | F166: 0 | G166: 0 | H166: 0 | I166: 0 | J166: 0 | K166: 0 | L166: 0 | M166: 0 | N166: 0 | O166: 0 | P166: 0 | Q166: 0 | R166: 0 | S166: 0 | T166: 0 | U166: 0 | V166: 0 | W166: 0 | X166: 0 | Y166: 0 | Z166: 0 | AA166: 0 | AB166: 0 | AC166: 0 | AD166: 0 | AE166: 0 | AF166: 0 | AG166: 0 | AH166: =IF($A166="","",INDIRECT("'"&AH$6&"'!"&$G$2&ROW())) -> 0 | AI166: 0 | AJ166: 0 | AK166: 0
A167: Employment Ads | B167: 0 | C167: 0 | D167: 0 | E167: 0 | F167: 0 | G167: 0 | H167: 0 | I167: 0 | J167: 0 | K167: 0 | L167: 0 | M167: 0 | N167: 0 | O167: 0 | P167: 0 | Q167: =IF($A167="","",INDIRECT("'"&Q$6&"'!"&$G$2&ROW())) -> 0 | R167: 0 | S167: 0 | T167: 0 | U167: 0 | V167: 0 | W167: 0 | X167: 0 | Y167: 0 | Z167: 0 | AA167: 0 | AB167: 0 | AC167: 0 | AD167: 0 | AE167: 0 | AF167: 0 | AG167: =IF($A167="","",INDIRECT("'"&AG$6&"'!"&$G$2&ROW())) -> 0 | AH167: 0 | AI167: 0 | AJ167: 0 | AK167: 0
A168: Office Supplies | B168: =IF($A168="","",INDIRECT("'"&B$6&"'!"&$G$2&ROW())) -> 988.9932 | C168: 750.8463 | D168: 926.5041 | E168: 383.7375 | F168: 476.2852 | G168: 594.8116 | H168: 290.1587 | I168: 381.717 | J168: 579.7257 | K168: 1014.4932 | L168: 482.069 | M168: 701.0262 | N168: 410.514 | O168: 0 | P168: 476.8704 | Q168: 526.8143 | R168: 482.9275 | S168: 479.8065 | T168: 810.2256 | U168: 551.6544 | V168: 443.2806 | W168: 474.1343 | X168: 627.228 | Y168: 583.9201 | Z168: 464.9106 | AA168: 1785.0744 | AB168: 573.05 | AC168: 459.4434 | AD168: 468.3302 | AE168: 1330.284 | AF168: 357.4116 | AG168: 398.6579 | AH168: 1473.0912 | AI168: 2105.0436 | AJ168: 0 | AK168: 0
A169: Printed Office Matter | B169: 184.9803 | C169: 291.2202 | D169: 241.4966 | E169: 87.5094 | F169: 147.3167 | G169: 135.6579 | H169: 266.6244 | I169: 209.6764 | J169: 124.243 | K169: 317.3808 | L169: 118.2112 | M169: 102.0943 | N169: 665.091 | O169: 0 | P169: 313.4025 | Q169: 274.5792 | R169: 140.244 | S169: 537.507 | T169: 289.0479 | U169: 146.5128 | V169: 271.04 | W169: 179.7184 | X169: 295.7801 | Y169: 294.8077 | Z169: 148.3944 | AA169: 664.4927 | AB169: 339.5072 | AC169: 254.1312 | AD169: 259.6942 | AE169: 365.856 | AF169: 230.802 | AG169: 328.9888 | AH169: 185.907 | AI169: 110.0414 | AJ169: 100.0272 | AK169: 0
A170: Customer Liab. Guest Cards | B170: 0 | C170: 0 | D170: 0 | E170: 0 | F170: 0 | G170: 0 | H170: 0 | I170: 0 | J170: 0 | K170: 0 | L170: 0 | M170: 0 | N170: 0 | O170: 0 | P170: 0 | Q170: 0 | R170: 0 | S170: 0 | T170: 0 | U170: 0 | V170: 0 | W170: 0 | X170: 0 | Y170: 0 | Z170: 0 | AA170: 0 | AB170: 0 | AC170: 0 | AD170: 0 | AE170: 0 | AF170: 0 | AG170: 0 | AH170: 0 | AI170: 0 | AJ170: 0 | AK170: 0
A171: Sales Tax & Freight/Delivery Expense | B171: 815.514 | C171: 1428.6956 | D171: 1525.368 | E171: 1093.1624 | F171: 1054.1256 | G171: 1952.2164 | H171: 1011.948 | I171: 522.396 | J171: 1121.0154 | K171: 1005.1195 | L171: 717.5616 | M171: 1309.302 | N171: 2421.981 | O171: 0 | P171: 765.0258 | Q171: 637.205 | R171: 610.512 | S171: 1356.2054 | T171: 1762.713 | U171: 1471.8528 | V171: 1194.496 | W171: 1045.296 | X171: 996.9752 | Y171: 890.6725 | Z171: 778.2872 | AA171: 2486.176 | AB171: 2050.12 | AC171: 1179.5686 | AD171: 600.03 | AE171: 1389.876 | AF171: 1555.3278 | AG171: 1514.727 | AH171: 2836.6415 | AI171: 802.5984 | AJ171: 0 | AK171: 0
A173: TOTAL DIRECT OPERATING EXP. | B173: 21794.0177 | C173: 24238.9292 | D173: 34270.6731 | E173: 23535.987 | F173: 18103.3534 | G173: 26810.2418 | H173: 18379.4797 | I173: 13630.8275 | J173: 28015.5012 | K173: 24651.6962 | L173: 12528.283 | M173: 23758.2956 | N173: 39383.5669 | O173: 252.5996 | P173: 16863.5274 | Q173: 19623.6009 | R173: 12694.4206 | S173: 22221.8577 | T173: 26069.0054 | U173: 24576.187 | V173: 21275.1501 | W173: 16271.7522 | X173: 21055.6802 | Y173: 16867.7045 | Z173: 16809.4418 | AA173: 36512.073 | AB173: 32873.2955 | AC173: 27379.9551 | AD173: 16816.8593 | AE173: 32310.1022 | AF173: 29569.3252 | AG173: 21846.5069 | AH173: 36684.5107 | AI173: 17395.8134 | AJ173: 100.0272 | AK173: 0
A175: INDIRECT OPERATING EXPENSES | B175: 0 | C175: 0 | D175: 0 | E175: 0 | F175: 0 | G175: 0 | H175: 0 | I175: 0 | J175: 0 | K175: 0 | L175: 0 | M175: 0 | N175: 0 | O175: 0 | P175: 0 | Q175: 0 | R175: 0 | S175: 0 | T175: 0 | U175: 0 | V175: 0 | W175: 0 | X175: 0 | Y175: 0 | Z175: 0 | AA175: 0 | AB175: 0 | AC175: 0 | AD175: 0 | AE175: 0 | AF175: 0 | AG175: 0 | AH175: 0 | AI175: 0 | AJ175: 0 | AK175: 0
A176: Services | B176: 0 | C176: 0 | D176: 0 | E176: 0 | F176: 0 | G176: 0 | H176: 0 | I176: 0 | J176: 0 | K176: 0 | L176: 0 | M176: 0 | N176: 0 | O176: 0 | P176: 0 | Q176: 0 | R176: 0 | S176: 0 | T176: 0 | U176: 0 | V176: 0 | W176: 0 | X176: 0 | Y176: 0 | Z176: 0 | AA176: 0 | AB176: 0 | AC176: 0 | AD176: 0 | AE176: 0 | AF176: 0 | AG176: 0 | AH176: 0 | AI176: 0 | AJ176: 0 | AK176: 0
A177: Cable / Music Services | B177: 220.4175 | C177: 260.988 | D177: 179.2729 | E177: 220.3062 | F177: 215.1828 | G177: 213.4004 | H177: 219.5844 | I177: 186.0672 | J177: 226.2978 | K177: 179.5392 | L177: 163.9488 | M177: 172.5306 | N177: 258.6232 | O177: 0 | P177: 200.0768 | Q177: 179.319 | R177: 42.1008 | S177: 256.7578 | T177: 604.08 | U177: 181.8807 | V177: 447.2445 | W177: 177.9048 | X177: 171.0324 | Y177: 161.9626 | Z177: 207.8536 | AA177: 212.4948 | AB177: 202.8796 | AC177: 149.477 | AD177: 257.3568 | AE177: 159.7468 | AF177: 262.58 | AG177: 197.7398 | AH177: 37.4994 | AI177: 0 | AJ177: 0 | AK177: 0
A178: Trash / Waste Removal Services | B178: -446.1167 | C178: -446.8364 | D178: -307.2006 | E178: 1357.2 | F178: 0 | G178: -256.1325 | H178: -240.2185 | I178: -15.5344 | J178: -481.3336 | K178: 19.3464 | L178: -264.3256 | M178: -335.4702 | N178: 0 | O178: 0 | P178: 0 | Q178: 0 | R178: -332.2731 | S178: -308.192 | T178: 1231.6212 | U178: -302.4459 | V178: -189.7665 | W178: -410.124 | X178: -455.4627 | Y178: 0 | Z178: 684.0868 | AA178: -510.489 | AB178: -362.7664 | AC178: 0 | AD178: -265.1544 | AE178: -450.3742 | AF178: -206.8111 | AG178: 1277.822 | AH178: 8.3 | AI178: -394.0376 | AJ178: 0 | AK178: 0
A179: Hood Cleaning Services | B179: 0 | C179: 761.25 | D179: 1257.8733 | E179: 447.2 | F179: 682.5 | G179: 471.1696 | H179: 954.7713 | I179: 0 | J179: 673.75 | K179: 0 | L179: 647.5 | M179: 1000.2366 | N179: 1303.3386 | O179: 0 | P179: 560 | Q179: 647.5 | R179: 0 | S179: 855.3118 | T179: 462 | U179: 752.5 | V179: 621.25 | W179: 385.25 | X179: 761.0012 | Y179: 501.6638 | Z179: 465.75 | AA179: 1197.2529 | AB179: 0 | AC179: 814.8 | AD179: 0 | AE179: 954.7713 | AF179: 0 | AG179: 442.25 | AH179: 1164.5 | AI179: 1073 | AJ179: 0 | AK179: 0
A180: Armored Car Services | B180: 447.716 | C180: 253.89 | D180: 399.9171 | E180: 436.215 | F180: 340.9295 | G180: 481.4825 | H180: 402.609 | I180: 407.473 | J180: 346.8544 | K180: 416.0217 | L180: 509.814 | M180: 331.5528 | N180: 384.5637 | O180: 0 | P180: 320.9637 | Q180: 343.0056 | R180: 587.3384 | S180: 579.5766 | T180: 448.1365 | U180: 376.698 | V180: 323.31 | W180: 302.1547 | X180: 364.692 | Y180: 268.1091 | Z180: 279.6789 | AA180: 356.565 | AB180: 270.6424 | AC180: 462.8316 | AD180: 432.971 | AE180: 258.7569 | AF180: 391.176 | AG180: 517.7423 | AH180: 277.4304 | AI180: 382.1736 | AJ180: 0 | AK180: 0
A181: Pest Control Services | B181: 250.821 | C181: 197.358 | D181: 476.5088 | E181: 240.03 | F181: 226.695 | G181: 200.025 | H181: 274.3875 | I181: 199.8447 | J181: 189.357 | K181: 234.6975 | L181: 267.036 | M181: 210.0584 | N181: 280.2492 | O181: 0 | P181: 237.4966 | Q181: 226.695 | R181: 296.9136 | S181: 291.4736 | T181: 204.6121 | U181: 0 | V181: 228.1748 | W181: 460.584 | X181: 1057.5196 | Y181: 215.4195 | Z181: 494.6319 | AA181: 199.11 | AB181: 272.0696 | AC181: 242.091 | AD181: 176.8056 | AE181: 200.676 | AF181: 226.9986 | AG181: 162.6324 | AH181: 300.8378 | AI181: 203.8344 | AJ181: 0 | AK181: 0
A182: Grease Trap Servicing | B182: 12.996 | C182: 619.2 | D182: 189.5092 | E182: 196 | F182: 157.95 | G182: 198.45 | H182: 19.2774 | I182: 153 | J182: 323.9 | K182: 13 | L182: 18 | M182: 1860.079 | N182: 17.328 | O182: 0 | P182: 730.3 | Q182: 415.4 | R182: 19.494 | S182: 14.4 | T182: 115.44 | U182: 318.9151 | V182: -67.3685 | W182: 15.6 | X182: 216.099 | Y182: 491.0308 | Z182: 0 | AA182: 8.664 | AB182: 410 | AC182: 1513 | AD182: 406.7 | AE182: 9.72 | AF182: =IF($A182="","",INDIRECT("'"&AF$6&"'!"&$G$2&ROW())) -> 9.747 | AG182: 0 | AH182: 0 | AI182: 0 | AJ182: 0 | AK182: 0
A183: Cleaning Services | B183: 0 | C183: 0 | D183: 0 | E183: 0 | F183: 0 | G183: 0 | H183: 0 | I183: 0 | J183: 0 | K183: 0 | L183: 0 | M183: 0 | N183: 0 | O183: 0 | P183: 0 | Q183: 0 | R183: =IF($A183="","",INDIRECT("'"&R$6&"'!"&$G$2&ROW())) -> 0 | S183: 0 | T183: 0 | U183: 0 | V183: 0 | W183: 0 | X183: 0 | Y183: 29.304 | Z183: 0 | AA183: 0 | AB183: 0 | AC183: 0 | AD183: 0 | AE183: 0 | AF183: 0 | AG183: 0 | AH183: 0 | AI183: 0 | AJ183: 0 | AK183: 0
A184: Temporary Labor | B184: =IF($A184="","",INDIRECT("'"&B$6&"'!"&$G$2&ROW())) -> 0 | C184: 0 | D184: 0 | E184: 0 | F184: 0 | G184: 0 | H184: 0 | I184: 0 | J184: 0 | K184: 0 | L184: 0 | M184: 0 | N184: 0 | O184: 0 | P184: 0 | Q184: 0 | R184: 0 | S184: 0 | T184: 0 | U184: 0 | V184: 0 | W184: 0 | X184: 0 | Y184: 0 | Z184: 0 | AA184: 0 | AB184: 0 | AC184: 0 | AD184: 0 | AE184: 0 | AF184: 0 | AG184: 0 | AH184: 0 | AI184: 0 | AJ184: 0 | AK184: 0
A185: Programming & Computer Services | B185: 1213.7472 | C185: 1620.2688 | D185: 1272.8526 | E185: 1203.958 | F185: 2137.4202 | G185: 1753.7112 | H185: 1795.3387 | I185: 909.895 | J185: 2095.6254 | K185: 2318.8042 | L185: 1168.0641 | M185: 1645.416 | N185: 1123.5572 | O185: 0 | P185: 1065.1116 | Q185: 1276.728 | R185: 1091.835 | S185: 1695.8808 | T185: 2631.3846 | U185: 1946.3348 | V185: 1480.24 | W185: 1989.301 | X185: 1385.4309 | Y185: 2432.726 | Z185: 2896.9248 | AA185: 1054.192 | AB185: 5046.45 | AC185: 1666.1988 | AD185: 3020.5264 | AE185: 2281.077 | AF185: 1079.6825 | AG185: 436.0734 | AH185: 846.0336 | AI185: 1081.0995 | AJ185: 0 | AK185: 0
A186: Landscaping | B186: 181.0003 | C186: 0 | D186: 192.9048 | E186: 0 | F186: 0 | G186: 0 | H186: 663.033 | I186: 394.38 | J186: 0 | K186: 853.32 | L186: 873.46 | M186: 0 | N186: 0 | O186: 0 | P186: 0 | Q186: 0 | R186: 0 | S186: 932.64 | T186: 0 | U186: 1150.1424 | V186: 0 | W186: 894.75 | X186: 0 | Y186: 0 | Z186: 503.25 | AA186: 0 | AB186: 417.6 | AC186: 43.31 | AD186: 868.32 | AE186: 0 | AF186: 0 | AG186: 0 | AH186: 0 | AI186: 2117.2 | AJ186: 0 | AK186: 0
A187: Interior Plant Maintenance | B187: 0 | C187: 0 | D187: 0 | E187: 0 | F187: 0 | G187: 0 | H187: 0 | I187: 0 | J187: 0 | K187: 0 | L187: 0 | M187: 0 | N187: 0 | O187: 0 | P187: 0 | Q187: 0 | R187: 0 | S187: 0 | T187: 0 | U187: 0 | V187: 0 | W187: 0 | X187: 0 | Y187: 0 | Z187: 0 | AA187: 0 | AB187: 0 | AC187: 0 | AD187: 0 | AE187: 0 | AF187: 0 | AG187: 0 | AH187: 0 | AI187: 0 | AJ187: 0 | AK187: 0
A188: Parking / Valet | B188: 3245.706 | C188: 1047.8 | D188: 4085.7375 | E188: 870.6103 | F188: 0 | G188: 0 | H188: 0 | I188: 0 | J188: 0 | K188: 0 | L188: 0 | M188: 0 | N188: 0 | O188: 0 | P188: 0 | Q188: 0 | R188: 0 | S188: 0 | T188: 0 | U188: 0 | V188: 0 | W188: 0 | X188: 0 | Y188: 2871 | Z188: 0 | AA188: 0 | AB188: 0 | AC188: 0 | AD188: 0 | AE188: 0 | AF188: 0 | AG188: 0 | AH188: 0 | AI188: 0 | AJ188: 0 | AK188: 0
A189: Security | B189: 1647.216 | C189: 0 | D189: 3379.6853 | E189: 0 | F189: 0 | G189: 115.875 | H189: 327.075 | I189: 1793.3146 | J189: 0 | K189: 0 | L189: 0 | M189: 0 | N189: 68.25 | O189: 0 | P189: 0 | Q189: 0 | R189: 0 | S189: 92.7 | T189: 27 | U189: 0 | V189: 0 | W189: 0 | X189: 270.32 | Y189: 0 | Z189: 0 | AA189: 0 | AB189: 306.18 | AC189: 461.56 | AD189: 0 | AE189: 0 | AF189: 0 | AG189: 113.0013 | AH189: 0 | AI189: 235.6857 | AJ189: 0 | AK189: 0
A190: Utilities-Electric | B190: 5092.857 | C190: 7912.2489 | D190: 4044.6746 | E190: 3271.8972 | F190: 6385.7024 | G190: 5844.5698 | H190: 5392.72 | I190: 4458.7124 | J190: 6306.3762 | K190: 4796.4224 | L190: 3679.2594 | M190: 5527.0125 | N190: 5902.4475 | O190: 0 | P190: 3546.3456 | Q190: 4138.3512 | R190: 3752.0496 | S190: 3387.8517 | T190: 3767.4278 | U190: 3335.8959 | V190: 3855.27 | W190: 4107.1425 | X190: 3390.4266 | Y190: 3736.7273 | Z190: 3277.17 | AA190: 6408 | AB190: 5566.347 | AC190: 3700 | AD190: 2258.124 | AE190: 5260.0296 | AF190: 5425 | AG190: 4746.0168 | AH190: 5772.8362 | AI190: 5809.9032 | AJ190: 0 | AK190: 0
A191: Utilities-Gas | B191: 870.936 | C191: 501.5925 | D191: 846.1179 | E191: 831.1875 | F191: 184.768 | G191: 1134.1559 | H191: 822.8869 | I191: 947.138 | J191: 1238.24 | K191: 759.207 | L191: 1060.3904 | M191: 765.4336 | N191: 1768.04 | O191: 0 | P191: 868.734 | Q191: 1232.8372 | R191: 551.1104 | S191: 2099.6976 | T191: 2265.5214 | U191: 979.6935 | V191: 1430.9164 | W191: 511.68 | X191: 872.333 | Y191: -291.5984 | Z191: 84.4747 | AA191: 1230.68 | AB191: 2541.9278 | AC191: 1237.8176 | AD191: 802.1511 | AE191: 1082.851 | AF191: 1626.5853 | AG191: 733.1743 | AH191: -711.0018 | AI191: 1205.204 | AJ191: 0 | AK191: 0
A192: Utilities-Water | B192: 1142.7824 | C192: 4225.7072 | D192: 2181.4349 | E192: 2962.6484 | F192: 2313.4028 | G192: 1091.8848 | H192: 2217.4188 | I192: 4286.8815 | J192: 4316.1096 | K192: 3915.3291 | L192: 1806.165 | M192: 1327.9284 | N192: 1627.893 | O192: 0 | P192: 1742.9764 | Q192: 1319.4056 | R192: 1088.5572 | S192: 2743.2592 | T192: 1255.0496 | U192: 3003.0399 | V192: 2436.0728 | W192: 931.0836 | X192: 847.9788 | Y192: 1601.8171 | Z192: 743.8016 | AA192: 1670.735 | AB192: 2887.808 | AC192: 1163.808 | AD192: 1197.582 | AE192: 1058.4072 | AF192: 1451.676 | AG192: 2280 | AH192: 457.1628 | AI192: 2040 | AJ192: 0 | AK192: 0
A193: Utilities-Telephone | B193: 1032.9858 | C193: 590.403 | D193: 826.164 | E193: 1681.5526 | F193: 1476.7332 | G193: 969.984 | H193: 962.6925 | I193: 1885.4775 | J193: 577.0332 | K193: 2243.088 | L193: 531.7431 | M193: 1588.574 | N193: 707.031 | O193: 0 | P193: 1553.9004 | Q193: 693.0462 | R193: 831.9737 | S193: 1868.96 | T193: 658.3425 | U193: 949.32 | V193: 243.4182 | W193: 538.0484 | X193: 444.605 | Y193: 426.4205 | Z193: 292.0808 | AA193: 783.5205 | AB193: 471.302 | AC193: 504.4113 | AD193: 563.706 | AE193: 500.3772 | AF193: 115.037 | AG193: 419.7416 | AH193: 339.372 | AI193: 325.3172 | AJ193: 0 | AK193: 0
A194: Equipment Rental / Leasing | B194: 286.883 | C194: 426.9298 | D194: 1043.208 | E194: 293.8065 | F194: 565.0106 | G194: 660.4237 | H194: 78.7904 | I194: 139.346 | J194: 127.4049 | K194: 290.036 | L194: 437.1752 | M194: 341.6838 | N194: 184.465 | O194: 0 | P194: 282.7065 | Q194: 371.8898 | R194: 0 | S194: 0 | T194: 0 | U194: 412.1118 | V194: 0 | W194: 384.237 | X194: 285.7275 | Y194: 237.466 | Z194: 247.0095 | AA194: 0 | AB194: 0 | AC194: 222.6575 | AD194: 230.544 | AE194: 298.053 | AF194: 268.7571 | AG194: 216.597 | AH194: 4164.6482 | AI194: 447.1425 | AJ194: 0 | AK194: 0
A195: Advertising-TV | B195: 5901.4276 | C195: 5141.4622 | D195: 5901.4276 | E195: 5011.2986 | F195: 4946.2168 | G195: 2535 | H195: 6074.999 | I195: 0 | J195: 4100.1534 | K195: 2145 | L195: 5792.2802 | M195: 5293.9277 | N195: 6508.9275 | O195: 0 | P195: 0 | Q195: 1699.8375 | R195: 0 | S195: 2697.5 | T195: 2437.5 | U195: 4425.5556 | V195: 4881.135 | W195: 2340 | X195: 0 | Y195: 2632.5 | Z195: 2340 | AA195: 7439.7714 | AB195: 0 | AC195: 0 | AD195: 2112.5 | AE195: 6335.3634 | AF195: 0 | AG195: 5401.7894 | AH195: 0 | AI195: 4360.4806 | AJ195: 0 | AK195: 0
A196: Advertising-Out of Home | B196: 0 | C196: 0 | D196: 0 | E196: 0 | F196: 0 | G196: 0 | H196: 0 | I196: 0 | J196: 0 | K196: 0 | L196: 0 | M196: 0 | N196: 0 | O196: 0 | P196: 0 | Q196: 0 | R196: 0 | S196: 0 | T196: 0 | U196: 0 | V196: 0 | W196: 0 | X196: 0 | Y196: 0 | Z196: 0 | AA196: 0 | AB196: 0 | AC196: 0 | AD196: 0 | AE196: 0 | AF196: 0 | AG196: 0 | AH196: 0 | AI196: 0 | AJ196: 0 | AK196: 0
A197: Advertising-Radio | B197: 0 | C197: 0 | D197: 0 | E197: 0 | F197: 0 | G197: 0 | H197: 0 | I197: 0 | J197: 0 | K197: 0 | L197: 0 | M197: 0 | N197: 0 | O197: 0 | P197: 0 | Q197: 0 | R197: 0 | S197: 0 | T197: 0 | U197: 0 | V197: 0 | W197: 0 | X197: 0 | Y197: 0 | Z197: 0 | AA197: 0 | AB197: 0 | AC197: 0 | AD197: 0 | AE197: 0 | AF197: 0 | AG197: 0 | AH197: 0 | AI197: 0 | AJ197: 0 | AK197: 0
A198: Advertising-Print | B198: 0 | C198: 0 | D198: 0 | E198: 0 | F198: 0 | G198: 21.58 | H198: 0 | I198: 0 | J198: 0 | K198: 0 | L198: 0 | M198: 0 | N198: 0 | O198: 0 | P198: 0 | Q198: 3520.6276 | R198: 0 | S198: 0 | T198: 0 | U198: 0 | V198: 0 | W198: 0 | X198: 0 | Y198: 0 | Z198: 0 | AA198: 0 | AB198: 0 | AC198: 0 | AD198: 0 | AE198: 0 | AF198: 0 | AG198: 0 | AH198: =IF($A198="","",INDIRECT("'"&AH$6&"'!"&$G$2&ROW())) -> 0 | AI198: 0 | AJ198: 0 | AK198: 0
A199: Advertising-Online | B199: 105.9175 | C199: 109.1765 | D199: 109.1765 | E199: 130.36 | F199: 117.324 | G199: 118.9535 | H199: 112.4355 | I199: 114.065 | J199: 140.137 | K199: 107.547 | L199: 117.324 | M199: 117.324 | N199: 146.655 | O199: 0 | P199: 141.7665 | Q199: =IF($A199="","",INDIRECT("'"&Q$6&"'!"&$G$2&ROW())) -> 140.137 | R199: 122.2125 | S199: 145.0255 | T199: 131.9895 | U199: 143.396 | V199: 123.842 | W199: 127.101 | X199: 145.0255 | Y199: 101.029 | Z199: 133.619 | AA199: 97.77 | AB199: 146.655 | AC199: 118.9535 | AD199: 146.655 | AE199: 112.4355 | AF199: 127.101 | AG199: =IF($A199="","",INDIRECT("'"&AG$6&"'!"&$G$2&ROW())) -> 597.3192 | AH199: 630.5112 | AI199: 663.696 | AJ199: 0 | AK199: 0
A200: Advertising-Direct Mail Production/Postage | B200: =IF($A200="","",INDIRECT("'"&B$6&"'!"&$G$2&ROW())) -> 0 | C200: 0 | D200: 0 | E200: 0 | F200: 0 | G200: 0 | H200: 0 | I200: 0 | J200: 0 | K200: 0 | L200: 0 | M200: 0 | N200: 0 | O200: 0 | P200: 0 | Q200: 0 | R200: 0 | S200: 0 | T200: 0 | U200: 0 | V200: 0 | W200: 0 | X200: 0 | Y200: 0 | Z200: 0 | AA200: 0 | AB200: 0 | AC200: 0 | AD200: 0 | AE200: 0 | AF200: 0 | AG200: 0 | AH200: 0 | AI200: 0 | AJ200: 0 | AK200: 0
A201: Agency Fees-Other | B201: 0 | C201: 0 | D201: 0 | E201: 0 | F201: 0 | G201: 0 | H201: 0 | I201: 0 | J201: 0 | K201: 0 | L201: 0 | M201: 0 | N201: 0 | O201: 0 | P201: 0 | Q201: 0 | R201: 0 | S201: 0 | T201: 0 | U201: 0 | V201: 0 | W201: 0 | X201: 0 | Y201: 0 | Z201: 0 | AA201: 0 | AB201: 0 | AC201: 0 | AD201: 0 | AE201: 0 | AF201: 0 | AG201: 0 | AH201: 0 | AI201: 0 | AJ201: 0 | AK201: 0
A202: Agency Fees-Public Relations | B202: 0 | C202: 0 | D202: 0 | E202: 0 | F202: 0 | G202: 0 | H202: 0 | I202: 0 | J202: 0 | K202: 0 | L202: 0 | M202: 0 | N202: 0 | O202: 0 | P202: 0 | Q202: 0 | R202: 0 | S202: 0 | T202: 0 | U202: 0 | V202: 0 | W202: 0 | X202: 0 | Y202: 0 | Z202: 0 | AA202: 0 | AB202: 0 | AC202: 0 | AD202: 0 | AE202: 0 | AF202: 0 | AG202: 0 | AH202: 0 | AI202: 0 | AJ202: 0 | AK202: 0
A203: Agency Fees-Photography | B203: 0 | C203: 0 | D203: 0 | E203: 0 | F203: 0 | G203: 0 | H203: 0 | I203: 0 | J203: 0 | K203: 0 | L203: 0 | M203: 0 | N203: 0 | O203: 0 | P203: 0 | Q203: 0 | R203: 0 | S203: 0 | T203: 0 | U203: 0 | V203: 0 | W203: 0 | X203: 0 | Y203: 0 | Z203: 0 | AA203: 0 | AB203: 0 | AC203: 0 | AD203: 0 | AE203: 0 | AF203: 0 | AG203: 0 | AH203: 0 | AI203: 0 | AJ203: 0 | AK203: 0
A204: Agency Fees-Email | B204: 0 | C204: 0 | D204: 0 | E204: 0 | F204: 0 | G204: 0 | H204: 0 | I204: 0 | J204: 0 | K204: 0 | L204: 0 | M204: 0 | N204: 0 | O204: 0 | P204: 0 | Q204: 0 | R204: 5925 | S204: 0 | T204: 0 | U204: 0 | V204: 0 | W204: 0 | X204: 0 | Y204: 0 | Z204: 0 | AA204: 0 | AB204: 0 | AC204: 0 | AD204: 0 | AE204: 0 | AF204: 0 | AG204: 0 | AH204: 0 | AI204: 0 | AJ204: 0 | AK204: 0
A205: Agency Fees-Website | B205: 0 | C205: 0 | D205: 0 | E205: 0 | F205: 0 | G205: 0 | H205: 0 | I205: 0 | J205: 0 | K205: 0 | L205: 0 | M205: 0 | N205: 0 | O205: 0 | P205: 0 | Q205: 0 | R205: 0 | S205: 0 | T205: 0 | U205: 0 | V205: 0 | W205: 0 | X205: 0 | Y205: 0 | Z205: 0 | AA205: 0 | AB205: 0 | AC205: 0 | AD205: 0 | AE205: 0 | AF205: 0 | AG205: 0 | AH205: 0 | AI205: 0 | AJ205: 0 | AK205: 0
A206: Agency Fees-Creative & Strategy | B206: 698.5608 | C206: 511.872 | D206: 740.1418 | E206: 511.872 | F206: 543.864 | G206: 607.848 | H206: 640.3474 | I206: 485.226 | J206: 535.866 | K206: 623.844 | L206: 527.868 | M206: 532.2368 | N206: 523.9206 | O206: 0 | P206: 589.203 | Q206: 639.84 | R206: 561.4758 | S206: 495.876 | T206: 575.856 | U206: 631.842 | V206: 495.876 | W206: 719.811 | X206: 547.6122 | Y206: 711.8131 | Z206: 663.8257 | AA206: 515.6044 | AB206: 471.3624 | AC206: 623.862 | AD206: 547.6201 | AE206: 422.8459 | AF206: 506.0287 | AG206: 478.3011 | AH206: 596.1434 | AI206: 568.4158 | AJ206: 0 | AK206: 0
A207: Agency Fees-Loyalty/Consumer Research | B207: 0 | C207: 0 | D207: 0 | E207: 0 | F207: 0 | G207: 0 | H207: 0 | I207: 0 | J207: 0 | K207: 0 | L207: 0 | M207: 0 | N207: 0 | O207: 0 | P207: 0 | Q207: 0 | R207: 0 | S207: 0 | T207: 0 | U207: 0 | V207: 0 | W207: 0 | X207: 0 | Y207: 0 | Z207: 0 | AA207: 0 | AB207: 0 | AC207: 0 | AD207: 0 | AE207: 0 | AF207: 0 | AG207: 0 | AH207: 0 | AI207: 0 | AJ207: 0 | AK207: 0
A208: Cinco de Mayo Event | B208: 0 | C208: 0 | D208: 0 | E208: 0 | F208: 0 | G208: 0 | H208: 0 | I208: 0 | J208: 0 | K208: 0 | L208: 0 | M208: 0 | N208: 0 | O208: 0 | P208: 0 | Q208: 0 | R208: 0 | S208: 0 | T208: 0 | U208: 0 | V208: 0 | W208: 0 | X208: 0 | Y208: 0 | Z208: 0 | AA208: 0 | AB208: 0 | AC208: 0 | AD208: 0 | AE208: 0 | AF208: 0 | AG208: 0 | AH208: 0 | AI208: 0 | AJ208: 0 | AK208: 0
A209: Local Store-Level Donations | B209: 0 | C209: 0 | D209: 0 | E209: 0 | F209: 0 | G209: 0 | H209: 0 | I209: 0 | J209: 0 | K209: 0 | L209: 0 | M209: 0 | N209: 0 | O209: 0 | P209: 0 | Q209: 0 | R209: 0 | S209: 0 | T209: 0 | U209: 0 | V209: 0 | W209: 0 | X209: 0 | Y209: 0 | Z209: 0 | AA209: 0 | AB209: 0 | AC209: 0 | AD209: 0 | AE209: 0 | AF209: 0 | AG209: 0 | AH209: 0 | AI209: 0 | AJ209: 0 | AK209: 0
A210: Catering Promos/Donations | B210: 0 | C210: 113.7367 | D210: 0 | E210: 131.4619 | F210: 122.5827 | G210: 0 | H210: 0 | I210: 0 | J210: 97.4886 | K210: 0 | L210: 94.528 | M210: 0 | N210: 0 | O210: 0 | P210: 0 | Q210: 12.402 | R210: 0 | S210: 0 | T210: 0 | U210: 96.005 | V210: 116.6672 | W210: 0 | X210: 0 | Y210: 0 | Z210: 0 | AA210: 0 | AB210: 0 | AC210: 0 | AD210: 0 | AE210: 0 | AF210: 0 | AG210: 0 | AH210: 0 | AI210: 0 | AJ210: 0 | AK210: 0
A211: Store Level Donated Product Cost | B211: 0 | C211: 0 | D211: 0 | E211: 0 | F211: 0 | G211: 0 | H211: 0 | I211: 0 | J211: 0 | K211: 0 | L211: 0 | M211: 0 | N211: 0 | O211: 0 | P211: 0 | Q211: 0 | R211: 0 | S211: 0 | T211: 0 | U211: 0 | V211: 0 | W211: 0 | X211: 0 | Y211: 0 | Z211: 0 | AA211: 0 | AB211: 0 | AC211: 0 | AD211: 0 | AE211: 0 | AF211: 0 | AG211: 0 | AH211: 0 | AI211: 0 | AJ211: 0 | AK211: 0
A212: Local Store Marketing-Labor & Product | B212: 0 | C212: 0 | D212: 0 | E212: 0 | F212: 0 | G212: 0 | H212: 0 | I212: 0 | J212: 0 | K212: 0 | L212: 0 | M212: 0 | N212: 0 | O212: 0 | P212: 0 | Q212: 0 | R212: 0 | S212: 0 | T212: 0 | U212: 0 | V212: 0 | W212: 0 | X212: 0 | Y212: 0 | Z212: 0 | AA212: 0 | AB212: 0 | AC212: 0 | AD212: 0 | AE212: 0 | AF212: 0 | AG212: 0 | AH212: 0 | AI212: 0 | AJ212: 0 | AK212: 0
A213: Local Store Mktng-Other Programs | B213: 0 | C213: 0 | D213: 0 | E213: 0 | F213: 0 | G213: 0 | H213: 0 | I213: 0 | J213: 0 | K213: 0 | L213: 0 | M213: 0 | N213: 0 | O213: 0 | P213: 0 | Q213: 0 | R213: 0 | S213: 0 | T213: 0 | U213: 0 | V213: 0 | W213: 0 | X213: 0 | Y213: 0 | Z213: 0 | AA213: 0 | AB213: 0 | AC213: 0 | AD213: 0 | AE213: 0 | AF213: 0 | AG213: 0 | AH213: 0 | AI213: 0 | AJ213: 0 | AK213: 0
A214: Other Local Promotions/Misc. | B214: 0 | C214: 0 | D214: 0 | E214: 0 | F214: 0 | G214: 0 | H214: 0 | I214: 0 | J214: 0 | K214: 0 | L214: 0 | M214: 0 | N214: 0 | O214: 0 | P214: 0 | Q214: 0 | R214: 0 | S214: 0 | T214: 0 | U214: 0 | V214: 0 | W214: 0 | X214: 0 | Y214: 0 | Z214: 0 | AA214: 0 | AB214: 0 | AC214: 0 | AD214: 0 | AE214: 0 | AF214: =IF($A214="","",INDIRECT("'"&AF$6&"'!"&$G$2&ROW())) -> 0 | AG214: 0 | AH214: 0 | AI214: 0 | AJ214: 0 | AK214: 0
A215: LSM Redemptions & Reward Cards | B215: 0 | C215: 0 | D215: 0 | E215: 0 | F215: 0 | G215: 0 | H215: 0 | I215: 0 | J215: 0 | K215: 0 | L215: 0 | M215: 0 | N215: 0 | O215: 0 | P215: 0 | Q215: 0 | R215: =IF($A215="","",INDIRECT("'"&R$6&"'!"&$G$2&ROW())) -> 0 | S215: 0 | T215: 0 | U215: 0 | V215: 0 | W215: 7.9 | X215: 0 | Y215: 0 | Z215: 0 | AA215: 0 | AB215: 0 | AC215: 0 | AD215: 0 | AE215: 0 | AF215: 0 | AG215: 0 | AH215: 0 | AI215: 0 | AJ215: 0 | AK215: 0
A216: Take-Out/3rd Party Expenses | B216: =IF($A216="","",INDIRECT("'"&B$6&"'!"&$G$2&ROW())) -> 477.2925 | C216: 1156.6299 | D216: 0 | E216: 0 | F216: 0 | G216: 717.0503 | H216: 133.9983 | I216: 0 | J216: 258.99 | K216: 0 | L216: 0 | M216: 444.2926 | N216: 0 | O216: 0 | P216: 0 | Q216: 0 | R216: 0 | S216: 0 | T216: 0 | U216: 0 | V216: 0 | W216: 0 | X216: 0 | Y216: 0 | Z216: 0 | AA216: 0 | AB216: 0 | AC216: 0 | AD216: 0 | AE216: 0 | AF216: 0 | AG216: 0 | AH216: 0 | AI216: 0 | AJ216: 0 | AK216: 0
A217: Corporate-LSM | B217: 0 | C217: 0 | D217: 0 | E217: 0 | F217: 0 | G217: 0 | H217: 0 | I217: 0 | J217: 0 | K217: 0 | L217: 0 | M217: 0 | N217: 0 | O217: 0 | P217: 0 | Q217: 0 | R217: 0 | S217: 0 | T217: 0 | U217: 0 | V217: 0 | W217: 0 | X217: 0 | Y217: 0 | Z217: 0 | AA217: 0 | AB217: 0 | AC217: 0 | AD217: 0 | AE217: 0 | AF217: 0 | AG217: 0 | AH217: 0 | AI217: 0 | AJ217: 0 | AK217: 0
A218: Boutique/Mdse & Other In-Store Support | B218: 0 | C218: 0 | D218: 0 | E218: 0 | F218: 523.072 | G218: 0 | H218: 0 | I218: 0 | J218: 0 | K218: 0 | L218: 0 | M218: 0 | N218: 0 | O218: 0 | P218: 0 | Q218: 0 | R218: 0 | S218: 0 | T218: 0 | U218: 0 | V218: 0 | W218: 0 | X218: 0 | Y218: 0 | Z218: 0 | AA218: 0 | AB218: 0 | AC218: 0 | AD218: 0 | AE218: 0 | AF218: 0 | AG218: 0 | AH218: 0 | AI218: 0 | AJ218: 0 | AK218: 0
A219: Dinova Business Customer | B219: 561.8445 | C219: 253.6453 | D219: 807.3324 | E219: 772.9812 | F219: 1042.2272 | G219: 445.4428 | H219: 925.9434 | I219: 523.6802 | J219: 431.5336 | K219: 623.5458 | L219: 417.5285 | M219: 847.828 | N219: 703.4 | O219: 0 | P219: 1079.9194 | Q219: 161.952 | R219: 603.8918 | S219: 458.8873 | T219: 482.2818 | U219: 593.3202 | V219: 400.302 | W219: 1127.7288 | X219: 686.1052 | Y219: 1014.2748 | Z219: 643.2245 | AA219: 0 | AB219: 1183.7826 | AC219: 0 | AD219: 0 | AE219: 0 | AF219: 0 | AG219: 0 | AH219: 0 | AI219: 0 | AJ219: 0 | AK219: 0
A220: Bulk/3rd Party Gift Cards | B220: 0 | C220: 0 | D220: 0 | E220: 0 | F220: 0 | G220: 0 | H220: 0 | I220: 0 | J220: 0 | K220: 0 | L220: 0 | M220: 0 | N220: 0 | O220: 0 | P220: 0 | Q220: 0 | R220: 0 | S220: 0 | T220: 0 | U220: 0 | V220: 0 | W220: 0 | X220: 0 | Y220: 0 | Z220: 0 | AA220: 0 | AB220: 0 | AC220: 0 | AD220: 0 | AE220: 0 | AF220: 0 | AG220: 0 | AH220: 0 | AI220: 0 | AJ220: 0 | AK220: 0
A221: Internal Promotion-Misc. | B221: 0 | C221: 0 | D221: 0 | E221: 0 | F221: 2.92 | G221: 0 | H221: 0 | I221: 0 | J221: 0 | K221: 0 | L221: 0 | M221: 49.349 | N221: 0 | O221: 0 | P221: 0 | Q221: 0 | R221: 0 | S221: 0 | T221: 0 | U221: 0 | V221: 0 | W221: 23.382 | X221: 0 | Y221: 0 | Z221: 0 | AA221: 0 | AB221: 0 | AC221: 0 | AD221: 0 | AE221: 0 | AF221: 25.7088 | AG221: 0 | AH221: 0 | AI221: 0 | AJ221: 0 | AK221: 0
A222: Int. Promo.-Boutique | B222: 0 | C222: 0 | D222: 0 | E222: 0 | F222: 0 | G222: 0 | H222: 0 | I222: 0 | J222: 0 | K222: 0 | L222: 0 | M222: 0 | N222: 0 | O222: 0 | P222: 0 | Q222: 0 | R222: 0 | S222: 0 | T222: 0 | U222: 0 | V222: 0 | W222: 0 | X222: 0 | Y222: 0 | Z222: 0 | AA222: 0 | AB222: 0 | AC222: 0 | AD222: 0 | AE222: 0 | AF222: 0 | AG222: 0 | AH222: 0 | AI222: 0 | AJ222: 0 | AK222: 0
A223: Int. Promo.-Gifts | B223: 0 | C223: 0 | D223: -166.3104 | E223: 0 | F223: 0 | G223: 0 | H223: 0 | I223: 0 | J223: 32.328 | K223: 0 | L223: 0 | M223: 0 | N223: 14.4 | O223: 0 | P223: 0 | Q223: 0 | R223: 0 | S223: 0 | T223: 0 | U223: 0 | V223: 119.094 | W223: 0 | X223: 0 | Y223: 0 | Z223: 105.6 | AA223: 0 | AB223: 0 | AC223: 0 | AD223: 0 | AE223: 0 | AF223: 111.8697 | AG223: 0 | AH223: 0 | AI223: 0 | AJ223: 0 | AK223: 0
A224: Operational Meetings | B224: 0 | C224: 190.7306 | D224: 346.4466 | E224: 40.05 | F224: 0 | G224: 0 | H224: 0 | I224: 0 | J224: 211.4674 | K224: 0 | L224: 49.4414 | M224: 0 | N224: 70.6398 | O224: 0 | P224: 0 | Q224: 0 | R224: 0 | S224: 0 | T224: 0 | U224: 0 | V224: 0 | W224: 0 | X224: 167.328 | Y224: 0 | Z224: 0 | AA224: 63.2 | AB224: 0 | AC224: 0 | AD224: 0 | AE224: 128.557 | AF224: 0 | AG224: 0 | AH224: 0 | AI224: 0 | AJ224: 0 | AK224: 0
A225: Trade Conventions & Events | B225: 0 | C225: 0 | D225: 0 | E225: 0 | F225: 0 | G225: 0 | H225: 0 | I225: 0 | J225: 0 | K225: 0 | L225: 0 | M225: 0 | N225: 0 | O225: 0 | P225: 0 | Q225: 0 | R225: 0 | S225: 0 | T225: 0 | U225: 0 | V225: 0 | W225: 0 | X225: 0 | Y225: 0 | Z225: 0 | AA225: 0 | AB225: 0 | AC225: 0 | AD225: 0 | AE225: 0 | AF225: 0 | AG225: 0 | AH225: 0 | AI225: 0 | AJ225: 0 | AK225: 0
... 87 more rows

Sheet Row-by-row
A1: Back to ToC | B1: B | C1: C | D1: D | E1: E | F1: F | G1: G | H1: H | I1: I | J1: J | K1: K | L1: L | M1: M | N1: N | O1: O | P1: P | Q1: Q | R1: R | S1: S | T1: T | U1: U | V1: V | W1: W | X1: X | Y1: Y | Z1: Z | AA1: AA | AB1: AB | AC1: AC | AD1: AD | AE1: AE | AF1: AF | AG1: AG | AH1: AH | AI1: AI | AJ1: AJ | AK1: AK
A2: UNCLE JULIO'S | D2: Row: | E2: 11 | F2: =IF($E$2="","",INDIRECT("'"&A$7&"'!A"&$E$2)) -> Beer Sales
B3: =INDIRECT("'"&$A$7&"'!"&B$1&ROW()-1) -> Period 12 2018 | C3: =INDIRECT("'"&$A$7&"'!"&C$1&ROW()-1) -> Period 11 2018 | D3: Period 10 2018 | E3: Period 9 2018 | F3: Period 8 2018 | G3: Period 7 2018 | I3: =INDIRECT("'"&$A$7&"'!"&I$1&ROW()-1) -> Period 12 2018 | J3: =INDIRECT("'"&$A$7&"'!"&J$1&ROW()-1) -> Period 11 2018 | K3: Period 10 2018 | L3: Period 9 2018 | M3: Period 8 2018 | N3: Period 7 2018 | P3: Period 12 2017 | Q3: Period 12 2017 | U3: Period 12 2018 | V3: Period 12 2018 | Z3: Period 12 2018 | AA3: =INDIRECT("'"&$A$7&"'!"&AA$1&ROW()-1) -> Period 12 2018 | AC3: =INDIRECT("'"&$A$7&"'!"&AC$1&ROW()-1) -> Period 12 2017 | AD3: Period 12 2017 | AH3: =INDIRECT("'"&$A$7&"'!"&AH$1&ROW()-1) -> Period 12 2018 | AI3: Period 12 2018
B4: =INDIRECT("'"&$A$7&"'!"&B$1&ROW()-1) -> PTD | C4: PTD | D4: PTD | E4: PTD | F4: PTD | G4: PTD | I4: PTD | J4: PTD | K4: PTD | L4: PTD | M4: PTD | N4: PTD | P4: PTD | Q4: PTD | R4: PTD | S4: PTD | U4: PTD | V4: PTD | W4: PTD | X4: PTD | Z4: YTD | AA4: YTD | AC4: YTD | AD4: YTD | AE4: YTD | AF4: YTD | AH4: YTD | AI4: YTD | AJ4: YTD | AK4: YTD
B5: ACT $ | C5: ACT $ | D5: ACT $ | E5: ACT $ | F5: ACT $ | G5: ACT $ | I5: ACT %S | J5: ACT %S | K5: ACT %S | L5: ACT %S | M5: ACT %S | N5: ACT %S | P5: PY $ | Q5: PY %S | R5: B(W) PY | S5: B(W) PY | U5: BUD $ | V5: BUD %S | W5: B(W) BUD | X5: B(W) BUD | Z5: ACT $ | AA5: ACT %S | AC5: PY $ | AD5: PY %S | AE5: B(W) PY | AF5: B(W) PY | AH5: BUD $ | AI5: BUD %S | AJ5: B(W) BUD | AK5: B(W) BUD
B6: 09/30/18 | C6: 09/02/18 | D6: 08/05/18 | E6: 07/08/18 | F6: 06/10/18 | G6: 05/13/18 | I6: 09/30/18 | J6: 09/02/18 | K6: 08/05/18 | L6: 07/08/18 | M6: 06/10/18 | N6: 05/13/18 | P6: 10/01/17 | Q6: 10/01/17 | R6: $ | S6: % | U6: 09/30/18 | V6: 09/30/18 | W6: $ | X6: % | Z6: 09/30/18 | AA6: 09/30/18 | AC6: 10/01/17 | AD6: 10/01/17 | AE6: $ | AF6: % | AH6: 09/30/18 | AI6: 09/30/18 | AJ6: $ | AK6: %
A7: 001 | B7: =IF($E$2="","",INDIRECT("'"&$A7&"'!"&B$1&$E$2)) -> 5729.6618 | C7: =IF($E$2="","",INDIRECT("'"&$A7&"'!"&C$1&$E$2)) -> 7605.1576 | D7: 7926.735 | E7: 8538.4839 | F7: 7691.684 | G7: 8871.6384 | I7: 0.01698018128 | J7: 0.01997434049 | K7: 0.02663321922 | L7: 0.0229083662 | M7: 0.02355956655 | N7: 0.02261570024 | P7: 6543.413 | Q7: 0.02219605047 | R7: -813.7512 | S7: -0.1243618888 | U7: 7383.7551 | V7: 0.02035483675 | W7: -1654.0933 | X7: -0.2240178984 | Z7: 82733.5737 | AA7: 0.02396167446 | AC7: 76306.2828 | AD7: 0.0190309169 | AE7: 6427.2909 | AF7: 0.08423016643 | AH7: 115139.0625 | AI7: 0.02952953384 | AJ7: -32405.4888 | AK7: -0.281446523
A8: 002 | B8: =IF($E$2="","",INDIRECT("'"&$A8&"'!"&B$1&$E$2)) -> 8543.064 | C8: 7751.3826 | D8: 10765.8801 | E8: 11464.4634 | F8: 7312.0578 | G8: 8665.818 | I8: 0.03043442897 | J8: 0.01914340751 | K8: 0.02401964661 | L8: 0.03061365857 | M8: 0.01748501592 | N8: 0.02020636621 | P8: 10268.6622 | Q8: 0.03032921822 | R8: -1725.5982 | S8: -0.1680450838 | U8: 9592.1469 | V8: 0.02520485589 | W8: -1049.0829 | X8: -0.109368936 | Z8: 93343.392 | AA8: 0.02123674065 | AC8: 126478.0915 | AD8: 0.02670648771 | AE8: -33134.6995 | AF8: -0.2619797556 | AH8: 121864.8896 | AI8: 0.02321834899 | AJ8: -28521.4976 | AK8: -0.2340419599
A9: 004 | B9: 17258.742 | C9: 13865.3768 | D9: 20515.887 | E9: 15641.4237 | F9: 19380.6344 | G9: 16990.8046 | I9: 0.03905560112 | J9: 0.03347413699 | K9: 0.04470886133 | L9: 0.03653052172 | M9: 0.03987841554 | N9: 0.03001231751 | P9: 12995.4741 | Q9: 0.03279120604 | R9: 4263.2679 | S9: 0.3280578967 | U9: 13456.7525 | V9: 0.03128016934 | W9: 3801.9895 | X9: 0.2825339546 | Z9: 233311.464 | AA9: 0.04225033649 | AC9: 192947.902 | AD9: 0.03786842368 | AE9: 40363.562 | AF9: 0.2091940963 | AH9: 214391.4754 | AI9: 0.04219368829 | AJ9: 18919.9886 | AK9: 0.08824972432
A10: 005 | B10: 11627.85 | C10: 9797.5584 | D10: 10687.8816 | E10: 14159.3749 | F10: 10984.6562 | G10: 11629.303 | I10: 0.03622527581 | J10: 0.02905829734 | K10: 0.02786332959 | L10: 0.03885844255 | M10: 0.03646300943 | N10: 0.02868058523 | P10: 10980.0242 | Q10: 0.03268857595 | R10: 647.8258 | S10: 0.0590003982 | U10: 10754.5787 | V10: 0.02729699741 | W10: 873.2713 | X10: 0.0811999544 | Z10: 145133.8152 | AA10: 0.04111143484 | AC10: 112694.604 | AD10: 0.02701074422 | AE10: 32439.2112 | AF10: 0.2878506162 | AH10: 156014.2332 | AI10: 0.03179459705 | AJ10: -10880.418 | AK10: -0.06973990627
A11: 006 | B11: 10745.6199 | C11: 9909.333 | D11: 12679.936 | E11: 13613.9211 | F11: 10086.5954 | G11: 10186.6706 | I11: 0.03689768151 | J11: 0.027984778 | K11: 0.03274737152 | L11: 0.03376399916 | M11: 0.03275826643 | N11: 0.0287676791 | P11: 12901.1952 | Q11: 0.04522384066 | R11: -2155.5753 | S11: -0.16708338 | U11: 14044.275 | V11: 0.04419841907 | W11: -3298.6551 | X11: -0.2348754279 | Z11: 156669.6192 | AA11: 0.04115610663 | AC11: 147780.7632 | AD11: 0.03419884529 | AE11: 8888.856 | AF11: 0.06014893825 | AH11: 136689.7752 | AI11: 0.0417227691 | AJ11: 19979.844 | AK11: 0.1461692652
A12: 007 | B12: 6232.0833 | C12: 6630.168 | D12: 7595.2825 | E12: 8700.2532 | F12: 10863.9696 | G12: 12430.1832 | I12: 0.02118534361 | J12: 0.01753540018 | K12: 0.01954081012 | L12: 0.02623687287 | M12: 0.02862796674 | N12: 0.02544283413 | P12: 8777.7936 | Q12: 0.02838834545 | R12: -2545.7103 | S12: -0.2900171063 | U12: 7579.2622 | V12: 0.01959820513 | W12: -1347.1789 | X12: -0.1777453879 | Z12: 105975.6442 | AA12: 0.0244240518 | AC12: 118646.538 | AD12: 0.03028733072 | AE12: -12670.8938 | AF12: -0.1067953099 | AH12: 101987.334 | AI12: 0.02270555589 | AJ12: 3988.3102 | AK12: 0.03910593643
A13: 008 | B13: 8399.3436 | C13: 7270.6792 | D13: 9060.9892 | E13: 6697.4632 | F13: 7053.709 | G13: 11769.237 | I13: 0.02508387777 | J13: 0.02403644788 | K13: 0.03036937687 | L13: 0.01907236374 | M13: 0.02445410115 | N13: 0.03863830316 | P13: 8826.0744 | Q13: 0.02829464558 | R13: -426.7308 | S13: -0.04834887864 | U13: 7652.71 | V13: 0.02242388552 | W13: 746.6336 | X13: 0.0975646013 | Z13: 100726.5567 | AA13: 0.02528675083 | AC13: 94818.4614 | AD13: 0.02840757317 | AE13: 5908.0953 | AF13: 0.06230954619 | AH13: 121831.0587 | AI13: 0.03105208536 | AJ13: -21104.502 | AK13: -0.1732276008
A14: 009 | B14: 2681.3325 | C14: 3323.451 | D14: 3946.32 | E14: 3143.9505 | F14: 4155.174 | G14: 5382.1992 | I14: 0.0170296001 | J14: 0.02348385919 | K14: 0.02091229624 | L14: 0.01824244693 | M14: 0.024060509 | N14: 0.02431178477 | P14: 3330.1286 | Q14: 0.01857521226 | R14: -648.7961 | S14: -0.1948261397 | U14: 4181.47 | V14: 0.0289682579 | W14: -1500.1375 | X14: -0.3587584031 | Z14: 39786.1706 | AA14: 0.01766001571 | AC14: 38856.8192 | AD14: 0.01906808302 | AE14: 929.3514 | AF14: 0.02391733083 | AH14: 60154.0072 | AI14: 0.02799699379 | AJ14: -20367.8366 | AK14: -0.3385948426
A15: 010 | B15: 15155.6916 | C15: 14462.9597 | D15: 21014.0757 | E15: 22823.4712 | F15: 16614.7732 | G15: 16371.668 | I15: 0.032288693 | J15: 0.02549550538 | K15: 0.03496987237 | L15: 0.03845226291 | M15: 0.02947472448 | N15: 0.02458106525 | P15: 15308.1302 | Q15: 0.03257069356 | R15: -152.4386 | S15: -0.009958015643 | U15: 14569.2544 | V15: 0.02629813285 | W15: 586.4372 | X15: 0.04025169606 | Z15: 182905.8 | AA15: 0.03370592239 | AC15: 156137.568 | AD15: 0.02599225662 | AE15: =IF($E$2="","",INDIRECT("'"&$A15&"'!"&AE$1&$E$2)) -> 26768.232 | AF15: 0.171440047 | AH15: 176941.2125 | AI15: 0.03280181805 | AJ15: 5964.5875 | AK15: 0.03370943047
A16: 011 | B16: 6121.1634 | C16: 9991.2036 | D16: 10906.1087 | E16: 12269.826 | F16: 9034.9133 | G16: 12145.6514 | I16: 0.02327855957 | J16: 0.03081882479 | K16: 0.02827218544 | L16: 0.02942846693 | M16: 0.0291639045 | N16: 0.03229428195 | P16: 9873.703 | Q16: 0.03040441035 | R16: =IF($E$2="","",INDIRECT("'"&$A16&"'!"&R$1&$E$2)) -> -3752.5396 | S16: -0.3800539271 | U16: 10029.5477 | V16: 0.03783906398 | W16: -3908.3843 | X16: -0.3896869946 | Z16: 98946.12 | AA16: 0.02621729463 | AC16: 107762.0748 | AD16: 0.02795066956 | AE16: -8815.9548 | AF16: -0.08180943821 | AH16: 131658.208 | AI16: 0.03458127141 | AJ16: -32712.088 | AK16: -0.2484621999
A17: 012 | B17: 5785.4108 | C17: 10158.7003 | D17: 8983.1187 | E17: 7801.3144 | F17: 9315.6492 | G17: 10328.4684 | I17: 0.02028211001 | J17: 0.03029469172 | K17: 0.02764511485 | L17: 0.0217245482 | M17: 0.02801887307 | N17: 0.0297655035 | P17: 6443.5825 | Q17: 0.02513402156 | R17: -658.1717 | S17: -0.1021437531 | U17: 8080.7034 | V17: 0.02614801525 | W17: -2295.2926 | X17: -0.2840461389 | Z17: 86644.662 | AA17: 0.02554570288 | AC17: 123861.7776 | AD17: 0.03227974183 | AE17: -37217.1156 | AF17: -0.3004729653 | AH17: 107319.8236 | AI17: 0.02986077348 | AJ17: -20675.1616 | AK17: -0.1926499775
A18: 014 | B18: 10932.6984 | C18: 9529.7925 | D18: 13176.192 | E18: 11460.0618 | F18: 12008.8878 | G18: 12391.5177 | I18: 0.03397852166 | J18: 0.02490861295 | K18: 0.0381440798 | L18: 0.03262908515 | M18: 0.02876028573 | N18: 0.03656142667 | P18: 8474.1786 | Q18: 0.02279464203 | R18: 2458.5198 | S18: 0.2901189503 | U18: 11456.0584 | V18: 0.03677554261 | W18: -523.36 | X18: -0.04568412465 | Z18: 149748.618 | AA18: 0.03006015709 | AC18: 109519.08 | AD18: 0.02428497424 | AE18: 40229.538 | AF18: 0.3673290353 | AH18: 171663.7475 | AI18: 0.03996896046 | AJ18: -21915.1295 | AK18: -0.1276631194
A19: 015 | B19: 7832.243 | C19: 10524.57 | D19: 11213.2656 | E19: 12249.8455 | F19: 12171.643 | G19: 11363.2305 | I19: 0.02093298972 | J19: 0.02837320138 | K19: 0.02567718188 | L19: 0.03280854162 | M19: 0.02819710119 | N19: 0.02781642631 | P19: 10756.0779 | Q19: 0.03791856596 | R19: -2923.8349 | S19: -0.2718309524 | U19: 12556.591 | V19: 0.03176849947 | W19: -4724.348 | X19: -0.3762444759 | Z19: 150922.9542 | AA19: 0.0314266961 | AC19: 120559.3047 | AD19: 0.02648503986 | AE19: 30363.6495 | AF19: 0.2518565413 | AH19: 128328.4794 | AI19: 0.02912707915 | AJ19: 22594.4748 | AK19: 0.176067502
A20: 016 | B20: 0 | C20: 0 | D20: 0 | E20: 0 | F20: 0 | G20: 0 | I20: 0 | J20: 0 | K20: 0 | L20: 0 | M20: 0 | N20: 0 | P20: 2935.1841 | Q20: 0.03123202299 | R20: -2935.1841 | S20: -1 | U20: 3148.832 | V20: 0.03493322199 | W20: -3148.832 | X20: -1 | Z20: 22179.9402 | AA20: 0.03508642805 | AC20: 78846.3218 | AD20: 0.04631418802 | AE20: -56666.3816 | AF20: -0.7186940406 | AH20: 89182.1988 | AI20: 0.03930043229 | AJ20: -67002.2586 | AK20: -0.7512963293
A21: 017 | B21: 6764.2915 | C21: 8147.277 | D21: 7955.82 | E21: 7748.9524 | F21: 7653.843 | G21: 7723.534 | I21: 0.03881301455 | J21: 0.04316101234 | K21: 0.03134279495 | L21: 0.03059134998 | M21: 0.03570786977 | N21: 0.03621858842 | P21: 8135.7462 | Q21: 0.03712909712 | R21: -1371.4547 | S21: -0.1685714704 | U21: 7711.2816 | V21: 0.04035180533 | W21: -946.9901 | X21: -0.1228057992 | Z21: 75174.1578 | AA21: 0.03291351409 | AC21: 104374.6104 | AD21: 0.03761799161 | AE21: -29200.4526 | AF21: -0.2797658596 | AH21: 112602.9375 | AI21: 0.03756250437 | AJ21: -37428.7797 | AK21: -0.3323961215
A22: 018 | B22: 7028.994 | C22: 8519.6727 | D22: 9048.4384 | E22: 11217.6741 | F22: 8920.2438 | G22: 8249.3108 | I22: 0.02421886279 | J22: 0.026668346 | K22: 0.02746672034 | L22: 0.03180940715 | M22: 0.03140360722 | N22: 0.02543985091 | P22: 7240.8735 | Q22: 0.02460000379 | R22: -211.8795 | S22: -0.02926159392 | U22: 10577.76 | V22: 0.03205938659 | W22: -3548.766 | X22: -0.3354931479 | Z22: 111772.0548 | AA22: 0.0342813926 | AC22: 96309.2493 | AD22: 0.02495697086 | AE22: 15462.8055 | AF22: 0.1605536915 | AH22: 119774.904 | AI22: 0.03730391864 | AJ22: -8002.8492 | AK22: -0.06681574297
A23: 019 | B23: 9611.2826 | C23: 7309.7139 | D23: 5098.0236 | E23: 8960.6412 | F23: 7350.5306 | G23: 9577.7617 | I23: 0.04922421598 | J23: 0.03320193433 | K23: 0.02597102012 | L23: 0.04636227642 | M23: 0.04271368628 | N23: 0.04331033377 | P23: 7224.3526 | Q23: 0.03729828998 | R23: 2386.93 | S23: 0.33040054 | U23: 9851.688 | V23: 0.04968948079 | W23: -240.4054 | X23: -0.02440245773 | Z23: 81188.532 | AA23: 0.03729198786 | AC23: 81453.9435 | AD23: 0.03955100022 | AE23: -265.4115 | AF23: -0.003258424192 | AH23: 127321.983 | AI23: 0.04523472198 | AJ23: -46133.451 | AK23: -0.3623368873
A24: 020 | B24: 5715.024 | C24: 6373.4588 | D24: 6540.194 | E24: 6529.992 | F24: 7251.046 | G24: 8743.9248 | I24: 0.01845712778 | J24: 0.02190556635 | K24: 0.02093955519 | L24: 0.01582042841 | M24: 0.01994161399 | N24: 0.02208354756 | P24: 6334.7721 | Q24: 0.02336806182 | R24: -619.7481 | S24: -0.09783273813 | U24: 6438.6956 | V24: 0.0233559783 | W24: -723.6716 | X24: -0.1123941315 | Z24: 86511.2402 | AA24: 0.02038617955 | AC24: 91257.6308 | AD24: 0.0203317742 | AE24: -4746.3906 | AF24: -0.05201089003 | AH24: 108570.7728 | AI24: 0.02649176948 | AJ24: -22059.5326 | AK24: -0.2031811327
A25: 022 | B25: 7297.4364 | C25: 8708.8458 | D25: 8175.9225 | E25: 6972.5238 | F25: 8311.1644 | G25: 7030.5228 | I25: 0.02523671989 | J25: 0.02767503235 | K25: 0.02280631439 | L25: 0.0203244455 | M25: 0.02642810921 | N25: 0.02053960133 | P25: 5538.5316 | Q25: 0.01766082417 | R25: 1758.9048 | S25: 0.317576016 | U25: 7607.5392 | V25: 0.02175087586 | W25: -310.1028 | X25: -0.04076256354 | Z25: 103510.395 | AA25: 0.02875885397 | AC25: 78242.307 | AD25: 0.02614915398 | AE25: 25268.088 | AF25: 0.3229466125 | AH25: 117744.3018 | AI25: 0.0307285492 | AJ25: -14233.9068 | AK25: -0.1208882857
A26: 023 | B26: 11647.8747 | C26: 13058.955 | D26: 11424.1984 | E26: 18460.156 | F26: 11874.5641 | G26: 10672.8528 | I26: 0.03158709583 | J26: 0.02829157915 | K26: 0.02811204992 | L26: 0.03945139314 | M26: 0.02323023372 | N26: 0.0229921281 | P26: 11905.4825 | Q26: 0.03817996002 | R26: -257.6078 | S26: -0.02163774547 | U26: 8716.743 | V26: 0.02137360677 | W26: 2931.1317 | X26: 0.3362645543 | Z26: 143891.18 | AA26: 0.03613089341 | AC26: 140716.9872 | AD26: 0.02936149716 | AE26: 3174.1928 | AF26: 0.02255728227 | AH26: 128496.0381 | AI26: 0.0247164571 | AJ26: 15395.1419 | AK26: 0.1198102457
A27: 024 | B27: 11636.1852 | C27: 13940.784 | D27: 14083.0368 | E27: 13922.6769 | F27: 12212.2725 | G27: 13896.9675 | I27: 0.02985072652 | J27: 0.0339080622 | K27: 0.03880246894 | L27: 0.03550096504 | M27: 0.03205131688 | N27: 0.03250434603 | P27: 8937.0918 | Q27: 0.02754451622 | R27: 2699.0934 | S27: 0.302010258 | U27: 8245.664 | V27: 0.02466824506 | W27: 3390.5212 | X27: 0.4111883773 | Z27: 126548.622 | AA27: 0.03123673053 | AC27: 149070.875 | AD27: 0.04227538464 | AE27: -22522.253 | AF27: -0.151084194 | AH27: 87584.3307 | AI27: 0.01891788053 | AJ27: 38964.2913 | AK27: 0.4448774226
A28: 025 | B28: 7245.3014 | C28: 9594.3172 | D28: 13603.315 | E28: 9775.0554 | F28: 9271.8 | G28: 13569.9462 | I28: 0.02324050558 | J28: 0.03547270271 | K28: 0.03880388167 | L28: 0.033205684 | M28: 0.02771598576 | N28: 0.0401117494 | P28: 10721.9784 | Q28: 0.03819670428 | R28: -3476.677 | S28: -0.324257042 | U28: 11580.8176 | V28: 0.03881660488 | W28: -4335.5162 | X28: -0.3743704762 | Z28: 115405.5905 | AA28: 0.02813412044 | AC28: 129496.432 | AD28: 0.02743448361 | AE28: -14090.8415 | AF28: -0.1088125849 | AH28: 134284.5144 | AI28: 0.03826540493 | AJ28: -18878.9239 | AK28: -0.1405889874
A29: 026 | B29: 4723.6735 | C29: 4188.348 | D29: 4852.53 | E29: 5695.6188 | F29: 7912.017 | G29: 8763.4143 | I29: 0.02106180038 | J29: 0.02081653865 | K29: 0.0168698506 | L29: 0.02432936959 | M29: 0.02979524897 | N29: 0.03278296882 | P29: 6636.6841 | Q29: 0.02508293601 | R29: -1913.0106 | S29: -0.288247952 | U29: 10592.1816 | V29: 0.03962270154 | W29: -5868.5081 | X29: -0.5540414923 | Z29: 73601.3754 | AA29: 0.02216764102 | AC29: 111733.472 | AD29: 0.0287273473 | AE29: -38132.0966 | AF29: -0.3412772907 | AH29: 134364.51 | AI29: 0.03655809217 | AJ29: -60763.1346 | AK29: -0.4522260722
A30: 027 | B30: 8094.6248 | C30: 8775.0768 | D30: 8616.3308 | E30: 6581.3558 | F30: 7702.6688 | G30: 10696.0092 | I30: 0.04019907207 | J30: 0.0297115469 | K30: 0.02651003389 | L30: 0.02062089061 | M30: 0.02462605497 | N30: 0.03452349189 | P30: 8036.2128 | Q30: 0.02597801006 | R30: 58.412 | S30: 0.007268597964 | U30: 9298.6468 | V30: 0.03927148363 | W30: -1204.022 | X30: -0.1294835717 | Z30: 107138.7567 | AA30: 0.03654442679 | AC30: 128649.2801 | AD30: 0.02886905836 | AE30: -21510.5234 | AF30: -0.1672028276 | AH30: 136165.3222 | AI30: 0.03295769823 | AJ30: -29026.5655 | AK30: -0.2131714965
A31: 028 | B31: 6475.6548 | C31: 6371.7632 | D31: 8389.348 | E31: 7528.563 | F31: 7063.71 | G31: 8674.425 | I31: 0.02607862027 | J31: 0.02252149 | K31: 0.02349007619 | L31: 0.02807589454 | M31: 0.02241166703 | N31: 0.02544210494 | P31: 9132.0615 | Q31: 0.03296799189 | R31: -2656.4067 | S31: -0.2908879556 | U31: 8477.0792 | V31: 0.02983382858 | W31: -2001.4244 | X31: -0.2360983486 | Z31: 109290.7872 | AA31: 0.03500403443 | AC31: 105879.1045 | AD31: 0.02498561565 | AE31: 3411.6827 | AF31: 0.0322224363 | AH31: 90192.5098 | AI31: 0.02288180783 | AJ31: 19098.2774 | AK31: 0.2117501491
A32: 029 | B32: 8668.2693 | C32: 11157.1758 | D32: 8946.6585 | E32: 11048.5536 | F32: 11728.3595 | G32: 10909.164 | I32: 0.02505583886 | J32: 0.04014744808 | K32: 0.02999809477 | L32: 0.02987481804 | M32: 0.03501839786 | N32: 0.03013345196 | P32: 8237.9484 | Q32: 0.03054404572 | R32: 430.3209 | S32: 0.05223641605 | U32: 10358.001 | V32: 0.0415314984 | W32: -1689.7317 | X32: -0.1631329926 | Z32: 128325.7514 | AA32: 0.03354550551 | AC32: 115314.628 | AD32: 0.02459906859 | AE32: 13011.1234 | AF32: 0.1128315082 | AH32: 103450.5745 | AI32: 0.02598550526 | AJ32: 24875.1769 | AK32: 0.2404547004
A33: 030 | B33: 7341.6861 | C33: 10351.908 | D33: 11312.5846 | E33: 12583.1376 | F33: 11301.224 | G33: 12105.5877 | I33: 0.02008776869 | J33: 0.02842701719 | K33: 0.02431728269 | L33: =IF($E$2="","",INDIRECT("'"&$A33&"'!"&L$1&$E$2)) -> 0.03061353959 | M33: 0.02421507245 | N33: 0.0274453563 | P33: 10171.371 | Q33: 0.02253611949 | R33: -2829.6849 | S33: -0.2782009328 | U33: 10167.6792 | V33: 0.03038713235 | W33: -2825.9931 | X33: -0.2779388535 | Z33: 125463.897 | AA33: 0.0275914427 | AC33: 154668.104 | AD33: 0.02577818905 | AE33: -29204.207 | AF33: -0.1888185492 | AH33: 153545.4976 | AI33: 0.03643662629 | AJ33: -28081.6006 | AK33: -0.1828878153
A34: 031 | B34: =IF($E$2="","",INDIRECT("'"&$A34&"'!"&B$1&$E$2)) -> 15042.1748 | C34: 10641.1648 | D34: 16315.2753 | E34: 13965.4632 | F34: 15265.8829 | G34: 20402.9196 | I34: 0.04593946487 | J34: 0.03420179607 | K34: 0.04521593426 | L34: 0.03771481446 | M34: 0.04206760811 | N34: 0.05452523068 | P34: 12074.468 | Q34: 0.04565920057 | R34: 2967.7068 | S34: 0.2457836486 | U34: 10514.3787 | V34: 0.0323849339 | W34: 4527.7961 | X34: 0.4306289729 | Z34: 153220.015 | AA34: 0.03557952578 | AC34: 56329.3178 | AD34: 0.04651917174 | AE34: 96890.6972 | AF34: 1.720075815 | AH34: 153438.0672 | AI34: 0.0314462654 | AJ34: -218.0522 | AK34: -0.001421108881
A35: 032 | B35: 5187.9444 | C35: 5754.3252 | D35: 8637.4464 | E35: 8360.9901 | F35: 9520.0098 | G35: 10417.3278 | I35: 0.02327245568 | J35: 0.02674560186 | K35: 0.03582835889 | L35: 0.02673034319 | M35: 0.03210691627 | N35: 0.03645814066 | P35: 9388.5225 | Q35: 0.02960545765 | R35: -4200.5781 | S35: -0.4474163107 | U35: 9497.0024 | V35: 0.03124294059 | W35: -4309.058 | X35: -0.4537282206 | Z35: 101175.186 | AA35: 0.03769499762 | AC35: 40711.815 | AD35: 0.03194410012 | AE35: 60463.371 | AF35: 1.485155378 | AH35: 147855.3856 | AI35: 0.03394484256 | AJ35: -46680.1996 | AK35: -0.3157152471
A36: 033 | B36: 11881.1097 | C36: 10456.9362 | D36: 12934.8581 | E36: 14054.7415 | F36: 11583.6165 | G36: 13493.988 | I36: 0.02764395529 | J36: 0.02221821658 | K36: 0.02524326519 | L36: 0.0255575567 | M36: 0.02651426915 | N36: 0.02946146458 | P36: 0 | Q36: 0 | R36: 11881.1097 | S36: 0 | U36: 10817.2703 | V36: 0.0330604979 | W36: 1063.8394 | X36: 0.09834638227 | Z36: 136138.2696 | AA36: 0.02285503692 | AC36: 0 | AD36: 0 | AE36: 136138.2696 | AF36: 0 | AH36: 209339.802 | AI36: 0.04502771341 | AJ36: -73201.5324 | AK36: -0.3496780435
A37: 034 | B37: 8280.051 | C37: 7877.7856 | D37: 11810.4184 | E37: 11753.613 | F37: 8673.613 | G37: 13753.036 | I37: 0.02626518033 | J37: 0.02368190547 | K37: 0.03145246536 | L37: 0.03027584139 | M37: 0.02828252419 | N37: 0.03956036378 | P37: 0 | Q37: 0 | R37: 8280.051 | S37: 0 | U37: 10405.4032 | V37: 0.04072442192 | W37: -2125.3522 | X37: -0.2042546703 | Z37: 151361.978 | AA37: 0.03083716105 | AC37: 0 | AD37: 0 | AE37: 151361.978 | AF37: 0 | AH37: 158153.136 | AI37: 0.04121940337 | AJ37: -6791.158 | AK37: -0.04294039418
A38: 035 | B38: 10251.287 | C38: 10205.6847 | D38: 12236.5484 | E38: 10318.413 | F38: 10423.19 | G38: 5450.942 | I38: 0.02409237662 | J38: 0.02431606205 | K38: 0.02553798784 | L38: 0.02148322024 | M38: 0.02163665764 | N38: 0.02190414521 | P38: 0 | Q38: 0 | R38: 10251.287 | S38: 0 | U38: 11853.9486 | V38: 0.04624460151 | W38: -1602.6616 | X38: -0.1352006537 | Z38: 48673.6952 | AA38: 0.01722787691 | AC38: 0 | AD38: 0 | AE38: 48673.6952 | AF38: 0 | AH38: 79698.4125 | AI38: 0.04179890617 | AJ38: -31024.7173 | AK38: -0.3892764777
A39: 036 | B39: 18190.004 | C39: 18715.9773 | D39: 30095.9361 | E39: 31932.4004 | F39: 27466.7988 | G39: 0 | I39: 0.03398230496 | J39: 0.03332205191 | K39: 0.05075965053 | L39: 0.04943522376 | M39: 0.0418687022 | N39: 0 | P39: 0 | Q39: 0 | R39: 18190.004 | S39: 0 | U39: 8516.3696 | V39: 0.03677929188 | W39: 9673.6344 | X39: 1.135887104 | Z39: 136435.4083 | AA39: 0.05080277043 | AC39: 0 | AD39: 0 | AE39: 136435.4083 | AF39: 0 | AH39: 48998.9906 | AI39: 0.0287184331 | AJ39: 87436.4177 | AK39: 1.784453447
A40: 037 | B40: 13377.8129 | C40: 12732.432 | D40: 15365.2058 | E40: 0 | F40: 0 | G40: 0 | I40: 0.02266325714 | J40: 0.01671249436 | K40: 0.01914551525 | L40: 0 | M40: 0 | N40: 0 | P40: 0 | Q40: 0 | R40: 13377.8129 | S40: 0 | U40: 13098.2521 | V40: 0.03448989411 | W40: 279.5608 | X40: 0.02134336688 | Z40: 49282.428 | AA40: 0.02277236086 | AC40: 0 | AD40: 0 | AE40: 49282.428 | AF40: 0 | AH40: 16511.4885 | AI40: 0.03211110961 | AJ40: 32770.9395 | AK40: 1.984735628
A41: 038 | B41: 0 | C41: 0 | D41: 0 | E41: 0 | F41: 0 | G41: 0 | I41: 0 | J41: 0 | K41: 0 | L41: 0 | M41: 0 | N41: 0 | P41: 0 | Q41: 0 | R41: 0 | S41: 0 | U41: 3307.7946 | V41: 0.03172810381 | W41: -3307.7946 | X41: -1 | Z41: 0 | AA41: 0 | AC41: 0 | AD41: 0 | AE41: 0 | AF41: 0 | AH41: 3307.7946 | AI41: 0.03587421702 | AJ41: -3307.7946 | AK41: -1
A42: 039 | B42: 0 | C42: 0 | D42: 0 | E42: 0 | F42: 0 | G42: 0 | I42: 0 | J42: 0 | K42: 0 | L42: 0 | M42: 0 | N42: 0 | P42: 0 | Q42: 0 | R42: 0 | S42: 0 | U42: 0 | V42: 0 | W42: 0 | X42: 0 | Z42: 0 | AA42: 0 | AC42: 0 | AD42: 0 | AE42: 0 | AF42: 0 | AH42: 0 | AI42: 0 | AJ42: 0 | AK42: 0

Sheet Mapping (hidden)
A1: Back to ToC | B1: Sign
A7: SALES
A8: Food Sales | B8: 1 | R8: =($B8-$P8) -> 1 | S8: =IFERROR($R8/$P8,0) -> 0 | W8: =($B8-$U8) -> 1 | X8: =IFERROR($W8/$U8,0) -> 0 | AE8: =($Z8-$AC8) -> 0 | AF8: =IFERROR($AE8/$AC8,0) -> 0 | AJ8: =($Z8-$AH8) -> 0 | AK8: =IFERROR($AJ8/$AH8,0) -> 0
A9: Bar Sales: | B9: 1 | W9: =($B9-$U9) -> 1 | X9: =IFERROR($W9/$U9,0) -> 0 | AE9: =($Z9-$AC9) -> 0 | AF9: =IFERROR($AE9/$AC9,0) -> 0 | AJ9: =($Z9-$AH9) -> 0 | AK9: =IFERROR($AJ9/$AH9,0) -> 0
A10: Liquor Sales | B10: 1 | R10: =($B10-$P10) -> 1 | S10: =IFERROR($R10/$P10,0) -> 0 | W10: =($B10-$U10) -> 1 | X10: =IFERROR($W10/$U10,0) -> 0 | AE10: =($Z10-$AC10) -> 0 | AF10: =IFERROR($AE10/$AC10,0) -> 0 | AJ10: =($Z10-$AH10) -> 0 | AK10: =IFERROR($AJ10/$AH10,0) -> 0
A11: Beer Sales | B11: 1 | R11: =($B11-$P11) -> 1 | S11: =IFERROR($R11/$P11,0) -> 0 | W11: =($B11-$U11) -> 1 | X11: =IFERROR($W11/$U11,0) -> 0 | AE11: =($Z11-$AC11) -> 0 | AF11: =IFERROR($AE11/$AC11,0) -> 0 | AJ11: =($Z11-$AH11) -> 0 | AK11: =IFERROR($AJ11/$AH11,0) -> 0
A12: Wine Sales | B12: 1 | R12: =($B12-$P12) -> 1 | S12: =IFERROR($R12/$P12,0) -> 0 | W12: =($B12-$U12) -> 1 | X12: =IFERROR($W12/$U12,0) -> 0 | AE12: =($Z12-$AC12) -> 0 | AF12: =IFERROR($AE12/$AC12,0) -> 0 | AJ12: =($Z12-$AH12) -> 0 | AK12: =IFERROR($AJ12/$AH12,0) -> 0
B13: - | R13: - | S13: - | W13: - | X13: - | AE13: - | AF13: - | AJ13: - | AK13: -
A14: Subtotal Bar Sales | B14: 1 | R14: =($B14-$P14) -> 1 | S14: =IFERROR($R14/$P14,0) -> 0 | W14: =($B14-$U14) -> 1 | X14: =IFERROR($W14/$U14,0) -> 0 | AE14: =($Z14-$AC14) -> 0 | AF14: =IFERROR($AE14/$AC14,0) -> 0 | AJ14: =($Z14-$AH14) -> 0 | AK14: =IFERROR($AJ14/$AH14,0) -> 0
A16: Other Sales-Boutique | B16: 1 | R16: =($B16-$P16) -> 1 | S16: =IFERROR($R16/$P16,0) -> 0 | W16: =($B16-$U16) -> 1 | X16: =IFERROR($W16/$U16,0) -> 0 | AE16: =($Z16-$AC16) -> 0 | AF16: =IFERROR($AE16/$AC16,0) -> 0 | AJ16: =($Z16-$AH16) -> 0 | AK16: =IFERROR($AJ16/$AH16,0) -> 0
A17: Other Sales-Packaging | B17: 1 | R17: =($B17-$P17) -> 1 | S17: =IFERROR($R17/$P17,0) -> 0 | W17: =($B17-$U17) -> 1 | X17: =IFERROR($W17/$U17,0) -> 0 | AE17: =($Z17-$AC17) -> 0 | AF17: =IFERROR($AE17/$AC17,0) -> 0 | AJ17: =($Z17-$AH17) -> 0 | AK17: =IFERROR($AJ17/$AH17,0) -> 0
B18: - | R18: - | S18: - | W18: - | X18: - | AE18: - | AF18: - | AJ18: - | AK18: -
A19: TOTAL NET SALES | B19: 1 | R19: =($B19-$P19) -> 1 | S19: =IFERROR($R19/$P19,0) -> 0 | W19: =($B19-$U19) -> 1 | X19: =IFERROR($W19/$U19,0) -> 0 | AE19: =($Z19-$AC19) -> 0 | AF19: =IFERROR($AE19/$AC19,0) -> 0 | AJ19: =($Z19-$AH19) -> 0 | AK19: =IFERROR($AJ19/$AH19,0) -> 0
B20: - | R20: - | S20: - | W20: - | X20: - | AE20: - | AF20: - | AJ20: - | AK20: -
A21: Guestcount-Derived | B21: 1 | R21: =($B21-$P21) -> 1 | S21: =IFERROR($R21/$P21,0) -> 0 | W21: =($B21-$U21) -> 1 | X21: =IFERROR($W21/$U21,0) -> 0 | AE21: =($Z21-$AC21) -> 0 | AF21: =IFERROR($AE21/$AC21,0) -> 0 | AJ21: =($Z21-$AH21) -> 0 | AK21: =IFERROR($AJ21/$AH21,0) -> 0
A22: Per-Person Average | B22: 1 | R22: =($B22-$P22) -> 1 | S22: =IFERROR($R22/$P22,0) -> 0 | W22: =($B22-$U22) -> 1 | X22: =IFERROR($W22/$U22,0) -> 0 | AE22: =($Z22-$AC22) -> 0 | AF22: =IFERROR($AE22/$AC22,0) -> 0 | AJ22: =($Z22-$AH22) -> 0 | AK22: =IFERROR($AJ22/$AH22,0) -> 0
A24: COST OF GOODS SOLD
A25: FOOD COST
A26: Seafood Cost | B26: -1 | I26: =B26/B$8 -> -1 | J26: =C26/C$8 ->  | Q26: =P26/P$8 ->  | R26: =($B26-$P26)*-1 -> 1 | S26: =IFERROR($R26/$P26,0) -> 0 | V26: =U26/U$8 ->  | W26: =($B26-$U26)*-1 -> 1 | X26: =IFERROR($W26/$U26,0) -> 0 | AA26: =Z26/Z$8 ->  | AD26: =AC26/AC$8 ->  | AE26: =($Z26-$AC26)*-1 -> 0 | AF26: =IFERROR($AE26/$AC26,0) -> 0 | AI26: =AH26/AH$8 ->  | AJ26: =($Z26-$AH26)*-1 -> 0 | AK26: =IFERROR($AJ26/$AH26,0) -> 0
A27: Produce Cost | B27: -1 | I27: =B27/B$8 -> -1 | R27: 1 | S27: 0 | W27: 1 | X27: 0 | AE27: 0 | AF27: 0 | AJ27: 0 | AK27: 0
A28: Dairy Cost | B28: -1 | I28: -1 | R28: 1 | S28: 0 | W28: 1 | X28: 0 | AE28: 0 | AF28: 0 | AJ28: 0 | AK28: 0
A29: Meat Cost | B29: -1 | I29: -1 | R29: 1 | S29: 0 | W29: 1 | X29: 0 | AE29: 0 | AF29: 0 | AJ29: 0 | AK29: 0
A30: Poultry Cost | B30: -1 | I30: -1 | R30: 1 | S30: 0 | W30: 1 | X30: 0 | AE30: 0 | AF30: 0 | AJ30: 0 | AK30: 0
A31: Misc. Dry Goods Cost | B31: -1 | I31: -1 | R31: 1 | S31: 0 | W31: 1 | X31: 0 | AE31: 0 | AF31: 0 | AJ31: 0 | AK31: 0
B32: - | R32: - | S32: - | W32: - | X32: - | AE32: - | AF32: - | AJ32: - | AK32: -
A33: TOTAL FOOD COST | B33: -1 | I33: =B33/B$8 -> -1 | J33: =C33/C$8 ->  | Q33: =P33/P$8 ->  | R33: =($B33-$P33)*-1 -> 1 | S33: =IFERROR($R33/$P33,0) -> 0 | V33: =U33/U$8 ->  | W33: =($B33-$U33)*-1 -> 1 | X33: =IFERROR($W33/$U33,0) -> 0 | AA33: =Z33/Z$8 ->  | AD33: =AC33/AC$8 ->  | AE33: =($Z33-$AC33)*-1 -> 0 | AF33: =IFERROR($AE33/$AC33,0) -> 0 | AI33: =AH33/AH$8 ->  | AJ33: =($Z33-$AH33)*-1 -> 0 | AK33: =IFERROR($AJ33/$AH33,0) -> 0
B34: - | R34: - | S34: - | W34: - | X34: - | AE34: - | AF34: - | AJ34: - | AK34: -
A35: BAR COST
A36: Liquor Cost | B36: -1 | I36: =B36/B$10 -> -1 | J36: =C36/C$10 ->  | Q36: =P36/P$10 ->  | R36: =($B36-$P36)*-1 -> 1 | S36: =IFERROR($R36/$P36,0) -> 0 | V36: =U36/U$10 ->  | W36: =($B36-$U36)*-1 -> 1 | X36: =IFERROR($W36/$U36,0) -> 0 | AA36: =Z36/Z$10 ->  | AD36: =AC36/AC$10 ->  | AE36: =($Z36-$AC36)*-1 -> 0 | AF36: =IFERROR($AE36/$AC36,0) -> 0 | AI36: =AH36/AH$10 ->  | AJ36: =($Z36-$AH36)*-1 -> 0 | AK36: =IFERROR($AJ36/$AH36,0) -> 0
A37: Beer Cost | B37: -1 | I37: =B37/B$11 -> -1 | J37: =C37/C$11 ->  | Q37: =P37/P$11 ->  | R37: 1 | S37: 0 | V37: =U37/U$11 ->  | W37: 1 | X37: 0 | AA37: =Z37/Z$11 ->  | AD37: =AC37/AC$11 ->  | AE37: 0 | AF37: 0 | AI37: =AH37/AH$11 ->  | AJ37: 0 | AK37: 0
A38: Wine Cost | B38: -1 | I38: =B38/B$12 -> -1 | J38: =C38/C$12 ->  | Q38: =P38/P$12 ->  | R38: 1 | S38: 0 | V38: =U38/U$12 ->  | W38: 1 | X38: 0 | AA38: =Z38/Z$12 ->  | AD38: =AC38/AC$12 ->  | AE38: 0 | AF38: 0 | AI38: =AH38/AH$12 ->  | AJ38: 0 | AK38: 0
A39: Bar Grocery Cost | B39: -1 | I39: =B39/B$10 -> -1 | J39: =C39/C$10 ->  | Q39: =P39/P$10 ->  | R39: 1 | S39: 0 | V39: =U39/U$10 ->  | W39: 1 | X39: 0 | AA39: =Z39/Z$10 ->  | AD39: =AC39/AC$10 ->  | AE39: 0 | AF39: 0 | AI39: =AH39/AH$10 ->  | AJ39: 0 | AK39: 0
B40: - | R40: - | S40: - | W40: - | X40: - | AE40: - | AF40: - | AJ40: - | AK40: -
A41: TOTAL BAR COST | B41: -1 | I41: =B41/B$14 -> -1 | J41: =C41/C$14 ->  | Q41: =P41/P$14 ->  | R41: =($B41-$P41)*-1 -> 1 | S41: =IFERROR($R41/$P41,0) -> 0 | V41: =U41/U$14 ->  | W41: =($B41-$U41)*-1 -> 1 | X41: =IFERROR($W41/$U41,0) -> 0 | AA41: =Z41/Z$14 ->  | AD41: =AC41/AC$14 ->  | AE41: =($Z41-$AC41)*-1 -> 0 | AF41: =IFERROR($AE41/$AC41,0) -> 0 | AI41: =AH41/AH$14 ->  | AJ41: =($Z41-$AH41)*-1 -> 0 | AK41: =IFERROR($AJ41/$AH41,0) -> 0
B42: - | R42: - | S42: - | W42: - | X42: - | AE42: - | AF42: - | AJ42: - | AK42: -
A44: LIQUOR TAX | B44: -1 | R44: =($B44-$P44)*-1 -> 1 | S44: =IFERROR($R44/$P44,0) -> 0 | W44: =($B44-$U44)*-1 -> 1 | X44: =IFERROR($W44/$U44,0) -> 0 | AE44: =($Z44-$AC44)*-1 -> 0 | AF44: =IFERROR($AE44/$AC44,0) -> 0 | AJ44: =($Z44-$AH44)*-1 -> 0 | AK44: =IFERROR($AJ44/$AH44,0) -> 0
A45: FOOD FREIGHT/DELIVERY | B45: -1 | R45: 1 | S45: 0 | W45: 1 | X45: 0 | AE45: 0 | AF45: 0 | AJ45: 0 | AK45: 0
A46: APPAREL COST | B46: -1 | R46: 1 | S46: 0 | W46: 1 | X46: 0 | AE46: 0 | AF46: 0 | AJ46: 0 | AK46: 0
B47: - | R47: - | S47: - | W47: - | X47: - | AE47: - | AF47: - | AJ47: - | AK47: -
A49: COST OF GOODS SOLD | B49: -1 | R49: =($B49-$P49)*-1 -> 1 | S49: =IFERROR($R49/$P49,0) -> 0 | W49: =($B49-$U49)*-1 -> 1 | X49: =IFERROR($W49/$U49,0) -> 0 | AE49: =($Z49-$AC49)*-1 -> 0 | AF49: =IFERROR($AE49/$AC49,0) -> 0 | AJ49: =($Z49-$AH49)*-1 -> 0 | AK49: =IFERROR($AJ49/$AH49,0) -> 0
B50: - | R50: - | S50: - | W50: - | X50: - | AE50: - | AF50: - | AJ50: - | AK50: -
A52: GROSS PROFIT | B52: 1 | R52: =($B52-$P52) -> 1 | S52: =IFERROR($R52/$P52,0) -> 0 | W52: =($B52-$U52) -> 1 | X52: =IFERROR($W52/$U52,0) -> 0 | AE52: =($Z52-$AC52) -> 0 | AF52: =IFERROR($AE52/$AC52,0) -> 0 | AJ52: =($Z52-$AH52) -> 0 | AK52: =IFERROR($AJ52/$AH52,0) -> 0
B53: - | R53: - | S53: - | W53: - | X53: - | AE53: - | AF53: - | AJ53: - | AK53: -
A54: LABOR COSTS
A55: SALARIES & WAGES
A56: Direct Operating Labor:
A57: Operating Payroll | B57: -1 | R57: =($B57-$P57)*-1 -> 1 | S57: =IFERROR($R57/$P57,0) -> 0 | W57: =($B57-$U57)*-1 -> 1 | X57: =IFERROR($W57/$U57,0) -> 0 | AE57: =($Z57-$AC57)*-1 -> 0 | AF57: =IFERROR($AE57/$AC57,0) -> 0 | AJ57: =($Z57-$AH57)*-1 -> 0 | AK57: =IFERROR($AJ57/$AH57,0) -> 0
A58: Training | B58: -1 | R58: 1 | S58: 0 | W58: 1 | X58: 0 | AE58: 0 | AF58: 0 | AJ58: 0 | AK58: 0
B59: - | R59: - | S59: - | W59: - | X59: - | AE59: - | AF59: - | AJ59: - | AK59: -
A60: Subtotal Direct Operating Labor | B60: -1 | R60: =($B60-$P60)*-1 -> 1 | S60: =IFERROR($R60/$P60,0) -> 0 | W60: =($B60-$U60)*-1 -> 1 | X60: =IFERROR($W60/$U60,0) -> 0 | AE60: =($Z60-$AC60)*-1 -> 0 | AF60: =IFERROR($AE60/$AC60,0) -> 0 | AJ60: =($Z60-$AH60)*-1 -> 0 | AK60: =IFERROR($AJ60/$AH60,0) -> 0
A62: Indirect Operating Labor:
A63: Management Salaries | B63: -1 | R63: =($B63-$P63)*-1 -> 1 | S63: =IFERROR($R63/$P63,0) -> 0 | W63: =($B63-$U63)*-1 -> 1 | X63: =IFERROR($W63/$U63,0) -> 0 | AE63: =($Z63-$AC63)*-1 -> 0 | AF63: =IFERROR($AE63/$AC63,0) -> 0 | AJ63: =($Z63-$AH63)*-1 -> 0 | AK63: =IFERROR($AJ63/$AH63,0) -> 0
A64: Capitalized Salaries | B64: -1 | R64: 1 | S64: 0 | W64: 1 | X64: 0 | AE64: 0 | AF64: 0 | AJ64: 0 | AK64: 0
A65: Office Manager Salaries | B65: -1 | R65: 1 | S65: 0 | W65: 1 | X65: 0 | AE65: 0 | AF65: 0 | AJ65: 0 | AK65: 0
A66: Part-Time Manager Salaries | B66: -1 | R66: 1 | S66: 0 | W66: 1 | X66: 0 | AE66: 0 | AF66: 0 | AJ66: 0 | AK66: 0
A67: Manager Training | B67: -1 | R67: 1 | S67: 0 | W67: 1 | X67: 0 | AE67: 0 | AF67: 0 | AJ67: 0 | AK67: 0
A68: Bonuses | B68: -1 | R68: 1 | S68: 0 | W68: 1 | X68: 0 | AE68: 0 | AF68: 0 | AJ68: 0 | AK68: 0
B69: - | R69: - | S69: - | W69: - | X69: - | AE69: - | AF69: - | AJ69: - | AK69: -
A70: Subtotal Indirect Operating Labor | B70: -1 | R70: =($B70-$P70)*-1 -> 1 | S70: =IFERROR($R70/$P70,0) -> 0 | W70: =($B70-$U70)*-1 -> 1 | X70: =IFERROR($W70/$U70,0) -> 0 | AE70: =($Z70-$AC70)*-1 -> 0 | AF70: =IFERROR($AE70/$AC70,0) -> 0 | AJ70: =($Z70-$AH70)*-1 -> 0 | AK70: =IFERROR($AJ70/$AH70,0) -> 0
B71: - | R71: - | S71: - | W71: - | X71: - | AE71: - | AF71: - | AJ71: - | AK71: -
A72: TOTAL SALARIES & WAGES | B72: -1 | R72: =($B72-$P72)*-1 -> 1 | S72: =IFERROR($R72/$P72,0) -> 0 | W72: =($B72-$U72)*-1 -> 1 | X72: =IFERROR($W72/$U72,0) -> 0 | AE72: =($Z72-$AC72)*-1 -> 0 | AF72: =IFERROR($AE72/$AC72,0) -> 0 | AJ72: =($Z72-$AH72)*-1 -> 0 | AK72: =IFERROR($AJ72/$AH72,0) -> 0
B73: - | R73: - | S73: - | W73: - | X73: - | AE73: - | AF73: - | AJ73: - | AK73: -
A74: TAXES & BENEFITS
A75: Payroll Taxes | B75: -1 | R75: =($B75-$P75)*-1 -> 1 | S75: =IFERROR($R75/$P75,0) -> 0 | W75: =($B75-$U75)*-1 -> 1 | X75: =IFERROR($W75/$U75,0) -> 0 | AE75: =($Z75-$AC75)*-1 -> 0 | AF75: =IFERROR($AE75/$AC75,0) -> 0 | AJ75: =($Z75-$AH75)*-1 -> 0 | AK75: =IFERROR($AJ75/$AH75,0) -> 0
A76: Worker's Comp Insurance | B76: -1 | R76: 1 | S76: 0 | W76: 1 | X76: 0 | AE76: 0 | AF76: 0 | AJ76: 0 | AK76: 0
A77: Payroll Processing Fee | B77: -1 | R77: 1 | S77: 0 | W77: 1 | X77: 0 | AE77: 0 | AF77: 0 | AJ77: 0 | AK77: 0
A78: Moving Expenses | B78: -1 | R78: 1 | S78: 0 | W78: 1 | X78: 0 | AE78: 0 | AF78: 0 | AJ78: 0 | AK78: 0
A79: Incentive Awards | B79: -1 | R79: 1 | S79: 0 | W79: 1 | X79: 0 | AE79: 0 | AF79: 0 | AJ79: 0 | AK79: 0
A80: Vacation Pay | B80: -1 | R80: 1 | S80: 0 | W80: 1 | X80: 0 | AE80: 0 | AF80: 0 | AJ80: 0 | AK80: 0
A81: Health Insurance-Employee Deductions | B81: -1 | R81: 1 | S81: 0 | W81: 1 | X81: 0 | AE81: 0 | AF81: 0 | AJ81: 0 | AK81: 0
A82: Health Insurance-Claims Paid | B82: -1 | R82: 1 | S82: 0 | W82: 1 | X82: 0 | AE82: 0 | AF82: 0 | AJ82: 0 | AK82: 0
A83: Health Insurance-Admn. Fees | B83: -1 | R83: 1 | S83: 0 | W83: 1 | X83: 0 | AE83: 0 | AF83: 0 | AJ83: 0 | AK83: 0
A84: Health Insurance-Employee Funded Ins. | B84: -1 | R84: 1 | S84: 0 | W84: 1 | X84: 0 | AE84: 0 | AF84: 0 | AJ84: 0 | AK84: 0
A85: 401(k) Administrative Expenses | B85: -1 | R85: 1 | S85: 0 | W85: 1 | X85: 0 | AE85: 0 | AF85: 0 | AJ85: 0 | AK85: 0
A86: 401(k) Employer Contributions | B86: -1 | R86: 1 | S86: 0 | W86: 1 | X86: 0 | AE86: 0 | AF86: 0 | AJ86: 0 | AK86: 0
A87: Club Accounts | B87: -1 | R87: 1 | S87: 0 | W87: 1 | X87: 0 | AE87: 0 | AF87: 0 | AJ87: 0 | AK87: 0
A88: Head Wait Cards | B88: -1 | R88: 1 | S88: 0 | W88: 1 | X88: 0 | AE88: 0 | AF88: 0 | AJ88: 0 | AK88: 0
A89: Professional Education & Memberships | B89: -1 | R89: 1 | S89: 0 | W89: 1 | X89: 0 | AE89: 0 | AF89: 0 | AJ89: 0 | AK89: 0
B90: - | R90: - | S90: - | W90: - | X90: - | AE90: - | AF90: - | AJ90: - | AK90: -
A91: TOTAL TAXES & BENEFITS | B91: -1 | R91: =($B91-$P91)*-1 -> 1 | S91: =IFERROR($R91/$P91,0) -> 0 | W91: =($B91-$U91)*-1 -> 1 | X91: =IFERROR($W91/$U91,0) -> 0 | AE91: =($Z91-$AC91)*-1 -> 0 | AF91: =IFERROR($AE91/$AC91,0) -> 0 | AJ91: =($Z91-$AH91)*-1 -> 0 | AK91: =IFERROR($AJ91/$AH91,0) -> 0
B92: - | R92: - | S92: - | W92: - | X92: - | AE92: - | AF92: - | AJ92: - | AK92: -
A94: TOTAL LABOR COSTS | B94: -1 | R94: =($B94-$P94)*-1 -> 1 | S94: =IFERROR($R94/$P94,0) -> 0 | W94: =($B94-$U94)*-1 -> 1 | X94: =IFERROR($W94/$U94,0) -> 0 | AE94: =($Z94-$AC94)*-1 -> 0 | AF94: =IFERROR($AE94/$AC94,0) -> 0 | AJ94: =($Z94-$AH94)*-1 -> 0 | AK94: =IFERROR($AJ94/$AH94,0) -> 0
B95: - | R95: - | S95: - | W95: - | X95: - | AE95: - | AF95: - | AJ95: - | AK95: -
A97: OPERATING EXPENSES
A98: DIRECT OPERTATING EXPENSES
A99: Paper Goods & Supplies | B99: -1 | R99: =($B99-$P99)*-1 -> 1 | S99: =IFERROR($R99/$P99,0) -> 0 | W99: =($B99-$U99)*-1 -> 1 | X99: =IFERROR($W99/$U99,0) -> 0 | AE99: =($Z99-$AC99)*-1 -> 0 | AF99: =IFERROR($AE99/$AC99,0) -> 0 | AJ99: =($Z99-$AH99)*-1 -> 0 | AK99: =IFERROR($AJ99/$AH99,0) -> 0
A100: Paper Goods & Supplies-ToGo | B100: -1 | R100: 1 | S100: 0 | W100: 1 | X100: 0 | AE100: 0 | AF100: 0 | AJ100: 0 | AK100: 0
A101: Logo'd ToGo Supplies | B101: -1 | R101: 1 | S101: 0 | W101: 1 | X101: 0 | AE101: 0 | AF101: 0 | AJ101: 0 | AK101: 0
A102: Menus | B102: -1 | R102: 1 | S102: 0 | W102: 1 | X102: 0 | AE102: 0 | AF102: 0 | AJ102: 0 | AK102: 0
A103: PoP Merchandise | B103: -1 | R103: 1 | S103: 0 | W103: 1 | X103: 0 | AE103: 0 | AF103: 0 | AJ103: 0 | AK103: 0
A104: Charcoal | B104: -1 | R104: 1 | S104: 0 | W104: 1 | X104: 0 | AE104: 0 | AF104: 0 | AJ104: 0 | AK104: 0
A105: Dishwasher Supplies | B105: -1 | R105: 1 | S105: 0 | W105: 1 | X105: 0 | AE105: 0 | AF105: 0 | AJ105: 0 | AK105: 0
A106: Chemical Supplies | B106: -1 | R106: 1 | S106: 0 | W106: 1 | X106: 0 | AE106: 0 | AF106: 0 | AJ106: 0 | AK106: 0
A107: Janitorial Supplies | B107: -1 | R107: 1 | S107: 0 | W107: 1 | X107: 0 | AE107: 0 | AF107: 0 | AJ107: 0 | AK107: 0
A108: Linen and Laundry | B108: -1 | R108: 1 | S108: 0 | W108: 1 | X108: 0 | AE108: 0 | AF108: 0 | AJ108: 0 | AK108: 0
A109: China and Tableware | B109: -1 | R109: 1 | S109: 0 | W109: 1 | X109: 0 | AE109: 0 | AF109: 0 | AJ109: 0 | AK109: 0
A110: Glassware | B110: -1 | R110: 1 | S110: 0 | W110: 1 | X110: 0 | AE110: 0 | AF110: 0 | AJ110: 0 | AK110: 0
A111: Silverware | B111: -1 | R111: 1 | S111: 0 | W111: 1 | X111: 0 | AE111: 0 | AF111: 0 | AJ111: 0 | AK111: 0
A112: Softgoods and Smallwares | B112: -1 | R112: 1 | S112: 0 | W112: 1 | X112: 0 | AE112: 0 | AF112: 0 | AJ112: 0 | AK112: 0
A113: Uniforms | B113: -1 | R113: 1 | S113: 0 | W113: 1 | X113: 0 | AE113: 0 | AF113: 0 | AJ113: 0 | AK113: 0
A114: Replacement Pagers | B114: -1 | R114: 1 | S114: 0 | W114: 1 | X114: 0 | AE114: 0 | AF114: 0 | AJ114: 0 | AK114: 0
A115: Miscellaneous Operating Expenses | B115: -1 | R115: 1 | S115: 0 | W115: 1 | X115: 0 | AE115: 0 | AF115: 0 | AJ115: 0 | AK115: 0
A116: Ice Purchases | B116: -1 | R116: 1 | S116: 0 | W116: 1 | X116: 0 | AE116: 0 | AF116: 0 | AJ116: 0 | AK116: 0
A117: R&M - Building | B117: -1 | R117: 1 | S117: 0 | W117: 1 | X117: 0 | AE117: 0 | AF117: 0 | AJ117: 0 | AK117: 0
A118: R&M - Building-Unnecessary | B118: -1 | R118: 1 | S118: 0 | W118: 1 | X118: 0 | AE118: 0 | AF118: 0 | AJ118: 0 | AK118: 0
A119: R&M - Building-Health Dept. | B119: -1 | R119: 1 | S119: 0 | W119: 1 | X119: 0 | AE119: 0 | AF119: 0 | AJ119: 0 | AK119: 0
A120: R&M - Building-Discretionary | B120: -1 | R120: 1 | S120: 0 | W120: 1 | X120: 0 | AE120: 0 | AF120: 0 | AJ120: 0 | AK120: 0
A121: R&M - Building-Theft | B121: -1 | R121: 1 | S121: 0 | W121: 1 | X121: 0 | AE121: 0 | AF121: 0 | AJ121: 0 | AK121: 0
A122: R&M - Building-Maint. Contracts | B122: -1 | R122: 1 | S122: 0 | W122: 1 | X122: 0 | AE122: 0 | AF122: 0 | AJ122: 0 | AK122: 0
A123: R&M - Electrical-NonEquipment | B123: -1 | R123: 1 | S123: 0 | W123: 1 | X123: 0 | AE123: 0 | AF123: 0 | AJ123: 0 | AK123: 0
A124: R&M - Electrical-NonEquipment-Unnecessary | B124: -1 | R124: 1 | S124: 0 | W124: 1 | X124: 0 | AE124: 0 | AF124: 0 | AJ124: 0 | AK124: 0
A125: R&M - Plumbing | B125: -1 | R125: 1 | S125: 0 | W125: 1 | X125: 0 | AE125: 0 | AF125: 0 | AJ125: 0 | AK125: 0
A126: R&M - Plumbing-Unnecessary | B126: -1 | R126: 1 | S126: 0 | W126: 1 | X126: 0 | AE126: 0 | AF126: 0 | AJ126: 0 | AK126: 0
A127: R&M - Plumbing-Health Dept. | B127: -1 | R127: 1 | S127: 0 | W127: 1 | X127: 0 | AE127: 0 | AF127: 0 | AJ127: 0 | AK127: 0
A128: R&M - Plumbing-Discretionary | B128: -1 | R128: 1 | S128: 0 | W128: 1 | X128: 0 | AE128: 0 | AF128: 0 | AJ128: 0 | AK128: 0
A129: R&M - Plumbing-Theft | B129: -1 | R129: 1 | S129: 0 | W129: 1 | X129: 0 | AE129: 0 | AF129: 0 | AJ129: 0 | AK129: 0
A130: R&M - Plumbing-Maint. Contracts | B130: -1 | R130: 1 | S130: 0 | W130: 1 | X130: 0 | AE130: 0 | AF130: 0 | AJ130: 0 | AK130: 0
A131: R&M - Equipment | B131: -1 | R131: 1 | S131: 0 | W131: 1 | X131: 0 | AE131: 0 | AF131: 0 | AJ131: 0 | AK131: 0
A132: R&M - Equipment-Unnecessary | B132: -1 | R132: 1 | S132: 0 | W132: 1 | X132: 0 | AE132: 0 | AF132: 0 | AJ132: 0 | AK132: 0
A133: R&M - Equipment-Health Dept. | B133: -1 | R133: 1 | S133: 0 | W133: 1 | X133: 0 | AE133: 0 | AF133: 0 | AJ133: 0 | AK133: 0
A134: R&M - Equipment-Discretionary | B134: -1 | R134: 1 | S134: 0 | W134: 1 | X134: 0 | AE134: 0 | AF134: 0 | AJ134: 0 | AK134: 0
A135: R&M - Equipment-Theft | B135: -1 | R135: 1 | S135: 0 | W135: 1 | X135: 0 | AE135: 0 | AF135: 0 | AJ135: 0 | AK135: 0
A136: R&M - Equipment-Maint. Contracts | B136: -1 | R136: 1 | S136: 0 | W136: 1 | X136: 0 | AE136: 0 | AF136: 0 | AJ136: 0 | AK136: 0
A137: R&M - Computer Equipment | B137: -1 | R137: 1 | S137: 0 | W137: 1 | X137: 0 | AE137: 0 | AF137: 0 | AJ137: 0 | AK137: 0
A138: R&M - Computer Equipment-Unnecessary | B138: -1 | R138: 1 | S138: 0 | W138: 1 | X138: 0 | AE138: 0 | AF138: 0 | AJ138: 0 | AK138: 0
A139: R&M - Computer Equipment-Health Dept. | B139: -1 | R139: 1 | S139: 0 | W139: 1 | X139: 0 | AE139: 0 | AF139: 0 | AJ139: 0 | AK139: 0
A140: R&M - Computer Equipment-Discretionary | B140: -1 | R140: 1 | S140: 0 | W140: 1 | X140: 0 | AE140: 0 | AF140: 0 | AJ140: 0 | AK140: 0
A141: R&M - Computer Equipment-Theft | B141: -1 | R141: 1 | S141: 0 | W141: 1 | X141: 0 | AE141: 0 | AF141: 0 | AJ141: 0 | AK141: 0
A142: R&M - Computer Equipment-Maint. Contracts | B142: -1 | R142: 1 | S142: 0 | W142: 1 | X142: 0 | AE142: 0 | AF142: 0 | AJ142: 0 | AK142: 0
A143: R&M - Refrigeration | B143: -1 | R143: 1 | S143: 0 | W143: 1 | X143: 0 | AE143: 0 | AF143: 0 | AJ143: 0 | AK143: 0
A144: R&M - Refrigeration-Unnecessary | B144: -1 | R144: 1 | S144: 0 | W144: 1 | X144: 0 | AE144: 0 | AF144: 0 | AJ144: 0 | AK144: 0
A145: R&M - Refrigeration-Health Dept. | B145: -1 | R145: 1 | S145: 0 | W145: 1 | X145: 0 | AE145: 0 | AF145: 0 | AJ145: 0 | AK145: 0
A146: R&M - Refrigeration-Discretionary | B146: -1 | R146: 1 | S146: 0 | W146: 1 | X146: 0 | AE146: 0 | AF146: 0 | AJ146: 0 | AK146: 0
A147: R&M - Refrigeration-Theft | B147: -1 | R147: 1 | S147: 0 | W147: 1 | X147: 0 | AE147: 0 | AF147: 0 | AJ147: 0 | AK147: 0
A148: R&M - Refrigeration-Maint. Contracts | B148: -1 | R148: 1 | S148: 0 | W148: 1 | X148: 0 | AE148: 0 | AF148: 0 | AJ148: 0 | AK148: 0
A149: R&M - Air Conditioning | B149: -1 | R149: 1 | S149: 0 | W149: 1 | X149: 0 | AE149: 0 | AF149: 0 | AJ149: 0 | AK149: 0
A150: R&M - Air Conditioning-Unnecessary | B150: -1 | R150: 1 | S150: 0 | W150: 1 | X150: 0 | AE150: 0 | AF150: 0 | AJ150: 0 | AK150: 0
A151: R&M - Air Conditioning-Health Dept. | B151: -1 | R151: 1 | S151: 0 | W151: 1 | X151: 0 | AE151: 0 | AF151: 0 | AJ151: 0 | AK151: 0
A152: R&M - Air Conditioning-Discretionary | B152: -1 | R152: 1 | S152: 0 | W152: 1 | X152: 0 | AE152: 0 | AF152: 0 | AJ152: 0 | AK152: 0
A153: R&M - Air Conditioning-Theft | B153: -1 | R153: 1 | S153: 0 | W153: 1 | X153: 0 | AE153: 0 | AF153: 0 | AJ153: 0 | AK153: 0
A154: R&M - Air Conditioning-Maint. Contracts | B154: -1 | R154: 1 | S154: 0 | W154: 1 | X154: 0 | AE154: 0 | AF154: 0 | AJ154: 0 | AK154: 0
A155: R&M - Rita Machine | B155: -1 | R155: 1 | S155: 0 | W155: 1 | X155: 0 | AE155: 0 | AF155: 0 | AJ155: 0 | AK155: 0
A156: R&M - Rita Machine-Unnecessary | B156: -1 | R156: 1 | S156: 0 | W156: 1 | X156: 0 | AE156: 0 | AF156: 0 | AJ156: 0 | AK156: 0
A157: R&M - Rita Machine-Health Dept. | B157: -1 | R157: 1 | S157: 0 | W157: 1 | X157: 0 | AE157: 0 | AF157: 0 | AJ157: 0 | AK157: 0
A158: R&M - Rita Machine-Discretionary | B158: -1 | R158: 1 | S158: 0 | W158: 1 | X158: 0 | AE158: 0 | AF158: 0 | AJ158: 0 | AK158: 0
A159: R&M - Rita Machine-Theft | B159: -1 | R159: 1 | S159: 0 | W159: 1 | X159: 0 | AE159: 0 | AF159: 0 | AJ159: 0 | AK159: 0
A160: R&M - Rita Machine-Maint. Contracts | B160: -1 | R160: 1 | S160: 0 | W160: 1 | X160: 0 | AE160: 0 | AF160: 0 | AJ160: 0 | AK160: 0
A161: Fire, Life & Safety | B161: -1 | R161: =($B161-$P161)*-1 -> 1 | S161: =IFERROR($R161/$P161,0) -> 0 | W161: =($B161-$U161)*-1 -> 1 | X161: =IFERROR($W161/$U161,0) -> 0 | AE161: =($Z161-$AC161)*-1 -> 0 | AF161: =IFERROR($AE161/$AC161,0) -> 0 | AJ161: =($Z161-$AH161)*-1 -> 0 | AK161: =IFERROR($AJ161/$AH161,0) -> 0
A162: Fire. Life & Safety-Unnecessary | B162: -1 | R162: 1 | S162: 0 | W162: 1 | X162: 0 | AE162: 0 | AF162: 0 | AJ162: 0 | AK162: 0
A163: Fire, Life & Safety-Maint. Contracts | B163: -1 | R163: 1 | S163: 0 | W163: 1 | X163: 0 | AE163: 0 | AF163: 0 | AJ163: 0 | AK163: 0
A164: Cash Paid-Outs | B164: -1 | R164: 1 | S164: 0 | W164: 1 | X164: 0 | AE164: 0 | AF164: 0 | AJ164: 0 | AK164: 0
A165: Cash (Over) / Short | B165: -1 | R165: 1 | S165: 0 | W165: 1 | X165: 0 | AE165: 0 | AF165: 0 | AJ165: 0 | AK165: 0
A166: Complaint Letters | B166: -1 | R166: 1 | S166: 0 | W166: 1 | X166: 0 | AE166: 0 | AF166: 0 | AJ166: 0 | AK166: 0
A167: Employment Ads | B167: -1 | R167: 1 | S167: 0 | W167: 1 | X167: 0 | AE167: 0 | AF167: 0 | AJ167: 0 | AK167: 0
A168: Office Supplies | B168: -1 | R168: 1 | S168: 0 | W168: 1 | X168: 0 | AE168: 0 | AF168: 0 | AJ168: 0 | AK168: 0
A169: Printed Office Matter | B169: -1 | R169: 1 | S169: 0 | W169: 1 | X169: 0 | AE169: 0 | AF169: 0 | AJ169: 0 | AK169: 0
A170: Customer Liab. Guest Cards | B170: -1 | R170: 1 | S170: 0 | W170: 1 | X170: 0 | AE170: 0 | AF170: 0 | AJ170: 0 | AK170: 0
A171: Sales Tax & Freight/Delivery Expense | B171: -1 | R171: 1 | S171: 0 | W171: 1 | X171: 0 | AE171: 0 | AF171: 0 | AJ171: 0 | AK171: 0
B172: - | R172: - | S172: - | W172: - | X172: - | AE172: - | AF172: - | AJ172: - | AK172: -
A173: TOTAL DIRECT OPERATING EXP. | B173: -1 | R173: =($B173-$P173)*-1 -> 1 | S173: =IFERROR($R173/$P173,0) -> 0 | W173: =($B173-$U173)*-1 -> 1 | X173: =IFERROR($W173/$U173,0) -> 0 | AE173: =($Z173-$AC173)*-1 -> 0 | AF173: =IFERROR($AE173/$AC173,0) -> 0 | AJ173: =($Z173-$AH173)*-1 -> 0 | AK173: =IFERROR($AJ173/$AH173,0) -> 0
B174: - | R174: - | S174: - | W174: - | X174: - | AE174: - | AF174: - | AJ174: - | AK174: -
A175: INDIRECT OPERATING EXPENSES
A176: Services | B176: -1 | R176: =($B176-$P176)*-1 -> 1 | S176: =IFERROR($R176/$P176,0) -> 0 | W176: =($B176-$U176)*-1 -> 1 | X176: =IFERROR($W176/$U176,0) -> 0 | AE176: =($Z176-$AC176)*-1 -> 0 | AF176: =IFERROR($AE176/$AC176,0) -> 0 | AJ176: =($Z176-$AH176)*-1 -> 0 | AK176: =IFERROR($AJ176/$AH176,0) -> 0
A177: Cable / Music Services | B177: -1 | R177: 1 | S177: 0 | W177: 1 | X177: 0 | AE177: 0 | AF177: 0 | AJ177: 0 | AK177: 0
A178: Trash / Waste Removal Services | B178: -1 | R178: 1 | S178: 0 | W178: 1 | X178: 0 | AE178: 0 | AF178: 0 | AJ178: 0 | AK178: 0
A179: Hood Cleaning Services | B179: -1 | R179: 1 | S179: 0 | W179: 1 | X179: 0 | AE179: 0 | AF179: 0 | AJ179: 0 | AK179: 0
A180: Armored Car Services | B180: -1 | R180: 1 | S180: 0 | W180: 1 | X180: 0 | AE180: 0 | AF180: 0 | AJ180: 0 | AK180: 0
A181: Pest Control Services | B181: -1 | R181: 1 | S181: 0 | W181: 1 | X181: 0 | AE181: 0 | AF181: 0 | AJ181: 0 | AK181: 0
A182: Grease Trap Servicing | B182: -1 | R182: 1 | S182: 0 | W182: 1 | X182: 0 | AE182: 0 | AF182: 0 | AJ182: 0 | AK182: 0
A183: Cleaning Services | B183: -1 | R183: 1 | S183: 0 | W183: 1 | X183: 0 | AE183: 0 | AF183: 0 | AJ183: 0 | AK183: 0
A184: Temporary Labor | B184: -1 | R184: 1 | S184: 0 | W184: 1 | X184: 0 | AE184: 0 | AF184: 0 | AJ184: 0 | AK184: 0
A185: Programming & Computer Services | B185: -1 | R185: 1 | S185: 0 | W185: 1 | X185: 0 | AE185: 0 | AF185: 0 | AJ185: 0 | AK185: 0
A186: Landscaping | B186: -1 | R186: 1 | S186: 0 | W186: 1 | X186: 0 | AE186: 0 | AF186: 0 | AJ186: 0 | AK186: 0
A187: Interior Plant Maintenance | B187: -1 | R187: 1 | S187: 0 | W187: 1 | X187: 0 | AE187: 0 | AF187: 0 | AJ187: 0 | AK187: 0
A188: Parking / Valet | B188: -1 | R188: 1 | S188: 0 | W188: 1 | X188: 0 | AE188: 0 | AF188: 0 | AJ188: 0 | AK188: 0
A189: Security | B189: -1 | R189: 1 | S189: 0 | W189: 1 | X189: 0 | AE189: 0 | AF189: 0 | AJ189: 0 | AK189: 0
A190: Utilities-Electric | B190: -1 | R190: 1 | S190: 0 | W190: 1 | X190: 0 | AE190: 0 | AF190: 0 | AJ190: 0 | AK190: 0
A191: Utilities-Gas | B191: -1 | R191: 1 | S191: 0 | W191: 1 | X191: 0 | AE191: 0 | AF191: 0 | AJ191: 0 | AK191: 0
A192: Utilities-Water | B192: -1 | R192: 1 | S192: 0 | W192: 1 | X192: 0 | AE192: 0 | AF192: 0 | AJ192: 0 | AK192: 0
A193: Utilities-Telephone | B193: -1 | R193: 1 | S193: 0 | W193: 1 | X193: 0 | AE193: 0 | AF193: 0 | AJ193: 0 | AK193: 0
A194: Equipment Rental / Leasing | B194: -1 | R194: 1 | S194: 0 | W194: 1 | X194: 0 | AE194: 0 | AF194: 0 | AJ194: 0 | AK194: 0
A195: Advertising-TV | B195: -1 | R195: 1 | S195: 0 | W195: 1 | X195: 0 | AE195: 0 | AF195: 0 | AJ195: 0 | AK195: 0
A196: Advertising-Out of Home | B196: -1 | R196: 1 | S196: 0 | W196: 1 | X196: 0 | AE196: 0 | AF196: 0 | AJ196: 0 | AK196: 0
A197: Advertising-Radio | B197: -1 | R197: 1 | S197: 0 | W197: 1 | X197: 0 | AE197: 0 | AF197: 0 | AJ197: 0 | AK197: 0
A198: Advertising-Print | B198: -1 | R198: 1 | S198: 0 | W198: 1 | X198: 0 | AE198: 0 | AF198: 0 | AJ198: 0 | AK198: 0
A199: Advertising-Online | B199: -1 | R199: 1 | S199: 0 | W199: 1 | X199: 0 | AE199: 0 | AF199: 0 | AJ199: 0 | AK199: 0
A200: Advertising-Direct Mail Production/Postage | B200: -1 | R200: 1 | S200: 0 | W200: 1 | X200: 0 | AE200: 0 | AF200: 0 | AJ200: 0 | AK200: 0
A201: Agency Fees-Other | B201: -1 | R201: 1 | S201: 0 | W201: 1 | X201: 0 | AE201: 0 | AF201: 0 | AJ201: 0 | AK201: 0
A202: Agency Fees-Public Relations | B202: -1 | R202: 1 | S202: 0 | W202: 1 | X202: 0 | AE202: 0 | AF202: 0 | AJ202: 0 | AK202: 0
A203: Agency Fees-Photography | B203: -1 | R203: 1 | S203: 0 | W203: 1 | X203: 0 | AE203: 0 | AF203: 0 | AJ203: 0 | AK203: 0
A204: Agency Fees-Email | B204: -1 | R204: 1 | S204: 0 | W204: 1 | X204: 0 | AE204: 0 | AF204: 0 | AJ204: 0 | AK204: 0
A205: Agency Fees-Website | B205: -1 | R205: 1 | S205: 0 | W205: 1 | X205: 0 | AE205: 0 | AF205: 0 | AJ205: 0 | AK205: 0
A206: Agency Fees-Creative & Strategy | B206: -1 | R206: 1 | S206: 0 | W206: 1 | X206: 0 | AE206: 0 | AF206: 0 | AJ206: 0 | AK206: 0
A207: Agency Fees-Loyalty/Consumer Research | B207: -1 | R207: 1 | S207: 0 | W207: 1 | X207: 0 | AE207: 0 | AF207: 0 | AJ207: 0 | AK207: 0
A208: Cinco de Mayo Event | B208: -1 | R208: 1 | S208: 0 | W208: 1 | X208: 0 | AE208: 0 | AF208: 0 | AJ208: 0 | AK208: 0
A209: Local Store-Level Donations | B209: -1 | R209: 1 | S209: 0 | W209: 1 | X209: 0 | AE209: 0 | AF209: 0 | AJ209: 0 | AK209: 0
A210: Catering Promos/Donations | B210: -1 | R210: 1 | S210: 0 | W210: 1 | X210: 0 | AE210: 0 | AF210: 0 | AJ210: 0 | AK210: 0
A211: Store Level Donated Product Cost | B211: -1 | R211: 1 | S211: 0 | W211: 1 | X211: 0 | AE211: 0 | AF211: 0 | AJ211: 0 | AK211: 0
A212: Local Store Marketing-Labor & Product | B212: -1 | R212: 1 | S212: 0 | W212: 1 | X212: 0 | AE212: 0 | AF212: 0 | AJ212: 0 | AK212: 0
A213: Local Store Mktng-Other Programs | B213: -1 | R213: 1 | S213: 0 | W213: 1 | X213: 0 | AE213: 0 | AF213: 0 | AJ213: 0 | AK213: 0
... 110 more rows

Sheet Accounts (hidden)
A1: Back to ToC | B1: Description | C1: Line item
A2: 2100-000 | B2: Food Sales | C2: Food Sales
A3: 2210-000 | B3: Liquor Sales | C3: Liquor Sales
A4: 2220-000 | B4: Beer Sales | C4: Beer Sales
A5: 2230-000 | B5: Wine Sales | C5: Wine Sales
A6: 2300-000 | B6: Other Sales | C6: Other Sales-Boutique
A7: 2300-001 | B7: Other Sales-Packaging | C7: Other Sales-Packaging
A8: 3100-000 | B8: Seafood Cost | C8: Seafood Cost | R8: =($B8-$P8) ->  | S8: =IFERROR($R8/$P8,0) -> 0 | W8: =($B8-$U8) ->  | X8: =IFERROR($W8/$U8,0) -> 0 | AE8: =($Z8-$AC8) -> 0 | AF8: =IFERROR($AE8/$AC8,0) -> 0 | AJ8: =($Z8-$AH8) -> 0 | AK8: =IFERROR($AJ8/$AH8,0) -> 0
A9: 3100-001 | B9: Inventory Adj.-Seafood | C9: Seafood Cost | W9: =($B9-$U9) ->  | X9: =IFERROR($W9/$U9,0) -> 0 | AE9: =($Z9-$AC9) -> 0 | AF9: =IFERROR($AE9/$AC9,0) -> 0 | AJ9: =($Z9-$AH9) -> 0 | AK9: =IFERROR($AJ9/$AH9,0) -> 0
A10: 3110-000 | B10: Produce Cost | C10: Produce Cost | R10: =($B10-$P10) ->  | S10: =IFERROR($R10/$P10,0) -> 0 | W10: =($B10-$U10) ->  | X10: =IFERROR($W10/$U10,0) -> 0 | AE10: =($Z10-$AC10) -> 0 | AF10: =IFERROR($AE10/$AC10,0) -> 0 | AJ10: =($Z10-$AH10) -> 0 | AK10: =IFERROR($AJ10/$AH10,0) -> 0
A11: 3110-001 | B11: Inventory Adj.-Produce | C11: Produce Cost | R11: =($B11-$P11) ->  | S11: =IFERROR($R11/$P11,0) -> 0 | W11: =($B11-$U11) ->  | X11: =IFERROR($W11/$U11,0) -> 0 | AE11: =($Z11-$AC11) -> 0 | AF11: =IFERROR($AE11/$AC11,0) -> 0 | AJ11: =($Z11-$AH11) -> 0 | AK11: =IFERROR($AJ11/$AH11,0) -> 0
A12: 3120-000 | B12: Dairy Cost | C12: Dairy Cost | R12: =($B12-$P12) ->  | S12: =IFERROR($R12/$P12,0) -> 0 | W12: =($B12-$U12) ->  | X12: =IFERROR($W12/$U12,0) -> 0 | AE12: =($Z12-$AC12) -> 0 | AF12: =IFERROR($AE12/$AC12,0) -> 0 | AJ12: =($Z12-$AH12) -> 0 | AK12: =IFERROR($AJ12/$AH12,0) -> 0
A13: 3120-001 | B13: Inventory Adj.-Dairy | C13: Dairy Cost | R13: - | S13: - | W13: - | X13: - | AE13: - | AF13: - | AJ13: - | AK13: -
A14: 3130-000 | B14: Meat Cost | C14: Meat Cost | R14: =($B14-$P14) ->  | S14: =IFERROR($R14/$P14,0) -> 0 | W14: =($B14-$U14) ->  | X14: =IFERROR($W14/$U14,0) -> 0 | AE14: =($Z14-$AC14) -> 0 | AF14: =IFERROR($AE14/$AC14,0) -> 0 | AJ14: =($Z14-$AH14) -> 0 | AK14: =IFERROR($AJ14/$AH14,0) -> 0
A15: 3130-001 | B15: Inventory Adj.-Meat | C15: Meat Cost
A16: 3140-000 | B16: Poultry Cost | C16: Poultry Cost | R16: =($B16-$P16) ->  | S16: =IFERROR($R16/$P16,0) -> 0 | W16: =($B16-$U16) ->  | X16: =IFERROR($W16/$U16,0) -> 0 | AE16: =($Z16-$AC16) -> 0 | AF16: =IFERROR($AE16/$AC16,0) -> 0 | AJ16: =($Z16-$AH16) -> 0 | AK16: =IFERROR($AJ16/$AH16,0) -> 0
A17: 3140-001 | B17: Inventory Adj.-Poultry | C17: Poultry Cost | R17: =($B17-$P17) ->  | S17: =IFERROR($R17/$P17,0) -> 0 | W17: =($B17-$U17) ->  | X17: =IFERROR($W17/$U17,0) -> 0 | AE17: =($Z17-$AC17) -> 0 | AF17: =IFERROR($AE17/$AC17,0) -> 0 | AJ17: =($Z17-$AH17) -> 0 | AK17: =IFERROR($AJ17/$AH17,0) -> 0
A18: 3150-000 | B18: Miscellaneous Dry Goods Cost | C18: Misc. Dry Goods Cost | R18: - | S18: - | W18: - | X18: - | AE18: - | AF18: - | AJ18: - | AK18: -
A19: 3150-001 | B19: Inventory Adj.-Misc. Dry Goods | C19: Misc. Dry Goods Cost | R19: =($B19-$P19) ->  | S19: =IFERROR($R19/$P19,0) -> 0 | W19: =($B19-$U19) ->  | X19: =IFERROR($W19/$U19,0) -> 0 | AE19: =($Z19-$AC19) -> 0 | AF19: =IFERROR($AE19/$AC19,0) -> 0 | AJ19: =($Z19-$AH19) -> 0 | AK19: =IFERROR($AJ19/$AH19,0) -> 0
A20: 3200-000 | B20: Liquor Cost | C20: Liquor Cost | R20: - | S20: - | W20: - | X20: - | AE20: - | AF20: - | AJ20: - | AK20: -
A21: 3200-001 | B21: Inventory Adj.-Liquor | C21: Liquor Cost | R21: =($B21-$P21) ->  | S21: =IFERROR($R21/$P21,0) -> 0 | W21: =($B21-$U21) ->  | X21: =IFERROR($W21/$U21,0) -> 0 | AE21: =($Z21-$AC21) -> 0 | AF21: =IFERROR($AE21/$AC21,0) -> 0 | AJ21: =($Z21-$AH21) -> 0 | AK21: =IFERROR($AJ21/$AH21,0) -> 0
A22: 3210-000 | B22: Beer Cost | C22: Beer Cost | R22: =($B22-$P22) ->  | S22: =IFERROR($R22/$P22,0) -> 0 | W22: =($B22-$U22) ->  | X22: =IFERROR($W22/$U22,0) -> 0 | AE22: =($Z22-$AC22) -> 0 | AF22: =IFERROR($AE22/$AC22,0) -> 0 | AJ22: =($Z22-$AH22) -> 0 | AK22: =IFERROR($AJ22/$AH22,0) -> 0
A23: 3210-001 | B23: Inventory Adj.-Beer | C23: Beer Cost
A24: 3220-000 | B24: Wine Cost | C24: Wine Cost
A25: 3220-001 | B25: Inventory Adj.-Wine | C25: Wine Cost
A26: 3230-000 | B26: Bar Grocery Cost | C26: Bar Grocery Cost | I26: =B26/B$8 ->  | J26: =C26/C$8 ->  | Q26: =P26/P$8 ->  | R26: =($B26-$P26)*-1 ->  | S26: =IFERROR($R26/$P26,0) -> 0 | V26: =U26/U$8 ->  | W26: =($B26-$U26)*-1 ->  | X26: =IFERROR($W26/$U26,0) -> 0 | AA26: =Z26/Z$8 ->  | AD26: =AC26/AC$8 ->  | AE26: =($Z26-$AC26)*-1 -> 0 | AF26: =IFERROR($AE26/$AC26,0) -> 0 | AI26: =AH26/AH$8 ->  | AJ26: =($Z26-$AH26)*-1 -> 0 | AK26: =IFERROR($AJ26/$AH26,0) -> 0
A27: 3230-001 | B27: Inventory Adj.-Bar Grocery | C27: Bar Grocery Cost | I27: =B27/B$8 ->  | S27: 0 | X27: 0 | AE27: 0 | AF27: 0 | AJ27: 0 | AK27: 0
A28: 3300-000 | B28: Liquor Tax Expense | C28: LIQUOR TAX | S28: 0 | X28: 0 | AE28: 0 | AF28: 0 | AJ28: 0 | AK28: 0
A29: 3310-000 | B29: Freight / Delivery / Cold Storage | C29: FOOD FREIGHT/DELIVERY | S29: 0 | X29: 0 | AE29: 0 | AF29: 0 | AJ29: 0 | AK29: 0
A30: 4100-001 | B30: Prep Cook Payroll | C30: Operating Payroll | S30: 0 | X30: 0 | AE30: 0 | AF30: 0 | AJ30: 0 | AK30: 0
A31: 4100-002 | B31: Line Cook Payroll | C31: Operating Payroll | S31: 0 | X31: 0 | AE31: 0 | AF31: 0 | AJ31: 0 | AK31: 0
A32: 4100-003 | B32: Veg. Prep Payroll | C32: Operating Payroll | R32: - | S32: - | W32: - | X32: - | AE32: - | AF32: - | AJ32: - | AK32: -
A33: 4100-004 | B33: Butcher Payroll | C33: Operating Payroll | I33: =B33/B$8 ->  | J33: =C33/C$8 ->  | Q33: =P33/P$8 ->  | R33: =($B33-$P33)*-1 ->  | S33: =IFERROR($R33/$P33,0) -> 0 | V33: =U33/U$8 ->  | W33: =($B33-$U33)*-1 ->  | X33: =IFERROR($W33/$U33,0) -> 0 | AA33: =Z33/Z$8 ->  | AD33: =AC33/AC$8 ->  | AE33: =($Z33-$AC33)*-1 -> 0 | AF33: =IFERROR($AE33/$AC33,0) -> 0 | AI33: =AH33/AH$8 ->  | AJ33: =($Z33-$AH33)*-1 -> 0 | AK33: =IFERROR($AJ33/$AH33,0) -> 0
A34: 4100-005 | B34: Tortilla Payroll | C34: Operating Payroll | R34: - | S34: - | W34: - | X34: - | AE34: - | AF34: - | AJ34: - | AK34: -
A35: 4100-006 | B35: Dishwasher Payroll | C35: Operating Payroll
A36: 4100-007 | B36: Chip Payroll | C36: Operating Payroll | I36: =B36/B$10 ->  | J36: =C36/C$10 ->  | Q36: =P36/P$10 ->  | R36: =($B36-$P36)*-1 ->  | S36: =IFERROR($R36/$P36,0) -> 0 | V36: =U36/U$10 ->  | W36: =($B36-$U36)*-1 ->  | X36: =IFERROR($W36/$U36,0) -> 0 | AA36: =Z36/Z$10 ->  | AD36: =AC36/AC$10 ->  | AE36: =($Z36-$AC36)*-1 -> 0 | AF36: =IFERROR($AE36/$AC36,0) -> 0 | AI36: =AH36/AH$10 ->  | AJ36: =($Z36-$AH36)*-1 -> 0 | AK36: =IFERROR($AJ36/$AH36,0) -> 0
A37: 4100-008 | B37: Busboy Payroll | C37: Operating Payroll | I37: =B37/B$11 ->  | J37: =C37/C$11 ->  | Q37: =P37/P$11 ->  | S37: 0 | V37: =U37/U$11 ->  | X37: 0 | AA37: =Z37/Z$11 ->  | AD37: =AC37/AC$11 ->  | AE37: 0 | AF37: 0 | AI37: =AH37/AH$11 ->  | AJ37: 0 | AK37: 0
A38: 4100-009 | B38: Server Payroll | C38: Operating Payroll | I38: =B38/B$12 ->  | J38: =C38/C$12 ->  | Q38: =P38/P$12 ->  | S38: 0 | V38: =U38/U$12 ->  | X38: 0 | AA38: =Z38/Z$12 ->  | AD38: =AC38/AC$12 ->  | AE38: 0 | AF38: 0 | AI38: =AH38/AH$12 ->  | AJ38: 0 | AK38: 0
A39: 4100-010 | B39: Runner Payroll | C39: Operating Payroll | I39: =B39/B$10 ->  | J39: =C39/C$10 ->  | Q39: =P39/P$10 ->  | S39: 0 | V39: =U39/U$10 ->  | X39: 0 | AA39: =Z39/Z$10 ->  | AD39: =AC39/AC$10 ->  | AE39: 0 | AF39: 0 | AI39: =AH39/AH$10 ->  | AJ39: 0 | AK39: 0
A40: 4100-012 | B40: Expeditor Payroll | C40: Operating Payroll | R40: - | S40: - | W40: - | X40: - | AE40: - | AF40: - | AJ40: - | AK40: -
A41: 4100-013 | B41: Cocktail Payroll | C41: Operating Payroll | I41: =B41/B$14 ->  | J41: =C41/C$14 ->  | Q41: =P41/P$14 ->  | R41: =($B41-$P41)*-1 ->  | S41: =IFERROR($R41/$P41,0) -> 0 | V41: =U41/U$14 ->  | W41: =($B41-$U41)*-1 ->  | X41: =IFERROR($W41/$U41,0) -> 0 | AA41: =Z41/Z$14 ->  | AD41: =AC41/AC$14 ->  | AE41: =($Z41-$AC41)*-1 -> 0 | AF41: =IFERROR($AE41/$AC41,0) -> 0 | AI41: =AH41/AH$14 ->  | AJ41: =($Z41-$AH41)*-1 -> 0 | AK41: =IFERROR($AJ41/$AH41,0) -> 0
A42: 4100-014 | B42: Bartender Payroll | C42: Operating Payroll | R42: - | S42: - | W42: - | X42: - | AE42: - | AF42: - | AJ42: - | AK42: -
A43: 4100-015 | B43: Host Payroll | C43: Operating Payroll
A44: 4100-016 | B44: Driver Payroll | C44: Operating Payroll | R44: =($B44-$P44)*-1 ->  | S44: =IFERROR($R44/$P44,0) -> 0 | W44: =($B44-$U44)*-1 ->  | X44: =IFERROR($W44/$U44,0) -> 0 | AE44: =($Z44-$AC44)*-1 -> 0 | AF44: =IFERROR($AE44/$AC44,0) -> 0 | AJ44: =($Z44-$AH44)*-1 -> 0 | AK44: =IFERROR($AJ44/$AH44,0) -> 0
A45: 4100-017 | B45: Meeting Payroll | C45: Operating Payroll | S45: 0 | X45: 0 | AE45: 0 | AF45: 0 | AJ45: 0 | AK45: 0
A46: 4100-018 | B46: Catering Payroll | C46: Operating Payroll | S46: 0 | X46: 0 | AE46: 0 | AF46: 0 | AJ46: 0 | AK46: 0
A47: 4100-019 | B47: Miscellaneous Payroll | C47: Operating Payroll | R47: - | S47: - | W47: - | X47: - | AE47: - | AF47: - | AJ47: - | AK47: -
A48: 4100-020 | B48: To-Go Payroll | C48: Operating Payroll
A49: 4110-001 | B49: Prep Cook - Training Payroll | C49: Training | R49: =($B49-$P49)*-1 ->  | S49: =IFERROR($R49/$P49,0) -> 0 | W49: =($B49-$U49)*-1 ->  | X49: =IFERROR($W49/$U49,0) -> 0 | AE49: =($Z49-$AC49)*-1 -> 0 | AF49: =IFERROR($AE49/$AC49,0) -> 0 | AJ49: =($Z49-$AH49)*-1 -> 0 | AK49: =IFERROR($AJ49/$AH49,0) -> 0
A50: 4110-002 | B50: Line Cook - Training Payroll | C50: Training | R50: - | S50: - | W50: - | X50: - | AE50: - | AF50: - | AJ50: - | AK50: -
A51: 4110-003 | B51: Veg. Prep - Training Payroll | C51: Training
A52: 4110-004 | B52: Butcher - Training Payroll | C52: Training | R52: =($B52-$P52) ->  | S52: =IFERROR($R52/$P52,0) -> 0 | W52: =($B52-$U52) ->  | X52: =IFERROR($W52/$U52,0) -> 0 | AE52: =($Z52-$AC52) -> 0 | AF52: =IFERROR($AE52/$AC52,0) -> 0 | AJ52: =($Z52-$AH52) -> 0 | AK52: =IFERROR($AJ52/$AH52,0) -> 0
A53: 4110-005 | B53: Tortilla - Training Payroll | C53: Training | R53: - | S53: - | W53: - | X53: - | AE53: - | AF53: - | AJ53: - | AK53: -
A54: 4110-006 | B54: Dishwasher - Training Payroll | C54: Training
A55: 4110-008 | B55: Busboy - Training Payroll | C55: Training
A56: 4110-009 | B56: Server - Training Payroll | C56: Training
A57: 4110-014 | B57: Bartender - Training Payroll | C57: Training | R57: =($B57-$P57)*-1 ->  | S57: =IFERROR($R57/$P57,0) -> 0 | W57: =($B57-$U57)*-1 ->  | X57: =IFERROR($W57/$U57,0) -> 0 | AE57: =($Z57-$AC57)*-1 -> 0 | AF57: =IFERROR($AE57/$AC57,0) -> 0 | AJ57: =($Z57-$AH57)*-1 -> 0 | AK57: =IFERROR($AJ57/$AH57,0) -> 0
A58: 4110-015 | B58: Host - Training Payroll | C58: Training | S58: 0 | X58: 0 | AE58: 0 | AF58: 0 | AJ58: 0 | AK58: 0
A59: 4110-016 | B59: Server Trainer-Training Payroll | C59: Training | R59: - | S59: - | W59: - | X59: - | AE59: - | AF59: - | AJ59: - | AK59: -
A60: 4200-000 | B60: Management Payroll | C60: Management Salaries | R60: =($B60-$P60)*-1 ->  | S60: =IFERROR($R60/$P60,0) -> 0 | W60: =($B60-$U60)*-1 ->  | X60: =IFERROR($W60/$U60,0) -> 0 | AE60: =($Z60-$AC60)*-1 -> 0 | AF60: =IFERROR($AE60/$AC60,0) -> 0 | AJ60: =($Z60-$AH60)*-1 -> 0 | AK60: =IFERROR($AJ60/$AH60,0) -> 0
A61: 4200-001 | B61: Office Mgr. Payroll | C61: Office Manager Salaries
A62: 4200-002 | B62: Part-Time Mgr. Payroll | C62: Part-Time Manager Salaries
A63: 4210-000 | B63: Manager Training | C63: Manager Training | R63: =($B63-$P63)*-1 ->  | S63: =IFERROR($R63/$P63,0) -> 0 | W63: =($B63-$U63)*-1 ->  | X63: =IFERROR($W63/$U63,0) -> 0 | AE63: =($Z63-$AC63)*-1 -> 0 | AF63: =IFERROR($AE63/$AC63,0) -> 0 | AJ63: =($Z63-$AH63)*-1 -> 0 | AK63: =IFERROR($AJ63/$AH63,0) -> 0
A64: 4220-000 | B64: Bonuses | C64: Bonuses | S64: 0 | X64: 0 | AE64: 0 | AF64: 0 | AJ64: 0 | AK64: 0
A65: 4300-000 | B65: Payroll Taxes | C65: Payroll Taxes | S65: 0 | X65: 0 | AE65: 0 | AF65: 0 | AJ65: 0 | AK65: 0
A66: 4310-000 | B66: Workers Comp Insurance | C66: Worker's Comp Insurance | S66: 0 | X66: 0 | AE66: 0 | AF66: 0 | AJ66: 0 | AK66: 0
A67: 4320-000 | B67: Payroll Processing Fee | C67: Payroll Processing Fee | S67: 0 | X67: 0 | AE67: 0 | AF67: 0 | AJ67: 0 | AK67: 0
A68: 4330-000 | B68: Moving Expenses | C68: Moving Expenses | S68: 0 | X68: 0 | AE68: 0 | AF68: 0 | AJ68: 0 | AK68: 0
A69: 4340-000 | B69: Incentive Awards | C69: Incentive Awards | R69: - | S69: - | W69: - | X69: - | AE69: - | AF69: - | AJ69: - | AK69: -
A70: 4350-000 | B70: Vacation Pay | C70: Vacation Pay | R70: =($B70-$P70)*-1 ->  | S70: =IFERROR($R70/$P70,0) -> 0 | W70: =($B70-$U70)*-1 ->  | X70: =IFERROR($W70/$U70,0) -> 0 | AE70: =($Z70-$AC70)*-1 -> 0 | AF70: =IFERROR($AE70/$AC70,0) -> 0 | AJ70: =($Z70-$AH70)*-1 -> 0 | AK70: =IFERROR($AJ70/$AH70,0) -> 0
A71: 4360-001 | B71: Health Insurance - Employee Deductions | C71: Health Insurance-Employee Deductions | R71: - | S71: - | W71: - | X71: - | AE71: - | AF71: - | AJ71: - | AK71: -
A72: 4360-002 | B72: Health Insurance - Claims Paid | C72: Health Insurance-Claims Paid | R72: =($B72-$P72)*-1 ->  | S72: =IFERROR($R72/$P72,0) -> 0 | W72: =($B72-$U72)*-1 ->  | X72: =IFERROR($W72/$U72,0) -> 0 | AE72: =($Z72-$AC72)*-1 -> 0 | AF72: =IFERROR($AE72/$AC72,0) -> 0 | AJ72: =($Z72-$AH72)*-1 -> 0 | AK72: =IFERROR($AJ72/$AH72,0) -> 0
A73: 4360-003 | B73: Health Insurance - Admin. Fees | C73: Health Insurance-Admn. Fees | R73: - | S73: - | W73: - | X73: - | AE73: - | AF73: - | AJ73: - | AK73: -
A74: 4360-004 | B74: Health Insurance - Employee Funded Insurance | C74: Health Insurance-Employee Funded Ins.
A75: 4390-000 | B75: Professional Education & Memberships | C75: Professional Education & Memberships | R75: =($B75-$P75)*-1 ->  | S75: =IFERROR($R75/$P75,0) -> 0 | W75: =($B75-$U75)*-1 ->  | X75: =IFERROR($W75/$U75,0) -> 0 | AE75: =($Z75-$AC75)*-1 -> 0 | AF75: =IFERROR($AE75/$AC75,0) -> 0 | AJ75: =($Z75-$AH75)*-1 -> 0 | AK75: =IFERROR($AJ75/$AH75,0) -> 0
A76: 5100-000 | B76: Paper Goods and Supplies | C76: Paper Goods & Supplies | S76: 0 | X76: 0 | AE76: 0 | AF76: 0 | AJ76: 0 | AK76: 0
A77: 5100-001 | B77: Paper Goods and Supplies-ToGo | C77: Paper Goods & Supplies-ToGo | S77: 0 | X77: 0 | AE77: 0 | AF77: 0 | AJ77: 0 | AK77: 0
A78: 5110-000 | B78: Menus | C78: Menus | S78: 0 | X78: 0 | AE78: 0 | AF78: 0 | AJ78: 0 | AK78: 0
A79: 5110-001 | B79: Logo'd ToGo Supplies | C79: Logo'd ToGo Supplies | S79: 0 | X79: 0 | AE79: 0 | AF79: 0 | AJ79: 0 | AK79: 0
A80: 5110-002 | B80: PoP Merchandise | C80: PoP Merchandise | S80: 0 | X80: 0 | AE80: 0 | AF80: 0 | AJ80: 0 | AK80: 0
A81: 5120-000 | B81: Charcoal | C81: Charcoal | S81: 0 | X81: 0 | AE81: 0 | AF81: 0 | AJ81: 0 | AK81: 0
A82: 5130-000 | B82: Dishwasher Supplies | C82: Dishwasher Supplies | S82: 0 | X82: 0 | AE82: 0 | AF82: 0 | AJ82: 0 | AK82: 0
A83: 5140-000 | B83: Chemical Supplies | C83: Chemical Supplies | S83: 0 | X83: 0 | AE83: 0 | AF83: 0 | AJ83: 0 | AK83: 0
A84: 5150-000 | B84: Janitorial Supplies | C84: Janitorial Supplies | S84: 0 | X84: 0 | AE84: 0 | AF84: 0 | AJ84: 0 | AK84: 0
A85: 5160-000 | B85: Linen and Laundry | C85: Linen and Laundry | S85: 0 | X85: 0 | AE85: 0 | AF85: 0 | AJ85: 0 | AK85: 0
A86: 5170-000 | B86: China and Tableware | C86: China and Tableware | S86: 0 | X86: 0 | AE86: 0 | AF86: 0 | AJ86: 0 | AK86: 0
A87: 5180-000 | B87: Glassware | C87: Glassware | S87: 0 | X87: 0 | AE87: 0 | AF87: 0 | AJ87: 0 | AK87: 0
A88: 5190-000 | B88: Silverware | C88: Silverware | S88: 0 | X88: 0 | AE88: 0 | AF88: 0 | AJ88: 0 | AK88: 0
A89: 5200-000 | B89: Softgoods and Smallwares | C89: Softgoods and Smallwares | S89: 0 | X89: 0 | AE89: 0 | AF89: 0 | AJ89: 0 | AK89: 0
A90: 5210-000 | B90: Uniforms | C90: Uniforms | R90: - | S90: - | W90: - | X90: - | AE90: - | AF90: - | AJ90: - | AK90: -
A91: 5220-000 | B91: Replacement Pagers | C91: Replacement Pagers | R91: =($B91-$P91)*-1 ->  | S91: =IFERROR($R91/$P91,0) -> 0 | W91: =($B91-$U91)*-1 ->  | X91: =IFERROR($W91/$U91,0) -> 0 | AE91: =($Z91-$AC91)*-1 -> 0 | AF91: =IFERROR($AE91/$AC91,0) -> 0 | AJ91: =($Z91-$AH91)*-1 -> 0 | AK91: =IFERROR($AJ91/$AH91,0) -> 0
A92: 5230-000 | B92: Miscellaneous Operating Expenses | C92: Miscellaneous Operating Expenses | R92: - | S92: - | W92: - | X92: - | AE92: - | AF92: - | AJ92: - | AK92: -
A93: 5235-000 | B93: Ice Purchases | C93: Ice Purchases
A94: 5240-000 | B94: R&M - Building | C94: R&M - Building | R94: =($B94-$P94)*-1 ->  | S94: =IFERROR($R94/$P94,0) -> 0 | W94: =($B94-$U94)*-1 ->  | X94: =IFERROR($W94/$U94,0) -> 0 | AE94: =($Z94-$AC94)*-1 -> 0 | AF94: =IFERROR($AE94/$AC94,0) -> 0 | AJ94: =($Z94-$AH94)*-1 -> 0 | AK94: =IFERROR($AJ94/$AH94,0) -> 0
A95: 5240-001 | B95: R&M - Building-Unnecessary | C95: R&M - Building-Unnecessary | R95: - | S95: - | W95: - | X95: - | AE95: - | AF95: - | AJ95: - | AK95: -
A96: 5240-002 | B96: R&M - Building-Health Dept. | C96: R&M - Building-Health Dept.
A97: 5240-003 | B97: R&M - Building-Discretionary | C97: R&M - Building-Discretionary
A98: 5240-004 | B98: R&M - Building-Theft | C98: R&M - Building-Theft
A99: 5240-005 | B99: R&M - Building-Maint. Contracts | C99: R&M - Building-Maint. Contracts | R99: =($B99-$P99)*-1 ->  | S99: =IFERROR($R99/$P99,0) -> 0 | W99: =($B99-$U99)*-1 ->  | X99: =IFERROR($W99/$U99,0) -> 0 | AE99: =($Z99-$AC99)*-1 -> 0 | AF99: =IFERROR($AE99/$AC99,0) -> 0 | AJ99: =($Z99-$AH99)*-1 -> 0 | AK99: =IFERROR($AJ99/$AH99,0) -> 0
A100: 5245-000 | B100: R&M - Electrical-NonEquipment | C100: R&M - Electrical-NonEquipment | S100: 0 | X100: 0 | AE100: 0 | AF100: 0 | AJ100: 0 | AK100: 0
A101: 5245-001 | B101: R&M - Electrical-NonEquipment-Unnecessary | C101: R&M - Electrical-NonEquipment-Unnecessary | S101: 0 | X101: 0 | AE101: 0 | AF101: 0 | AJ101: 0 | AK101: 0
A102: 5250-000 | B102: R&M - Plumbing | C102: R&M - Plumbing | S102: 0 | X102: 0 | AE102: 0 | AF102: 0 | AJ102: 0 | AK102: 0
A103: 5250-001 | B103: R&M - Plumbing-Unnecessary | C103: R&M - Plumbing-Unnecessary | S103: 0 | X103: 0 | AE103: 0 | AF103: 0 | AJ103: 0 | AK103: 0
A104: 5250-002 | B104: R&M - Plumbing-Health Dept. | C104: R&M - Plumbing-Health Dept. | S104: 0 | X104: 0 | AE104: 0 | AF104: 0 | AJ104: 0 | AK104: 0
A105: 5250-003 | B105: R&M - Plumbing-Discretionary | C105: R&M - Plumbing-Discretionary | S105: 0 | X105: 0 | AE105: 0 | AF105: 0 | AJ105: 0 | AK105: 0
A106: 5250-005 | B106: R&M - Plumbing-Maint. Contracts | C106: R&M - Plumbing-Maint. Contracts | S106: 0 | X106: 0 | AE106: 0 | AF106: 0 | AJ106: 0 | AK106: 0
A107: 5260-000 | B107: R&M - Equipment | C107: R&M - Equipment | S107: 0 | X107: 0 | AE107: 0 | AF107: 0 | AJ107: 0 | AK107: 0
A108: 5260-001 | B108: R&M - Equipment-Unnecessary | C108: R&M - Equipment-Unnecessary | S108: 0 | X108: 0 | AE108: 0 | AF108: 0 | AJ108: 0 | AK108: 0
A109: 5260-002 | B109: R&M - Equipment-Health Dept. | C109: R&M - Equipment-Health Dept. | S109: 0 | X109: 0 | AE109: 0 | AF109: 0 | AJ109: 0 | AK109: 0
A110: 5260-005 | B110: R&M - Equipment-Maint. Contracts | C110: R&M - Equipment-Maint. Contracts | S110: 0 | X110: 0 | AE110: 0 | AF110: 0 | AJ110: 0 | AK110: 0
A111: 5265-000 | B111: R&M - Computer Equipment | C111: R&M - Computer Equipment | S111: 0 | X111: 0 | AE111: 0 | AF111: 0 | AJ111: 0 | AK111: 0
A112: 5265-002 | B112: R&M - Computer Equipment-Health Dept. | C112: R&M - Computer Equipment-Health Dept. | S112: 0 | X112: 0 | AE112: 0 | AF112: 0 | AJ112: 0 | AK112: 0
A113: 5265-005 | B113: R&M - Computer Equipment-Maint. Contracts | C113: R&M - Computer Equipment-Maint. Contracts | S113: 0 | X113: 0 | AE113: 0 | AF113: 0 | AJ113: 0 | AK113: 0
A114: 5270-000 | B114: R&M - Refrigeration | C114: R&M - Refrigeration | S114: 0 | X114: 0 | AE114: 0 | AF114: 0 | AJ114: 0 | AK114: 0
A115: 5270-001 | B115: R&M - Refrigeration-Unnecessary | C115: R&M - Refrigeration-Unnecessary | S115: 0 | X115: 0 | AE115: 0 | AF115: 0 | AJ115: 0 | AK115: 0
A116: 5270-002 | B116: R&M - Refrigeration-Health Dept. | C116: R&M - Refrigeration-Health Dept. | S116: 0 | X116: 0 | AE116: 0 | AF116: 0 | AJ116: 0 | AK116: 0
A117: 5270-005 | B117: R&M - Refrigeration-Maint. Contracts | C117: R&M - Refrigeration-Maint. Contracts | S117: 0 | X117: 0 | AE117: 0 | AF117: 0 | AJ117: 0 | AK117: 0
A118: 5280-000 | B118: R&M - Air Conditioning | C118: R&M - Air Conditioning | S118: 0 | X118: 0 | AE118: 0 | AF118: 0 | AJ118: 0 | AK118: 0
A119: 5280-001 | B119: R&M - Air Conditioning-Unnecessary | C119: R&M - Air Conditioning-Unnecessary | S119: 0 | X119: 0 | AE119: 0 | AF119: 0 | AJ119: 0 | AK119: 0
A120: 5280-003 | B120: R&M - Air Conditioning-Discretionary | C120: R&M - Air Conditioning-Discretionary | S120: 0 | X120: 0 | AE120: 0 | AF120: 0 | AJ120: 0 | AK120: 0
A121: 5280-005 | B121: R&M - Air Conditioning-Maint. Contracts | C121: R&M - Air Conditioning-Maint. Contracts | S121: 0 | X121: 0 | AE121: 0 | AF121: 0 | AJ121: 0 | AK121: 0
A122: 5290-000 | B122: R&M - Rita Machine | C122: R&M - Rita Machine | S122: 0 | X122: 0 | AE122: 0 | AF122: 0 | AJ122: 0 | AK122: 0
A123: 5290-001 | B123: R&M - Rita Machine-Unnecessary | C123: R&M - Rita Machine-Unnecessary | S123: 0 | X123: 0 | AE123: 0 | AF123: 0 | AJ123: 0 | AK123: 0
A124: 5290-005 | B124: R&M - Rita Machine-Maint. Contracts | C124: R&M - Rita Machine-Maint. Contracts | S124: 0 | X124: 0 | AE124: 0 | AF124: 0 | AJ124: 0 | AK124: 0
A125: 5295-000 | B125: Fire, Life & Safety | C125: Fire, Life & Safety | S125: 0 | X125: 0 | AE125: 0 | AF125: 0 | AJ125: 0 | AK125: 0
A126: 5295-001 | B126: Fire, Life & Safety-Unnecessary | C126: Fire. Life & Safety-Unnecessary | S126: 0 | X126: 0 | AE126: 0 | AF126: 0 | AJ126: 0 | AK126: 0
A127: 5295-005 | B127: Fire, Life & Safety-Maint. Contracts | C127: Fire, Life & Safety-Maint. Contracts | S127: 0 | X127: 0 | AE127: 0 | AF127: 0 | AJ127: 0 | AK127: 0
A128: 5300-000 | B128: Cash Paid-Outs | C128: Cash Paid-Outs | S128: 0 | X128: 0 | AE128: 0 | AF128: 0 | AJ128: 0 | AK128: 0
A129: 5310-000 | B129: Cash (Over) / Short | C129: Cash (Over) / Short | S129: 0 | X129: 0 | AE129: 0 | AF129: 0 | AJ129: 0 | AK129: 0
A130: 5320-000 | B130: Complaint Letters | C130: Complaint Letters | S130: 0 | X130: 0 | AE130: 0 | AF130: 0 | AJ130: 0 | AK130: 0
A131: 5330-000 | B131: Employment Ads | C131: Employment Ads | S131: 0 | X131: 0 | AE131: 0 | AF131: 0 | AJ131: 0 | AK131: 0
A132: 5340-000 | B132: Office Supplies | C132: Office Supplies | S132: 0 | X132: 0 | AE132: 0 | AF132: 0 | AJ132: 0 | AK132: 0
A133: 5350-000 | B133: Printed Office Matter | C133: Printed Office Matter | S133: 0 | X133: 0 | AE133: 0 | AF133: 0 | AJ133: 0 | AK133: 0
A134: 5370-000 | B134: Sales Tax & Freight/Delivery Expense | C134: Sales Tax & Freight/Delivery Expense | S134: 0 | X134: 0 | AE134: 0 | AF134: 0 | AJ134: 0 | AK134: 0
A135: 6100-000 | B135: Services | C135: Services | S135: 0 | X135: 0 | AE135: 0 | AF135: 0 | AJ135: 0 | AK135: 0
A136: 6101-000 | B136: Cable / Music Services | C136: Cable / Music Services | S136: 0 | X136: 0 | AE136: 0 | AF136: 0 | AJ136: 0 | AK136: 0
A137: 6102-000 | B137: Trash / Waste Removal Services | C137: Trash / Waste Removal Services | S137: 0 | X137: 0 | AE137: 0 | AF137: 0 | AJ137: 0 | AK137: 0
A138: 6103-000 | B138: Hood Cleaning Services | C138: Hood Cleaning Services | S138: 0 | X138: 0 | AE138: 0 | AF138: 0 | AJ138: 0 | AK138: 0
A139: 6104-000 | B139: Armored Car Services | C139: Armored Car Services | S139: 0 | X139: 0 | AE139: 0 | AF139: 0 | AJ139: 0 | AK139: 0
A140: 6105-000 | B140: Pest Control Services | C140: Pest Control Services | S140: 0 | X140: 0 | AE140: 0 | AF140: 0 | AJ140: 0 | AK140: 0
A141: 6106-000 | B141: Grease Trap Servicing | C141: Grease Trap Servicing | S141: 0 | X141: 0 | AE141: 0 | AF141: 0 | AJ141: 0 | AK141: 0
A142: 6107-000 | B142: Cleaning Services | C142: Cleaning Services | S142: 0 | X142: 0 | AE142: 0 | AF142: 0 | AJ142: 0 | AK142: 0
A143: 6108-000 | B143: Temporary Labor | C143: Temporary Labor | S143: 0 | X143: 0 | AE143: 0 | AF143: 0 | AJ143: 0 | AK143: 0
A144: 6109-000 | B144: Programming & Computer Services | C144: Programming & Computer Services | S144: 0 | X144: 0 | AE144: 0 | AF144: 0 | AJ144: 0 | AK144: 0
A145: 6110-000 | B145: Landscaping | C145: Landscaping | S145: 0 | X145: 0 | AE145: 0 | AF145: 0 | AJ145: 0 | AK145: 0
A146: 6120-000 | B146: Interior Plant Maintenance | C146: Interior Plant Maintenance | S146: 0 | X146: 0 | AE146: 0 | AF146: 0 | AJ146: 0 | AK146: 0
A147: 6130-000 | B147: Parking / Valet | C147: Parking / Valet | S147: 0 | X147: 0 | AE147: 0 | AF147: 0 | AJ147: 0 | AK147: 0
A148: 6140-000 | B148: Security | C148: Security | S148: 0 | X148: 0 | AE148: 0 | AF148: 0 | AJ148: 0 | AK148: 0
A149: 6150-001 | B149: Utilities - Electric | C149: Utilities-Electric | S149: 0 | X149: 0 | AE149: 0 | AF149: 0 | AJ149: 0 | AK149: 0
A150: 6150-002 | B150: Utilities - Gas | C150: Utilities-Gas | S150: 0 | X150: 0 | AE150: 0 | AF150: 0 | AJ150: 0 | AK150: 0
A151: 6150-003 | B151: Utilities - Water | C151: Utilities-Water | S151: 0 | X151: 0 | AE151: 0 | AF151: 0 | AJ151: 0 | AK151: 0
A152: 6150-004 | B152: Utilities - Telephone | C152: Utilities-Telephone | S152: 0 | X152: 0 | AE152: 0 | AF152: 0 | AJ152: 0 | AK152: 0
A153: 6160-000 | B153: Equipment Rental / Leasing | C153: Equipment Rental / Leasing | S153: 0 | X153: 0 | AE153: 0 | AF153: 0 | AJ153: 0 | AK153: 0
A154: 6170-000 | B154: Advertising-TV | C154: Advertising-TV | S154: 0 | X154: 0 | AE154: 0 | AF154: 0 | AJ154: 0 | AK154: 0
A155: 6170-001 | B155: Advertising-Out of Home | C155: Advertising-Out of Home | S155: 0 | X155: 0 | AE155: 0 | AF155: 0 | AJ155: 0 | AK155: 0
A156: 6170-002 | B156: Advertising-Radio | C156: Advertising-Radio | S156: 0 | X156: 0 | AE156: 0 | AF156: 0 | AJ156: 0 | AK156: 0
A157: 6170-003 | B157: Advertising-Print | C157: Advertising-Print | S157: 0 | X157: 0 | AE157: 0 | AF157: 0 | AJ157: 0 | AK157: 0
A158: 6170-004 | B158: Advertising-Online | C158: Advertising-Online | S158: 0 | X158: 0 | AE158: 0 | AF158: 0 | AJ158: 0 | AK158: 0
A159: 6175-001 | B159: Agency Fees-Public Relations | C159: Agency Fees-Public Relations | S159: 0 | X159: 0 | AE159: 0 | AF159: 0 | AJ159: 0 | AK159: 0
A160: 6175-003 | B160: Agency Fees-Email | C160: Agency Fees-Email | S160: 0 | X160: 0 | AE160: 0 | AF160: 0 | AJ160: 0 | AK160: 0
A161: 6175-004 | B161: Agency Fees-Website | C161: Agency Fees-Website | S161: 0 | X161: 0 | AE161: 0 | AF161: 0 | AJ161: 0 | AK161: 0
A162: 6175-005 | B162: Agency Fees-Creative & Strategy | C162: Agency Fees-Creative & Strategy | S162: 0 | X162: 0 | AE162: 0 | AF162: 0 | AJ162: 0 | AK162: 0
A163: 6175-006 | B163: Agency Fees-Loyalty/Consumer Research | C163: Agency Fees-Loyalty/Consumer Research | R163: =($B163-$P163)*-1 ->  | S163: =IFERROR($R163/$P163,0) -> 0 | W163: =($B163-$U163)*-1 ->  | X163: =IFERROR($W163/$U163,0) -> 0 | AE163: =($Z163-$AC163)*-1 -> 0 | AF163: =IFERROR($AE163/$AC163,0) -> 0 | AJ163: =($Z163-$AH163)*-1 -> 0 | AK163: =IFERROR($AJ163/$AH163,0) -> 0
A164: 6180-000 | B164: Cinco de Mayo Event | C164: Cinco de Mayo Event | S164: 0 | X164: 0 | AE164: 0 | AF164: 0 | AJ164: 0 | AK164: 0
A165: 6180-001 | B165: Local Store-Level Donations | C165: Local Store-Level Donations | S165: 0 | X165: 0 | AE165: 0 | AF165: 0 | AJ165: 0 | AK165: 0
A166: 6180-002 | B166: Local Store Marketing - Labor & Product | C166: Local Store Marketing-Labor & Product | S166: 0 | X166: 0 | AE166: 0 | AF166: 0 | AJ166: 0 | AK166: 0
A167: 6180-003 | B167: Catering Promos/Donations | C167: Catering Promos/Donations | S167: 0 | X167: 0 | AE167: 0 | AF167: 0 | AJ167: 0 | AK167: 0
A168: 6180-004 | B168: Other Local Promotions/Misc. | C168: Other Local Promotions/Misc. | S168: 0 | X168: 0 | AE168: 0 | AF168: 0 | AJ168: 0 | AK168: 0
A169: 6180-005 | B169: LSM Redemptions & Reward Cards | C169: LSM Redemptions & Reward Cards | S169: 0 | X169: 0 | AE169: 0 | AF169: 0 | AJ169: 0 | AK169: 0
A170: 6180-006 | B170: Boutique/Mdse & Other In-Store Support | C170: Boutique/Mdse & Other In-Store Support | S170: 0 | X170: 0 | AE170: 0 | AF170: 0 | AJ170: 0 | AK170: 0
A171: 6180-007 | B171: Take-Out/3rd Party Expenses | C171: Take-Out/3rd Party Expenses | S171: 0 | X171: 0 | AE171: 0 | AF171: 0 | AJ171: 0 | AK171: 0
A172: 6180-008 | B172: Store-Level Donated Product Cost | C172: Store Level Donated Product Cost | R172: - | S172: - | W172: - | X172: - | AE172: - | AF172: - | AJ172: - | AK172: -
A173: 6180-009 | B173: Local Store Mktng-Other Programs | C173: Local Store Mktng-Other Programs | R173: =($B173-$P173)*-1 ->  | S173: =IFERROR($R173/$P173,0) -> 0 | W173: =($B173-$U173)*-1 ->  | X173: =IFERROR($W173/$U173,0) -> 0 | AE173: =($Z173-$AC173)*-1 -> 0 | AF173: =IFERROR($AE173/$AC173,0) -> 0 | AJ173: =($Z173-$AH173)*-1 -> 0 | AK173: =IFERROR($AJ173/$AH173,0) -> 0
A174: 6180-011 | B174: Dinova Business Customer | C174: Dinova Business Customer | R174: - | S174: - | W174: - | X174: - | AE174: - | AF174: - | AJ174: - | AK174: -
A175: 6180-012 | B175: Bulk/3rd Party Gift Cards | C175: Bulk/3rd Party Gift Cards
A176: 6190-000 | B176: Int. Promo. - Misc. | C176: Internal Promotion-Misc. | R176: =($B176-$P176)*-1 ->  | S176: =IFERROR($R176/$P176,0) -> 0 | W176: =($B176-$U176)*-1 ->  | X176: =IFERROR($W176/$U176,0) -> 0 | AE176: =($Z176-$AC176)*-1 -> 0 | AF176: =IFERROR($AE176/$AC176,0) -> 0 | AJ176: =($Z176-$AH176)*-1 -> 0 | AK176: =IFERROR($AJ176/$AH176,0) -> 0
A177: 6190-002 | B177: Int. Promo. - Gifts | C177: Int. Promo.-Gifts | S177: 0 | X177: 0 | AE177: 0 | AF177: 0 | AJ177: 0 | AK177: 0
A178: 6200-000 | B178: Operational Meetings | C178: Operational Meetings | S178: 0 | X178: 0 | AE178: 0 | AF178: 0 | AJ178: 0 | AK178: 0
A179: 6210-000 | B179: Trade Conventions and Events | C179: Trade Conventions & Events | S179: 0 | X179: 0 | AE179: 0 | AF179: 0 | AJ179: 0 | AK179: 0
A180: 6220-000 | B180: Dues and Subscriptions | C180: Dues and Subscriptions | S180: 0 | X180: 0 | AE180: 0 | AF180: 0 | AJ180: 0 | AK180: 0
A181: 6230-000 | B181: Licenses and Fees | C181: Licenses and Fees | S181: 0 | X181: 0 | AE181: 0 | AF181: 0 | AJ181: 0 | AK181: 0
A182: 6240-000 | B182: AMEX Discount Fees | C182: Credit Card Discount Fees | S182: 0 | X182: 0 | AE182: 0 | AF182: 0 | AJ182: 0 | AK182: 0
A183: 6250-000 | B183: MC/VISA/Diners/Discover Discount Fees | C183: Credit Card Discount Fees | S183: 0 | X183: 0 | AE183: 0 | AF183: 0 | AJ183: 0 | AK183: 0
A184: 6260-000 | B184: Bad Credit Cards / Bad Debts | C184: Bad Credit Cards / Bad Debts | S184: 0 | X184: 0 | AE184: 0 | AF184: 0 | AJ184: 0 | AK184: 0
A185: 6270-000 | B185: Bank Charges | C185: Bank Charges | S185: 0 | X185: 0 | AE185: 0 | AF185: 0 | AJ185: 0 | AK185: 0
A186: 6280-000 | B186: Postage | C186: Postage | S186: 0 | X186: 0 | AE186: 0 | AF186: 0 | AJ186: 0 | AK186: 0
A187: 6290-000 | B187: Vehicle Expense | C187: Vehicle Expense | S187: 0 | X187: 0 | AE187: 0 | AF187: 0 | AJ187: 0 | AK187: 0
A188: 6300-000 | B188: Other Inventory Adjustment | C188: Other Inventory Adjustment | S188: 0 | X188: 0 | AE188: 0 | AF188: 0 | AJ188: 0 | AK188: 0
A189: 7100-000 | B189: Travel | C189: Travel | S189: 0 | X189: 0 | AE189: 0 | AF189: 0 | AJ189: 0 | AK189: 0
A190: 7110-000 | B190: Meals and Entertainment | C190: Meals and Entertainment | S190: 0 | X190: 0 | AE190: 0 | AF190: 0 | AJ190: 0 | AK190: 0
A191: 7120-000 | B191: Consulting | C191: Consulting | S191: 0 | X191: 0 | AE191: 0 | AF191: 0 | AJ191: 0 | AK191: 0
A192: 7130-000 | B192: Accounting Fees | C192: Accounting Fees | S192: 0 | X192: 0 | AE192: 0 | AF192: 0 | AJ192: 0 | AK192: 0
A193: 7140-000 | B193: Legal / Professional Fees | C193: Legal / Professional Fees | S193: 0 | X193: 0 | AE193: 0 | AF193: 0 | AJ193: 0 | AK193: 0
A194: 7140-006 | B194: Legal / Professional Fees-Reston Parking | C194: Legal - Unusual Expenses | S194: 0 | X194: 0 | AE194: 0 | AF194: 0 | AJ194: 0 | AK194: 0
A195: 7140-007 | B195: Legal / Professional Fees-FLSA Class Action | C195: Legal - Unusual Expenses | S195: 0 | X195: 0 | AE195: 0 | AF195: 0 | AJ195: 0 | AK195: 0
A196: 7160-000 | B196: Late Fees | C196: Late Fees | S196: 0 | X196: 0 | AE196: 0 | AF196: 0 | AJ196: 0 | AK196: 0
A197: 7170-000 | B197: Penalties | C197: Penalties | S197: 0 | X197: 0 | AE197: 0 | AF197: 0 | AJ197: 0 | AK197: 0
A198: 7180-000 | B198: Research & Development | C198: Research & Development | S198: 0 | X198: 0 | AE198: 0 | AF198: 0 | AJ198: 0 | AK198: 0
A199: 7185-000 | B199: Quality Control Program | C199: Quality Control Program | S199: 0 | X199: 0 | AE199: 0 | AF199: 0 | AJ199: 0 | AK199: 0
A200: 7185-001 | B200: Quality Control Program-Old Julio Club Progam | C200: Quality Control Program | S200: 0 | X200: 0 | AE200: 0 | AF200: 0 | AJ200: 0 | AK200: 0
... 118 more rows

Sheet Comments
A1: Back to ToC
A2: # | B2: Store | C2: Line item | D2: Comment | E2: Comparison | F2: Response | G2: Link

Sheet Consol
A1: Back to ToC
B2: Period 12 2018 | C2: Period 11 2018 | D2: Period 10 2018 | E2: Period 9 2018 | F2: Period 8 2018 | G2: Period 7 2018 | I2: Period 12 2018 | J2: Period 11 2018 | K2: Period 10 2018 | L2: Period 9 2018 | M2: Period 8 2018 | N2: Period 7 2018 | P2: Period 12 2017 | Q2: Period 12 2017 | U2: Period 12 2018 | V2: Period 12 2018 | Z2: Period 12 2018 | AA2: Period 12 2018 | AC2: Period 12 2017 | AD2: Period 12 2017 | AH2: Period 12 2018 | AI2: Period 12 2018
B3: PTD | C3: PTD | D3: PTD | E3: PTD | F3: PTD | G3: PTD | I3: PTD | J3: PTD | K3: PTD | L3: PTD | M3: PTD | N3: PTD | P3: PTD | Q3: PTD | R3: PTD | S3: PTD | U3: PTD | V3: PTD | W3: PTD | X3: PTD | Z3: YTD | AA3: YTD | AC3: YTD | AD3: YTD | AE3: YTD | AF3: YTD | AH3: YTD | AI3: YTD | AJ3: YTD | AK3: YTD
B4: ACT $ | C4: ACT $ | D4: ACT $ | E4: ACT $ | F4: ACT $ | G4: ACT $ | I4: ACT %S | J4: ACT %S | K4: ACT %S | L4: ACT %S | M4: ACT %S | N4: ACT %S | P4: PY $ | Q4: PY %S | R4: B(W) PY | S4: B(W) PY | U4: BUD $ | V4: BUD %S | W4: B(W) BUD | X4: B(W) BUD | Z4: ACT $ | AA4: ACT %S | AC4: PY $ | AD4: PY %S | AE4: B(W) PY | AF4: B(W) PY | AH4: BUD $ | AI4: BUD %S | AJ4: B(W) BUD | AK4: B(W) BUD
B5: 09/30/18 | C5: 09/02/18 | D5: 08/05/18 | E5: 07/08/18 | F5: 06/10/18 | G5: 05/13/18 | I5: 09/30/18 | J5: 09/02/18 | K5: 08/05/18 | L5: 07/08/18 | M5: 06/10/18 | N5: 05/13/18 | P5: 10/01/17 | Q5: 10/01/17 | R5: $ | S5: % | U5: 09/30/18 | V5: 09/30/18 | W5: $ | X5: % | Z5: 09/30/18 | AA5: 09/30/18 | AC5: 10/01/17 | AD5: 10/01/17 | AE5: $ | AF5: % | AH5: 09/30/18 | AI5: 09/30/18 | AJ5: $ | AK5: %
A7: SALES
A8: Food Sales | B8: 9472739.411 | C8: 9138400.38 | D8: 9310333.752 | E8: 10956623.73 | F8: 7527902.348 | G8: 9256377.07 | I8: =IF(B8="","",IFERROR(B8/B$19,0)) -> 0.8206902602 | J8: =IF(C8="","",IFERROR(C8/C$19,0)) -> 0.7995068052 | K8: =IF(D8="","",IFERROR(D8/D$19,0)) -> 0.7334167383 | L8: =IF(E8="","",IFERROR(E8/E$19,0)) -> 0.8056418073 | M8: =IF(F8="","",IFERROR(F8/F$19,0)) -> 0.7573937334 | N8: =IF(G8="","",IFERROR(G8/G$19,0)) -> 0.7670351624 | P8: 8109882.689 | Q8: =IF(P8="","",IFERROR(P8/P$19,0)) -> 0.7945021032 | R8: =($B8-$P8) -> 1362856.723 | S8: =IFERROR($R8/$P8,0) -> 0.1680488824 | U8: 9022080.964 | V8: =IF(U8="","",IFERROR(U8/U$19,0)) -> 0.8064002185 | W8: =($B8-$U8) -> 450658.4478 | X8: =IFERROR($W8/$U8,0) -> 0.04995061002 | Z8: 94381238.34 | AA8: =IF(Z8="","",IFERROR(Z8/Z$19,0)) -> 0.7304770569 | AC8: 71138961.93 | AD8: =IF(AC8="","",IFERROR(AC8/AC$19,0)) -> 0.7078447231 | AE8: =($Z8-$AC8) -> 23242276.4 | AF8: =IFERROR($AE8/$AC8,0) -> 0.3267165527 | AH8: 115595867.8 | AI8: =IF(AH8="","",IFERROR(AH8/AH$19,0)) -> 0.778167019 | AJ8: =($Z8-$AH8) -> -21214629.46 | AK8: =IFERROR($AJ8/$AH8,0) -> -0.1835241161
A9: Bar Sales: | W9: =($B9-$U9) -> 0 | X9: =IFERROR($W9/$U9,0) -> 0 | AE9: =($Z9-$AC9) -> 0 | AF9: =IFERROR($AE9/$AC9,0) -> 0 | AJ9: =($Z9-$AH9) -> 0 | AK9: =IFERROR($AJ9/$AH9,0) -> 0
A10: Liquor Sales | B10: 1719600.013 | C10: 1866694.861 | D10: 2930395.336 | E10: 2185364.825 | F10: 2041233.037 | G10: 2325168.157 | I10: =IF(B10="","",IFERROR(B10/B$19,0)) -> 0.1489810836 | J10: =IF(C10="","",IFERROR(C10/C$19,0)) -> 0.163314714 | K10: =IF(D10="","",IFERROR(D10/D$19,0)) -> 0.2308403809 | L10: =IF(E10="","",IFERROR(E10/E$19,0)) -> 0.1606901278 | M10: =IF(F10="","",IFERROR(F10/F$19,0)) -> 0.2053715683 | N10: =IF(G10="","",IFERROR(G10/G$19,0)) -> 0.192676435 | P10: 1740739 | Q10: =IF(P10="","",IFERROR(P10/P$19,0)) -> 0.1705352407 | R10: =($B10-$P10) -> -21138.9872 | S10: =IFERROR($R10/$P10,0) -> -0.01214368564 | U10: 1756936.533 | V10: =IF(U10="","",IFERROR(U10/U$19,0)) -> 0.1570362768 | W10: =($B10-$U10) -> -37336.5199 | X10: =IFERROR($W10/$U10,0) -> -0.02125092125 | Z10: 29402919.99 | AA10: =IF(Z10="","",IFERROR(Z10/Z$19,0)) -> 0.2275680934 | AC10: 24608414.18 | AD10: =IF(AC10="","",IFERROR(AC10/AC$19,0)) -> 0.2448578901 | AE10: =($Z10-$AC10) -> 4794505.813 | AF10: =IFERROR($AE10/$AC10,0) -> 0.19483197 | AH10: 26829805.8 | AI10: =IF(AH10="","",IFERROR(AH10/AH$19,0)) -> 0.180612598 | AJ10: =($Z10-$AH10) -> 2573114.194 | AK10: =IFERROR($AJ10/$AH10,0) -> 0.09590506221
A11: Beer Sales | B11: 247750.915 | C11: 321953.0899 | D11: 363039.2776 | E11: 366201.1002 | F11: 274785.0164 | G11: 394688.0802 | I11: 0.02146441004 | J11: 0.02816725856 | K11: 0.02859823181 | L11: 0.02692680917 | M11: 0.02764653948 | N11: 0.03270606128 | P11: 253295.2394 | Q11: 0.024814613 | R11: =($B11-$P11) -> -5544.3244 | S11: =IFERROR($R11/$P11,0) -> -0.02188878249 | U11: 300239.81 | V11: 0.02683565459 | W11: =($B11-$U11) -> -52488.895 | X11: =IFERROR($W11/$U11,0) -> -0.1748232355 | Z11: 4127342.403 | AA11: 0.03194415526 | AC11: 3734563.342 | AD11: 0.03715953794 | AE11: =($Z11-$AC11) -> 392779.0611 | AF11: =IFERROR($AE11/$AC11,0) -> 0.1051740258 | AH11: 4955775.715 | AI11: 0.03336123763 | AJ11: =($Z11-$AH11) -> -828433.3121 | AK11: =IFERROR($AJ11/$AH11,0) -> -0.1671652148
A12: Wine Sales | B12: 87446.0529 | C12: 85811.9964 | D12: 72687.4298 | E12: 75976.8264 | F12: 79632.0792 | G12: 74501.7108 | I12: 0.007576068632 | J12: 0.007507580346 | K12: 0.005725914785 | L12: 0.005586584815 | M12: 0.008011904908 | N12: 0.006173628344 | P12: 86093.3121 | Q12: 0.008434316519 | R12: =($B12-$P12) -> 1352.7408 | S12: =IFERROR($R12/$P12,0) -> 0.01571249574 | U12: 92060.7552 | V12: 0.00822845787 | W12: =($B12-$U12) -> -4614.7023 | X12: =IFERROR($W12/$U12,0) -> -0.0501267048 | Z12: 1090838.768 | AA12: 0.008442702242 | AC12: 777203.2233 | AD12: 0.007733303741 | AE12: =($Z12-$AC12) -> 313635.5443 | AF12: =IFERROR($AE12/$AC12,0) -> 0.4035438028 | AH12: 939224.73 | AI12: 0.006322662931 | AJ12: =($Z12-$AH12) -> 151614.0376 | AK12: =IFERROR($AJ12/$AH12,0) -> 0.1614246652
B13: - | C13: - | D13: - | E13: - | F13: - | G13: - | I13: - | J13: - | K13: - | L13: - | M13: - | N13: - | P13: - | Q13: - | R13: - | S13: - | U13: - | V13: - | W13: - | X13: - | Z13: - | AA13: - | AC13: - | AD13: - | AE13: - | AF13: - | AH13: - | AI13: - | AJ13: - | AK13: -
A14: Subtotal Bar Sales | B14: =SUM(B10:B12) -> 2054796.981 | C14: =SUM(C10:C12) -> 2274459.947 | D14: =SUM(D10:D12) -> 3366122.043 | E14: =SUM(E10:E12) -> 2627542.752 | F14: 2395650.133 | G14: 2794357.948 | I14: =IF(B14="","",IFERROR(B14/B$19,0)) -> 0.1780215623 | J14: =IF(C14="","",IFERROR(C14/C$19,0)) -> 0.1989895529 | K14: =IF(D14="","",IFERROR(D14/D$19,0)) -> 0.2651645275 | L14: =IF(E14="","",IFERROR(E14/E$19,0)) -> 0.1932035218 | M14: =IF(F14="","",IFERROR(F14/F$19,0)) -> 0.2410300126 | N14: =IF(G14="","",IFERROR(G14/G$19,0)) -> 0.2315561247 | P14: =SUM(P10:P12) -> 2080127.552 | Q14: =IF(P14="","",IFERROR(P14/P$19,0)) -> 0.2037841702 | R14: =($B14-$P14) -> -25330.5708 | S14: =IFERROR($R14/$P14,0) -> -0.01217741228 | U14: =SUM(U10:U12) -> 2149237.098 | V14: =IF(U14="","",IFERROR(U14/U$19,0)) -> 0.1921003893 | W14: =($B14-$U14) -> -94440.1172 | X14: =IFERROR($W14/$U14,0) -> -0.04394122793 | Z14: =SUM(Z10:Z12) -> 34621101.16 | AA14: =IF(Z14="","",IFERROR(Z14/Z$19,0)) -> 0.2679549509 | AC14: =SUM(AC10:AC12) -> 29120180.74 | AD14: =IF(AC14="","",IFERROR(AC14/AC$19,0)) -> 0.2897507317 | AE14: =($Z14-$AC14) -> 5500920.418 | AF14: =IFERROR($AE14/$AC14,0) -> 0.1889040616 | AH14: =SUM(AH10:AH12) -> 32724806.24 | AI14: =IF(AH14="","",IFERROR(AH14/AH$19,0)) -> 0.2202964985 | AJ14: =($Z14-$AH14) -> 1896294.92 | AK14: =IFERROR($AJ14/$AH14,0) -> 0.05794671191
A16: Other Sales-Boutique | B16: 1259.35 | C16: 1307.3 | D16: 1116.2888 | E16: 1669.35 | F16: 2428.5625 | G16: 1040.985 | I16: =IF(B16="","",IFERROR(B16/B$19,0)) -> 0.0001091063772 | J16: =IF(C16="","",IFERROR(C16/C$19,0)) -> 0.0001143739826 | K16: =IF(D16="","",IFERROR(D16/D$19,0)) -> 8.793507435e-05 | L16: =IF(E16="","",IFERROR(E16/E$19,0)) -> 0.0001227474982 | M16: =IF(F16="","",IFERROR(F16/F$19,0)) -> 0.0002443413761 | N16: =IF(G16="","",IFERROR(G16/G$19,0)) -> 8.626183791e-05 | P16: 1260.25 | Q16: =IF(P16="","",IFERROR(P16/P$19,0)) -> 0.0001234631022 | R16: =($B16-$P16) -> -0.9 | S16: =IFERROR($R16/$P16,0) -> -0.000714144019 | U16: 0 | V16: 0 | W16: =($B16-$U16) -> 1259.35 | X16: =IFERROR($W16/$U16,0) -> 0 | Z16: 15704.135 | AA16: =IF(Z16="","",IFERROR(Z16/Z$19,0)) -> 0.0001215443929 | AC16: 17808.1675 | AD16: =IF(AC16="","",IFERROR(AC16/AC$19,0)) -> 0.0001771942836 | AE16: =($Z16-$AC16) -> -2104.0325 | AF16: =IFERROR($AE16/$AC16,0) -> -0.1181498602 | AH16: 0 | AI16: =IF(AH16="","",IFERROR(AH16/AH$19,0)) -> 0 | AJ16: =($Z16-$AH16) -> 15704.135 | AK16: =IFERROR($AJ16/$AH16,0) -> 0
A17: Other Sales-Packaging | B17: 13609.3167 | C17: 15879.3975 | D17: 16893.784 | E17: 14034.0236 | F17: 13238.1712 | G17: 15958.9899 | I17: 0.001179071141 | J17: 0.001389267906 | K17: 0.00133079912 | L17: 0.001031923375 | M17: 0.001331912589 | N17: 0.00132245114 | P17: 16232.6193 | Q17: 0.001590263469 | R17: =($B17-$P17) -> -2623.3026 | S17: =IFERROR($R17/$P17,0) -> -0.1616068579 | U17: 16775.34 | V17: 0.001499392202 | W17: =($B17-$U17) -> -3166.0233 | X17: =IFERROR($W17/$U17,0) -> -0.1887307977 | Z17: 186888.2004 | AA17: 0.001446447885 | AC17: 223850.5434 | AD17: 0.00222735083 | AE17: =($Z17-$AC17) -> -36962.343 | AF17: =IFERROR($AE17/$AC17,0) -> -0.1651206311 | AH17: 228242.8135 | AI17: 0.001536482516 | AJ17: =($Z17-$AH17) -> -41354.6131 | AK17: =IFERROR($AJ17/$AH17,0) -> -0.1811869231
B18: - | C18: - | D18: - | E18: - | F18: - | G18: - | I18: - | J18: - | K18: - | L18: - | M18: - | N18: - | P18: - | Q18: - | R18: - | S18: - | U18: - | V18: - | W18: - | X18: - | Z18: - | AA18: - | AC18: - | AD18: - | AE18: - | AF18: - | AH18: - | AI18: - | AJ18: - | AK18: -
A19: TOTAL NET SALES | B19: =SUM(B8,B14,B16,B17) -> 11542405.06 | C19: =SUM(C8,C14,C16,C17) -> 11430047.02 | D19: =SUM(D8,D14,D16,D17) -> 12694465.87 | E19: =SUM(E8,E14,E16,E17) -> 13599869.85 | F19: 9939219.214 | G19: 12067734.99 | I19: =IF(B19="","",IFERROR(B19/B$19,0)) -> 1 | J19: =IF(C19="","",IFERROR(C19/C$19,0)) -> 1 | K19: =IF(D19="","",IFERROR(D19/D$19,0)) -> 1 | L19: =IF(E19="","",IFERROR(E19/E$19,0)) -> 1 | M19: =IF(F19="","",IFERROR(F19/F$19,0)) -> 1 | N19: =IF(G19="","",IFERROR(G19/G$19,0)) -> 1 | P19: =SUM(P8,P14,P16,P17) -> 10207503.11 | Q19: =IF(P19="","",IFERROR(P19/P$19,0)) -> 1 | R19: =($B19-$P19) -> 1334901.949 | S19: =IFERROR($R19/$P19,0) -> 0.130776541 | U19: =SUM(U8,U14,U16,U17) -> 11188093.4 | V19: =IF(U19="","",IFERROR(U19/U$19,0)) -> 1 | W19: =($B19-$U19) -> 354311.6573 | X19: =IFERROR($W19/$U19,0) -> 0.03166863599 | Z19: =SUM(Z8,Z14,Z16,Z17) -> 129204931.8 | AA19: =IF(Z19="","",IFERROR(Z19/Z$19,0)) -> 1 | AC19: =SUM(AC8,AC14,AC16,AC17) -> 100500801.4 | AD19: =IF(AC19="","",IFERROR(AC19/AC$19,0)) -> 1 | AE19: =($Z19-$AC19) -> 28704130.45 | AF19: =IFERROR($AE19/$AC19,0) -> 0.2856109608 | AH19: =SUM(AH8,AH14,AH16,AH17) -> 148548916.8 | AI19: =IF(AH19="","",IFERROR(AH19/AH$19,0)) -> 1 | AJ19: =($Z19-$AH19) -> -19343985.02 | AK19: =IFERROR($AJ19/$AH19,0) -> -0.1302196302
B20: - | C20: - | D20: - | E20: - | F20: - | G20: - | I20: - | J20: - | K20: - | L20: - | M20: - | N20: - | P20: - | Q20: - | R20: - | S20: - | U20: - | V20: - | W20: - | X20: - | Z20: - | AA20: - | AC20: - | AD20: - | AE20: - | AF20: - | AH20: - | AI20: - | AJ20: - | AK20: -
A21: Guestcount-Derived | B21: 416430.5878 | C21: 456536.8515 | D21: 459243.7749 | E21: 561546.4565 | F21: 572622.66 | G21: 445650.3072 | I21: =IF(B21="","",IFERROR(B21/B$19,0)) -> 0.03607832039 | J21: =IF(C21="","",IFERROR(C21/C$19,0)) -> 0.03994181743 | K21: =IF(D21="","",IFERROR(D21/D$19,0)) -> 0.03617669146 | L21: =IF(E21="","",IFERROR(E21/E$19,0)) -> 0.04129057576 | M21: =IF(F21="","",IFERROR(F21/F$19,0)) -> 0.05761243893 | N21: =IF(G21="","",IFERROR(G21/G$19,0)) -> 0.03692907637 | P21: 429030.7886 | Q21: =IF(P21="","",IFERROR(P21/P$19,0)) -> 0.04203092411 | R21: =($B21-$P21) -> -12600.2008 | S21: =IFERROR($R21/$P21,0) -> -0.02936898967 | U21: 414055.1659 | V21: =IF(U21="","",IFERROR(U21/U$19,0)) -> 0.03700855463 | W21: =($B21-$U21) -> 2375.4219 | X21: =IFERROR($W21/$U21,0) -> 0.005736969601 | Z21: 47215186.61 | AA21: =IF(Z21="","",IFERROR(Z21/Z$19,0)) -> 0.3654286717 | AC21: 34097803.87 | AD21: =IF(AC21="","",IFERROR(AC21/AC$19,0)) -> 0.3392789251 | AE21: =($Z21-$AC21) -> 13117382.74 | AF21: =IFERROR($AE21/$AC21,0) -> 0.3846987563 | AH21: 4934773.961 | AI21: =IF(AH21="","",IFERROR(AH21/AH$19,0)) -> 0.03321985825 | AJ21: =($Z21-$AH21) -> 42280412.65 | AK21: =IFERROR($AJ21/$AH21,0) -> 8.567851939
A22: Per-Person Average | B22: =IFERROR(B19/B21,0) -> 27.71747657 | C22: =IFERROR(C19/C21,0) -> 25.03641708 | D22: =IFERROR(D19/D21,0) -> 27.64210766 | E22: =IFERROR(E19/E21,0) -> 24.2186015 | F22: =IFERROR(F19/F21,0) -> 17.35736272 | G22: =IFERROR(G19/G21,0) -> 27.07893341 | P22: =IFERROR(P19/P21,0) -> 23.79200603 | R22: =($B22-$P22) -> 3.925470536 | S22: =IFERROR($R22/$P22,0) -> 0.1649911542 | U22: =IFERROR(U19/U21,0) -> 27.02077965 | V22: 2.415137118e-06 | W22: =($B22-$U22) -> 0.6966969143 | X22: =IFERROR($W22/$U22,0) -> 0.02578374582 | Z22: =IFERROR(Z19/Z21,0) -> 2.73651215 | AA22: 2.117962613e-08 | AC22: =IFERROR(AC19/AC21,0) -> 2.947427399 | AD22: 2.932740196e-08 | AE22: =($Z22-$AC22) -> -0.2109152493 | AF22: =IFERROR($AE22/$AC22,0) -> -0.07155909907 | AH22: =IFERROR(AH19/AH21,0) -> 30.10247643 | AI22: 2.026435269e-07 | AJ22: =($Z22-$AH22) -> -27.36596428 | AK22: =IFERROR($AJ22/$AH22,0) -> -0.9090934543
A24: COST OF GOODS SOLD
A25: FOOD COST
A26: Seafood Cost | B26: 181186.559 | C26: 236072.816 | D26: 194473.266 | E26: 207349.3818 | F26: 191153.5626 | G26: 177304.247 | I26: =IF(B26="","",IFERROR(B26/B$19,0)) -> 0.01569747016 | J26: =IF(C26="","",IFERROR(C26/C$19,0)) -> 0.0206537047 | K26: =IF(D26="","",IFERROR(D26/D$19,0)) -> 0.01531953121 | L26: =IF(E26="","",IFERROR(E26/E$19,0)) -> 0.01524642398 | M26: =IF(F26="","",IFERROR(F26/F$19,0)) -> 0.0192322514 | N26: =IF(G26="","",IFERROR(G26/G$19,0)) -> 0.01469242133 | P26: 147539.8128 | Q26: =IF(P26="","",IFERROR(P26/P$19,0)) -> 0.01445405514 | R26: =($B26-$P26)*-1 -> -33646.7462 | S26: =IFERROR($R26/$P26,0) -> -0.2280519784 | U26: 213503.1976 | V26: 0.01908307251 | W26: =($B26-$U26)*-1 -> 32316.6386 | X26: =IFERROR($W26/$U26,0) -> 0.1513637218 | Z26: 2387894.846 | AA26: =IF(Z26="","",IFERROR(Z26/Z$19,0)) -> 0.01848145277 | AC26: 2153109.42 | AD26: =IF(AC26="","",IFERROR(AC26/AC$19,0)) -> 0.0214238035 | AE26: =($Z26-$AC26)*-1 -> -234785.4259 | AF26: =IFERROR($AE26/$AC26,0) -> -0.1090448185 | AH26: 2150984.647 | AI26: =IF(AH26="","",IFERROR(AH26/AH$19,0)) -> 0.0144799753 | AJ26: =($Z26-$AH26)*-1 -> -236910.1984 | AK26: =IFERROR($AJ26/$AH26,0) -> -0.1101403484
A27: Produce Cost | B27: 533285.2283 | C27: 561041.6922 | D27: 568998.792 | E27: 474910.8352 | F27: 572139.4959 | G27: 511214.0184 | I27: 0.04620226249 | J27: 0.0490848105 | K27: 0.04482258631 | L27: 0.03492024853 | M27: 0.05756382705 | N27: 0.04236205209 | P27: 491030.412 | Q27: 0.04810485059 | R27: -42254.8163 | S27: -0.08605335895 | U27: 711902.547 | V27: 0.06363037217 | W27: 178617.3187 | X27: 0.2509013621 | Z27: 6551242.998 | AA27: 0.05070427967 | AC27: 6062428.503 | AD27: 0.06032219066 | AE27: -488814.4953 | AF27: -0.080630146 | AH27: 6351988.63 | AI27: 0.04276024871 | AJ27: -199254.3683 | AK27: -0.0313688169
A28: Dairy Cost | B28: 224573.951 | C28: 308838.3584 | D28: 307467.1344 | E28: 326768.625 | F28: 232226.6298 | G28: 221189.2373 | I28: 0.0194564261 | J28: 0.0270198677 | K28: 0.0242205649 | L28: 0.02402733471 | M28: 0.02336467531 | N28: 0.01832897701 | P28: 181739.2484 | Q28: 0.01780447642 | R28: -42834.7026 | S28: -0.2356931867 | U28: 258138.4416 | V28: 0.02307260338 | W28: 33564.4906 | X28: 0.1300251539 | Z28: 3216090.807 | AA28: 0.02489139355 | AC28: 2583899.186 | AD28: 0.02571023465 | AE28: -632191.6212 | AF28: -0.2446657457 | AH28: 3512319.03 | AI28: 0.02364419145 | AJ28: 296228.2228 | AK28: 0.08433978243
A29: Meat Cost | B29: 642196.4965 | C29: 549235.8366 | D29: 585689.0252 | E29: 517986.807 | F29: 742603.377 | G29: 678158.448 | I29: 0.05563801419 | J29: 0.04805193149 | K29: 0.04613735082 | L29: 0.03808762971 | M29: 0.07471445805 | N29: 0.05619600102 | P29: 537084.9852 | Q29: 0.05261668593 | R29: -105111.5113 | S29: -0.1957074098 | U29: 513790.7456 | V29: 0.04592299395 | W29: -128405.7509 | X29: -0.2499183802 | Z29: 6267635.499 | AA29: 0.04850925898 | AC29: 5795051.519 | AD29: 0.05766174438 | AE29: -472583.9804 | AF29: -0.0815495736 | AH29: 7206312.537 | AI29: 0.04851137719 | AJ29: 938677.0373 | AK29: 0.1302576085
A30: Poultry Cost | B30: 234625.32 | C30: 266728.2408 | D30: 341199.2187 | E30: 278151.385 | F30: 288897.2892 | G30: 253552.4456 | I30: 0.02032724712 | J30: 0.02333570809 | K30: 0.02687779244 | L30: 0.02045250345 | M30: 0.02906639676 | N30: 0.02101077342 | P30: 239687.448 | Q30: 0.02348149645 | R30: 5062.128 | S30: 0.02111970419 | U30: 251444.94 | V30: 0.02247433329 | W30: 16819.62 | X30: 0.0668918611 | Z30: 2357449.145 | AA30: 0.01824581393 | AC30: 2450323.995 | AD30: 0.02438113887 | AE30: 92874.8497 | AF30: 0.03790308951 | AH30: 2930801.613 | AI30: 0.01972953876 | AJ30: 573352.4675 | AK30: 0.195629914
A31: Misc. Dry Goods Cost | B31: 356929.824 | C31: 412034.5664 | D31: 467243.8916 | E31: 595747.422 | F31: 532624.6716 | G31: 506438.6092 | I31: 0.03092334935 | J31: 0.03604837019 | K31: 0.03680689652 | L31: 0.04380537671 | M31: 0.05358818033 | N31: 0.04196633498 | P31: 374763.465 | Q31: 0.03671450902 | R31: 17833.641 | S31: 0.04758639159 | U31: 529045.425 | V31: 0.04728646839 | W31: 172115.601 | X31: 0.3253323682 | Z31: 5290486.233 | AA31: 0.04094647285 | AC31: 4157971.2 | AD31: 0.04137251786 | AE31: -1132515.032 | AF31: -0.2723720242 | AH31: 4380420.152 | AI31: 0.02948806524 | AJ31: -910066.081 | AK31: -0.2077577149
B32: - | C32: - | D32: - | E32: - | F32: - | G32: - | P32: - | R32: - | S32: - | U32: - | V32: - | W32: - | X32: - | Z32: - | AC32: - | AE32: - | AF32: - | AH32: - | AJ32: - | AK32: -
A33: TOTAL FOOD COST | B33: =SUM(B26:B31) -> 2172797.379 | C33: =SUM(C26:C31) -> 2333951.51 | D33: =SUM(D26:D31) -> 2465071.328 | E33: =SUM(E26:E31) -> 2400914.456 | F33: 2559645.026 | G33: 2347857.005 | I33: =IF(B33="","",IFERROR(B33/B$19,0)) -> 0.1882447694 | J33: =IF(C33="","",IFERROR(C33/C$19,0)) -> 0.2041943927 | K33: =IF(D33="","",IFERROR(D33/D$19,0)) -> 0.1941847222 | L33: =IF(E33="","",IFERROR(E33/E$19,0)) -> 0.1765395171 | M33: =IF(F33="","",IFERROR(F33/F$19,0)) -> 0.2575297889 | N33: =IF(G33="","",IFERROR(G33/G$19,0)) -> 0.1945565599 | P33: =SUM(P26:P31) -> 1971845.371 | Q33: =IF(P33="","",IFERROR(P33/P$19,0)) -> 0.1931760735 | R33: =($B33-$P33)*-1 -> -200952.0074 | S33: =IFERROR($R33/$P33,0) -> -0.1019106317 | U33: =SUM(U26:U31) -> 2477825.297 | V33: 0.2214698437 | W33: =($B33-$U33)*-1 -> 305027.918 | X33: =IFERROR($W33/$U33,0) -> 0.1231030769 | Z33: =SUM(Z26:Z31) -> 26070799.53 | AA33: =IF(Z33="","",IFERROR(Z33/Z$19,0)) -> 0.2017786718 | AC33: =SUM(AC26:AC31) -> 23202783.82 | AD33: =IF(AC33="","",IFERROR(AC33/AC$19,0)) -> 0.2308716299 | AE33: =($Z33-$AC33)*-1 -> -2868015.705 | AF33: =IFERROR($AE33/$AC33,0) -> -0.1236065348 | AH33: =SUM(AH26:AH31) -> 26532826.61 | AI33: =IF(AH33="","",IFERROR(AH33/AH$19,0)) -> 0.1786133967 | AJ33: =($Z33-$AH33)*-1 -> 462027.0799 | AK33: =IFERROR($AJ33/$AH33,0) -> 0.01741341346
B34: - | C34: - | D34: - | E34: - | F34: - | G34: - | P34: - | R34: - | S34: - | U34: - | V34: - | W34: - | X34: - | Z34: - | AC34: - | AE34: - | AF34: - | AH34: - | AJ34: - | AK34: -
A35: BAR COST
A36: Liquor Cost | B36: 282924.81 | C36: 339543.4196 | D36: 305672.3115 | E36: 376382.2015 | F36: 320818.0206 | G36: 312579.9908 | I36: =IF(B36="","",IFERROR(B36/B$19,0)) -> 0.02451177277 | J36: =IF(C36="","",IFERROR(C36/C$19,0)) -> 0.02970621371 | K36: =IF(D36="","",IFERROR(D36/D$19,0)) -> 0.02407917865 | L36: =IF(E36="","",IFERROR(E36/E$19,0)) -> 0.02767542672 | M36: =IF(F36="","",IFERROR(F36/F$19,0)) -> 0.03227799022 | N36: =IF(G36="","",IFERROR(G36/G$19,0)) -> 0.02590212587 | P36: 265054.869 | Q36: =IF(P36="","",IFERROR(P36/P$19,0)) -> 0.02596667041 | R36: =($B36-$P36)*-1 -> -17869.941 | S36: =IFERROR($R36/$P36,0) -> -0.06741978017 | U36: 289393.8009 | V36: 0.02586623033 | W36: =($B36-$U36)*-1 -> 6468.9909 | X36: =IFERROR($W36/$U36,0) -> 0.02235359182 | Z36: 3877487.16 | AA36: =IF(Z36="","",IFERROR(Z36/Z$19,0)) -> 0.03001036497 | AC36: 2847492.398 | AD36: =IF(AC36="","",IFERROR(AC36/AC$19,0)) -> 0.02833303177 | AE36: =($Z36-$AC36)*-1 -> -1029994.762 | AF36: =IFERROR($AE36/$AC36,0) -> -0.3617199337 | AH36: 2990642.006 | AI36: =IF(AH36="","",IFERROR(AH36/AH$19,0)) -> 0.02013237168 | AJ36: =($Z36-$AH36)*-1 -> -886845.1536 | AK36: =IFERROR($AJ36/$AH36,0) -> -0.2965400579
A37: Beer Cost | B37: 83870.0309 | C37: 71269.4196 | D37: 84977.9814 | E37: 71599.872 | F37: 83721.1837 | G37: 65757.87 | I37: 0.007266252611 | J37: 0.00623526915 | K37: 0.006694096647 | L37: 0.005264746853 | M37: 0.008423315946 | N37: 0.005449064803 | P37: 51661.434 | Q37: 0.005061123513 | R37: -32208.5969 | S37: -0.62345534 | U37: 84933.0476 | V37: 0.007591378133 | W37: 1063.0167 | X37: 0.01251593732 | Z37: 803026.5035 | AA37: 0.006215138169 | AC37: 656753.202 | AD37: 0.006534805623 | AE37: -146273.3015 | AF37: -0.2227218703 | AH37: 942831.281 | AI37: 0.006346941472 | AJ37: 139804.7775 | AK37: 0.1482818616
A38: Wine Cost | B38: 26008.7592 | C38: 30897.5106 | D38: 23569.5513 | E38: 21395.11 | F38: 22849.4397 | G38: 28873.4295 | I38: 0.002253322342 | J38: 0.002703183157 | K38: 0.001856679245 | L38: 0.001573184908 | M38: 0.002298916968 | N38: 0.002392613818 | P38: 17026.991 | Q38: 0.001668085801 | R38: -8981.7682 | S38: -0.5275017882 | U38: 28810.0274 | V38: 0.002575061395 | W38: 2801.2682 | X38: 0.09723240319 | Z38: 301723.7106 | AA38: 0.002335233697 | AC38: 316467.8244 | AD38: 0.003148908467 | AE38: 14744.1138 | AF38: 0.04658961406 | AH38: 410927.8452 | AI38: 0.002766279647 | AJ38: 109204.1346 | AK38: 0.2657501454
A39: Bar Grocery Cost | B39: 98159.7771 | C39: 98678.5506 | D39: 104144.6928 | E39: 92294.87 | F39: 84859.2296 | G39: 124643.772 | I39: 0.008504274161 | J39: 0.008633258497 | K39: 0.00820394445 | L39: 0.006786452445 | M39: 0.00853781648 | N39: 0.01032867991 | P39: 52978.0608 | Q39: 0.00519010969 | R39: -45181.7163 | S39: -0.8528382432 | U39: 51419.3766 | V39: 0.004595901621 | W39: -46740.4005 | X39: -0.9090036401 | Z39: 1136449.732 | AA39: 0.008795714808 | AC39: 751080.213 | AD39: 0.007473375363 | AE39: -385369.5192 | AF39: -0.5130870346 | AH39: 852201.8592 | AI39: 0.005736843306 | AJ39: -284247.873 | AK39: -0.3335452392
B40: - | C40: - | D40: - | E40: - | F40: - | G40: - | P40: - | R40: - | S40: - | U40: - | V40: - | W40: - | X40: - | Z40: - | AC40: - | AE40: - | AF40: - | AH40: - | AJ40: - | AK40: -
A41: TOTAL BAR COST | B41: =SUM(B36:B39) -> 490963.3772 | C41: =SUM(C36:C39) -> 540388.9004 | D41: =SUM(D36:D39) -> 518364.537 | E41: =SUM(E36:E39) -> 561672.0535 | F41: 512247.8736 | G41: 531855.0623 | I41: =IF(B41="","",IFERROR(B41/B$19,0)) -> 0.04253562188 | J41: =IF(C41="","",IFERROR(C41/C$19,0)) -> 0.04727792451 | K41: =IF(D41="","",IFERROR(D41/D$19,0)) -> 0.04083389899 | L41: =IF(E41="","",IFERROR(E41/E$19,0)) -> 0.04129981093 | M41: =IF(F41="","",IFERROR(F41/F$19,0)) -> 0.05153803962 | N41: =IF(G41="","",IFERROR(G41/G$19,0)) -> 0.0440724844 | P41: =SUM(P36:P39) -> 386721.3548 | Q41: =IF(P41="","",IFERROR(P41/P$19,0)) -> 0.03788598942 | R41: =($B41-$P41)*-1 -> -104242.0224 | S41: =IFERROR($R41/$P41,0) -> -0.269553313 | U41: =SUM(U36:U39) -> 454556.2525 | V41: 0.04062857148 | W41: =($B41-$U41)*-1 -> -36407.1247 | X41: =IFERROR($W41/$U41,0) -> -0.08009377167 | Z41: =SUM(Z36:Z39) -> 6118687.106 | AA41: =IF(Z41="","",IFERROR(Z41/Z$19,0)) -> 0.04735645164 | AC41: =SUM(AC36:AC39) -> 4571793.638 | AD41: =IF(AC41="","",IFERROR(AC41/AC$19,0)) -> 0.04549012122 | AE41: =($Z41-$AC41)*-1 -> -1546893.469 | AF41: =IFERROR($AE41/$AC41,0) -> -0.3383559257 | AH41: =SUM(AH36:AH39) -> 5196602.992 | AI41: =IF(AH41="","",IFERROR(AH41/AH$19,0)) -> 0.0349824361 | AJ41: =($Z41-$AH41)*-1 -> -922084.1145 | AK41: =IFERROR($AJ41/$AH41,0) -> -0.1774397844
B42: - | C42: - | D42: - | E42: - | F42: - | G42: - | I42: - | J42: - | K42: - | L42: - | M42: - | N42: - | P42: - | Q42: - | R42: - | S42: - | U42: - | V42: - | W42: - | X42: - | Z42: - | AA42: - | AC42: - | AD42: - | AE42: - | AF42: - | AH42: - | AI42: - | AJ42: - | AK42: -
A44: LIQUOR TAX | B44: 43784.2122 | C44: 58735.5296 | D44: 45511.6332 | E44: 53467.6758 | F44: 55139.4088 | G44: 58691.2584 | I44: =IF(B44="","",IFERROR(B44/B$19,0)) -> 0.003793335269 | J44: =IF(C44="","",IFERROR(C44/C$19,0)) -> 0.005138695359 | K44: =IF(D44="","",IFERROR(D44/D$19,0)) -> 0.003585155427 | L44: =IF(E44="","",IFERROR(E44/E$19,0)) -> 0.003931484373 | M44: =IF(F44="","",IFERROR(F44/F$19,0)) -> 0.005547659993 | N44: =IF(G44="","",IFERROR(G44/G$19,0)) -> 0.004863485851 | P44: 32679.4309 | Q44: =IF(P44="","",IFERROR(P44/P$19,0)) -> 0.003201510746 | R44: =($B44-$P44)*-1 -> -11104.7813 | S44: =IFERROR($R44/$P44,0) -> -0.3398095069 | U44: 37002.1608 | V44: =IF(U44="","",IFERROR(U44/U$19,0)) -> 0.003307280291 | W44: =($B44-$U44)*-1 -> -6782.0514 | X44: =IFERROR($W44/$U44,0) -> -0.1832879825 | Z44: 621480.6525 | AA44: =IF(Z44="","",IFERROR(Z44/Z$19,0)) -> 0.004810038159 | AC44: 454683.3696 | AD44: =IF(AC44="","",IFERROR(AC44/AC$19,0)) -> 0.004524176557 | AE44: =($Z44-$AC44)*-1 -> -166797.2829 | AF44: =IFERROR($AE44/$AC44,0) -> -0.3668427175 | AH44: 545225.2125 | AI44: =IF(AH44="","",IFERROR(AH44/AH$19,0)) -> 0.003670341219 | AJ44: =($Z44-$AH44)*-1 -> -76255.44 | AK44: =IFERROR($AJ44/$AH44,0) -> -0.1398604434
A45: FOOD FREIGHT/DELIVERY | B45: 34.352 | C45: 11.376 | D45: 34.0362 | E45: 22.8735 | F45: 44.5284 | G45: 68.8536 | I45: 2.976156167e-06 | J45: 9.952714958e-07 | K45: 2.681184097e-06 | L45: 1.681891095e-06 | M45: 4.480070219e-06 | N45: 5.705594301e-06 | P45: 0 | Q45: 0 | R45: -34.352 | S45: 0 | U45: 68.481 | V45: 6.120882043e-06 | W45: 34.129 | X45: 0.4983718112 | Z45: 494.2145 | AA45: 3.825043619e-06 | AC45: 806.264 | AD45: 8.022463392e-06 | AE45: 312.0495 | AF45: 0.387031419 | AH45: 781.8008 | AI45: 5.262918213e-06 | AJ45: 287.5863 | AK45: 0.3678511201
A46: APPAREL COST | B46: 0 | C46: 0 | D46: 0 | E46: 0 | F46: 0 | G46: 0 | P46: 0 | R46: 0 | S46: 0 | U46: 0 | V46: 0 | W46: 0 | X46: 0 | Z46: 0 | AA46: 0 | AC46: 0 | AD46: 0 | AE46: 0 | AF46: 0 | AH46: 0 | AI46: 0 | AJ46: 0 | AK46: 0
B47: - | C47: - | D47: - | E47: - | F47: - | G47: - | I47: - | J47: - | K47: - | L47: - | M47: - | N47: - | P47: - | Q47: - | R47: - | S47: - | U47: - | V47: - | W47: - | X47: - | Z47: - | AA47: - | AC47: - | AD47: - | AE47: - | AF47: - | AH47: - | AI47: - | AJ47: - | AK47: -
A49: COST OF GOODS SOLD | B49: =SUM(B33,B41,B44:B46) -> 2707579.32 | C49: =SUM(C33,C41,C44:C46) -> 2933087.316 | D49: =SUM(D33,D41,D44:D46) -> 3028981.534 | E49: =SUM(E33,E41,E44:E46) -> 3016077.059 | F49: 3127076.837 | G49: 2938472.18 | I49: =IF(B49="","",IFERROR(B49/B$19,0)) -> 0.2345767027 | J49: =IF(C49="","",IFERROR(C49/C$19,0)) -> 0.2566120078 | K49: =IF(D49="","",IFERROR(D49/D$19,0)) -> 0.2386064578 | L49: =IF(E49="","",IFERROR(E49/E$19,0)) -> 0.2217724943 | M49: =IF(F49="","",IFERROR(F49/F$19,0)) -> 0.3146199686 | N49: =IF(G49="","",IFERROR(G49/G$19,0)) -> 0.2434982357 | P49: =SUM(P33,P41,P44:P46) -> 2391246.157 | Q49: =IF(P49="","",IFERROR(P49/P$19,0)) -> 0.2342635737 | R49: =($B49-$P49)*-1 -> -316333.1631 | S49: =IFERROR($R49/$P49,0) -> -0.1322879964 | U49: =SUM(U33,U41,U44:U46) -> 2969452.191 | V49: =IF(U49="","",IFERROR(U49/U$19,0)) -> 0.2654118163 | W49: =($B49-$U49)*-1 -> 261872.8709 | X49: =IFERROR($W49/$U49,0) -> 0.08818895003 | Z49: =SUM(Z33,Z41,Z44:Z46) -> 32811461.5 | AA49: =IF(Z49="","",IFERROR(Z49/Z$19,0)) -> 0.2539489866 | AC49: =SUM(AC33,AC41,AC44:AC46) -> 28230067.09 | AD49: =IF(AC49="","",IFERROR(AC49/AC$19,0)) -> 0.2808939502 | AE49: =($Z49-$AC49)*-1 -> -4581394.407 | AF49: =IFERROR($AE49/$AC49,0) -> -0.1622877619 | AH49: =SUM(AH33,AH41,AH44:AH46) -> 32275436.61 | AI49: =IF(AH49="","",IFERROR(AH49/AH$19,0)) -> 0.2172714369 | AJ49: =($Z49-$AH49)*-1 -> -536024.8883 | AK49: =IFERROR($AJ49/$AH49,0) -> -0.01660782764
B50: - | C50: - | D50: - | E50: - | F50: - | G50: - | I50: - | J50: - | K50: - | L50: - | M50: - | N50: - | P50: - | Q50: - | R50: - | S50: - | U50: - | V50: - | W50: - | X50: - | Z50: - | AA50: - | AC50: - | AD50: - | AE50: - | AF50: - | AH50: - | AI50: - | AJ50: - | AK50: -
A52: GROSS PROFIT | B52: =B19-B49 -> 8834825.739 | C52: =C19-C49 -> 8496959.709 | D52: =D19-D49 -> 9665484.334 | E52: =E19-E49 -> 10583792.79 | F52: 6812142.377 | G52: 9129262.814 | I52: =IF(B52="","",IFERROR(B52/B$19,0)) -> 0.7654232973 | J52: =IF(C52="","",IFERROR(C52/C$19,0)) -> 0.7433879922 | K52: =IF(D52="","",IFERROR(D52/D$19,0)) -> 0.7613935422 | L52: =IF(E52="","",IFERROR(E52/E$19,0)) -> 0.7782275057 | M52: =IF(F52="","",IFERROR(F52/F$19,0)) -> 0.6853800314 | N52: =IF(G52="","",IFERROR(G52/G$19,0)) -> 0.7565017643 | P52: =P19-P49 -> 7816256.953 | Q52: =IF(P52="","",IFERROR(P52/P$19,0)) -> 0.7657364263 | R52: =($B52-$P52) -> 1018568.786 | S52: =IFERROR($R52/$P52,0) -> 0.1303141379 | U52: =U19-U49 -> 8218641.21 | V52: =IF(U52="","",IFERROR(U52/U$19,0)) -> 0.7345881837 | W52: =($B52-$U52) -> 616184.5282 | X52: =IFERROR($W52/$U52,0) -> 0.07497401486 | Z52: =Z19-Z49 -> 96393470.33 | AA52: =IF(Z52="","",IFERROR(Z52/Z$19,0)) -> 0.7460510134 | AC52: =AC19-AC49 -> 72270734.29 | AD52: =IF(AC52="","",IFERROR(AC52/AC$19,0)) -> 0.7191060498 | AE52: =($Z52-$AC52) -> 24122736.04 | AF52: =IFERROR($AE52/$AC52,0) -> 0.3337829105 | AH52: =AH19-AH49 -> 116273480.2 | AI52: =IF(AH52="","",IFERROR(AH52/AH$19,0)) -> 0.7827285631 | AJ52: =($Z52-$AH52) -> -19880009.9 | AK52: =IFERROR($AJ52/$AH52,0) -> -0.170976304
B53: - | C53: - | D53: - | E53: - | F53: - | G53: - | I53: - | J53: - | K53: - | L53: - | M53: - | N53: - | P53: - | Q53: - | R53: - | S53: - | U53: - | V53: - | W53: - | X53: - | Z53: - | AA53: - | AC53: - | AD53: - | AE53: - | AF53: - | AH53: - | AI53: - | AJ53: - | AK53: -
A54: LABOR COSTS
A55: SALARIES & WAGES
A56: Direct Operating Labor:
A57: Operating Payroll | B57: 2162745.058 | C57: 2430553.058 | D57: 2071326.48 | E57: 2849536.763 | F57: 2709544.738 | G57: 1743893.62 | I57: =IF(B57="","",IFERROR(B57/B$19,0)) -> 0.1873738659 | J57: =IF(C57="","",IFERROR(C57/C$19,0)) -> 0.2126459369 | K57: =IF(D57="","",IFERROR(D57/D$19,0)) -> 0.1631676749 | L57: =IF(E57="","",IFERROR(E57/E$19,0)) -> 0.2095267671 | M57: =IF(F57="","",IFERROR(F57/F$19,0)) -> 0.2726114275 | N57: =IF(G57="","",IFERROR(G57/G$19,0)) -> 0.1445087766 | P57: 1655774.237 | Q57: =IF(P57="","",IFERROR(P57/P$19,0)) -> 0.1622114849 | R57: =($B57-$P57)*-1 -> -506970.8208 | S57: =IFERROR($R57/$P57,0) -> -0.3061835421 | U57: 1615682.76 | V57: =IF(U57="","",IFERROR(U57/U$19,0)) -> 0.144410911 | W57: =($B57-$U57)*-1 -> -547062.2976 | X57: =IFERROR($W57/$U57,0) -> -0.3385951197 | Z57: 24344964.52 | AA57: =IF(Z57="","",IFERROR(Z57/Z$19,0)) -> 0.1884213255 | AC57: 20069762.59 | AD57: =IF(AC57="","",IFERROR(AC57/AC$19,0)) -> 0.1996975379 | AE57: =($Z57-$AC57)*-1 -> -4275201.924 | AF57: =IFERROR($AE57/$AC57,0) -> -0.213017065 | AH57: 25185386.12 | AI57: =IF(AH57="","",IFERROR(AH57/AH$19,0)) -> 0.1695427113 | AJ57: =($Z57-$AH57)*-1 -> 840421.6056 | AK57: =IFERROR($AJ57/$AH57,0) -> 0.03336941516
A58: Training | B58: 91571.6307 | C58: 121054.8018 | D58: 99229.2914 | E58: 136159.704 | F58: 126062.6024 | G58: 79312.6385 | I58: 0.007933496549 | J58: 0.01059092771 | K58: 0.00781673624 | L58: 0.01001183875 | M58: 0.01268335064 | N58: 0.006572288714 | P58: 64530.555 | Q58: 0.006321874635 | R58: -27041.0757 | S58: -0.4190429743 | U58: 97541.0345 | V58: 0.008718289256 | W58: 5969.4038 | X58: 0.06119889778 | Z58: 1060108.96 | AA58: 0.008204864512 | AC58: 1365750.103 | AD58: 0.0135894449 | AE58: 305641.1432 | AF58: 0.223789947 | AH58: 1398555.281 | AI58: 0.009414779389 | AJ58: 338446.3206 | AK58: 0.2419970989
B59: - | C59: - | D59: - | E59: - | F59: - | G59: - | I59: - | J59: - | K59: - | L59: - | M59: - | N59: - | P59: - | Q59: - | R59: - | S59: - | U59: - | V59: - | W59: - | X59: - | Z59: - | AA59: - | AC59: - | AD59: - | AE59: - | AF59: - | AH59: - | AI59: - | AJ59: - | AK59: -
A60: Subtotal Direct Operating Labor | B60: =SUM(B57:B58) -> 2254316.688 | C60: =SUM(C57:C58) -> 2551607.86 | D60: =SUM(D57:D58) -> 2170555.771 | E60: =SUM(E57:E58) -> 2985696.467 | F60: 2835607.341 | G60: 1823206.258 | I60: =IF(B60="","",IFERROR(B60/B$19,0)) -> 0.1953073624 | J60: =IF(C60="","",IFERROR(C60/C$19,0)) -> 0.2232368646 | K60: =IF(D60="","",IFERROR(D60/D$19,0)) -> 0.1709844111 | L60: =IF(E60="","",IFERROR(E60/E$19,0)) -> 0.2195386059 | M60: =IF(F60="","",IFERROR(F60/F$19,0)) -> 0.2852947781 | N60: =IF(G60="","",IFERROR(G60/G$19,0)) -> 0.1510810653 | P60: =SUM(P57:P58) -> 1720304.792 | Q60: =IF(P60="","",IFERROR(P60/P$19,0)) -> 0.1685333596 | R60: =($B60-$P60)*-1 -> -534011.8965 | S60: =IFERROR($R60/$P60,0) -> -0.3104170255 | U60: =SUM(U57:U58) -> 1713223.795 | V60: =IF(U60="","",IFERROR(U60/U$19,0)) -> 0.1531292002 | W60: =($B60-$U60)*-1 -> -541092.8938 | X60: =IFERROR($W60/$U60,0) -> -0.3158331653 | Z60: =SUM(Z57:Z58) -> 25405073.48 | AA60: =IF(Z60="","",IFERROR(Z60/Z$19,0)) -> 0.19662619 | AC60: =SUM(AC57:AC58) -> 21435512.7 | AD60: =IF(AC60="","",IFERROR(AC60/AC$19,0)) -> 0.2132869828 | AE60: =($Z60-$AC60)*-1 -> -3969560.781 | AF60: =IFERROR($AE60/$AC60,0) -> -0.1851861832 | AH60: =SUM(AH57:AH58) -> 26583941.4 | AI60: =IF(AH60="","",IFERROR(AH60/AH$19,0)) -> 0.1789574907 | AJ60: =($Z60-$AH60)*-1 -> 1178867.926 | AK60: =IFERROR($AJ60/$AH60,0) -> 0.04434511453
A62: Indirect Operating Labor:
A63: Management Salaries | B63: 793970.2416 | C63: 1082747.344 | D63: 1130087.909 | E63: 875062.363 | F63: 877341.4914 | G63: 1060546.909 | I63: =IF(B63="","",IFERROR(B63/B$19,0)) -> 0.06878724473 | J63: =IF(C63="","",IFERROR(C63/C$19,0)) -> 0.09472816179 | K63: =IF(D63="","",IFERROR(D63/D$19,0)) -> 0.08902209208 | L63: =IF(E63="","",IFERROR(E63/E$19,0)) -> 0.06434343656 | M63: =IF(F63="","",IFERROR(F63/F$19,0)) -> 0.08827066518 | N63: =IF(G63="","",IFERROR(G63/G$19,0)) -> 0.08788284704 | P63: 949626.054 | Q63: =IF(P63="","",IFERROR(P63/P$19,0)) -> 0.09303215917 | R63: =($B63-$P63)*-1 -> 155655.8124 | S63: =IFERROR($R63/$P63,0) -> 0.1639127441 | U63: 1131949.087 | V63: 0.1011744403 | W63: =($B63-$U63)*-1 -> 337978.8459 | X63: =IFERROR($W63/$U63,0) -> 0.298581314 | Z63: 11061919.3 | AA63: =IF(Z63="","",IFERROR(Z63/Z$19,0)) -> 0.08561530236 | AC63: 9373491.781 | AD63: =IF(AC63="","",IFERROR(AC63/AC$19,0)) -> 0.09326783122 | AE63: =($Z63-$AC63)*-1 -> -1688427.524 | AF63: =IFERROR($AE63/$AC63,0) -> -0.1801279143 | AH63: 10689294.73 | AI63: =IF(AH63="","",IFERROR(AH63/AH$19,0)) -> 0.07195807923 | AJ63: =($Z63-$AH63)*-1 -> -372624.5761 | AK63: =IFERROR($AJ63/$AH63,0) -> -0.03485960352
A64: Capitalized Salaries | B64: -39500 | C64: -33670.96 | D64: -22715.74 | E64: -27834.78 | F64: -22075.86 | G64: -20796.1 | I64: -0.003422163734 | J64: -0.00294582865 | K64: -0.0017894207 | L64: -0.002046694586 | M64: -0.002221085935 | N64: -0.00172328113 | P64: -33534.88 | Q64: -0.003285316658 | R64: 5965.12 | S64: -0.177878078 | U64: -27543.4425 | V64: -0.002461853107 | W64: 11956.5575 | X64: -0.4340981524 | Z64: -403322.92 | AA64: -0.00312157527 | AC64: -370563.2 | AD64: -0.003687166618 | AE64: 32759.72 | AF64: -0.08840521671 | AH64: -367245.9 | AI64: -0.002472221998 | AJ64: 36077.02 | AK64: -0.09823668556
A65: Office Manager Salaries | B65: 20050.5339 | C65: 26757.4608 | D65: 31157.631 | E65: 21238.8215 | F65: 21787.9488 | G65: 23823.9382 | I65: 0.00173711924 | J65: 0.002340975566 | K65: 0.002454426309 | L65: 0.001561692996 | M65: 0.00219211875 | N65: 0.001974184734 | P65: 23795.2655 | Q65: 0.002331154372 | R65: 3744.7316 | S65: 0.1573729698 | U65: 24096.2408 | V65: 0.002153739689 | W65: 4045.7069 | X65: 0.1678978449 | Z65: 235645.1804 | AA65: 0.001823809487 | AC65: 294576.7479 | AD65: 0.002931088547 | AE65: 58931.5675 | AF65: 0.200055055 | AH65: 325323.7197 | AI65: 0.002190010716 | AJ65: 89678.5393 | AK65: 0.2756593936
A66: Part-Time Manager Salaries | B66: 61931.7358 | C66: 66947.1172 | D66: 75348.1608 | E66: 51714.4236 | F66: 57435.6396 | G66: 40878.3936 | I66: 0.005365583298 | J66: 0.005857116515 | K66: 0.005935512497 | L66: 0.003802567537 | M66: 0.005778687275 | N66: 0.003387412271 | P66: 30963.1212 | Q66: 0.003033368775 | R66: -30968.6146 | S66: -1.000177418 | U66: 35969.3928 | V66: 0.003214970729 | W66: -25962.343 | X66: -0.7217898602 | Z66: 491508.6605 | AA66: 0.003804101388 | AC66: 322677.1296 | AD66: 0.003210692105 | AE66: -168831.5309 | AF66: -0.5232212494 | AH66: 480730.0738 | AI66: 0.003236173538 | AJ66: -10778.5867 | AK66: -0.02242128647
A67: Manager Training | B67: 71180.319 | C67: 27318.093 | D67: 21915.7246 | E67: 16677.324 | F67: 36265.0524 | G67: 24319.592 | I67: 0.006166853324 | J67: 0.00239002455 | K67: 0.0017263999 | L67: 0.001226285559 | M67: 0.003648682217 | N67: 0.00201525738 | P67: 67932.5164 | Q67: 0.006655155102 | R67: -3247.8026 | S67: -0.04780924912 | U67: 29920.0461 | V67: 0.002674275681 | W67: -41260.2729 | X67: -1.379017691 | Z67: 575003.1496 | AA67: 0.004450318896 | AC67: 375632.1975 | AD67: 0.003737604002 | AE67: -199370.9521 | AF67: -0.5307610834 | AH67: 409629.8192 | AI67: 0.002757541609 | AJ67: -165373.3304 | AK67: -0.4037140917
A68: Bonuses | B68: 36645.1558 | C68: 111925.128 | D68: 61691.9816 | E68: 97241.3822 | F68: 64569.752 | G68: 80531.805 | I68: 0.003174828436 | J68: 0.009792184385 | K68: 0.004859754025 | L68: 0.007150170058 | M68: 0.006496461202 | N68: 0.006673315667 | P68: 71384.3019 | Q68: 0.006993316694 | R68: 34739.1461 | S68: 0.4866496579 | U68: 97175.7128 | V68: 0.008685636535 | W68: 60530.557 | X68: 0.6228979984 | Z68: 985153.4689 | AA68: 0.007624735797 | AC68: 758649.2868 | AD68: 0.007548688929 | AE68: -226504.1821 | AF68: -0.2985624399 | AH68: 1069585.257 | AI68: 0.007200222524 | AJ68: 84431.7881 | AK68: 0.07893881067
B69: - | C69: - | D69: - | E69: - | F69: - | G69: - | I69: - | J69: - | K69: - | L69: - | M69: - | N69: - | P69: - | Q69: - | R69: - | S69: - | U69: - | V69: - | W69: - | X69: - | Z69: - | AA69: - | AC69: - | AD69: - | AE69: - | AF69: - | AH69: - | AI69: - | AJ69: - | AK69: -
A70: Subtotal Indirect Operating Labor | B70: =SUM(B63:B68) -> 944277.9861 | C70: =SUM(C63:C68) -> 1282024.183 | D70: =SUM(D63:D68) -> 1297485.667 | E70: =SUM(E63:E68) -> 1034099.534 | F70: 1035324.024 | G70: 1209304.537 | I70: =IF(B70="","",IFERROR(B70/B$19,0)) -> 0.0818094653 | J70: =IF(C70="","",IFERROR(C70/C$19,0)) -> 0.1121626342 | K70: =IF(D70="","",IFERROR(D70/D$19,0)) -> 0.1022087641 | L70: =IF(E70="","",IFERROR(E70/E$19,0)) -> 0.07603745812 | M70: =IF(F70="","",IFERROR(F70/F$19,0)) -> 0.1041655287 | N70: =IF(G70="","",IFERROR(G70/G$19,0)) -> 0.100209736 | P70: =SUM(P63:P68) -> 1110166.379 | Q70: =IF(P70="","",IFERROR(P70/P$19,0)) -> 0.1087598375 | R70: =($B70-$P70)*-1 -> 165888.3929 | S70: =IFERROR($R70/$P70,0) -> 0.1494266049 | U70: =SUM(U63:U68) -> 1291567.038 | V70: =IF(U70="","",IFERROR(U70/U$19,0)) -> 0.1154412098 | W70: =($B70-$U70)*-1 -> 347289.0514 | X70: =IFERROR($W70/$U70,0) -> 0.2688896831 | Z70: =SUM(Z63:Z68) -> 12945906.84 | AA70: =IF(Z70="","",IFERROR(Z70/Z$19,0)) -> 0.1001966927 | AC70: =SUM(AC63:AC68) -> 10754463.94 | AD70: =IF(AC70="","",IFERROR(AC70/AC$19,0)) -> 0.1070087382 | AE70: =($Z70-$AC70)*-1 -> -2191442.901 | AF70: =IFERROR($AE70/$AC70,0) -> -0.2037705378 | AH70: =SUM(AH63:AH68) -> 12607317.7 | AI70: =IF(AH70="","",IFERROR(AH70/AH$19,0)) -> 0.08486980562 | AJ70: =($Z70-$AH70)*-1 -> -338589.1458 | AK70: =IFERROR($AJ70/$AH70,0) -> -0.02685655695
B71: - | C71: - | D71: - | E71: - | F71: - | G71: - | I71: - | J71: - | K71: - | L71: - | M71: - | N71: - | P71: - | Q71: - | R71: - | S71: - | U71: - | V71: - | W71: - | X71: - | Z71: - | AA71: - | AC71: - | AD71: - | AE71: - | AF71: - | AH71: - | AI71: - | AJ71: - | AK71: -
A72: TOTAL SALARIES & WAGES | B72: =SUM(B60,B70) -> 3198594.674 | C72: =SUM(C60,C70) -> 3833632.043 | D72: =SUM(D60,D70) -> 3468041.439 | E72: =SUM(E60,E70) -> 4019796.001 | F72: 3870931.365 | G72: 3032510.796 | I72: =IF(B72="","",IFERROR(B72/B$19,0)) -> 0.2771168277 | J72: =IF(C72="","",IFERROR(C72/C$19,0)) -> 0.3353994988 | K72: =IF(D72="","",IFERROR(D72/D$19,0)) -> 0.2731931752 | L72: =IF(E72="","",IFERROR(E72/E$19,0)) -> 0.295576064 | M72: =IF(F72="","",IFERROR(F72/F$19,0)) -> 0.3894603068 | N72: =IF(G72="","",IFERROR(G72/G$19,0)) -> 0.2512908013 | P72: =SUM(P60,P70) -> 2830471.171 | Q72: =IF(P72="","",IFERROR(P72/P$19,0)) -> 0.277293197 | R72: =($B72-$P72)*-1 -> -368123.5036 | S72: =IFERROR($R72/$P72,0) -> -0.1300573231 | U72: =SUM(U60,U70) -> 3004790.832 | V72: =IF(U72="","",IFERROR(U72/U$19,0)) -> 0.26857041 | W72: =($B72-$U72)*-1 -> -193803.8424 | X72: =IFERROR($W72/$U72,0) -> -0.06449828066 | Z72: =SUM(Z60,Z70) -> 38350980.32 | AA72: =IF(Z72="","",IFERROR(Z72/Z$19,0)) -> 0.2968228827 | AC72: =SUM(AC60,AC70) -> 32189976.64 | AD72: =IF(AC72="","",IFERROR(AC72/AC$19,0)) -> 0.320295721 | AE72: =($Z72-$AC72)*-1 -> -6161003.682 | AF72: =IFERROR($AE72/$AC72,0) -> -0.1913950964 | AH72: =SUM(AH60,AH70) -> 39191259.1 | AI72: =IF(AH72="","",IFERROR(AH72/AH$19,0)) -> 0.2638272963 | AJ72: =($Z72-$AH72)*-1 -> 840278.7804 | AK72: =IFERROR($AJ72/$AH72,0) -> 0.02144046401
B73: - | C73: - | D73: - | E73: - | F73: - | G73: - | I73: - | J73: - | K73: - | L73: - | M73: - | N73: - | P73: - | Q73: - | R73: - | S73: - | U73: - | V73: - | W73: - | X73: - | Z73: - | AA73: - | AC73: - | AD73: - | AE73: - | AF73: - | AH73: - | AI73: - | AJ73: - | AK73: -
A74: TAXES & BENEFITS
A75: Payroll Taxes | B75: 370832.504 | C75: 348651.6 | D75: 384108.9462 | E75: 495173.0704 | F75: 341794.7303 | G75: 427738.7493 | I75: =IF(B75="","",IFERROR(B75/B$19,0)) -> 0.03212783663 | J75: =IF(C75="","",IFERROR(C75/C$19,0)) -> 0.03050307661 | K75: =IF(D75="","",IFERROR(D75/D$19,0)) -> 0.03025798408 | L75: =IF(E75="","",IFERROR(E75/E$19,0)) -> 0.03641013302 | M75: =IF(F75="","",IFERROR(F75/F$19,0)) -> 0.03438848897 | N75: =IF(G75="","",IFERROR(G75/G$19,0)) -> 0.03544482453 | P75: 276887.0195 | Q75: =IF(P75="","",IFERROR(P75/P$19,0)) -> 0.02712583249 | R75: =($B75-$P75)*-1 -> -93945.4845 | S75: =IFERROR($R75/$P75,0) -> -0.3392917612 | U75: 407127.6846 | V75: =IF(U75="","",IFERROR(U75/U$19,0)) -> 0.03638937127 | W75: =($B75-$U75)*-1 -> 36295.1806 | X75: =IFERROR($W75/$U75,0) -> 0.08914937985 | Z75: 4270134.993 | AA75: =IF(Z75="","",IFERROR(Z75/Z$19,0)) -> 0.03304931888 | AC75: 3944805.811 | AD75: =IF(AC75="","",IFERROR(AC75/AC$19,0)) -> 0.03925148613 | AE75: =($Z75-$AC75)*-1 -> -325329.1815 | AF75: =IFERROR($AE75/$AC75,0) -> -0.08247026522 | AH75: 4049994.048 | AI75: =IF(AH75="","",IFERROR(AH75/AH$19,0)) -> 0.02726370635 | AJ75: =($Z75-$AH75)*-1 -> -220140.9447 | AK75: =IFERROR($AJ75/$AH75,0) -> -0.0543558687
A76: Worker's Comp Insurance | B76: 85026.7936 | C76: 107485.3506 | D76: 90150.1017 | E76: 100533.41 | F76: 77889.8406 | G76: 76354.2946 | I76: 0.007366471127 | J76: 0.009403754015 | K76: 0.007101527755 | L76: 0.007392233242 | M76: 0.007836615626 | N76: 0.006327143796 | P76: 41767.4112 | Q76: 0.004091834286 | R76: -43259.3824 | S76: -1.03572094 | U76: 62459.047 | V76: 0.005582635464 | W76: -22567.7466 | X76: -0.3613207003 | Z76: 1101539.046 | AA76: 0.008525518576 | AC76: 577370.2463 | AD76: 0.005744931765 | AE76: -524168.8002 | AF76: -0.9078555806 | AH76: 802994.5575 | AI76: 0.005405590122 | AJ76: -298544.489 | AK76: -0.3717889321
A77: Payroll Processing Fee | B77: 40710.664 | C77: 25500.1901 | D77: 22398.6555 | E77: 7147.3854 | F77: 20946.7587 | G77: 33762.8007 | I77: 0.0035270521 | J77: 0.002230978582 | K77: 0.001764442532 | L77: 0.0005255480735 | M77: 0.002107485331 | N77: 0.002797774455 | P77: 22293.466 | Q77: 0.002184027353 | R77: -18417.198 | S77: -0.8261253768 | U77: 23690.996 | V77: 0.002117518611 | W77: -17019.668 | X77: -0.7184023838 | Z77: 335778.3509 | AA77: 0.002598804443 | AC77: 256834.7243 | AD77: 0.002555549018 | AE77: -78943.6266 | AF77: -0.3073713137 | AH77: 291413.6932 | AI77: 0.001961735564 | AJ77: -44364.6577 | AK77: -0.1522394408
A78: Moving Expenses | B78: 27974.8983 | C78: 7226.6267 | D78: 11693.7386 | E78: 16074.6648 | F78: 20184.3344 | G78: 4151.728 | I78: 0.002423662846 | J78: 0.0006322482037 | K78: 0.0009211682257 | L78: 0.001181971958 | M78: 0.00203077666 | N78: 0.0003440353971 | P78: 10015.0373 | Q78: 0.0009811446729 | R78: -17959.861 | S78: -1.793289477 | U78: 14719.7574 | V78: 0.00131566272 | W78: -13255.1409 | X78: -0.9004999566 | Z78: 125848.8396 | AA78: 0.0009740250455 | AC78: 159895.2872 | AD78: 0.001590985196 | AE78: 34046.4476 | AF78: 0.2129296504 | AH78: 187716.7591 | AI78: 0.001263669659 | AJ78: 61867.9195 | AK78: 0.3295812254
A79: Incentive Awards | B79: 0 | C79: 133.392 | D79: 1074.4524 | E79: 218.6137 | F79: 0 | G79: 0 | J79: 1.404744401e-05 | K79: 7.578419862e-05 | L79: 1.628779788e-05 | P79: 0 | R79: 0 | S79: 0 | U79: 379.1109 | V79: 3.38852105e-05 | W79: 379.1109 | X79: 1 | Z79: 1924.1268 | AA79: 1.489205383e-05 | AC79: 1510.3276 | AD79: 1.502801549e-05 | AE79: -413.7992 | AF79: -0.2739797644 | AH79: 4485.6592 | AI79: 3.019651234e-05 | AJ79: 2561.5324 | AK79: 0.5710492674
A80: Vacation Pay | B80: 33011.0451 | C80: 14225.094 | D80: 20951.6472 | E80: 25447.7927 | F80: 23697.1268 | G80: 17714.1068 | I80: =IF(B80="","",IFERROR(B80/B$19,0)) -> 0.002859979782 | J80: =IF(C80="","",IFERROR(C80/C$19,0)) -> 0.001244535037 | K80: =IF(D80="","",IFERROR(D80/D$19,0)) -> 0.0016504552 | L80: =IF(E80="","",IFERROR(E80/E$19,0)) -> 0.001871179135 | M80: =IF(F80="","",IFERROR(F80/F$19,0)) -> 0.00238420406 | N80: =IF(G80="","",IFERROR(G80/G$19,0)) -> 0.00146788994 | P80: 17474.0571 | Q80: =IF(P80="","",IFERROR(P80/P$19,0)) -> 0.001711883593 | R80: -15536.988 | S80: -0.8891460015 | U80: 21915.3957 | V80: 0.001958814153 | W80: -11095.6494 | X80: -0.5062947323 | Z80: 202115.0061 | AA80: 0.00156429792 | AC80: 209320.0571 | AD80: 0.00208277003 | AE80: 7205.051 | AF80: 0.03442121648 | AH80: 257021.5032 | AI80: 0.00173021459 | AJ80: 54906.4971 | AK80: 0.2136260835
A81: Health Insurance-Employee Deductions | B81: -88791.0461 | C81: -89322.5066 | D81: -102750.6627 | E81: -107293.32 | F81: -83302.919 | G81: -90412.8225 | I81: -0.007692594884 | J81: -0.007814710334 | K81: -0.008094130448 | L81: -0.007889290204 | M81: -0.008381233697 | N81: -0.007492112028 | P81: -79199.2578 | Q81: -0.00775892566 | R81: 9591.7883 | S81: -0.1211095731 | U81: -74613.84 | V81: -0.006669039784 | W81: 14177.2061 | X81: -0.1900077264 | Z81: -1132490.802 | AA81: -0.008765074107 | AC81: -745126.8066 | AD81: -0.00741413796 | AE81: 387363.9959 | AF81: -0.5198631863 | AH81: -945309.7656 | AI81: -0.006363626108 | AJ81: 187181.0369 | AK81: -0.1980102647
A82: Health Insurance-Claims Paid | B82: 147317.9477 | C82: 88113.346 | D82: 98239.9736 | E82: 100140.5487 | F82: 119505.7072 | G82: 68335.1414 | I82: 0.01276319337 | J82: 0.00770892244 | K82: 0.007738803241 | L82: 0.007363346105 | M82: 0.01202365142 | N82: 0.005662631922 | P82: 89516.232 | Q82: 0.008769650231 | R82: -57801.7157 | S82: -0.6457121173 | U82: 101906.8806 | V82: 0.009108511785 | W82: -45411.0671 | X82: -0.4456133564 | Z82: 1100169.044 | AA82: 0.008514915247 | AC82: 1401457.033 | AD82: 0.0139447349 | AE82: 301287.989 | AF82: 0.2149819666 | AH82: 1689283.866 | AI82: 0.01137190295 | AJ82: 589114.8224 | AK82: 0.3487364286
A83: Health Insurance-Admn. Fees | B83: 55689.9931 | C83: 67873.307 | D83: 71237.5227 | E83: 66433.9594 | F83: 0 | G83: 66059.541 | I83: 0.004824817082 | J83: 0.00593814766 | K83: 0.005611699101 | L83: 0.004884896703 | M83: 0 | N83: 0.005474062949 | P83: 58398.4985 | Q83: 0.005721134529 | R83: 2708.5054 | S83: 0.04637970957 | U83: 61327.9948 | V83: 0.005481541188 | W83: 5638.0017 | X83: 0.09193194264 | Z83: 563057.0748 | AA83: 0.004357860546 | AC83: 490615.3445 | AD83: 0.004881705795 | AE83: -72441.7303 | AF83: -0.1476548402 | AH83: 726374.5725 | AI83: 0.004889800531 | AJ83: 163317.4977 | AK83: 0.2248392274
A84: Health Insurance-Employee Funded Ins. | B84: 432.6084 | C84: 576.5865 | D84: 858.75 | E84: 36.2847 | F84: -5268.9356 | G84: 444.42 | I84: 3.747991842e-05 | J84: 5.044480559e-05 | K84: 6.764758824e-05 | L84: 2.668018179e-06 | M84: -0.0005301156445 | N84: 3.682712624e-05 | P84: 491.2135 | Q84: 4.81227872e-05 | R84: 58.6051 | S84: 0.119306778 | U84: 632.0858 | V84: 5.649629274e-05 | W84: 199.4774 | X84: 0.3155859537 | Z84: 240.6624 | AA84: 1.862640973e-06 | AC84: -714.831 | AD84: -7.112689552e-06 | AE84: -955.4934 | AF84: 1.336670346 | AH84: 5264.7744 | AI84: 3.544135166e-05 | AJ84: 5024.112 | AK84: 0.9542881837
A85: 401(k) Administrative Expenses | B85: 0 | C85: 0 | D85: 0 | E85: 0 | F85: 0 | G85: 0 | P85: 0 | R85: 0 | S85: 0 | U85: 0 | V85: 0 | W85: 0 | X85: 0 | Z85: 0 | AA85: 0 | AC85: 0 | AD85: 0 | AE85: 0 | AF85: 0 | AH85: 0 | AI85: 0 | AJ85: 0 | AK85: 0
A86: 401(k) Employer Contributions | B86: 0 | C86: 0 | D86: 0 | E86: 0 | F86: 0 | G86: 0 | P86: 0 | R86: 0 | S86: 0 | U86: 0 | V86: 0 | W86: 0 | X86: 0 | Z86: 0 | AA86: 0 | AC86: 0 | AD86: 0 | AE86: 0 | AF86: 0 | AH86: 0 | AI86: 0 | AJ86: 0 | AK86: 0
A87: Club Accounts | B87: 0 | C87: 0 | D87: 0 | E87: 0 | F87: 0 | G87: 0 | P87: 0 | R87: 0 | S87: 0 | U87: 0 | V87: 0 | W87: 0 | X87: 0 | Z87: 0 | AA87: 0 | AC87: 0 | AD87: 0 | AE87: 0 | AF87: 0 | AH87: 0 | AI87: 0 | AJ87: 0 | AK87: 0
A88: Head Wait Cards | B88: 0 | C88: 0 | D88: 0 | E88: 0 | F88: 0 | G88: 0 | P88: 0 | R88: 0 | S88: 0 | U88: 0 | V88: 0 | W88: 0 | X88: 0 | Z88: 0 | AA88: 0 | AC88: 0 | AD88: 0 | AE88: 0 | AF88: 0 | AH88: 0 | AI88: 0 | AJ88: 0 | AK88: 0
A89: Professional Education & Memberships | B89: 0 | C89: 0 | D89: 0 | E89: 262.5 | F89: 258.6978 | G89: 442.4845 | L89: 2.31896587e-05 | M89: 2.030343678e-05 | N89: 3.377996922e-05 | P89: 260.13 | Q89: =IF(P89="","",IFERROR(P89/P$19,0)) -> 2.548419503e-05 | R89: 260.13 | S89: 1 | U89: 123.1494 | V89: 1.100718376e-05 | W89: 123.1494 | X89: 1 | Z89: 4212.0312 | AA89: 3.259961629e-05 | AC89: 2032.862 | AD89: 2.022732129e-05 | AE89: -2179.1692 | AF89: -1.071971044 | AH89: 1701.7008 | AI89: 1.145549113e-05 | AJ89: -2510.3304 | AK89: -1.475189058
B90: - | C90: - | D90: - | E90: - | F90: - | G90: - | I90: - | J90: - | K90: - | L90: - | M90: - | N90: - | P90: - | Q90: - | R90: - | S90: - | U90: - | V90: - | W90: - | X90: - | Z90: - | AA90: - | AC90: - | AD90: - | AE90: - | AF90: - | AH90: - | AI90: - | AJ90: - | AK90: -
A91: TOTAL TAXES & BENEFITS | B91: =SUM(B75:B89) -> 672205.4081 | C91: =SUM(C75:C89) -> 570462.9863 | D91: =SUM(D75:D89) -> 597963.1252 | E91: =SUM(E75:E89) -> 704174.9098 | F91: 515705.3412 | G91: 604590.4438 | I91: =IF(B91="","",IFERROR(B91/B$19,0)) -> 0.05823789797 | J91: =IF(C91="","",IFERROR(C91/C$19,0)) -> 0.04990906731 | K91: =IF(D91="","",IFERROR(D91/D$19,0)) -> 0.04710423671 | L91: =IF(E91="","",IFERROR(E91/E$19,0)) -> 0.0517780624 | M91: =IF(F91="","",IFERROR(F91/F$19,0)) -> 0.0518859007 | N91: =IF(G91="","",IFERROR(G91/G$19,0)) -> 0.05009974483 | P91: =SUM(P75:P89) -> 437903.8073 | Q91: =IF(P91="","",IFERROR(P91/P$19,0)) -> 0.04290018848 | R91: =($B91-$P91)*-1 -> -234301.6008 | S91: =IFERROR($R91/$P91,0) -> -0.5350526689 | U91: =SUM(U75:U89) -> 619668.2622 | V91: =IF(U91="","",IFERROR(U91/U$19,0)) -> 0.0553864041 | W91: =($B91-$U91)*-1 -> -52537.1459 | X91: =IFERROR($W91/$U91,0) -> -0.08478269601 | Z91: =SUM(Z75:Z89) -> 6572528.372 | AA91: =IF(Z91="","",IFERROR(Z91/Z$19,0)) -> 0.05086902086 | AC91: =SUM(AC75:AC89) -> 6298000.056 | AD91: =IF(AC91="","",IFERROR(AC91/AC$19,0)) -> 0.06266616752 | AE91: =($Z91-$AC91)*-1 -> -274528.3169 | AF91: =IFERROR($AE91/$AC91,0) -> -0.04358976095 | AH91: =SUM(AH75:AH89) -> 7070941.369 | AI91: =IF(AH91="","",IFERROR(AH91/AH$19,0)) -> 0.04760008702 | AJ91: =($Z91-$AH91)*-1 -> 498412.9962 | AK91: =IFERROR($AJ91/$AH91,0) -> 0.07048750233
B92: - | C92: - | D92: - | E92: - | F92: - | G92: - | I92: - | J92: - | K92: - | L92: - | M92: - | N92: - | P92: - | Q92: - | R92: - | S92: - | U92: - | V92: - | W92: - | X92: - | Z92: - | AA92: - | AC92: - | AD92: - | AE92: - | AF92: - | AH92: - | AI92: - | AJ92: - | AK92: -
A94: TOTAL LABOR COSTS | B94: =SUM(B72,B91) -> 3870800.082 | C94: =SUM(C72,C91) -> 4404095.029 | D94: =SUM(D72,D91) -> 4066004.564 | E94: =SUM(E72,E91) -> 4723970.911 | F94: 4386636.706 | G94: 3637101.24 | I94: =IF(B94="","",IFERROR(B94/B$19,0)) -> 0.3353547257 | J94: =IF(C94="","",IFERROR(C94/C$19,0)) -> 0.3853085661 | K94: =IF(D94="","",IFERROR(D94/D$19,0)) -> 0.320297412 | L94: =IF(E94="","",IFERROR(E94/E$19,0)) -> 0.3473541264 | M94: =IF(F94="","",IFERROR(F94/F$19,0)) -> 0.4413462075 | N94: =IF(G94="","",IFERROR(G94/G$19,0)) -> 0.3013905461 | P94: =SUM(P72,P91) -> 3268374.978 | Q94: =IF(P94="","",IFERROR(P94/P$19,0)) -> 0.3201933855 | R94: =($B94-$P94)*-1 -> -602425.1044 | S94: =IFERROR($R94/$P94,0) -> -0.184319458 | U94: =SUM(U72,U91) -> 3624459.094 | V94: =IF(U94="","",IFERROR(U94/U$19,0)) -> 0.3239568141 | W94: =($B94-$U94)*-1 -> -246340.9883 | X94: =IFERROR($W94/$U94,0) -> -0.06796627632 | Z94: =SUM(Z72,Z91) -> 44923508.7 | AA94: =IF(Z94="","",IFERROR(Z94/Z$19,0)) -> 0.3476919035 | AC94: =SUM(AC72,AC91) -> 38487976.7 | AD94: =IF(AC94="","",IFERROR(AC94/AC$19,0)) -> 0.3829618885 | AE94: =($Z94-$AC94)*-1 -> -6435531.999 | AF94: =IFERROR($AE94/$AC94,0) -> -0.1672088936 | AH94: =SUM(AH72,AH91) -> 46262200.47 | AI94: =IF(AH94="","",IFERROR(AH94/AH$19,0)) -> 0.3114273833 | AJ94: =($Z94-$AH94)*-1 -> 1338691.777 | AK94: =IFERROR($AJ94/$AH94,0) -> 0.02893705364
B95: - | C95: - | D95: - | E95: - | F95: - | G95: - | I95: - | J95: - | K95: - | L95: - | M95: - | N95: - | P95: - | Q95: - | R95: - | S95: - | U95: - | V95: - | W95: - | X95: - | Z95: - | AA95: - | AC95: - | AD95: - | AE95: - | AF95: - | AH95: - | AI95: - | AJ95: - | AK95: -
A97: OPERATING EXPENSES
A98: DIRECT OPERTATING EXPENSES
A99: Paper Goods & Supplies | B99: 70899.8589 | C99: 64622.4704 | D99: 63339.2339 | E99: 80137.9413 | F99: 71690.3694 | G99: 82751.1866 | I99: =IF(B99="","",IFERROR(B99/B$19,0)) -> 0.006142555086 | J99: =IF(C99="","",IFERROR(C99/C$19,0)) -> 0.00565373618 | K99: =IF(D99="","",IFERROR(D99/D$19,0)) -> 0.004989515475 | L99: =IF(E99="","",IFERROR(E99/E$19,0)) -> 0.005892552074 | M99: =IF(F99="","",IFERROR(F99/F$19,0)) -> 0.007212877376 | N99: =IF(G99="","",IFERROR(G99/G$19,0)) -> 0.006857226037 | P99: 62767.8068 | Q99: =IF(P99="","",IFERROR(P99/P$19,0)) -> 0.006149183216 | R99: =($B99-$P99)*-1 -> -8132.0521 | S99: =IFERROR($R99/$P99,0) -> -0.1295576907 | U99: 48284.4829 | V99: =IF(U99="","",IFERROR(U99/U$19,0)) -> 0.004315702521 | W99: =($B99-$U99)*-1 -> -22615.376 | X99: =IFERROR($W99/$U99,0) -> -0.4683777197 | Z99: 901940.4714 | AA99: =IF(Z99="","",IFERROR(Z99/Z$19,0)) -> 0.006980696933 | AC99: 591039.6426 | AD99: =IF(AC99="","",IFERROR(AC99/AC$19,0)) -> 0.005880944574 | AE99: =($Z99-$AC99)*-1 -> -310900.8288 | AF99: =IFERROR($AE99/$AC99,0) -> -0.5260236478 | AH99: 718745.0318 | AI99: =IF(AH99="","",IFERROR(AH99/AH$19,0)) -> 0.004838440071 | AJ99: =($Z99-$AH99)*-1 -> -183195.4396 | AK99: =IFERROR($AJ99/$AH99,0) -> -0.2548823734
A100: Paper Goods & Supplies-ToGo | B100: 69932.2701 | C100: 73120.6802 | D100: 66070.725 | E100: 61458.917 | F100: 52358.1056 | G100: 60048.879 | I100: 0.006058726041 | J100: 0.006397233541 | K100: 0.005204687278 | L100: 0.004519081261 | M100: 0.005267828838 | N100: 0.004975985886 | P100: 47198.3931 | Q100: 0.004623892111 | R100: -22733.877 | S100: -0.4816663345 | U100: 67032.009 | V100: 0.005991370164 | W100: -2900.2611 | X100: -0.04326680855 | Z100: 710227.8288 | AA100: 0.00549690959 | AC100: 670990.7663 | AD100: 0.0066764718 | AE100: -39237.0625 | AF100: -0.05847630768 | AH100: 735671.208 | AI100: 0.004952383522 | AJ100: 25443.3792 | AK100: 0.03458525891
A101: Logo'd ToGo Supplies | B101: 19809.2996 | C101: 19555.9182 | D101: 22086.8172 | E101: 15537.1167 | F101: 18332.0208 | G101: 20408.5598 | I101: 0.00171621941 | J101: 0.001710921937 | K101: 0.001739877631 | L101: 0.001142445984 | M101: 0.001844412565 | N101: 0.001691167382 | P101: 15110.81 | Q101: 0.001480363007 | R101: -4698.4896 | S101: -0.3109356547 | U101: 15835.356 | V101: 0.001415375742 | W101: -3973.9436 | X101: -0.2509538529 | Z101: 196985.0709 | AA101: 0.001524594055 | AC101: 173662.688 | AD101: 0.001727973166 | AE101: -23322.3829 | AF101: -0.1342970282 | AH101: 254492.0615 | AI101: 0.001713186921 | AJ101: 57506.9906 | AK101: 0.2259677188
A102: Menus | B102: 4944.84 | C102: 8165.6256 | D102: 3998.9775 | E102: 1366.5891 | F102: 3502.986 | G102: 1064.8792 | I102: 0.0004284063828 | J102: 0.0007144000005 | K102: 0.0003150173896 | L102: 0.0001004854543 | M102: 0.0003524407627 | N102: 8.824184493e-05 | P102: 1452.0807 | Q102: 0.0001422562094 | R102: -3492.7593 | S102: -2.405347926 | U102: 3377.0966 | V102: 0.0003018473728 | W102: -1567.7434 | X102: -0.4642281775 | Z102: 41953.725 | AA102: 0.000324706839 | AC102: 41915.5593 | AD102: 0.0004170669161 | AE102: -38.1657 | AF102: -0.0009105377725 | AH102: 80630.64 | AI102: 0.0005427884747 | AJ102: 38676.915 | AK102: 0.4796801191
A103: PoP Merchandise | B103: 3636.9696 | C103: 662.3883 | D103: 10198.599 | E103: 3355.5302 | F103: 2099.7248 | G103: 983.633 | I103: 0.000315096341 | J103: 5.795149386e-05 | K103: 0.000803389375 | L103: 0.0002467325229 | M103: 0.0002112565137 | N103: 8.15093305e-05 | P103: 2247.1034 | Q103: 0.0002201423184 | R103: -1389.8662 | S103: -0.618514573 | U103: 12295.962 | V103: 0.001099022108 | W103: 8658.9924 | X103: 0.7042143104 | Z103: 35128.377 | AA103: 0.0002718810846 | AC103: 33562.8636 | AD103: 0.0003339561788 | AE103: -1565.5134 | AF103: -0.04664421423 | AH103: 76409.8839 | AI103: 0.0005143752342 | AJ103: 41281.5069 | AK103: 0.5402639658
A104: Charcoal | B104: 29876.3243 | C104: 37308.8352 | D104: 33318.3848 | E104: 34585.2 | F104: 36507.9976 | G104: 37139.463 | I104: 0.002588396798 | J104: 0.003264101637 | K104: 0.002624638574 | L104: 0.002543053748 | M104: 0.003673125304 | N104: 0.003077583575 | P104: 31292.2086 | Q104: 0.00306560853 | R104: 1415.8843 | S104: 0.04524718335 | U104: 28053.1077 | V104: 0.002507407356 | W104: -1823.2166 | X104: -0.06499160875 | Z104: 416092.6056 | AA104: 0.003220408073 | AC104: 357930.612 | AD104: 0.003561470228 | AE104: -58161.9936 | AF104: -0.1624951643 | AH104: 386488.32 | AI104: 0.002601757914 | AJ104: -29604.2856 | AK104: -0.07659813782
A105: Dishwasher Supplies | B105: 43553.4424 | C105: 39752.3889 | D105: 52575.7344 | E105: 37685.934 | F105: 41007.0653 | G105: 45903.48 | I105: 0.003773342053 | J105: 0.003477884983 | K105: 0.004141626355 | L105: 0.002771051077 | M105: 0.004125783366 | N105: 0.003803819029 | P105: 34712.4041 | Q105: 0.003400675339 | R105: -8841.0383 | S105: -0.2546939208 | U105: 39260.392 | V105: 0.003509122653 | W105: -4293.0504 | X105: -0.1093481288 | Z105: 493205.244 | AA105: 0.003817232338 | AC105: 430373.573 | AD105: 0.004282289963 | AE105: -62831.671 | AF105: -0.1459933298 | AH105: 511674.7912 | AI105: 0.003444486854 | AJ105: 18469.5472 | AK105: 0.03609626176
A106: Chemical Supplies | B106: 45409.408 | C106: 35015.7214 | D106: 41884.885 | E106: 44428.0325 | F106: 42452.3058 | G106: 30796.4112 | I106: 0.00393413745 | J106: 0.003063480082 | K106: 0.003299460208 | L106: 0.003266798358 | M106: 0.004271191216 | N106: 0.002551962835 | P106: 26402.152 | Q106: 0.002586543616 | R106: -19007.256 | S106: -0.7199131344 | U106: 34716.2739 | V106: 0.003102966042 | W106: -10693.1341 | X106: -0.3080150287 | Z106: 412273.2832 | AA106: 0.003190847883 | AC106: 315334.5048 | AD106: 0.003137631745 | AE106: -96938.7784 | AF106: -0.3074157028 | AH106: 505671.6293 | AI106: 0.003404074833 | AJ106: 93398.3461 | AK106: 0.1847015745
A107: Janitorial Supplies | B107: 17908.9984 | C107: 17697.5342 | D107: 25584.9804 | E107: 17265.138 | F107: 16656.107 | G107: 23457.5104 | I107: 0.001551582907 | J107: 0.00154833433 | K107: 0.002015443632 | L107: 0.00126950759 | M107: 0.001675796322 | N107: 0.001943820478 | P107: 18491.9922 | Q107: 0.001811607795 | R107: 582.9938 | S107: 0.03152682489 | U107: 17535.2554 | V107: 0.001567313998 | W107: -373.743 | X107: -0.02131380419 | Z107: 195956.3573 | AA107: 0.001516632179 | AC107: 258052.092 | AD107: 0.002567662033 | AE107: 62095.7347 | AF107: 0.2406325569 | AH107: 305741.7264 | AI107: 0.002058188864 | AJ107: 109785.3691 | AK107: 0.3590787898
A108: Linen and Laundry | B108: 108881.2296 | C108: 95227.2478 | D108: 106846.7488 | E108: 90918.8712 | F108: 75237.841 | G108: 91914.8736 | I108: 0.009433149248 | J108: 0.008331308488 | K108: 0.008416797517 | L108: 0.006685275094 | M108: 0.007569793902 | N108: 0.007616580382 | P108: 77799.3132 | Q108: 0.007621777076 | R108: -31081.9164 | S108: -0.3995140204 | U108: 99143.6237 | V108: 0.008861529855 | W108: -9737.6059 | X108: -0.09821716755 | Z108: 809685.6327 | AA108: 0.00626667745 | AC108: 876423.3048 | AD108: 0.008720560361 | AE108: 66737.6721 | AF108: 0.07614776072 | AH108: 1177218.09 | AI108: 0.007924784074 | AJ108: 367532.4577 | AK108: 0.3122042217
A109: China and Tableware | B109: 36696.465 | C109: 32945.7706 | D109: 38819.298 | E109: 39697.119 | F109: 44962.0842 | G109: 69962.5378 | I109: 0.003179273714 | J109: 0.00288238277 | K109: 0.003057970174 | L109: 0.002918933742 | M109: 0.004523703848 | N109: 0.005797487088 | P109: 26304.2156 | Q109: 0.002576949066 | R109: -10392.2494 | S109: -0.3950792359 | U109: 39044.2179 | V109: 0.003489800853 | W109: 2347.7529 | X109: 0.06013061668 | Z109: 508656.4857 | AA109: 0.003936819427 | AC109: 360218.64 | AD109: 0.003584236494 | AE109: -148437.8457 | AF109: -0.412077081 | AH109: 420553.1576 | AI109: 0.002831075221 | AJ109: -88103.3281 | AK109: -0.2094939165
A110: Glassware | B110: 14030.3883 | C110: 16879.0956 | D110: 19859.2576 | E110: 14725.4016 | F110: 11511.6352 | G110: 21138.1184 | I110: 0.001215551545 | J110: 0.001476730197 | K110: 0.001564402773 | L110: 0.001082760479 | M110: 0.00115820317 | N110: 0.001751622687 | P110: 10316.7568 | Q110: 0.001010703273 | R110: -3713.6315 | S110: -0.3599611362 | U110: 12198.382 | V110: 0.001090300336 | W110: -1832.0063 | X110: -0.1501843687 | Z110: 184340.5824 | AA110: 0.001426730232 | AC110: 175513.896 | AD110: 0.001746393 | AE110: -8826.6864 | AF110: -0.05029052742 | AH110: 132713.8021 | AI110: 0.0008934013449 | AJ110: -51626.7803 | AK110: -0.3890083735
A111: Silverware | B111: 11226.912 | C111: 9786.2484 | D111: 10696.0549 | E111: 12020.8857 | F111: 7347.0096 | G111: 9996.978 | I111: 0.00097266661 | J111: 0.0008561861888 | K111: 0.0008425762069 | L111: 0.0008838971131 | M111: 0.0007391938382 | N111: 0.0008284054966 | P111: 5722.8423 | Q111: 0.0005606505566 | R111: -5504.0697 | S111: -0.9617720376 | U111: 9015.8544 | V111: 0.0008058436837 | W111: -2211.0576 | X111: -0.24524105 | Z111: 106868.0376 | AA111: 0.0008271204209 | AC111: 86767.0864 | AD111: 0.0008633472092 | AE111: -20100.9512 | AF111: -0.2316656238 | AH111: 91755.501 | AI111: 0.0006176786943 | AJ111: -15112.5366 | AK111: -0.1647044203
A112: Softgoods and Smallwares | B112: 64800.8515 | C112: 63091.0118 | D112: 81164.034 | E112: 61421.724 | F112: 48440.5482 | G112: 90988.5528 | I112: 0.005614155037 | J112: 0.005519750852 | K112: 0.006393654908 | L112: 0.004516346456 | M112: 0.004873677414 | N112: 0.00753982026 | P112: 39159.9546 | Q112: 0.003836389191 | R112: -25640.8969 | S112: -0.6547734072 | U112: 48762.7063 | V112: 0.00435844648 | W112: -16038.1452 | X112: -0.3289018682 | Z112: 796138.4464 | AA112: 0.006161827069 | AC112: 562253.7675 | AD112: 0.00559452024 | AE112: -233884.6789 | AF112: -0.4159770773 | AH112: 697987.8133 | AI112: 0.004698706851 | AJ112: -98150.6331 | AK112: -0.140619408
A113: Uniforms | B113: 9587.766 | C113: 15618.0276 | D113: 21750.058 | E113: 7636.926 | F113: 15504.983 | G113: 7747.0822 | I113: 0.0008306558253 | J113: 0.001366400993 | K113: 0.001713349599 | L113: 0.0005615440503 | M113: 0.001559979981 | N113: 0.00064196655 | P113: 6949.6371 | Q113: 0.0006808361482 | R113: -2638.1289 | S113: -0.3796067136 | U113: 11069.6881 | V113: 0.0009894168472 | W113: 1481.9221 | X113: 0.1338720736 | Z113: 130981.6236 | AA113: 0.001013750959 | AC113: 104071.3884 | AD113: 0.001035527946 | AE113: -26910.2352 | AF113: -0.2585747689 | AH113: 152756.5872 | AI113: 0.00102832515 | AJ113: 21774.9636 | AK113: 0.142546806
A114: Replacement Pagers | B114: 5813.3334 | C114: 4061.6289 | D114: 1432.0203 | E114: 169.9668 | F114: 4993.2754 | G114: 5447.8476 | I114: 0.0005036500946 | J114: 0.0003553466483 | K114: 0.0001128066604 | L114: 1.249767842e-05 | M114: 0.0005023810515 | N114: 0.0004514391145 | P114: 502.1965 | Q114: 4.919876042e-05 | R114: -5311.1369 | S114: -10.57581425 | U114: 1948.0106 | V114: 0.0001741146172 | W114: -3865.3228 | X114: -1.984241154 | Z114: 43183.2024 | AA114: 0.0003342225547 | AC114: 24968.052 | AD114: 0.0002484363473 | AE114: -18215.1504 | AF114: -0.7295383076 | AH114: 30299.5904 | AI114: 0.0002039704566 | AJ114: -12883.612 | AK114: -0.4252074642
A115: Miscellaneous Operating Expenses | B115: 13020.8355 | C115: 8783.892 | D115: 15292.4887 | E115: 222.683 | F115: 23296.9632 | G115: 12108.6875 | I115: 0.001128086862 | J115: 0.0007684913265 | K115: 0.001204657908 | L115: 1.637390669e-05 | M115: 0.00234394299 | N115: 0.001003393554 | P115: 5935.7181 | Q115: 0.0005815053923 | R115: -7085.1174 | S115: -1.193641154 | U115: 8719.656 | V115: 0.0007793692533 | W115: -4301.1795 | X115: -0.4932739892 | Z115: 102252.6144 | AA115: 0.0007913986947 | AC115: 72475.4886 | AD115: 0.0007211433899 | AE115: -29777.1258 | AF115: -0.4108578828 | AH115: 70534.2876 | AI115: 0.0004748219583 | AJ115: -31718.3268 | AK115: -0.4496866401
A116: Ice Purchases | B116: 7683.3522 | C116: 6614.6964 | D116: 8116.2018 | E116: 4988.5506 | F116: 8497.3248 | G116: 5922.0882 | I116: 0.0006656630192 | J116: 0.0005787112149 | K116: 0.0006393496098 | L116: 0.0003668087014 | M116: 0.0008549288045 | N116: 0.0004907373424 | P116: 6920.5385 | Q116: 0.0006779854413 | R116: -762.8137 | S116: -0.1102246162 | U116: 5175.157 | V116: 0.0004625593311 | W116: -2508.1952 | X116: -0.4846606973 | Z116: 51505.0155 | AA116: 0.0003986304143 | AC116: 50575.9052 | AD116: 0.000503238825 | AE116: -929.1103 | AF116: -0.01837061139 | AH116: 66810.9404 | AI116: 0.0004497571697 | AJ116: 15305.9249 | AK116: 0.2290930918
A117: R&M - Building | B117: 30301.6712 | C117: 27039.4995 | D117: 25095.063 | E117: 33500.2434 | F117: 34631.1078 | G117: 30953.2544 | I117: 0.002625247602 | J117: 0.002365650766 | K117: 0.001976850642 | L117: 0.002463276764 | M117: 0.00348428856 | N117: 0.002564959739 | P117: 30814.6048 | Q117: 0.003018819046 | R117: 512.9336 | S117: 0.01664579518 | U117: 28763.0109 | V117: 0.002570859026 | W117: -1538.6603 | X117: -0.05349441007 | Z117: 281494.596 | AA117: 0.002178667579 | AC117: 240362.4742 | AD117: 0.002391647339 | AE117: -41132.1218 | AF117: -0.1711253886 | AH117: 290007.6336 | AI117: 0.001952270267 | AJ117: 8513.0376 | AK117: 0.02935452938
A118: R&M - Building-Unnecessary | B118: 0 | C118: 182.9394 | D118: 0 | E118: 0 | F118: 0 | G118: 0 | J118: 1.834786251e-05 | P118: 757.35 | Q118: 7.419542192e-05 | R118: 757.35 | S118: 1 | U118: 603.1675 | V118: 5.391155386e-05 | W118: 603.1675 | X118: 1 | Z118: 2229.2793 | AA118: 1.725382513e-05 | AC118: 9190.3861 | AD118: 9.144589867e-05 | AE118: 6961.1068 | AF118: 0.7574335533 | AH118: 9045.7556 | AI118: 6.089412021e-05 | AJ118: 6816.4763 | AK118: 0.7535552143
A119: R&M - Building-Health Dept. | B119: 0 | C119: 0 | D119: 0 | E119: 0 | F119: 0 | G119: 0 | P119: 0 | R119: 0 | S119: 0 | U119: 502.9634 | V119: 4.495523785e-05 | W119: 502.9634 | X119: 1 | Z119: 0 | AA119: 0 | AC119: 4203.5004 | AD119: 4.182554111e-05 | AE119: 4203.5004 | AF119: 1 | AH119: 5715.5058 | AI119: 3.847558044e-05 | AJ119: 5715.5058 | AK119: 1
A120: R&M - Building-Discretionary | B120: 0 | C120: 0 | D120: 0 | E120: 0 | F120: 0 | G120: 0 | P120: 0 | R120: 0 | S120: 0 | U120: 283.2984 | V120: 2.532141893e-05 | W120: 283.2984 | X120: 1 | Z120: 52.7604 | AA120: 4.083466417e-07 | AC120: 4427.976 | AD120: 4.405911136e-05 | AE120: 4375.2156 | AF120: 0.9880847593 | AH120: 4191.9528 | AI120: 2.821934275e-05 | AJ120: 4139.1924 | AK120: 0.987413885
A121: R&M - Building-Theft | B121: 0 | C121: 0 | D121: 0 | E121: 0 | F121: 0 | G121: 0 | P121: 0 | R121: 0 | S121: 0 | U121: 4.5528 | V121: 4.069326056e-07 | W121: 4.5528 | X121: 1 | Z121: 0 | AA121: 0 | AC121: 54.131 | AD121: 5.386126205e-07 | AE121: 54.131 | AF121: 1 | AH121: 59.262 | AI121: 3.989392939e-07 | AJ121: 59.262 | AK121: 1
A122: R&M - Building-Maint. Contracts | B122: 0 | C122: 0 | D122: 809.805 | E122: 92.1576 | F122: 0 | G122: 680.2362 | K122: 6.397200446e-05 | L122: 6.626676869e-06 | N122: 7.006470592e-05 | P122: 454.7664 | Q122: =IF(P122="","",IFERROR(P122/P$19,0)) -> 4.455216865e-05 | R122: 454.7664 | S122: 1 | U122: 203.2768 | V122: 1.816902958e-05 | W122: 203.2768 | X122: 1 | Z122: 5078.4096 | AA122: 3.93050755e-05 | AC122: 2861.361 | AD122: 2.84710267e-05 | AE122: -2217.0486 | AF122: -0.7748230999 | AH122: 3087.2664 | AI122: 2.078282673e-05 | AJ122: -1991.1432 | AK122: -0.6449534773
A123: R&M - Electrical-NonEquipment | B123: 8876.817 | C123: 7605.7218 | D123: 7059.92 | E123: 4962.4293 | F123: 5236.0938 | G123: 6558.143 | I123: =IF(B123="","",IFERROR(B123/B$19,0)) -> 0.0007690612966 | J123: =IF(C123="","",IFERROR(C123/C$19,0)) -> 0.0006654147427 | K123: =IF(D123="","",IFERROR(D123/D$19,0)) -> 0.000556141556 | L123: =IF(E123="","",IFERROR(E123/E$19,0)) -> 0.0003648879992 | M123: =IF(F123="","",IFERROR(F123/F$19,0)) -> 0.000526811381 | N123: =IF(G123="","",IFERROR(G123/G$19,0)) -> 0.0005434443998 | P123: 5469.093 | Q123: =IF(P123="","",IFERROR(P123/P$19,0)) -> 0.0005357914606 | R123: -3407.724 | S123: -0.6230875942 | U123: 5705.931 | V123: 0.0005100003008 | W123: -3170.886 | X123: -0.5557175507 | Z123: 78731.469 | AA123: 0.0006093534348 | AC123: 52531.0555 | AD123: 0.0005226929017 | AE123: -26200.4135 | AF123: -0.4987604618 | AH123: 53275.1552 | AI123: 0.0003586371165 | AJ123: -25456.3138 | AK123: -0.4778271167
A124: R&M - Electrical-NonEquipment-Unnecessary | B124: 0 | C124: 135.05 | D124: 310.635 | E124: 0 | F124: 1.7242 | G124: 580.086 | J124: 1.153138958e-05 | K124: 2.27214549e-05 | M124: 1.481213842e-07 | N124: 5.618206456e-05 | P124: 0 | R124: 0 | S124: 0 | U124: 903.3612 | V124: 8.07430871e-05 | W124: 903.3612 | X124: 1 | Z124: 2711.6533 | AA124: 2.098722751e-05 | AC124: 5787.555 | AD124: 5.758715274e-05 | AE124: 3075.9017 | AF124: 0.5314682452 | AH124: 9333.03 | AI124: 6.282799093e-05 | AJ124: 6621.3767 | AK124: 0.7094562752
A125: R&M - Plumbing | B125: 21204.9232 | C125: 19568.264 | D125: 24972.2174 | E125: 18003.435 | F125: 13518.4316 | G125: 19753.1208 | I125: =IF(B125="","",IFERROR(B125/B$19,0)) -> 0.001837132131 | J125: =IF(C125="","",IFERROR(C125/C$19,0)) -> 0.001712002055 | K125: =IF(D125="","",IFERROR(D125/D$19,0)) -> 0.001967173543 | L125: =IF(E125="","",IFERROR(E125/E$19,0)) -> 0.001323794654 | M125: =IF(F125="","",IFERROR(F125/F$19,0)) -> 0.001360110016 | N125: =IF(G125="","",IFERROR(G125/G$19,0)) -> 0.001636854042 | P125: 8219.1758 | Q125: =IF(P125="","",IFERROR(P125/P$19,0)) -> 0.0008052092379 | R125: -12985.7474 | S125: -1.579933039 | U125: 18663.9102 | V125: 0.001668193993 | W125: -2541.013 | X125: -0.1361458008 | Z125: 246104.2523 | AA125: 0.001904758966 | AC125: 151329.7962 | AD125: 0.00150575711 | AE125: -94774.4561 | AF125: -0.6262775638 | AH125: 189952.4303 | AI125: 0.001278719726 | AJ125: -56151.822 | AK125: -0.2956099162
A126: R&M - Plumbing-Unnecessary | B126: 3096.632 | C126: 2595.84 | D126: 519.948 | E126: 120.9 | F126: 1479 | G126: 1653.488 | I126: 0.0002682830818 | J126: 0.0002271066772 | K126: 4.095863547e-05 | L126: 8.889790955e-06 | M126: 0.0001488044451 | N126: 0.0001370172614 | P126: 7605.5395 | Q126: 0.0007450930378 | R126: 4508.9075 | S126: 0.5928451887 | U126: 6542.5605 | V126: 0.0005847788596 | W126: 3445.9285 | X126: 0.5266941742 | Z126: 38590.3354 | AA126: 0.0002986754054 | AC126: 86041.1505 | AD126: 0.000856124024 | AE126: 47450.8151 | AF126: 0.5514897793 | AH126: 83229.1404 | AI126: 0.0005602810318 | AJ126: 44638.805 | AK126: 0.5363362494
A127: R&M - Plumbing-Health Dept. | B127: 0 | C127: 0 | D127: 0 | E127: 0 | F127: 0 | G127: 0 | P127: 0 | R127: 0 | S127: 0 | U127: 414.36 | V127: 3.703580093e-05 | W127: 414.36 | X127: 1 | Z127: 0 | AA127: 0 | AC127: 3072.966 | AD127: 3.05765323e-05 | AE127: 3072.966 | AF127: 1 | AH127: 5401.8819 | AI127: 3.636433045e-05 | AJ127: 5401.8819 | AK127: 1
A128: R&M - Plumbing-Discretionary | B128: 0 | C128: 0 | D128: 0 | E128: 0 | F128: 1202.4 | G128: 0 | M128: 0.0001061642539 | P128: 0 | R128: 0 | S128: 0 | U128: 30.5982 | V128: 2.734889574e-06 | W128: 30.5982 | X128: 1 | Z128: 1285.9 | AA128: 9.952406474e-06 | AC128: 74.943 | AD128: 7.456955464e-07 | AE128: -1210.957 | AF128: -16.1583737 | AH128: 336.7494 | AI128: 2.266925987e-06 | AJ128: -949.1506 | AK128: -2.818566566
A129: R&M - Plumbing-Theft | B129: 0 | C129: 0 | D129: 0 | E129: 0 | F129: 0 | G129: 0 | P129: 0 | R129: 0 | S129: 0 | U129: 0 | V129: 0 | W129: 0 | X129: 0 | Z129: 0 | AA129: 0 | AC129: 0 | AD129: 0 | AE129: 0 | AF129: 0 | AH129: 0 | AI129: 0 | AJ129: 0 | AK129: 0
A130: R&M - Plumbing-Maint. Contracts | B130: 1299.3904 | C130: 1197.05 | D130: 0 | E130: 381.2194 | F130: 0 | G130: 0 | I130: =IF(B130="","",IFERROR(B130/B$19,0)) -> 0.0001125753596 | J130: =IF(C130="","",IFERROR(C130/C$19,0)) -> 0.000104728353 | K130: =IF(D130="","",IFERROR(D130/D$19,0)) -> 0 | L130: =IF(E130="","",IFERROR(E130/E$19,0)) -> 2.803110649e-05 | M130: =IF(F130="","",IFERROR(F130/F$19,0)) -> 0 | N130: =IF(G130="","",IFERROR(G130/G$19,0)) -> 0 | P130: 0 | Q130: =IF(P130="","",IFERROR(P130/P$19,0)) -> 0 | R130: -1299.3904 | S130: 0 | U130: 268.107 | V130: 2.396360044e-05 | W130: -1031.2834 | X130: -3.846536644 | Z130: 3469.2325 | AA130: 2.685061979e-05 | AC130: 1567.7 | AD130: 1.559888059e-05 | AE130: -1901.5325 | AF130: -1.212944122 | AH130: 2763.0792 | AI130: 1.860046683e-05 | AJ130: -706.1533 | AK130: -0.2555675205
A131: R&M - Equipment | B131: 31869.3124 | C131: 31720.9215 | D131: 41182.188 | E131: 40401.2474 | F131: 24619.1855 | G131: 29212.1676 | I131: 0.002761063421 | J131: 0.002775222309 | K131: 0.003244105615 | L131: 0.002970708385 | M131: 0.002476973791 | N131: 0.002420683551 | P131: 22217.5884 | Q131: 0.002176593841 | R131: -9651.724 | S131: -0.4344181657 | U131: 20473.6752 | V131: 0.001829952117 | W131: -11395.6372 | X131: -0.5565994912 | Z131: 460955.556 | AA131: 0.003567631277 | AC131: 268968.446 | AD131: 0.002676281605 | AE131: -191987.11 | AF131: -0.713790457 | AH131: 301573.421 | AI131: 0.00203012871 | AJ131: -159382.135 | AK131: -0.5285019299
A132: R&M - Equipment-Unnecessary | B132: 382.485 | C132: 634.6456 | D132: 932.6819 | E132: 1723.8085 | F132: 1534.8248 | G132: 755.4378 | I132: 3.313737458e-05 | J132: 5.5524321e-05 | K132: 7.347153552e-05 | L132: 0.000126751838 | M132: 0.0001544210634 | N132: 6.259980025e-05 | P132: 6257.548 | Q132: 0.0006130341507 | R132: 5875.063 | S132: 0.938876218 | U132: 3096.5491 | V132: 0.0002767718313 | W132: 2714.0641 | X132: 0.8764802405 | Z132: 20335.259 | AA132: 0.0001573876377 | AC132: 36346.1792 | AD132: 0.0003616506406 | AE132: 16010.9202 | AF132: 0.4405117829 | AH132: 40812.9696 | AI132: 0.0002747443096 | AJ132: 20477.7106 | AK132: 0.5017451756
A133: R&M - Equipment-Health Dept. | B133: 0 | C133: 0 | D133: 0 | E133: 0 | F133: 0 | G133: 0 | P133: 0 | R133: 0 | S133: 0 | U133: 60.2516 | V133: 5.385332231e-06 | W133: 60.2516 | X133: 1 | Z133: 444.3534 | AA133: 3.439136523e-06 | AC133: 796.9164 | AD133: 7.929453189e-06 | AE133: 352.563 | AF133: 0.4424090156 | AH133: 712.4598 | AI133: 4.796129215e-06 | AJ133: 268.1064 | AK133: 0.3763109161
A134: R&M - Equipment-Discretionary | B134: 0 | C134: 0 | D134: 0 | E134: 0 | F134: 0 | G134: 0 | P134: 0 | R134: 0 | S134: 0 | U134: 0 | V134: 0 | W134: 0 | X134: 0 | Z134: 0 | AA134: 0 | AC134: 0 | AD134: 0 | AE134: 0 | AF134: 0 | AH134: 0 | AI134: 0 | AJ134: 0 | AK134: 0
A135: R&M - Equipment-Theft | B135: 0 | C135: 0 | D135: 0 | E135: 0 | F135: 0 | G135: 0 | P135: 0 | R135: 0 | S135: 0 | U135: 0 | V135: 0 | W135: 0 | X135: 0 | Z135: 0 | AA135: 0 | AC135: 0 | AD135: 0 | AE135: 0 | AF135: 0 | AH135: 0 | AI135: 0 | AJ135: 0 | AK135: 0
A136: R&M - Equipment-Maint. Contracts | B136: 0 | C136: 2718.0496 | D136: 2393.0544 | E136: 3295.3536 | F136: 0 | G136: 2785.056 | J136: 0.0002320835901 | K136: 0.0002324307077 | L136: 0.0002425972231 | N136: 0.0002823800892 | P136: 4881.864 | Q136: 0.000519215286 | R136: 4881.864 | S136: 1 | U136: 4592.9772 | V136: 0.0004105236733 | W136: 4592.9772 | X136: 1 | Z136: 34412.694 | AA136: 0.0002663419539 | AC136: 51969.177 | AD136: 0.0005171021154 | AE136: 17556.483 | AF136: 0.3378249188 | AH136: 51964.8048 | AI136: 0.0003498161138 | AJ136: 17552.1108 | AK136: 0.3377692049
A137: R&M - Computer Equipment | B137: 4131.702 | C137: 6303.414 | D137: 10107.571 | E137: 1770.3426 | F137: 2421.1187 | G137: 2348.278 | I137: =IF(B137="","",IFERROR(B137/B$19,0)) -> 0.0003579584999 | J137: =IF(C137="","",IFERROR(C137/C$19,0)) -> 0.0005514775212 | K137: =IF(D137="","",IFERROR(D137/D$19,0)) -> 0.0007962186913 | L137: =IF(E137="","",IFERROR(E137/E$19,0)) -> 0.0001301734957 | M137: =IF(F137="","",IFERROR(F137/F$19,0)) -> 0.000243592444 | N137: =IF(G137="","",IFERROR(G137/G$19,0)) -> 0.0001945914458 | P137: 2827.0215 | Q137: =IF(P137="","",IFERROR(P137/P$19,0)) -> 0.0002769552426 | R137: -1304.6805 | S137: -0.4615035648 | U137: 3751.1501 | V137: 0.0003352805492 | W137: -380.5519 | X137: -0.1014493928 | Z137: 49765.345 | AA137: 0.0003851659863 | AC137: 44142.7131 | AD137: 0.0004392274737 | AE137: -5622.6319 | AF137: -0.1273739538 | AH137: 45256.6308 | AI137: 0.0003046581002 | AJ137: -4508.7142 | AK137: -0.099625494
A138: R&M - Computer Equipment-Unnecessary | B138: 0 | C138: 0 | D138: 0 | E138: 0 | F138: 0 | G138: 0 | P138: 0 | R138: 0 | S138: 0 | U138: 0 | V138: 0 | W138: 0 | X138: 0 | Z138: 0 | AA138: 0 | AC138: 0 | AD138: 0 | AE138: 0 | AF138: 0 | AH138: 0 | AI138: 0 | AJ138: 0 | AK138: 0
A139: R&M - Computer Equipment-Health Dept. | B139: 0 | C139: 0 | D139: 0 | E139: 0 | F139: 0 | G139: 0 | P139: 0 | R139: 0 | S139: 0 | U139: 11.565 | V139: 1.033688188e-06 | W139: 11.565 | X139: 1 | Z139: 0 | AA139: 0 | AC139: 207.5 | AD139: 2.064660153e-06 | AE139: 207.5 | AF139: 1 | AH139: 135.4139 | AI139: 9.115778349e-07 | AJ139: 135.4139 | AK139: 1
A140: R&M - Computer Equipment-Discretionary | B140: 0 | C140: 0 | D140: 0 | E140: 0 | F140: 0 | G140: 0 | P140: 0 | R140: 0 | S140: 0 | U140: 0 | V140: 0 | W140: 0 | X140: 0 | Z140: 0 | AA140: 0 | AC140: 0 | AD140: 0 | AE140: 0 | AF140: 0 | AH140: 0 | AI140: 0 | AJ140: 0 | AK140: 0
A141: R&M - Computer Equipment-Theft | B141: 0 | C141: 0 | D141: 0 | E141: 0 | F141: 0 | G141: 0 | P141: 0 | R141: 0 | S141: 0 | U141: 0 | V141: 0 | W141: 0 | X141: 0 | Z141: 0 | AA141: 0 | AC141: 0 | AD141: 0 | AE141: 0 | AF141: 0 | AH141: 0 | AI141: 0 | AJ141: 0 | AK141: 0
A142: R&M - Computer Equipment-Maint. Contracts | B142: 8294.4057 | C142: 5900.364 | D142: 8416.0422 | E142: 10277.3195 | F142: 8113.5818 | G142: 10185.813 | I142: =IF(B142="","",IFERROR(B142/B$19,0)) -> 0.0007186028958 | J142: =IF(C142="","",IFERROR(C142/C$19,0)) -> 0.000516215199 | K142: =IF(D142="","",IFERROR(D142/D$19,0)) -> 0.0006629693827 | L142: =IF(E142="","",IFERROR(E142/E$19,0)) -> 0.0007556924891 | M142: =IF(F142="","",IFERROR(F142/F$19,0)) -> 0.0008163198361 | N142: =IF(G142="","",IFERROR(G142/G$19,0)) -> 0.0008440534206 | P142: 7759.68 | Q142: =IF(P142="","",IFERROR(P142/P$19,0)) -> 0.0007601937434 | R142: -534.7257 | S142: -0.06891079271 | U142: 10596.627 | V142: 0.0009471342989 | W142: 2302.2213 | X142: 0.2172598224 | Z142: 108985.416 | AA142: 0.0008435081731 | AC142: 100969.0858 | AD142: 0.001004659509 | AE142: -8016.3302 | AF142: -0.07939390692 | AH142: 108036.4522 | AI142: 0.0007272786264 | AJ142: -948.9638 | AK142: -0.008783737162
A143: R&M - Refrigeration | B143: 15119.8476 | C143: 9891.4794 | D143: 31351.4423 | E143: 12926.5146 | F143: 8276.7496 | G143: 16659.4472 | I143: 0.001309939092 | J143: 0.0008653927126 | K143: 0.002469693694 | L143: 0.0009504881106 | M143: 0.0008327363973 | N143: 0.001380494949 | P143: 10010.952 | Q143: 0.0009807444477 | R143: -5108.8956 | S143: -0.5103306459 | U143: 13351.272 | V143: 0.001193346491 | W143: -1768.5756 | X143: -0.1324649517 | Z143: 176286.1854 | AA143: 0.001364392078 | AC143: 150495.5664 | AD143: 0.001497456382 | AE143: -25790.619 | AF143: -0.1713712877 | AH143: 141432.2712 | AI143: 0.0009520922414 | AJ143: -34853.9142 | AK143: -0.2464353708
A144: R&M - Refrigeration-Unnecessary | B144: 685.368 | C144: 453.067 | D144: 928.7208 | E144: 343.2585 | F144: 871.398 | G144: 764.7265 | I144: 5.937826619e-05 | J144: 3.963824462e-05 | K144: 7.315950192e-05 | L144: 2.523983713e-05 | M144: 8.767268145e-05 | N144: 6.336951387e-05 | P144: 2463.9698 | Q144: 0.0002413881018 | R144: 1778.6018 | S144: 0.7218439934 | U144: 3193.5438 | V144: 0.0002854412888 | W144: 2508.1758 | X144: 0.7853895099 | Z144: 17622.8811 | AA144: 0.000136394802 | AC144: 35257.4114 | AD144: 0.0003508172165 | AE144: 17634.5303 | AF144: 0.5001652021 | AH144: 29004.948 | AI144: 0.0001952551968 | AJ144: 11382.0669 | AK144: 0.3924181109
A145: R&M - Refrigeration-Health Dept. | B145: 0 | C145: 0 | D145: 0 | E145: 0 | F145: 0 | G145: 0 | P145: 0 | R145: 0 | S145: 0 | U145: 441.4204 | V145: 3.945447934e-05 | W145: 441.4204 | X145: 1 | Z145: 4826.3255 | AA145: 3.735403465e-05 | AC145: 1328.2933 | AD145: 1.321674337e-05 | AE145: -3498.0322 | AF145: -2.633478766 | AH145: 7635.624 | AI145: 5.140141148e-05 | AJ145: 2809.2985 | AK145: 0.3679199631
A146: R&M - Refrigeration-Discretionary | B146: 0 | C146: 0 | D146: 0 | E146: 0 | F146: 0 | G146: 0 | P146: 0 | R146: 0 | S146: 0 | U146: 0 | V146: 0 | W146: 0 | X146: 0 | Z146: 0 | AA146: 0 | AC146: 0 | AD146: 0 | AE146: 0 | AF146: 0 | AH146: 0 | AI146: 0 | AJ146: 0 | AK146: 0
A147: R&M - Refrigeration-Theft | B147: 0 | C147: 0 | D147: 0 | E147: 0 | F147: 0 | G147: 0 | P147: 0 | R147: 0 | S147: 0 | U147: 0 | V147: 0 | W147: 0 | X147: 0 | Z147: 0 | AA147: 0 | AC147: 0 | AD147: 0 | AE147: 0 | AF147: 0 | AH147: 0 | AI147: 0 | AJ147: 0 | AK147: 0
A148: R&M - Refrigeration-Maint. Contracts | B148: 4893.3801 | C148: 0 | D148: 1334.7136 | E148: 0 | F148: 0 | G148: 3764.778 | I148: =IF(B148="","",IFERROR(B148/B$19,0)) -> 0.0004239480485 | J148: =IF(C148="","",IFERROR(C148/C$19,0)) -> 0 | K148: =IF(D148="","",IFERROR(D148/D$19,0)) -> 0.0001051413753 | L148: =IF(E148="","",IFERROR(E148/E$19,0)) -> 0 | M148: =IF(F148="","",IFERROR(F148/F$19,0)) -> 0 | N148: =IF(G148="","",IFERROR(G148/G$19,0)) -> 0.0003119705564 | P148: 6993.7296 | Q148: =IF(P148="","",IFERROR(P148/P$19,0)) -> 0.0006851557648 | R148: 2100.3495 | S148: 0.3003189457 | U148: 3562.328 | V148: 0.0003184034913 | W148: -1331.0521 | X148: -0.3736466996 | Z148: 34189.2656 | AA148: 0.0002646126979 | AC148: 28916.6736 | AD148: 0.0002877258012 | AE148: -5272.592 | AF148: -0.1823374318 | AH148: 31335.517 | AI148: 0.0002109440962 | AJ148: -2853.7486 | AK148: -0.09107073612
A149: R&M - Air Conditioning | B149: 11132.492 | C149: -5879.9424 | D149: 32800.2108 | E149: 11766.5531 | F149: 6484.828 | G149: 8053.4784 | I149: 0.0009644863391 | J149: -0.0005144285397 | K149: 0.002583819685 | L149: 0.0008651960076 | M149: 0.0006524484329 | N149: 0.0006673562524 | P149: 3104.4144 | Q149: 0.0003041306348 | R149: -8028.0776 | S149: -2.586019959 | U149: 7076.265 | V149: 0.0006324817595 | W149: -4056.227 | X149: -0.5732158137 | Z149: 97273.6344 | AA149: 0.0007528631688 | AC149: 69166.3644 | AD149: 0.0006882170435 | AE149: -28107.27 | AF149: -0.4063719446 | AH149: 83271.96 | AI149: 0.0005605692843 | AJ149: -14001.6744 | AK149: -0.1681439274
A150: R&M - Air Conditioning-Unnecessary | B150: 379.44 | C150: 0 | D150: 0 | E150: 269.3292 | F150: 0 | G150: 0 | I150: 3.287356474e-05 | J150: 0 | K150: 0 | L150: 1.980380716e-05 | M150: 0 | N150: 0 | P150: 470.6136 | Q150: 4.610467368e-05 | R150: 91.1736 | S150: 0.1937334578 | U150: 618.237 | V150: 5.525847683e-05 | W150: 238.797 | X150: 0.3862547858 | Z150: 3900.846 | AA150: 3.019115404e-05 | AC150: 7671.9951 | AD150: 7.633765099e-05 | AE150: 3771.1491 | AF150: 0.4915473812 | AH150: 6724.9845 | AI150: 4.527117829e-05 | AJ150: 2824.1385 | AK150: 0.4199472133
A151: R&M - Air Conditioning-Health Dept. | B151: 0 | C151: 0 | D151: 0 | E151: 0 | F151: 0 | G151: 0 | P151: 0 | R151: 0 | S151: 0 | U151: 0 | V151: 0 | W151: 0 | X151: 0 | Z151: 0 | AA151: 0 | AC151: 0 | AD151: 0 | AE151: 0 | AF151: 0 | AH151: 0 | AI151: 0 | AJ151: 0 | AK151: 0
A152: R&M - Air Conditioning-Discretionary | B152: 0 | C152: 0 | D152: 0 | E152: 0 | F152: 0 | G152: 0 | P152: 0 | R152: 0 | S152: 0 | U152: 79.508 | V152: 7.106483397e-06 | W152: 79.508 | X152: 1 | Z152: 0 | AA152: 0 | AC152: 879.65 | AD152: 8.752666525e-06 | AE152: 879.65 | AF152: 1 | AH152: 882.2352 | AI152: 5.939021426e-06 | AJ152: 882.2352 | AK152: 1
A153: R&M - Air Conditioning-Theft | B153: 0 | C153: 0 | D153: 0 | E153: 0 | F153: 0 | G153: 0 | P153: 0 | R153: 0 | S153: 0 | U153: 0 | V153: 0 | W153: 0 | X153: 0 | Z153: 0 | AA153: 0 | AC153: 0 | AD153: 0 | AE153: 0 | AF153: 0 | AH153: 0 | AI153: 0 | AJ153: 0 | AK153: 0
A154: R&M - Air Conditioning-Maint. Contracts | B154: 2583.34 | C154: 1541.3432 | D154: 4631.2275 | E154: 671.088 | F154: 0 | G154: 2652.909 | I154: =IF(B154="","",IFERROR(B154/B$19,0)) -> 0.0002238129737 | J154: =IF(C154="","",IFERROR(C154/C$19,0)) -> 0.0001348501189 | K154: =IF(D154="","",IFERROR(D154/D$19,0)) -> 0.0003648225572 | L154: =IF(E154="","",IFERROR(E154/E$19,0)) -> 4.93451781e-05 | M154: =IF(F154="","",IFERROR(F154/F$19,0)) -> 0 | N154: =IF(G154="","",IFERROR(G154/G$19,0)) -> 0.0002198348739 | P154: 7021.6145 | Q154: =IF(P154="","",IFERROR(P154/P$19,0)) -> 0.000687887569 | R154: 4438.2745 | S154: 0.6320874636 | U154: 5968.486 | V154: 0.0005334676594 | W154: 3385.146 | X154: 0.5671699657 | Z154: 38590.995 | AA154: 0.0002986805105 | AC154: 51812.6 | AD154: 0.0005155441478 | AE154: 13221.605 | AF154: 0.2551812686 | AH154: 53042.9955 | AI154: 0.0003570742663 | AJ154: 14452.0005 | AK154: 0.2724582268
A155: R&M - Rita Machine | B155: 5357.0101 | C155: 4564.284 | D155: 3647.5096 | E155: 3636.2607 | F155: 5650.4666 | G155: 1273.482 | I155: 0.0004641155871 | J155: 0.0003993232915 | K155: 0.0002873306871 | L155: 0.000267374669 | M155: 0.0005685020602 | N155: 0.0001055278394 | P155: 2711.2421 | Q155: 0.0002656126646 | R155: -2645.768 | S155: -0.975850884 | U155: 4674.082 | V155: 0.0004177728798 | W155: -682.9281 | X155: -0.1461095676 | Z155: 33453.5424 | AA155: 0.0002589184633 | AC155: 46974.6849 | AD155: 0.0004674060729 | AE155: 13521.1425 | AF155: 0.2878389185 | AH155: 63943.056 | AI155: 0.0004304511763 | AJ155: 30489.5136 | AK155: 0.4768229032
A156: R&M - Rita Machine-Unnecessary | B156: 297.6009 | C156: 249 | D156: 194.35 | E156: 0 | F156: 0 | G156: 0 | I156: 2.578326601e-05 | J156: 2.178468728e-05 | K156: 1.530982099e-05 | L156: 0 | M156: 0 | N156: 0 | P156: 214.7247 | Q156: 2.103596714e-05 | R156: -82.8762 | S156: -0.3859649123 | U156: 836.568 | V156: 7.477306186e-05 | W156: 538.9671 | X156: 0.6442597613 | Z156: 1880.5392 | AA156: 1.455470138e-05 | AC156: 3532.802 | AD156: 3.515197841e-05 | AE156: 1652.2628 | AF156: 0.4676918774 | AH156: 8253.6228 | AI156: 5.556164915e-05 | AJ156: 6373.0836 | AK156: 0.7721559071
A157: R&M - Rita Machine-Health Dept. | B157: 0 | C157: 0 | D157: 0 | E157: 0 | F157: 0 | G157: 0 | P157: 0 | R157: 0 | S157: 0 | U157: 0 | V157: 0 | W157: 0 | X157: 0 | Z157: 0 | AA157: 0 | AC157: 0 | AD157: 0 | AE157: 0 | AF157: 0 | AH157: 0 | AI157: 0 | AJ157: 0 | AK157: 0
A158: R&M - Rita Machine-Discretionary | B158: 0 | C158: 0 | D158: 0 | E158: 0 | F158: 0 | G158: 0 | P158: 0 | R158: 0 | S158: 0 | U158: 0 | V158: 0 | W158: 0 | X158: 0 | Z158: 0 | AA158: 0 | AC158: 0 | AD158: 0 | AE158: 0 | AF158: 0 | AH158: 0 | AI158: 0 | AJ158: 0 | AK158: 0
A159: R&M - Rita Machine-Theft | B159: 0 | C159: 0 | D159: 0 | E159: 0 | F159: 0 | G159: 0 | P159: 0 | R159: 0 | S159: 0 | U159: 0 | V159: 0 | W159: 0 | X159: 0 | Z159: 0 | AA159: 0 | AC159: 0 | AD159: 0 | AE159: 0 | AF159: 0 | AH159: 0 | AI159: 0 | AJ159: 0 | AK159: 0
A160: R&M - Rita Machine-Maint. Contracts | B160: 0 | C160: 0 | D160: 0 | E160: 0 | F160: 0 | G160: 0 | P160: 0 | R160: 0 | S160: 0 | U160: 18.6468 | V160: 1.66666467e-06 | W160: 18.6468 | X160: 1 | Z160: 0 | AA160: 0 | AC160: 262.0592 | AD160: 2.607533436e-06 | AE160: 262.0592 | AF160: 1 | AH160: 182.8296 | AI160: 1.230770334e-06 | AJ160: 182.8296 | AK160: 1
A161: Fire, Life & Safety | B161: 4339.4484 | C161: 2339.9781 | D161: 2325.5883 | E161: 1195.032 | F161: 2638.6056 | G161: 485.6172 | I161: =IF(B161="","",IFERROR(B161/B$19,0)) -> 0.0003759570365 | J161: =IF(C161="","",IFERROR(C161/C$19,0)) -> 0.0002047216512 | K161: =IF(D161="","",IFERROR(D161/D$19,0)) -> 0.0001831970186 | L161: =IF(E161="","",IFERROR(E161/E$19,0)) -> 8.78708409e-05 | M161: =IF(F161="","",IFERROR(F161/F$19,0)) -> 0.0002654741326 | N161: =IF(G161="","",IFERROR(G161/G$19,0)) -> 4.024095659e-05 | P161: 1638.358 | Q161: =IF(P161="","",IFERROR(P161/P$19,0)) -> 0.0001605052658 | R161: -2701.0904 | S161: -1.648657009 | U161: 3261.2195 | V161: 0.0002914901926 | W161: -1078.2289 | X161: -0.3306213826 | Z161: 31963.448 | AA161: 0.0002473856651 | AC161: 28208.0116 | AD161: 0.0002806744942 | AE161: -3755.4364 | AF161: -0.1331336804 | AH161: 31114.881 | AI161: 0.0002094588211 | AJ161: -848.567 | AK161: -0.02727206316
A162: Fire. Life & Safety-Unnecessary | B162: 0 | C162: 0 | D162: 0 | E162: 0 | F162: 0 | G162: 0 | P162: 739.0495 | Q162: =IF(P162="","",IFERROR(P162/P$19,0)) -> 7.240257407e-05 | R162: 739.0495 | S162: 1 | U162: 190.5865 | V162: 1.703476126e-05 | W162: 190.5865 | X162: 1 | Z162: 125.4366 | AA162: 9.708344583e-07 | AC162: 626.0184 | AD162: 6.228989136e-06 | AE162: 500.5818 | AF162: 0.7996279343 | AH162: 1810.3752 | AI162: 1.218706429e-05 | AJ162: 1684.9386 | AK162: 0.9307123739
A163: Fire, Life & Safety-Maint. Contracts | B163: 11130.8472 | C163: 1957.2192 | D163: 3969.5403 | E163: 883.842 | F163: 5871.2094 | G163: 3859.933 | I163: =IF(B163="","",IFERROR(B163/B$19,0)) -> 0.0009643438385 | J163: =IF(C163="","",IFERROR(C163/C$19,0)) -> 0.0001712345711 | K163: =IF(D163="","",IFERROR(D163/D$19,0)) -> 0.0003126984893 | L163: =IF(E163="","",IFERROR(E163/E$19,0)) -> 6.498900428e-05 | M163: =IF(F163="","",IFERROR(F163/F$19,0)) -> 0.0005907113299 | N163: =IF(G163="","",IFERROR(G163/G$19,0)) -> 0.0003198556317 | P163: 1300.7775 | Q163: 0.000127433466 | R163: =($B163-$P163)*-1 -> -9830.0697 | S163: =IFERROR($R163/$P163,0) -> -7.557072366 | U163: 5155.3725 | V163: =IF(U163="","",IFERROR(U163/U$19,0)) -> 0.000460790978 | W163: =($B163-$U163)*-1 -> -5975.4747 | X163: =IFERROR($W163/$U163,0) -> -1.159077196 | Z163: 41759.4672 | AA163: =IF(Z163="","",IFERROR(Z163/Z$19,0)) -> 0.0003232033531 | AC163: 35548.59 | AD163: =IF(AC163="","",IFERROR(AC163/AC$19,0)) -> 0.0003537144929 | AE163: =($Z163-$AC163)*-1 -> -6210.8772 | AF163: =IFERROR($AE163/$AC163,0) -> -0.174715149 | AH163: 51359.8208 | AI163: =IF(AH163="","",IFERROR(AH163/AH$19,0)) -> 0.000345743489 | AJ163: =($Z163-$AH163)*-1 -> 9600.3536 | AK163: =IFERROR($AJ163/$AH163,0) -> 0.1869234248
A164: Cash Paid-Outs | B164: -75 | C164: 67 | D164: 0 | E164: 6.066 | F164: -8.8968 | G164: 0 | I164: -6.497779243e-06 | J164: 5.861743163e-06 | K164: 0 | L164: 4.460336802e-07 | M164: -8.951206134e-07 | N164: 0 | P164: 0 | Q164: 0 | R164: 75 | S164: 0 | U164: -4.7432 | V164: -4.239506974e-07 | W164: 70.2568 | X164: -14.81210997 | Z164: 0 | AA164: 0 | AC164: 0 | AD164: 0 | AE164: 0 | AF164: 0 | AH164: -58.212 | AI164: -3.918709152e-07 | AJ164: -58.212 | AK164: 1
A165: Cash (Over) / Short | B165: -783.3408 | C165: 1058.022 | D165: -7009.961 | E165: 4008.056 | F165: 4696.1856 | G165: -4312.269 | I165: -6.78663412e-05 | J165: 9.25649735e-05 | K165: -0.0005522060615 | L165: 0.0002947128203 | M165: 0.0004724903937 | N165: -0.000357338722 | P165: 2895.382 | Q165: 0.000283652326 | R165: 3678.7228 | S165: 1.270548342 | U165: 6074.0811 | V165: 0.0005429058269 | W165: 6857.4219 | X165: 1.128964495 | Z165: 18306.2088 | AA165: 0.0001416835142 | AC165: 56068.8048 | AD165: 0.0005578941066 | AE165: 37762.596 | AF165: 0.6735045652 | AH165: 55517.761 | AI165: 0.0003737338661 | AJ165: 37211.5522 | AK165: 0.6702639215
A166: Complaint Letters | B166: 0 | C166: 0 | D166: 0 | E166: 0 | F166: 0 | G166: 0 | P166: 0 | R166: 0 | S166: 0 | U166: 208.384 | V166: 1.862551487e-05 | W166: 208.384 | X166: 1 | Z166: 0 | AA166: 0 | AC166: 164.16 | AD166: 1.633419811e-06 | AE166: 164.16 | AF166: 1 | AH166: 2192.76 | AI166: 1.476119817e-05 | AJ166: 2192.76 | AK166: 1
A167: Employment Ads | B167: 0 | C167: 0 | D167: 51.24 | E167: 0 | F167: 1924.396 | G167: 1273.9974 | K167: 4.976798465e-06 | M167: 0.0001609691661 | N167: 0.0001059873545 | P167: 128 | Q167: =IF(P167="","",IFERROR(P167/P$19,0)) -> 1.253979535e-05 | R167: 128 | S167: 1 | U167: 271.0554 | V167: 2.42271306e-05 | W167: 271.0554 | X167: 1 | Z167: 5208.3155 | AA167: 4.031050074e-05 | AC167: 2734.1481 | AD167: 2.72052368e-05 | AE167: -2474.1674 | AF167: -0.9049134537 | AH167: 3319.0311 | AI167: 2.234301785e-05 | AJ167: -1889.2844 | AK167: -0.5692276882
A168: Office Supplies | B168: 28418.9584 | C168: 30334.0915 | D168: 24560.3349 | E168: 15615.1944 | F168: 28601.802 | G168: 33739.528 | I168: =IF(B168="","",IFERROR(B168/B$19,0)) -> 0.002462134906 | J168: =IF(C168="","",IFERROR(C168/C$19,0)) -> 0.00265389035 | K168: =IF(D168="","",IFERROR(D168/D$19,0)) -> 0.001934727712 | L168: =IF(E168="","",IFERROR(E168/E$19,0)) -> 0.001148187047 | M168: =IF(F168="","",IFERROR(F168/F$19,0)) -> 0.00287767091 | N168: =IF(G168="","",IFERROR(G168/G$19,0)) -> 0.002795845949 | P168: 21417.142 | Q168: 0.002098176388 | R168: -7001.8164 | S168: -0.3269258055 | U168: 22822.9482 | V168: 0.002039931862 | W168: -5596.0102 | X168: -0.2451922579 | Z168: 268394.1029 | AA168: 0.002077274444 | AC168: 286712.5128 | AD168: 0.002852838075 | AE168: 18318.4099 | AF168: 0.06389121187 | AH168: 244279.6684 | AI168: 0.001644439243 | AJ168: -24114.4345 | AK168: -0.09871650252
A169: Printed Office Matter | B169: 13089.357 | C169: 7410.4688 | D169: 16049.5356 | E169: 7134.8166 | F169: 6631.912 | G169: 7149.6035 | I169: 0.001134023363 | J169: 0.0006483323108 | K169: 0.001264293887 | L169: 0.0005246238882 | M169: 0.0006672467784 | N169: 0.000592456124 | P169: 4060.4144 | Q169: 0.0003977872313 | R169: -9028.9426 | S169: -2.223650522 | U169: 9266.0568 | V169: 0.0008282069578 | W169: -3823.3002 | X169: -0.4126135078 | Z169: 126142.245 | AA169: 0.0009762958984 | AC169: 105157.2915 | AD169: 0.001046332866 | AE169: -20984.9535 | AF169: -0.1995577596 | AH169: 98303.3045 | AI169: 0.0006617571275 | AJ169: -27838.9405 | AK169: -0.2831943508
A170: Customer Liab. Guest Cards | B170: 0 | C170: 0 | D170: 0 | E170: 0 | F170: 0 | G170: 0 | P170: 0 | R170: 0 | S170: 0 | U170: 0 | V170: 0 | W170: 0 | X170: 0 | Z170: 0 | AA170: 0 | AC170: 0 | AD170: 0 | AE170: 0 | AF170: 0 | AH170: 0 | AI170: 0 | AJ170: 0 | AK170: 0
A171: Sales Tax & Freight/Delivery Expense | B171: 47071.0535 | C171: 57448.5655 | D171: 44721.8052 | E171: 43799.84 | F171: 38888.8574 | G171: 42848.1092 | I171: =IF(B171="","",IFERROR(B171/B$19,0)) -> 0.004078097525 | J171: =IF(C171="","",IFERROR(C171/C$19,0)) -> 0.005026100538 | K171: =IF(D171="","",IFERROR(D171/D$19,0)) -> 0.003522937134 | L171: =IF(E171="","",IFERROR(E171/E$19,0)) -> 0.003220607291 | M171: =IF(F171="","",IFERROR(F171/F$19,0)) -> 0.003912667239 | N171: =IF(G171="","",IFERROR(G171/G$19,0)) -> 0.00355063392 | P171: 35701.838 | Q171: =IF(P171="","",IFERROR(P171/P$19,0)) -> 0.00349760736 | R171: -11369.2155 | S171: -0.3184490249 | U171: 34754.1379 | V171: 0.003106350354 | W171: -12316.9156 | X171: -0.3544014136 | Z171: 394799.3028 | AA171: 0.003055605519 | AC171: 428248.6026 | AD171: 0.004261146147 | AE171: 33449.2998 | AF171: 0.07810720128 | AH171: 450271.5592 | AI171: 0.003031133237 | AJ171: 55472.2564 | AK171: 0.1231973356
B172: - | C172: - | D172: - | E172: - | F172: - | G172: - | I172: - | J172: - | K172: - | L172: - | M172: - | N172: - | P172: - | Q172: - | R172: - | S172: - | U172: - | V172: - | W172: - | X172: - | Z172: - | AA172: - | AC172: - | AD172: - | AE172: - | AF172: - | AH172: - | AI172: - | AJ172: - | AK172: -
A173: TOTAL DIRECT OPERATING EXP. | B173: =SUM(B99:B171) -> 830809.6861 | C173: =SUM(C99:C171) -> 765945.5172 | D173: =SUM(D99:D171) -> 904389.8831 | E173: =SUM(E99:E171) -> 744406.8341 | F173: 727683.3285 | G173: 841459.1895 | I173: =IF(B173="","",IFERROR(B173/B$19,0)) -> 0.07197890577 | J173: =IF(C173="","",IFERROR(C173/C$19,0)) -> 0.06701158058 | K173: =IF(D173="","",IFERROR(D173/D$19,0)) -> 0.07124284649 | L173: =IF(E173="","",IFERROR(E173/E$19,0)) -> 0.05473632044 | M173: =IF(F173="","",IFERROR(F173/F$19,0)) -> 0.07321332922 | N173: =IF(G173="","",IFERROR(G173/G$19,0)) -> 0.06972801358 | P173: =SUM(P99:P171) -> 617422.5771 | Q173: =IF(P173="","",IFERROR(P173/P$19,0)) -> 0.06048713093 | R173: =($B173-$P173)*-1 -> -213387.109 | S173: =IFERROR($R173/$P173,0) -> -0.3456095014 | U173: =SUM(U99:U171) -> 728758.5803 | V173: =IF(U173="","",IFERROR(U173/U$19,0)) -> 0.0651369768 | W173: =($B173-$U173)*-1 -> -102051.1058 | X173: =IFERROR($W173/$U173,0) -> -0.1400341739 | Z173: =SUM(Z99:Z171) -> 8766743.856 | AA173: =IF(Z173="","",IFERROR(Z173/Z$19,0)) -> 0.06785146459 | AC173: =SUM(AC99:AC171) -> 7590801.083 | AD173: =IF(AC173="","",IFERROR(AC173/AC$19,0)) -> 0.07552975676 | AE173: =($Z173-$AC173)*-1 -> -1175942.773 | AF173: =IFERROR($AE173/$AC173,0) -> -0.1549168211 | AH173: =SUM(AH99:AH171) -> 8984867.05 | AI173: =IF(AH173="","",IFERROR(AH173/AH$19,0)) -> 0.06048423133 | AJ173: =($Z173-$AH173)*-1 -> 218123.1933 | AK173: =IFERROR($AJ173/$AH173,0) -> 0.02427673021
B174: - | C174: - | D174: - | E174: - | F174: - | G174: - | I174: - | J174: - | K174: - | L174: - | M174: - | N174: - | P174: - | Q174: - | R174: - | S174: - | U174: - | V174: - | W174: - | X174: - | Z174: - | AA174: - | AC174: - | AD174: - | AE174: - | AF174: - | AH174: - | AI174: - | AJ174: - | AK174: -
A175: INDIRECT OPERATING EXPENSES
A176: Services | B176: 79.0482 | C176: 409.5 | D176: 2531.7712 | E176: 737.1225 | F176: 6086.9378 | G176: 1677.948 | I176: =IF(B176="","",IFERROR(B176/B$19,0)) -> 6.848503375e-06 | J176: =IF(C176="","",IFERROR(C176/C$19,0)) -> 3.582662426e-05 | K176: =IF(D176="","",IFERROR(D176/D$19,0)) -> 0.0001994389702 | L176: =IF(E176="","",IFERROR(E176/E$19,0)) -> 5.420070251e-05 | M176: =IF(F176="","",IFERROR(F176/F$19,0)) -> 0.0006124160931 | N176: =IF(G176="","",IFERROR(G176/G$19,0)) -> 0.0001390441538 | P176: 175.4522 | Q176: =IF(P176="","",IFERROR(P176/P$19,0)) -> 1.71885522e-05 | R176: =($B176-$P176)*-1 -> 96.404 | S176: =IFERROR($R176/$P176,0) -> 0.5494601949 | U176: 1182.2186 | V176: =IF(U176="","",IFERROR(U176/U$19,0)) -> 0.0001056675662 | W176: =($B176-$U176)*-1 -> 1103.1704 | X176: =IFERROR($W176/$U176,0) -> 0.9331357162 | Z176: 34466.5899 | AA176: =IF(Z176="","",IFERROR(Z176/Z$19,0)) -> 0.0002667590889 | AC176: 18214.4058 | AD176: =IF(AC176="","",IFERROR(AC176/AC$19,0)) -> 0.0001812364235 | AE176: =($Z176-$AC176)*-1 -> -16252.1841 | AF176: =IFERROR($AE176/$AC176,0) -> -0.8922708914 | AH176: 14666.0328 | AI176: =IF(AH176="","",IFERROR(AH176/AH$19,0)) -> 9.872864179e-05 | AJ176: =($Z176-$AH176)*-1 -> -19800.5571 | AK176: =IFERROR($AJ176/$AH176,0) -> -1.350096333
A177: Cable / Music Services | B177: 7034.3928 | C177: 7051.795 | D177: 7266.36 | E177: 599.68 | F177: 7963.276 | G177: 6770.9124 | I177: 0.0006094390869 | J177: 0.0006169524049 | K177: 0.0005724037605 | L177: 4.409453962e-05 | M177: 0.0008011973404 | N177: 0.000561075662 | P177: 6104.2512 | Q177: 0.0005980161 | R177: -930.1416 | S177: -0.1523760359 | U177: 6839.7637 | V177: 0.0006113430997 | W177: -194.6291 | X177: -0.02845552983 | Z177: 85276.08 | AA177: 0.0006600063851 | AC177: 78881.2412 | AD177: 0.0007848817135 | AE177: -6394.8388 | AF177: -0.08106919595 | AH177: 75957.0329 | AI177: 0.0005113267368 | AJ177: -9319.0471 | AK177: -0.1226884035
A178: Trash / Waste Removal Services | B178: -2550.1008 | C178: 45232.3696 | D178: 40153.6548 | E178: 36803.5267 | F178: 30010.7795 | G178: 24610.8915 | I178: -0.0002209332273 | J178: 0.003957321392 | K178: 0.003163083443 | L178: 0.002706167566 | M178: 0.003019430285 | N178: 0.002039396085 | P178: 102.795 | Q178: 1.00705333e-05 | R178: 2652.8958 | S178: 25.80763461 | U178: 29059.569 | V178: 0.002597365606 | W178: 31609.6698 | X178: 1.087754254 | Z178: 323231.2604 | AA178: 0.002501694446 | AC178: 269650.5492 | AD178: 0.002683068647 | AE178: -53580.7112 | AF178: -0.1987042539 | AH178: 250564.3008 | AI178: 0.001686746064 | AJ178: -72666.9596 | AK178: -0.2900132196
A179: Hood Cleaning Services | B179: 19591.3875 | C179: 12514.2534 | D179: 11660.6198 | E179: 27426.339 | F179: 8514.6336 | G179: 14047.6799 | I179: 0.001697340147 | J179: 0.001094855811 | K179: 0.0009185593093 | L179: 0.002016661872 | M179: 0.0008566702692 | N179: 0.001164069306 | P179: 18497.9724 | Q179: 0.001812193658 | R179: -1093.4151 | S179: -0.05910999737 | U179: 15475.8928 | V179: 0.001383246657 | W179: -4115.4947 | X179: -0.2659293879 | Z179: 129109.367 | AA179: 0.0009992603624 | AC179: 123758.3379 | AD179: 0.001231416428 | AE179: -5351.0291 | AF179: -0.04323772596 | AH179: 157468.0824 | AI179: 0.001060041943 | AJ179: 28358.7154 | AK179: 0.1800918317
A180: Armored Car Services | B180: 11661.5309 | C180: 13883.0922 | D180: 941.2106 | E180: 10660.6764 | F180: 9404.562 | G180: 11747.8838 | I180: 0.001010320712 | J180: 0.001214613743 | K180: 7.414337947e-05 | L180: 0.0007838807662 | M180: 0.0009462073225 | N180: 0.0009734953416 | P180: 10661.91 | Q180: 0.001044516949 | R180: -999.6209 | S180: -0.09375626881 | U180: 10548.4771 | V180: 0.0009428306255 | W180: -1113.0538 | X180: -0.1055179615 | Z180: 101350.5 | AA180: 0.0007844166516 | AC180: 92783.4588 | AD180: 0.0009232111338 | AE180: -8567.0412 | AF180: -0.0923337124 | AH180: 144571.56 | AI180: 0.000973225272 | AJ180: 43221.06 | AK180: 0.2989596294
